{"text_format":"1","workbook":"xlsx","n_sheets":5,"sheets":["Base 1","Tablas","Vencimiento días","Riesgo de liberación","Control de avances"],"not_rendered":{"charts":4,"images":2,"macros":1,"external_links":0,"defined_names":3,"comments":0,"pivot_tables":4},"unopened":[],"bounds":{"document_bytes":16777216,"sheet_cells":100000,"rows_first":2000,"rows_last":500,"rows_between":2000,"halvings":0,"cell_chars":16384,"cell_head_chars":4096},"cells_cut":0,"cells_raw":0,"read":"whole","date_system":"1900"}

{"sheet":"Base 1","index":0,"n_rows":227,"n_cols":15,"rows_kept":227,"cut":false,"hidden":false,"merged":[[0,0,6,14],[7,0,7,14]]}
["GOBERNACIÓN DE CUNDINAMARCA"]
[]
[]
[]
[]
[]
[]
[" SISTEMAS GENERAL DEL REGALÍAS-BASE DE PROYECTOS APROBADOS"]
["N°","EJECUTOR (Dpto / Entidad)","EJECUTOR INTERNO","BPIN ","PROYECTO","SECTOR","VALOR PROYECTO","VALOR SGR","OTRAS FUENTES","FECHA DE APROBACIÓN OCAD","AÑO DE APROBACIÓN","ACUERDO DE APROBACIÓN","ESTADO","\tAVANCE FÍSICO","\tAVANCE FINANCIERO"]
[1,"CUNDINAMARCA","SECRETARIA DE AMBIENTE",2012000050005,"ESTUDIOS Y DISEÑOS DE DETALLE EMBALSE CALANDAIMA MUNICIPIO DE EL COLEGIO DEPARTAMENTO DE CUNDINAMARCA","AMBIENTE Y DESARROLLO SOSTENIBLE",4000000000,1000000000,{"$f":"G10-H10","v":3000000000},41271,2012,"004 DE 2012","CERRADO",1,1]
[2,"CUNDINAMARCA","ICCU - GESPROY GB",2012000050006,"CONSTRUCCIÓN CUBIERTA COLISEO DEL CENTRO AGROTECNOLOGICO DE EXPOSICIONES Y COMERCIALIZACION DE LA REGION DEL SUMAPAZ EN EL MUNICIPIO DE FUSAGASUGA - CUNDINAMARCA","AGRICULTURA ",6352617736,3581530801,2771086935,41271,2012,"004 DE 2012","CERRADO",1,0.99539999999999995]
[3,"CUNDINAMARCA","SECRETARIA DE AGRICULTURA",2012000050007,"FORTALECIMIENTO DE LAS CADENAS HORTIFRUTICOLA Y AROMATICAS EN CUNDINAMARCA","AGRICULTURA ",2490400000,1300000000,1190400000,41271,2012,"004 DE 2012","CERRADO",1,1]
[4,"CUNDINAMARCA","SECRETARIA DE AGRICULTURA",2012000050009,"FORTALECIMIENTO DE LA PRODUCTIVIDAD Y COMPETITIVIDAD DEL SECTOR CACAOTERO EN EL DEPARTAMENTO DE CUNDINAMARCA ","AGRICULTURA ",2334689275,1200000000,1134689275,41271,2012,"004 DE 2012","CERRADO",1,0.96340000000000003]
[5,"CUNDINAMARCA","SECRETARIA GENERAL",2012000050010,"ESTUDIOS Y DISEÑOS PARA LA RECUPERACIÓN Y ADECUACION DEL PATRIMONIO HISTORICO CULTURAL PALACIO DE SAN FRANCISCO EN BOGOTA D.C. DEPARTAMENTO DE CUNDINAMARCA ","CULTURA ",1000000000,1000000000,0,41271,2012,"004 DE 2012","TERMINADO",1,0.94640000000000002]
[6,"CUNDINAMARCA","SECRETARIA DE EDUCACIÓN",2012000050011,"FORTALECIMIENTO DE LA PERMANENCIA DE LOS ESTUDIANTES EN LOS MUNICIPIOS DEL DEPARTAMENTO DE CUNDINAMARCA DEPARTAMENTO DE CUNDINAMARCA\n","EDUCACIÓN",6000000000,6000000000,0,41187,2012,"003 DE 2012","CERRADO",1,0.58189999999999997]
[7,"CUNDINAMARCA","SECRETARIA DE DESARROLLO E INCLUSIÓN SOCIAL",2012000050012,"IMPLEMENTACIÓN DEL PROGRAMA DE COMPLEMENTACION ALIMENTARIA Y NUTRICIONAL EN MENORES DE 5 AÑOS, MUJERES GESTANTES Y LACTANTES EN TODO EL DEPARTAMENTO DE CUNDINAMARCA","SALUD Y PROTECCIÓN SOCIAL",4531022720,3000000000,1531022720,41187,2012,"003 DE 2012","CERRADO",0.99039999999999995,0.99719999999999998]
[8,"CUNDINAMARCA","SECRETARIA DE TRANSPORTE Y MOVILIDAD",2012000050013,"ACTUALIZACION Y FORMULACION DE LOS ESTUDIOS Y DISEÑOS FASE II Y III DE LA EXTENCION NORTE - QUITO - SUR DEL SISTEMA TRANSMILENIO AL MUNICIPIO DE SOACHA DEPARTAMENTO DE CUNDINAMARCA ","SALUD Y PROTECCIÓN SOCIAL",4026917304,3130787355,896129949,41187,2012,"003 DE 2012","CERRADO",0.96220000000000006,0.97030000000000005]
[9,"CUNDINAMARCA","SECRETARIA DE AGRICULTURA",2012000050014,"MEJORAMIENTO DE LA COMPETITIVIDAD Y SOSTENIBILIDAD DEL SUB SECTOR PANELERO DE CUNDINAMARCA","AGRICULTURA ",1559272190,1300000000,259272190,41271,2012,"004 DE 2012","CERRADO",1,1]
[10,"CUNDINAMARCA","SECRETARIA DE AGRICULTURA",2012000050023,"FORTALECIMIENTO DE LA ACTIVIDAD CAFETERA COMO ALTERNATIVA SOSTENIBLE DE DESARROLLO REGIONAL EN EL DEPARTAMENTO DE CUNDINAMARCA ","AGRICULTURA ",77168795512,1300000000,75868795512,41271,2012,"004 DE 2012","CERRADO",1,0.99990000000000001]
[11,"CUNDINAMARCA","SECRETARIA DE AGRICULTURA",2012000050024,"IMPLEMENTACION DE UN MODELO DE PRODUCCION EN SISTEMAS DE DOBLE PROPOSITO EN PEQUEÑOS PRODUCTORES DEL DEPARTAMENTO DE CUNDINAMARCA","AGRICULTURA ",3371686373,1823985000,1547701373,41271,2012,"004 DE 2012","CERRADO",1,0.99439999999999995]
[12,"CUNDINAMARCA","SECRETARIA DE GOBIERNO",2012000050025,"ESTUDIOS Y DISEÑOS PARA LA CONSTRUCCIÓN DE UN CENTRO ESPECIALIZADO AL SERVICIO DE ADOLESCENTES INFRACTORES DE LA LEY EN EL DEPARTAMENTO DE CUNDINAMARCA","DEFENSA",200000000,200000000,0,41271,2012,"004 DE 2012","CERRADO",1,1]
[13,"ENTIDAD APORTANTE RECURSOS","MUNICIPIO DE COGUA",2012000050026,"MEJORAMIENTO DE LA VA COGUA-SAN CAYETANO (SECTOR LAS MARGARITAS K8+300 SECTOR LAS MARGARITAS HASTA K10+300) CON K0+00 EN COGUA DEPARTAMENTO DE CUNDINAMARCA","TRANSPORTE",2000000000,2000000000,0,41271,2012,"005 DE 2012","CERRADO",1,1]
[14,"ENTIDAD APORTANTE RECURSOS","ICCU - GESPROY GB",2012000050027,"MEJORAMIENTO DE LA VA UBALA-PALOMAS-MAMBITA (K0+00 UBICADO EN EL SITIO PROFESIONALES MUNICIPIO DE UBALA), DEPARTAMENTO DE CUNDINAMARCA ","TRANSPORTE",3359160462,3000000000,359160462,41271,2012,"04 DE 2012","CERRADO",1,0.98660000000000003]
[15,"ENTIDAD APORTANTE RECURSOS","ICCU - GESPROY GB",2012000050028,"MEJORAMIENTO Y MANTENIMIENTO DE LA RED VIAL SECUNDARIA Y TERCIARIA MEDIANTE LA DOTACIÓN DE MAQUINARIA A LOS MUNICIPIOS DEL DEPARTAMENTO DE CUNDINAMARCA ","TRANSPORTE",19769772343,8103535586,11666236757,41271,2012,"004 DE 2012","CERRADO",1,0.93179999999999996]
[16,"ENTIDAD APORTANTE RECURSOS","SECRETARIA DE MINAS, ENERGIA Y GAS",2012000050029,"IMPLEMENTACIÓN Y MASIFICACION DEL SERVICIO DE GAS COMBUSTIBLE POR REDES PARA MUNICIPIOS DE ANOLAIMA, CACHIPAY, CHOACHI, FOMEQUE, UBAQUE Y VIOTA CUNDINAMARCA","MINAS Y ENERGÍA",15253036000,2199142000,13053894000,41271,2012,"004 DE 2012","CERRADO",1,0.94499999999999995]
[17,"CUNDINAMARCA","SECRETARIA DE COMPETITIVIDAD",2012000050030,"DESARROLLO CREACION Y FORTALECIMIENTO DE NUEVE (9) CENTROS DE EMPREDIMIENTO Y FORTALECIMIENTO EMPRESARIAL EN EL DEPARTAMENTO DE CUNDINAMARCA ","COMERCIO, INDUSTRIA Y TURISMO ",1752501814,1708104361,44397453,41271,2012,"004 DE 2012","PARA CIERRE",1,0.95069999999999999]
[18,"ENTIDAD APORTANTE RECURSOS","MUNICIPIO DE MOSQUERA",2012000050039,"MEJORAMIENTO DE LA VIA CALLE 23 ENTRE CRA 3 Y 9B EN MOSQUERA CLL 7 ENTRE CRA 13 Y 24 EN FUNZA DEPARTAMENTO DE CUNDINAMARCA","TRANSPORTE",2816415712,1000000000,1816415712,41271,2012,"004 DE 2012","CERRADO",1,1]
[19,"ENTIDAD APORTANTE RECURSOS","MUNICIPIO DE SOACHA",2012000050044,"REHABILITACIÓN Y MEJORAMIENTO DE LA VIA PARALELA ( TRANSVERSAL 8 Y CARRERA 7) ENTRE CARRERA 13 CON AUTOPISTA SUR BARRIO LA DESPENSA, HASTA LA CALLE 27 DEL CENTRO DEL MUNICIPIO DE SOACHA CUNDINAMARCA (TRAMO N 1 - K0+000 HASTA K0+262)","TRANSPORTE",1000000000,1000000000,0,41271,2012,"004 DE 2012","CERRADO",1,1]
[20,"CUNDINAMARCA","ICCU - GESPROY GB",2012000050051,"MEJORAMIENTO DEL PUENTE GUATIMBOL SOBRE EL RIO SUMAPAZ EN LA VA VENECIA - ICONONZO DEPARTAMENTO DE CUNDINAMARCA","TRANSPORTE",827195639,620304130,206891509,41271,2012,"004 DE 2012","CERRADO",1,0.98089999999999999]
[21,"CUNDINAMARCA","ICCU - GESPROY GB",2012000050052,"FORMULACIÓN Y ACTUALIZACION DE LOS ESTUDIOS Y DISEÑOS DE LA VIA UBAQUE - LOS CEREZOS - CHIPAQUE DEPARTAMENTO DE CUNDINAMARCA","TRANSPORTE",257457261,250000000,7457261,41271,2012,"004 DE 2012","CERRADO",1,0.99960000000000004]
[22,"CUNDINAMARCA","ICCU - GESPROY GB",2012000050054,"FORMULACIÓN Y ACTUALIZACION DE LOS ESTUDIOS Y DISEÑOS PARA EL MEJORAMIENTO DE LA TRONCAL DEL CARBON EN LONGITUD DE 43 KMS (K0+00 LOCALIZADO EN TIERRA NEGRA) DEPARTAMENTO DE CUNDINAMARCA","TRANSPORTE",777429075,755000000,22429075,41271,2012,"004 DE 2012","CERRADO",1,0.99839999999999995]
[23,"CUNDINAMARCA","SECRETARIA DE CIENCIA, TECNOLOGIA E INNOVACIÓN",2012000100010,"FORTALECIMIENTO DE LAS REGIONES COLOMBIANAS EN SUS CAPACIDADES DE CTI - CUNDINAMARCA","CTEL",8721806744,8721806744,0,41263,2012,"001 DE 2012","CONTRATADO EN EJECUCIÓN",0.84530000000000005,0.97289999999999999]
[24,"CUNDINAMARCA","SECRETARIA DE CIENCIA, TECNOLOGIA E INNOVACIÓN",2012000100056,"INVESTIGACIÓN ESTRATEGIAS DE VALORACION Y APROPIACION DE LOS RECURSOS NATURALES MECANISMOS DE ADAPTACION A CAMBIO CLIMATICO. REGION DEL BAJO MAGDALENA","CTEL",7184175232,4100000000,3084175232,41263,2012,"001 DE 2012","CERRADO",1,0.99970000000000003]
[25,"CUNDINAMARCA","SECRETARIA DE CIENCIA, TECNOLOGIA E INNOVACIÓN",2012000100063,"FORTALECIMIENTO DE LAS CAPACIDADES DE INNOVACIÓN SOCIAL POR MEDIO DEL PARQUE CIENTIFICO EN BOGOTA - CUNDINAMARCA","CTEL",16942704000,8250704000,8692000000,41263,2012,"001 DE 2012","CERRADO",1,0.94730000000000003]
[26,"CAR","SECRETARIA DE CIENCIA, TECNOLOGIA E INNOVACIÓN",2012000100118,"FORMACION EN CIENCIA, TECNOLOGIA E INNOVACION EN LA COMUNIDAD EDUCATIVA DE LAS INSTITUCIONES EDUCATIVAS OFICIALES DE LOS MUNICIPIOS NO CERTIFICADOS DEL DEPARTAMENTO","CTEL",22788739251,17739839251,5048900000,41295,2013,"001 DE 2012","CERRADO",0.98180000000000001,0.94810000000000005]
[27,"CUNDINAMARCA","SECRETARIA DE CIENCIA, TECNOLOGIA E INNOVACIÓN",2012000100144,"INVESTIGACIÓN INVESTIGACION, DESARROLLO Y TRANSFERENCIA TECNOLOGICA EN EL SECTOR AGROPECUARIO Y AGROINDUSTRIAL CON EL FIN DE MEJORAR L TODO EL DEPARTAMENTO, CUNDINAMARCA, CENTRO ORIENTE","CTEL",50514736439,34707000000,15807736439,41263,2012,"001 DE 2012","CONTRATADO EN EJECUCIÓN",0.8236,0.82169999999999999]
[28,"CUNDINAMARCA","SECRETARIA DE CIENCIA, TECNOLOGIA E INNOVACIÓN",2012000100156,"CONSTRUCCIÓN DEL ECOSISTEMA DE INNOVACION TIC PARA EL DEPTO DE CUNDINAMARCA","CTEL",7088000000,5000000000,2088000000,41263,2012,"001 DE 2012","CERRADO",0.98980000000000001,0.93179999999999996]
[29,"ENTIDAD APORTANTE RECURSOS","ICCU - GESPROY GB",2013000050003,"ESTUDIOS Y DISEÑOS PARA EL MEJORAMIENTO DE LA VA VILLAPINZON-TURMEQUE EN LONGITUD DE 11 KMS (K0+00 LOCALIZADO EN VILLAPINZON DEPARTAMENTO DE CUNDINAMARCA","TRANSPORTE",245000000,245000000,0,41400,2013,"006 DE 2013","CERRADO",1,0.73470000000000002]
[30,"ENTIDAD APORTANTE RECURSOS","ICCU - GESPROY GB",2013000050004,"ESTUDIOS Y DISEÑOS PARA EL MEJORAMIENTO DE LA VA YACOPI - LA VICTORIA CON K0+00 EN YACOPI DEPARTAMENTO DE CUNDINAMARCA","TRANSPORTE",250000000,250000000,0,41400,2013,"006 DE 2013","CERRADO",1,0.74909999999999999]
[31,"CUNDINAMARCA","SECRETARIA DE DESARROLLO E INCLUSIÓN SOCIAL",2013000050005,"IMPLEMENTACIÓN DEL PROGRAMA DE COMPLEMENTACION ALIMENTARIA Y NUTRICIONAL PARA MENORES DE CINCO AÑOS Y MUJERES GESTANTES Y LACTANTES EN TODO EL DEPARTAMENTO DE CUNDINAMARCA","EDUCACIÓN",6189832118,6000000000,189832118,41400,2013,"006 DE 2013","CERRADO",0.99819999999999998,0.9899]
[32,"CUNDINAMARCA","SECRETARIA DE EDUCACIÓN",2013000050011,"FORTALECIMIENTO DE LA PERMANENCIA DE LOS ESTUDIANTES EN LOS MUNICIPIOS DEL DEPARTAMENTO DE CUNDINAMARCA 2013-2014 CUNDINAMARCA, CENTRO ORIENTE","EDUCACIÓN",13360387595,13360387595,0,41400,2013,"006 DE 2013","CERRADO",0.998,0.9234]
[33,"CUNDINAMARCA","SECRETARIA DE MINAS, ENERGIA Y GAS",2013000050026,"CONSTRUCCIÓN REDES ELECTRICAS EN LA ZONA RURAL DE LOS MUNICIPIOS DE PARATEBUENO Y GUTIERREZ EN EL DEPARTAMENTO DE CUNDINAMARCA","MINAS Y ENERGÍA",1068319227,1045119227,23200000,41502,2013,"007 DE 2013","TERMINADO",0.44929999999999998,0.97909999999999997]
[34,"U CATOLICA","SECRETARIA DE AGRICULTURA",2013000050027,"FORTALECIMIENTO DE LA ACTIVIDAD CAFETERA COMO ESTRATEGIA DE MEJORAMIENTO DE LA PRODUCTIVIDAD Y LA COMPETITIVIDAD EN EL DEPARTAMENTO DE CUNDINAMARCA, CENTRO ORIENTE","AGRICULTURA ",18756930869,3000000000,15756930869,41502,2013,"025 DE 2014","CERRADO",1,0.99490000000000001]
[35,"UNIVERSIDAD MILITAR NUEVA GRANADA","SECRETARIA DE AGRICULTURA",2013000050028,"FORTALECIMIENTO DEL SUBSECTOR PANELERO EN EL DEPARTAMENTO DE CUNDINAMARCA","AGRICULTURA ",3427279826,2599564478,827715348,41502,2013,"007 DE 2013","CERRADO",1,0.99960000000000004]
[36,"ENTIDAD APORTANTE RECURSOS","ICCU - GESPROY GB",2013000050043,"MEJORAMIENTO Y REHABILITACION DE LA VIA GUACHETA - CAPELLANIA (SECTOR K0+780 AL K2+240) K0+000 LOCALIZADO EN EL RIO UBATE GUACHET, CUNDINAMARCA, CENTRO ORIENTE","TRANSPORTE",1019047619,1000000000,19047619,41639,2013,"015 DE 2013","CERRADO",1,0.98060000000000003]
[37,"ENTIDAD APORTANTE RECURSOS","BANCO AGRARIO DE COLOMBIA",2013000050044,"CONSTRUCCIÓN CUNDINAMARCA VISR 2013 TODO EL DEPARTAMENTO, CUNDINAMARCA, CENTRO ORIENTE","AGRICULTURA ",60041780218,15888838218,44152942000,41569,2013,"005 DE 2015","CONTRATADO EN EJECUCIÓN",0.81020000000000003,0.85289999999999999]
[38,"ENTIDAD APORTANTE RECURSOS","ICCU - GESPROY GB",2013000050045,"MEJORAMIENTO Y PAVIMENTACIÓN DE LA VIA FOSCA - GUTIERREZ, DESDE EL KM 2+000 AL KM 3+000 (K0+000 LOCALIZADO EN FOSCA), DEPARTAMENTO DE CUNDINAMARCA","TRANSPORTE",2534999997,2000000000,534999997,41579,2013,"012 DE 2013","CERRADO",1,0.97450000000000003]
[39,"CUNDINAMARCA","SECRETARIA DE MINAS, ENERGIA Y GAS",2013000050046,"IMPLEMENTACIÓN Y MASIFICACION DEL SERVICIO DE GAS COMBUSTIBLE POR REDES PARA LOS MUNICIPIOS DE CAPARRAPI, EL PEÑON, LA PALMA, PAIME, TOPAIPI Y VILLAGOMEZ CUNDINAMARCA","MINAS Y ENERGÍA",6609136508,2118963154,4490173354,41579,2013,"012 DE 2013","CERRADO",1,1]
[40,"ENTIDAD APORTANTE RECURSOS","ICCU - GESPROY GB",2013000050047,"MEJORAMIENTO Y PAVIMENTACIÓN VIA GUANACAS - EL PEÑON DESDE EL K0+000 AL K2+000 (K0+000 UBICADO EN GUANACAS) MUNICIPIO EL PEÑON, CUNDINAMARCA","TRANSPORTE",3000000000,3000000000,0,41808,2014,"022 DE 2014","CERRADO",1,0.99639999999999995]
[41,"ENTIDAD APORTANTE RECURSOS","ICCU - GESPROY GB",2013000050049,"MEJORAMIENTO Y MANTENIMIENTO DE LA RE VIAL MEDIANTE LA ADQUISICION DE MAQUINARIA AÑO 2013-2014 PARA LOS MUNICIPIOS DEL DEPARTAMENTO DE CUNDINAMARCA","TRANSPORTE",14330854376,12431431552,1899422824,41609,2013,"012 DE 2013","CERRADO",1,0.99960000000000004]
[42,"ENTIDAD APORTANTE RECURSOS","ICCU - GESPROY GB",2013000050050,"MEJORAMIENTO Y PAVIMENTACIÓN DE LA VIA SANAME - PUENTE QUETAME DESDE K0+000 AL K1+500 (K0+000 LOCALIZADO EN PUENTE QUEMADO) MUNICIPIO FOSCA, CUNDINAMARCA","TRANSPORTE",6000000000,6000000000,0,41639,2013,"015 DE 2013","CERRADO",1,0.49209999999999998]
[43,"CUNDINAMARCA","SECRETARIA DE AMBIENTE",2013000050051,"FORTALECIMIENTO DE LA GESTION INTEGRAL DE RESIDUOS SOLIDOS, A TRAVES DE SISTEMAS RECIONALES EN LAS PROVINCIAS DE UBATE Y RIONEGRO EN EL DEPARTAMENTO DE CUNDINAMARCA","VIVIENDA, CIUDAD Y TERRITORIO ",3000000000,3000000000,0,41579,2013,"012 DE 2013","CERRADO",0.48280000000000001,0.47399999999999998]
[44,"CUNDINAMARCA","SECRETARIA DE AGRICULTURA",2013000050054,"MEJORAMIENTO DE LA PRODUCTIVIDAD Y COMPETITIVIDAD DEL SECTOR CAUCHERO EN EL DEPARTAMENTO DE CUNDINAMARCA","AGRICULTURA ",3765860000,2459000000,1306860000,41639,2013,"015 DE 2013","CERRADO",1,1]
[45,"CUNDINAMARCA","SECRETARIA DE GOBIERNO",2013000050056,"PREVENCIN DE INCENDIOS FORESTALES CON LA ADQUISICION DE VEHICULOS 4X4 ACCION RAPIDA TIPO FORESTAL PARA EL DEPARTAMENTO DE CUNDINAMARCA","AMBIENTE Y DESARROLLO SOSTENIBLE",4000000000,4000000000,0,41579,2013,"012 DE 2013","CERRADO",1,0.99990000000000001]
[46,"CUNDINAMARCA","SECRETARIA DE AGRICULTURA",2013000050081,"MEJORAMIENTO DE LA PRODUCTIVIDAD, CALIDAD, POSCOSECHA Y MERCADEO DE LAS CADENAS HORTIFRUTCOLA Y AROMATICAS DE CUNDINAMARCA","AGRICULTURA ",4900400000,2600000000,2300400000,41808,2014,"022 DE 2014","CERRADO",1,1]
[47,"CUNDINAMARCA","SECRETARIA DE AGRICULTURA",2013000050083,"IMPLEMENTACIÓN Y PUESTA EN MARCHA DE UNA PLANTA HOMOGENIZADORA DE MIELES PARA LA PRODUCCION DE PANELA EN CAPARRAPI CUNDINAMARCA, CENTRO ORIENTE","AGRICULTURA ",3322683076.3200002,3126242524.3200002,196440552,41808,2014,"022 DE 2014","CERRADO",1,1]
[48,"ENTIDAD APORTANTE RECURSOS","ICCU - GESPROY GB",2013000050094,"MEJORAMIENTO Y REHABILITACION DE LA VIA TABIO - CHIA DEL K1+100 AL K3+200","TRANSPORTE",2000000000,2000000000,0,41639,2013,"015 DE 2013","DESAPROBADO",0,0]
[49,"CUNDINAMARCA","SECRETARIA DE CIENCIA, TECNOLOGIA E INNOVACIÓN",2013000100129,"INCREMENTO EN LAS ESTRATEGIAS SUSTENTABLES EN EL USO DEL RECURSO DE ENERGA ELECTRICA PARA LA POBLACION VULNERABLE EN EL DPTO. DE CUNDINAMARCA","CTEL",5170002961,4097083299,1072919662,41789,2014,"025 DE 2014","CONTRATADO EN EJECUCIÓN",0.76449999999999996,0.6976]
[50,"CUNDINAMARCA","SECRETARIA DE CIENCIA, TECNOLOGIA E INNOVACIÓN",2013000100131,"INVESTIGACIÓN ESTIMAR VULNERABILIDAD AL CAMBIO CLIMATICO DE SISTEMAS CAFETEROS Y DISEÑO DE ARREGLOS AGROFORESTALES CON BIOTECNOLOGIA PACHO, TIBACUY, SAN JUAN DE RIO SECO, CUNDINAMARCA","AGRICULTURA ",3287867000,2622860000,665007000,41474,2013,"005 DE 2013","CERRADO",0.98450000000000004,0.89039999999999997]
[51,"CUNDINAMARCA","SECRETARIA DE CIENCIA, TECNOLOGIA E INNOVACIÓN",2013000100149,"INNOVACIÓN EN EL MODELO DE GESTION DE MEDICAMENTO EN EL DEPARTAMENTO DE CUNDINAMARCA FASE II","CTEL",3079583047,2490946916,588636131,41474,2013,"005 DE 2013","CERRADO",1,1]
[52,"CUNDINAMARCA","SECRETARIA DE CIENCIA, TECNOLOGIA E INNOVACIÓN",2013000100176,"INNOVACIÓN SISTEMA DE PRODUCCION DE FRUTAS/HORTALIZAS FRESCAS/PROCESADAS TIPO EXPORTACION CON TECNOLOGIA BIOLOGICA /INTEGRAL INOCUA SUBACHOQUE, CUNDINAMARCA, CENTRO ORIENTE","CTEL",9285096292,6556945302,2728150990,41474,2013,"005 DE 2013","CONTRATADO EN EJECUCIÓN",0.91379999999999995,0.67279999999999995]
[53,"CUNDINAMARCA","SECRETARIA DE CIENCIA, TECNOLOGIA E INNOVACIÓN",2013000100180,"DISEÑO SMART TON: TALENTO E INNOVACION APLICADA AL TERRITORIO","CTEL",3089954000,2497510000,592444000,41509,2013,"008 DE 2013","CERRADO",1,0.86539999999999995]
[54,"CUNDINAMARCA","SECRETARIA DE CIENCIA, TECNOLOGIA E INNOVACIÓN",2013000100215,"FORTALECIMIENTO DE LA GESTIN COMUNITARIA DEL RECURSO HIDRICO, POR MEDIO DE LA DISMINUCION DEL CONSUMO DE ESTE, UTILIZANDO TP Y TICS , CUNDINAMARCA, CENTRO ORIENTE","CTEL",1811292700,1608461700,202831000,41565,2013,"011 DE 2013","CERRADO",1,0.90739999999999998]
[55,"CUNDINAMARCA","SECRETARIA DE CIENCIA, TECNOLOGIA E INNOVACIÓN",2013000100217,"FORTALECIMIENTO DE LA COMPETITIVIDAD DEL SECTOR FLORICULTOR COLOMBIANO MEDIANTE EL USO DE CIENCIA, TECNOLOGA E INNOVACION APLICADAS EN EL DEPARTAMENTO DE CUNDINAMARCA","CTEL",7204002875,4618409839,2585593036,41789,2014,"025 DE 2014","CERRADO",1,0.9859]
[56,"CUNDINAMARCA","SECRETARIA DE CIENCIA, TECNOLOGIA E INNOVACIÓN",2013000100247,"INVESTIGACIÓN E INNOVACIÓN TECNOLÓGICA Y APROPIACIÓN SOCIAL DE CONOCIMIENTO CIENTÍFICO DE ORQUÍDEAS NATIVAS DE CUNDINAMARCA","CTEL",3400306874,2551931927,848374947,41856,2014,"027 DE 2014","CERRADO",0.96699999999999997,0.9526]
[57,"CUNDINAMARCA","SECRETARIA DE CIENCIA, TECNOLOGIA E INNOVACIÓN",2013000100248,"INNOVACIÓN , CIENCIA Y TECNOLOGIA PARA PRODUCTORES DE LECHE EN LA PROVINCIA DE UBATE, CUNDINAMARCA.","CTEL",11619725567,9380319099,2239406468,41565,2013,"011 DE 2013","CONTRATADO EN EJECUCIÓN",0.65280000000000005,0.81969999999999998]
[58,"ENTIDAD APORTANTE RECURSOS","MUNICIPIO DE MADRID",2013000050048,"MEJORAMIENTO Y PAVIMENTACIÓN DE LA VIA AJOVER-SANTA CRUZ EN 2 KILOMETROS, MUNICIPIO DE MADRID, CUNDINAMARCA","TRANSPORTE",8946944399,8700000000,246944399,41689,2014,"017 DE 2014","CERRADO",1,1]
[59,"ENTIDAD APORTANTE RECURSOS","CORMAGDALENA",20132401060001,"MANTENIMIENTO Y RECUPERACIÓN DE LA NAVEGABILIDAD DEL RIO MAGDALENA","TRANSPORTE",3527443454052,117000000000,3410443454052,41514,2013,"001 DE 2013","CERRADO",4.4999999999999998E-2,3.8300000000000001E-2]
[60,"ENTIDAD APORTANTE RECURSOS","ICCU - GESPROY GB",2014000050033,"MEJORAMIENTO Y REHABILITACIÓN DE LA VIA TABIO - CHIA DEL K0+000 AL K1+800","TRANSPORTE",2570000000,2000000000,570000000,41893,2014,"026 DE 2014","CERRADO",1,1]
[61,"ENTIDAD APORTANTE RECURSOS","ICCU - GESPROY GB",2014257720001,"MEJORAMIENTO Y PAVIMENTACIÓN DE LA VIA SUESCA LA PLAYA - SESQUILE DEPARTAMENTO DE CUNDINAMARCA","TRANSPORTE",4191000000,1391000000,2800000000,41743,2014,"001 DE 2014","CERRADO",1,0.98670000000000002]
[62,"CUNDINAMARCA","SECRETARIA DE GOBIERNO",2014000050010,"CONSTRUCCIÓN DE UN CENTRO DE ATENCION ESPECIALIZADA AL SERVICIO DE ADOLESCENTES INFRACTORES DE LA LEY PENAL EN EL DEPARTAMENTO DE CUNDINAMARCA","JUSTICIA Y DEL DERECHO ",9260000000,8500000000,760000000,41808,2014,"022 DE 2014","PARA CIERRE",1,1]
[63,"ENTIDAD APORTANTE RECURSOS","MUNICIPIO DE VILLETA",2014000050048,"MEJORAMIENTO Y PAVIMENTACIÓN DE LA VIA VILLETA-PANTANILLO-CORREDOR CHUGUACAL -CAMBAO DEL K0+360 AL K1+060 VILLETA, CUNDINAMARCA, CENTRO ORIENTE","TRANSPORTE",1701612797,1489209370.23,212403426.76999998,42089,2015,"033 DE 2015","CERRADO",1,1]
[64,"ENTIDAD APORTANTE RECURSOS","ICCU - GESPROY GB",2015000050010,"MEJORAMIENTO DE LA VA SAN CAYETANO - COGUA SECTOR K6+670 - K8+366 (K0+000 LOCALIZADO EN EL CASCO URBANO DEL MUNICIPIO DE SAN CAYETANO) CUNDINAMARCA","TRANSPORTE",3796247522,3000000000,796247522,42158,2015,"036 DE 2015","CERRADO",1,0.98760000000000003]
[65,"ENTIDAD APORTANTE RECURSOS","ICCU - GESPROY GB",2015000050013,"MEJORAMIENTO DE LA VA UBAQUE - LOS CEREZOS - CHIPAQUE SECTORES DEL K0+000 AL K2+040 Y DEL K16+000 AL K18+260 (K0+000 LOCALIZADO EN UBAQUE) DEPARTAMENTO DE CUNDINAMARCA","TRANSPORTE",8000000000,8000000000,{"$f":"G74-H74","v":0},42159,2015,"036 de 2015","CERRADO",0.99709999999999999,0.98750000000000004]
[66,"CUNDINAMARCA","SECRETARIA DE HABITAT Y VIVIENDA",2015000050014,"CONSTRUCCIÓN DE VIVIENDAS NUEVAS RURALES VISR 2015 EN EL DEPARTAMENTO DE CUNDINAMARCA-SGR","AGRICULTURA ",7588896000,6840269782,748626218,42173,2015,"036 de 2015","CERRADO",1,0.92759999999999998]
[67,"CUNDINAMARCA","SECRETARIA DE EDUCACIÓN",2015000050015,"FORTALECIMIENTO DE LA PERMANENCIA DE LOS ESTUDIANTES EN LOS MUNICIPIOS DEL DEPARTAMENTO DE CUNDINAMARCA, CENTRO ORIENTE - 2015","EDUCACIÓN",8373797030,8373797030,0,42159,2015,"036 de 2015","CERRADO",0.97070000000000001,0.85189999999999999]
[68,"ENTIDAD APORTANTE RECURSOS","ICCU - GESPROY GB",2015000050025,"MEJORAMIENTO Y PAVIMENTACIÓN DE LA TRONCAL DEL CARBON SECTOR K0+000 AL K2+860 (K0+000 LOCALIZADO EN TIERRA NEGRA, MUNICIPIO DE TAUSA), DEPARTAMENTO DE CUNDINAMARCA","TRANSPORTE",7913699780,6000000000,1913699780,42159,2015,"036 DE 2015","CERRADO",1,1]
[69,"CUNDINAMARCA","SECRETARIA DE EDUCACIÓN",2015000050026,"FORTALECIMIENTO A LA ESTRATEGIA DE ALIMENTACIÓN ESCOLAR PARA MUNICIPIOS NO CERTIFICADOS DEL DEPARTAMENTO DE CUNDINAMARCA, CENTRO ORIENTE","EDUCACIÓN",2100000000,2100000000,0,42159,2015,"036 de 2015","CERRADO",1,0.85509999999999997]
[70,"CUNDINAMARCA","SECRETARIA DE AGRICULTURA",2015000050029,"IMPLEMENTACIÓN Y PUESTA EN MARCHA DE UNA PLANTA HOMOGENIZADORA DE MIELES PARA LA PRODUCCION DE PANELA EN EL MUNICIPIO DE QUIPILE, CUNDINAMARCA, CENTRO ORIENTE","AGRICULTURA ",3395531657,3139511657,256020000,42180,2015,"037 de 25 2015","CERRADO",1,1]
[71,"CUNDINAMARCA","SECRETARIA DE AGRICULTURA",2015000050030,"FORTALECIMIENTO A LA CADENA PRODUCTIVA DEL CACAO EN EL DEPARTAMENTO DE CUNDINAMARCA","AGRICULTURA ",2253334400,1200000000,1053334400,42159,2015,"036 de 2015","CERRADO",1,1]
[72,"CUNDINAMARCA","SECRETARIA DE GOBIERNO",2015000050031,"ADQUISICIÓN DE VEHICULOS PARA LOS CUERPOS OPERATIVOS (BOMBEROS) PARA LAS PROVINCIAS DEL DEPARTAMENTO DE CUNDINAMARCA","AMBIENTE Y DESARROLLO SOSTENIBLE",3670000000,3670000000,0,42159,2015,"036 de 2015","CERRADO",1,0.98]
[73,"CUNDINAMARCA","SECRETARIA DE AGRICULTURA",2015000050034,"FORTALECIMIENTO DE LA PRODUCTIVIDAD Y COMPETITIVIDAD DEL SECTOR CAUCHERO EN EL DEPARTAMENTO DE CUNDINAMARCA","AGRICULTURA ",2158800000,1500000000,658800000,42159,2015,"036 de 2015","CERRADO",1,1]
[74,"ENTIDAD APORTANTE RECURSOS","ICCU - GESPROY GB",2015000050041,"MEJORAMIENTO DE LA VA UBALA - PALOMAS - MAMBITA - MEDINA (K0+000 UBICADO EN EL SITIO PROFESIONALES MUNICIPIO DE UBALA, DEPARTAMENTO DE CUNDINAMARCA","TRANSPORTE",13663491451,12663491451,1000000000,42180,2015,"037 DE 2015","CERRADO",1,1]
[75,"CUNDINAMARCA","SECRETARIA DE DESARROLLO E INCLUSIÓN SOCIAL",2015000050048,"IMPLEMENTACIÓN DEL PROGRAMA DE COMPLEMENTACION ALIMENTARIA Y NUTRICIONAL PARA MENORES DE 5 AÑOS, MADRES GESTANTES Y LACTANTES EN TODO EL DEPARTAMENTO DE CUNDINAMARCA 2015","SALUD Y PROTECCIÓN SOCIAL",2900000000,2900000000,0,42348,2015,"044 de 2015","CERRADO",1,1]
[76,"CUNDINAMARCA","SECRETARIA DE EDUCACIÓN",2016000050005,"FORTALECIMIENTO DE LA PERMANENCIA DE LOS ESTUDIANTES EN LOS MUNICIPIOS DEL DEPARTAMENTO DE CUNDINAMARCA, CENTRO ORIENTE - 2016","EDUCACIÓN",14963757156,14963757156,0,42605,2016,"054 DE 2016","CERRADO",0.96699999999999997,0.56169999999999998]
[77,"CUNDINAMARCA","SECRETARIA DE EDUCACIÓN",2016000050014,"FORTALECIMIENTO A LA ESTRATEGIA DE ALIMENTACION ESCOLAR PARA MUNICIPIOS NO CERTIFICADOS DEL DEPARTAMENTO DE CUNDINAMARCA, SGR 2016.","EDUCACIÓN",12339894658,12339894658,0,42625,2016,"055 de 2016","CERRADO",0.76700000000000002,0.74729999999999996]
[78,"ENTIDAD APORTANTE RECURSOS","ICCU - GESPROY GB",2016000050023,"MANTENIMIENTO DE LA RED VIAL EN AFIRMADO A TRAVS DE LA ADQUISICION DE MAQUINARIA PESADA Y EQUIPO DE TRANSPORTE EN EL DEPARTAMENTO DE CUNDINAMARCA","TRANSPORTE",24179817530,24179817530,0,43066,2017,"068 de 2017","CERRADO",0.9133,0.62809999999999999]
[79,"ENTIDAD APORTANTE RECURSOS","ICCU - GESPROY GB",2016000050025,"REHABILITACIÓN DE LA VIA BOQUERON - PANDI DEL DEPARTAMENTO DE CUNDINAMARCA","TRANSPORTE",4991550669,4991550669,0,42825,2017,"061 DE 2017","CERRADO",1,0.98740000000000006]
[80,"ENTIDAD APORTANTE RECURSOS","ICCU - GESPROY GB",2016000050029,"REHABILITACIÓN DE LA VIA LA QUINTA - REPRESA DEL NEUSA, MUNICIPIO DE COGUA, DEPARTAMENTO DE CUNDINAMARCA","TRANSPORTE",6798676732,5625757063,1172919669,42846,2017,"061 de 2017","CERRADO",1,0.99990000000000001]
[81,"ENTIDAD APORTANTE RECURSOS","ICCU - GESPROY GB",2016000050032,"REHABILITACIÓN DE LA VIA CLUB EL BOSQUE - TIBACUY - CUMACA DEL DEPARTAMENTO DE CUNDINAMARCA","TRANSPORTE",4022150134,3022150134,1000000000,42825,2017,"061 DE 2017","CERRADO",1,0.99980000000000002]
[82,"ENTIDAD APORTANTE RECURSOS","ALCALDIA MAYOR DE BOGOTA",2016000050033,"ELABORACIÓN DE LA ENCUESTA MULTIPROPOSITO 2017 : BOGOTA - CUNDINAMARCA","VIVIENDA, CIUDAD Y TERRITORIO ",17282722269,16761722269,521000000,42825,2017,"061 DE 2017","CERRADO",1,0.99950000000000006]
[83,"CUNDINAMARCA","SECRETARIA DE HABITAT Y VIVIENDA",2016000050052,"CONSTRUCCIÓN DE VIVIENDAS NUEVAS RURALES EN EL DEPARTAMENTO DE CUNDINAMARCA","AGRICULTURA ",5983779025,5343748805,640030220,43090,2017,"069 de 2017","CONTRATADO EN EJECUCIÓN",0.92730000000000001,0.98629999999999995]
[84,"CUNDINAMARCA","SECRETARIA DE CIENCIA, TECNOLOGIA E INNOVACIÓN",2016000100027,"ANLISIS DE FACTORES GENETICOS, SANITARIOS Y MEDIOAMBIENTALES QUE AFECTAN LAS TASAS DE PREÑEZ A PARTIR DE EMBRIONES IN VITRO EN EL DEPARTAMENTO DE CUNDINAMARCA","CTEL",6401358633,5078774029,1322584604,43098,2017,"063 DE 2017","CONTRATADO EN EJECUCIÓN",0.84899999999999998,0.86450000000000005]
[85,"CUNDINAMARCA","ENTIDAD DESIGNADA PARA LA SUPERVISIÓN DEL PROYECTO O PARA CONTRATAR LA INTERVENTORÍA RAPE - INTERVENTORIA SECRETARIA DE PLANEACIÓN",2016000050012,"IMPLEMENTACIÓN DE ACCIONES DE CONSERVACION Y RESTAURACION DE LOS COMPLEJOS DE PARAMO, BOSQUE ALTO-ANDINO Y SERVICIOS ECOSISTEMICOS DE LA REGION CENTRAL","AMBIENTE Y DESARROLLO SOSTENIBLE",32499987282,{"$f":"G94","v":32499987282},0,42829,2017," 058 DE 2016","CONTRATADO EN EJECUCIÓN",0.99809999999999999,0.99780000000000002]
[86,"CUNDINAMARCA","SECRETARIA DE DESARROLLO E INCLUSIÓN SOCIAL",2017000050017,"FORTALECIMIENTO DEL PROGRAMA DE COMPLEMENTACIÓN ALIMENTARIA Y NUTRICIONAL PARA NIÑAS, NIÑOS MENORES DE 5 AÑOS Y MADRES GESTANTES Y LACTANTES EN RIESGO DE DESNUTRICIÓN DEL DEPARTAMENTO DE CUNDINAMARCA","INCLUSIÓN SOCIAL Y RECONCILIACIÓN",8199993544,8199993544,0,42915,2017,"062 de 2017","CERRADO",1,0.96909999999999996]
[87,"CUNDINAMARCA","SECRETARIA DE EDUCACIÓN",2017000050027,"FORTALECIMIENTO DE LA PERMANENCIA DE LOS ESTUDIANTES EN LOS MUNICIPIOS DEL DEPARTAMENTO DE CUNDINAMARCA , CENTRO ORIENTE 2017 CUNDINAMARCA","EDUCACIÓN",14995289800,14995289800,0,42961,2017,"064 de 2017","TERMINADO",1,0.88590000000000002]
[88,"ENTIDAD APORTANTE RECURSOS","MUNICIPIO DE ZIPAQUIRA",2017000050029,"CONSERVACIÓN  Y GESTIÓN INTEGRAL DEL RECURSO HÍDRICO MEDIANTE LA ADQUISICIÓN Y RESTAURACIÓN DE PREDIOS DE INTERÉS ECOSISTÉMICO EN ELDEPARTAMENTO DE   CUNDINAMARCA","AMBIENTE Y DESARROLLO SOSTENIBLE",900000000,467000000,433000000,43340,2018,"077 DE 2018","CONTRATADO EN EJECUCIÓN",0.3327,0.47539999999999999]
[89,"CUNDINAMARCA","SECRETARIA DE EDUCACIÓN",2017000050033,"FORTALECIMIENTO A LA ESTRATEGIA DE ALIMENTACIÓN ESCOLAR PARA MUNICIPIOS NO CERTIFICADOS DEL DEPARTAMENTO DE CUNDINAMARCA","EDUCACIÓN",14000000000,14000000000,0,42977,2017,"065 de 2017","CERRADO",1,0.26939999999999997]
[90,"CUNDINAMARCA","SECRETARIA DE MINAS, ENERGIA Y GAS",2017000050036,"IMPLEMENTACIÓN Y EXPANSIÓN DEL SERVICIO DE GAS COMBUSTIBLE POR REDES PARA VEREDAS Y CENTROS POBLADOS DEL DEPARTAMENTO DE CUNDINAMARCA","MINAS Y ENERGÍA",4751658472,3069656503,1682001969,43356,2018,"077 DE 2018","CONTRATADO EN EJECUCIÓN",0.91510000000000002,0.92069999999999996]
[91,"CUNDINAMARCA","SECRETARIA DE PLANEACIÓN",2017000050039,"MEJORAMIENTO DE VÍAS TERCIARIAS MEDIANTE EL USO DE PLACA HUELLA EN LOS MUNICIPIOS DE GUATAVITA, PACHO, SAN JUAN DE RIOSECO, SUBACHOQUE, TENA Y ZIPAQUIRÁ, DEPARTAMENTO DE CUNDINAMARCA","TRANSPORTE",6791102422,6725380622,65721800,43124,2017,"067 DE 2017","CONTRATADO EN EJECUCIÓN",0.98519999999999996,0.98650000000000004]
[92,"CUNDINAMARCA","SECRETARIA DE HABITAT Y VIVIENDA",2017000050042,"MEJORAMIENTO DE VIVIENDAS RURALES DE LA PROVINCIA DE UBATÉ - CUNDINAMARCA","AGRICULTURA ",2354318125,2354318125,0,43096,2017,"069 de 2017","TERMINADO",1,0.9708]
[93,"CUNDINAMARCA","SECRETARIA DE SALUD",2017000050061,"ADQUISICIÓN AMBULANCIAS DE TRANSPORTE ASISTENCIAL BÁSICO (TAB) Y TRANSPORTE ASISTENCIAL MEDICALIZADA (TAM), PARA EL APOYO DEL SISTEMA DE REFERENCIA Y CONTRA REFERENCIA DE LA RED HOSPITALARIA DEL DEPARTAMENTO DE CUNDINAMARCA","SALUD Y PROTECCIÓN SOCIAL",3764666699,2000553024,1764113675,43081,2017,"069 de 2017","CERRADO",1,0.9708]
[94,"CUNDINAMARCA","SECRETARIA DE AGRICULTURA",2017000050062,"FORTALECIMIENTO DE LAS CADENAS PRODUCTIVAS DE MANGO, AGUACATE Y CÍTRICOS EN EL DEPARTAMENTO DE CUNDINAMARCA","AGRICULTURA ",3000129600,2100129600,900000000,43124,2018,"072 DE 2018","CERRADO",1,1]
[95,"CUNDINAMARCA","SECRETARIA DE MINAS, ENERGIA Y GAS",2017000050064,"CONSTRUCCIÓN DE REDES ELÉCTRICAS EN ZONA RURAL DE 13 MUNICIPIOS, EN EL MARCO DEL PROYECTO ILUMINANDO VIDAS DEL DEPARTAMENTO DE CUNDINAMARCA","MINAS Y ENERGÍA",2972842689,2532327281,440515408,43273,2018,"076 DE 2018","CERRADO",0.82330000000000003,0.81879999999999997]
[96,"CUNDINAMARCA","SECRETARIA DE AGRICULTURA",2017000050065,"MEJORAMIENTO DE LA PRODUCTIVIDAD Y RENTABILIDAD DE LOS CAFICULTORES DEL DEPARTAMENTO DE CUNDINAMARCA","AGRICULTURA ",6523880054,4220000000,2303880054,43096,2017,"069 DE 2017","CONTRATADO EN EJECUCIÓN",0.82620000000000005,0.58630000000000004]
[97,"CUNDINAMARCA","SECRETARIA DE CIENCIA, TECNOLOGIA E INNOVACIÓN",2017000100016,"IMPLEMENTACIÓN PROGRAMA DE INNOVACIÓN PARA LA VALIDACIÓN Y GENERACIÓN DE PRODUCTOS DERIVADOS DE LA BIODIVERSIDAD EN EL DEPARTAMENTO DE CUNDINAMARCA","CTEL",4486653319,4343608212,143045107,42941,2017,"058 DE 2017","CONTRATADO EN EJECUCIÓN",0.77239999999999998,0.92959999999999998]
[98,"CUNDINAMARCA","SECRETARIA DE CIENCIA, TECNOLOGIA E INNOVACIÓN",2017000100034,"IMPLEMENTACIÓN DE UN SISTEMA DE GESTIÓN DE INNOVACIÓN PARA LA INDUSTRIA DE CUNDINAMARCA","CTEL",3925471448,3714407118,211064330,42941,2017,"058 DE 2017","CONTRATADO EN EJECUCIÓN",0.99209999999999998,0.94179999999999997]
[99,"CUNDINAMARCA","SECRETARIA DE CIENCIA, TECNOLOGIA E INNOVACIÓN",2017000100074,"IMPLEMENTACIÓN DE ESTRATEGIAS DE FOMENTO A LA CULTURA Y SERVICIOS DE INNOVACIÓN EN LAS PROVINCIAS SABANA OCCIDENTE, SABANA CENTRAL, SOACHA Y SUMAPAZ CUNDINAMARCA","CTEL",6183633276,5533633276,650000000,43098,2017,"063 DE 2017","TERMINADO",1,1]
[100,"CUNDINAMARCA","SECRETARIA DE CIENCIA, TECNOLOGIA E INNOVACIÓN",2017000100076,"FORTALECIMIENTO DE CAPACIDADES DE GESTIÓN DEL RIESGO A TRAVÉS DE APROPIACIÓN SOCIAL DE LA CIENCIA, LA TECNOLOGÍA Y LA INNOVACIÓN EN EL DEPARTAMENTO DE CUNDINAMARCA","CTEL",4404970720,4000000000,404970720,43322,2018,"068 DE 2018","CONTRATADO EN EJECUCIÓN",0.48859999999999998,0.63360000000000005]
[101,"CUNDINAMARCA","SECRETARIA DE CIENCIA, TECNOLOGIA E INNOVACIÓN",2017000100087,"FORMACIÓN DE TALENTO HUMANO DE ALTO NIVEL EN MAESTRÍAS EN EL DEPARTAMENTO DE CUNDINAMARCA","CTEL",5148022960,5048022960,100000000,43698,2019,"078 DE 2019","CONTRATADO EN EJECUCIÓN",0.46500000000000002,0.57320000000000004]
[102,"CUNDINAMARCA","SECRETARIA DE CIENCIA, TECNOLOGIA E INNOVACIÓN",2017000100104,"FORTALECIMIENTO DE LA CULTURA DE LA GESTIÓN Y UTILIZACIÓN DEL CONOCIMIENTO EN CTEI EN NIÑOS, JÓVENES Y COMUNIDADES DEL DEPARTAMENTO DE CUNDINAMARCA","CTEL",9498967749,7498967749,2000000000,43565,2019,"074 DE 2019","CONTRATADO EN EJECUCIÓN",0.65100000000000002,0.56869999999999998]
[103,"CUNDINAMARCA","UNIDAD ADMINISTRATIVA DE GESTIÓN DEL RIESGO.",20172401060022,"ESTUDIOS DETALLADOS PARA LA INCORPORACIÓN DE LA GESTIÓN DEL RIESGO PARA LOS MUNICIPIOS DE GIRARDOT, RICAURTE","AMBIENTE Y DESARROLLO SOSTENIBLE",3084907873,3084907873,0,43802,2019,"033 DE 2019","CONTRATADO EN EJECUCIÓN",0,0]
[104,"CUNDINAMARCA","SECRETARIA DE CIENCIA, TECNOLOGIA E INNOVACIÓN",20170000100012,"CONFORMACIÓN DE UNA CONVOCATORIA REGIONAL DE PROYECTOS I+D EN FOCOS PRIORIZADOS CTEI PARA EL FORTALECIMIENTO DE LOS GRUPOS DE INVESTIGACIÓN CUNDINAMARCA","CTEL",7321934035,7128998177,192935858,42941,2017,"058 DE 2017","CONTRATADO EN EJECUCIÓN",0.65849999999999997,0.95120000000000005]
[105,"ENTIDAD APORTANTE RECURSOS","CAR",2017000050063,"RECUPERACIÓN HIDRÁULICA Y AMBIENTAL DEL COMPLEJO LAGUNAR  FÚQUENE","AMBIENTE Y DESARROLLO SOSTENIBLE",18000000000,18000000000,0,43364,2018,"081 DE 2018","CONTRATADO EN EJECUCIÓN",0.43509999999999999,0.33500000000000002]
[106,"ENTIDAD APORTANTE RECURSOS","CAR",2017000050070,"CONSTRUCCIÓN DE OBRAS DE MITIGACIÓN DEL RIESGO POR EVENTOS CLIMÁTICOS EN LA CUENCA DE LA QUEBRADA LA PARROQUIA EN EL CERRO DE FUSACATÁN DEL MUNICIPIO DE  FUSAGASUGÁ, CUNDINAMARCA","AMBIENTE Y DESARROLLO SOSTENIBLE",1976558725,1376558725,600000000,43417,2018,"082 DE 2018","DESAPROBADO",0,0]
[107,"ENTIDAD APORTANTE RECURSOS","MUNICIPIO DE UTICA",2017000050087,"MEJORAMIENTO DEL SENDERO TURÍSTICO DE LA PROVINCIA DEL GUALIVÁ  – ÚTICA  CUNDINAMARCA","COMERCIO, INDUSTRIA Y TURISMO ",2347004868,2123058880,223945988,43211,2018,"075 de 2018","CONTRATADO EN EJECUCIÓN",0.57599999999999996,0.86850000000000005]
[108,"CUNDINAMARCA","SECRETARIA DE EDUCACIÓN",2018000050019,"FORTALECIMIENTO DE LA PERMANENCIA DE LOS ESTUDIANTES EN LOS MUNICIPIOS DEL DEPARTAMENTO DE CUNDINAMARCA, CENTRO ORIENTE 2018 CUNDINAMARCA","EDUCACIÓN",19395559645,19395559645,0,43336,2018,"080 DE 2018","CERRADO",1,0.66120000000000001]
[109,"ENTIDAD APORTANTE RECURSOS","ICCU - GESPROY GB",2018000050022,"MEJORAMIENTO Y REHABILITACIÓN DE VÍAS SECUNDARIAS EN LA PROVINCIA DE UBATÉ, DEPARTAMENTO DE CUNDINAMARCA","TRANSPORTE",7524876363,7441105086,83771277,43320,2018,"078 de 2018","PARA CIERRE",0.98829999999999996,0.97309999999999997]
[110,"ENTIDAD APORTANTE RECURSOS","ICCU - GESPROY GB",2018000050024,"MEJORAMIENTO Y REHABILITACIÓN DE LA VÍA LA MARÍA – TOBIA - PASO EL REJO - LA PEÑA, DEPARTAMENTO DE CUNDINAMARCA","TRANSPORTE",9149162991,8983328881,165834110,43417,2018,"082 de 2018","TERMINADO",0.96450000000000002,0.93269999999999997]
[111,"ENTIDAD APORTANTE RECURSOS","ICCU - GESPROY GB",2018000050026,"MEJORAMIENTO DE VÍAS EN LA PROVINCIA DE SUMAPAZ PARA LA CONSOLIDACIÓN DE UNA PAZ ESTABLE Y DURADERA EN EL DEPARTAMENTO DE CUNDINAMARCA","TRANSPORTE",11457047617,11457047617,0,43462,2018,"011 de 2018 - OCAD PAZ","CONTRATADO EN EJECUCIÓN",0.3659,0.60660000000000003]
[112,"CUNDINAMARCA","UNIDAD ADMINISTRATIVA DE GESTIÓN DEL RIESGO.",2018000050036,"CONSTRUCCIÓN DE OBRAS PARA LA MITIGACIÓN DEL RIESGO EN EL MUNICIPIO DE SAN BERNARDO, BENEFICIANDO A COMUNIDADES DE LOS MUNICIPIOS DE ARBELAEZ, PANDI Y VENECIA CUNDINAMARCA","AMBIENTE Y DESARROLLO SOSTENIBLE",2305788182,2305788182,0,43629,2019,"089 de 2019","DESAPROBADO",0,0]
[113,"CUNDINAMARCA","SECRETARIA DE HABITAT Y VIVIENDA",2018000050039,"MEJORAMIENTO DE VIVIENDA RURAL EN LOS MUNICIPIOS DE CUCUNUBÁ, JERUSALEN, QUEBRADANEGRA Y VIOTÁ - DEPARTAMENTO DE CUNDINAMARCA","AGRICULTURA ",4024793625,4024793625,0,43571,2019,"009 DE 2019","CONTRATADO EN EJECUCIÓN",1,0.98619999999999997]
[114,"ENTIDAD APORTANTE RECURSOS","ICCU - GESPROY GB",2018000050049,"MEJORAMIENTO DE LA VÍA SESQUILÉ – GUATAVITA - GACHETÁ, DEPARTAMENTO DE CUNDINAMARCA","TRANSPORTE",3997714045,3935792642,61921403,43455,2018,"084 de 2018","PARA CIERRE",0.80930000000000002,0.80869999999999997]
[115,"ENTIDAD APORTANTE RECURSOS","ICCU - GESPROY GB",2018000050055,"MEJORAMIENTO DE LA TRONCAL DE RIONEGRO, SECTOR LA PALMA CHARCO LARGO PARA LA CONSOLIDACIÓN DE UNA PAZ ESTABLE Y DURADERA EN EL DEPARTAMENTO DE CUNDINAMARCA","TRANSPORTE",17928531277,17928531277,0,43532,2019,"086 de 2019","CERRADO",0.95509999999999995,0.92210000000000003]
[116,"ENTIDAD APORTANTE RECURSOS","ICCU - GESPROY GB",2018000050059,"MEJORAMIENTO DE LA VÍA GUSBITA - TIBIRITA DEL DEPARTAMENTO DE CUNDINAMARCA","TRANSPORTE",5500531740,4870657724,629874016,43532,2019,"086 de 2019","TERMINADO",0.99580000000000002,0.85209999999999997]
[117,"CUNDINAMARCA","SECRETARIA DE CIENCIA, TECNOLOGIA E INNOVACIÓN",2018000100106,"INNOVACIÓN EN EL MODELO DE GESTIÓN DEL MEDICAMENTO FASE III EN EL DEPARTAMENTO DE  CUNDINAMARCA","CTEL",3452890062,3071356262,381533800,43830,2019,"087 DE 2019","NO HA MIGRADO A GESPROY",0,0]
[118,"CUNDINAMARCA","SECRETARIA DE CIENCIA, TECNOLOGIA E INNOVACIÓN",2018000100160,"FORMACIÓN DE CAPITAL HUMANO DE ALTO NIVEL PARA LA INVESTIGACIÓN, EL DESARROLLO TECNOLÓGICO Y LA INNOVACIÓN MAESTRÍAS DE INVESTIGACIÓN PARA DOCENTES DEL DEPARTAMENTO DE CUNDINAMARCA","CTEL",5217415747,3519725709,1697690038,43731,2019,"080 DE 2019","CONTRATADO EN EJECUCIÓN",2.7000000000000001E-3,0.30609999999999998]
[119,"CUNDINAMARCA","ENTIDAD DESIGNADA PARA LA SUPERVISIÓN DEL PROYECTO O PARA CONTRATAR LA INTERVENTORÍA-EMPRESAS PUBLICAS DE CUNDINAMARCA -EPC",20181301010555,"CONSTRUCCIÓN DE UNIDADES SANITARIAS EN EL ÁREA RURAL DEL DEPARTAMENTO DE CUNDINAMARCA","VIVIENDA, CIUDAD Y TERRITORIO ",4999900475,4999900475,0,43378,2018,"010 DE 2018 - OCAD PAZ","CONTRATADO EN EJECUCIÓN",0.81769999999999998,0.7379]
[120,"ENTIDAD APORTANTE RECURSOS","ICCU - GESPROY GB",2019000050002,"MEJORAMIENTO DE LA VÍA DEPARTAMENTAL LA VICTORIA (EL COLEGIO) SAN GABRIEL (VIOTÁ), TRAMO LA VICTORIA ALTO DE LA MULA, DEPARTAMENTO DE CUNDINAMARCA","TRANSPORTE",5745879373,5745879373,0,43532,2019,"086 de 2019","CERRADO",0.97219999999999995,0.98519999999999996]
[121,"ENTIDAD APORTANTE RECURSOS","ICCU - GESPROY GB",2019000050003,"MEJORAMIENTO DE LA VÍA CÁQUEZA FOSCA, DEPARTAMENTO DE CUNDINAMARCA","TRANSPORTE",4049029755,4049029755,0,43585,2019,"088 de 2019","CERRADO",0.93269999999999997,0.98540000000000005]
[122,"ENTIDAD APORTANTE RECURSOS","ICCU - GESPROY GB",2019000050005,"MEJORAMIENTO DE LA VÍA FÓMEQUE UBAQUE, DEPARTAMENTO DE CUNDINAMARCA","TRANSPORTE",16514204213,14057373703,2456830510,43629,2019,"089 DE 2019","CERRADO",0.99919999999999998,0.99919999999999998]
[123,"ENTIDAD APORTANTE RECURSOS","ICCU - GESPROY GB",2019000050011,"MEJORAMIENTO DE LA VÍA SUPATÁ - PACHO, DEPARTAMENTO DE CUNDINAMARCA","TRANSPORTE",7339441010,7339441010,0,43585,2019,"088 DE 2019","CONTRATADO EN EJECUCIÓN",0.71309999999999996,0.71899999999999997]
[124,"ENTIDAD APORTANTE RECURSOS","ICCU - GESPROY GB",2019000050013,"CONSTRUCCIÓN DE LA PLAZA DE MERCADO DEL MUNICIPIO DE CHOACHÍ CUNDINAMARCA","AGRICULTURA ",3152125044,3152125044,0,43687,2019,"090 DE 2019","CONTRATADO EN EJECUCIÓN",0.503,0.64090000000000003]
[125,"ENTIDAD APORTANTE RECURSOS","ICCU - GESPROY GB",2019000050016,"MEJORAMIENTO DE LA VÍA ANOLAIMA CORRALEJAS (INSPECCIÓN DE CORRALEJAS), DEPARTAMENTO DE CUNDINAMARCA","TRANSPORTE",6898362469,5718724028,1179638441,43629,2019,"089 DE 2019","TERMINADO",0.99850000000000005,0.999]
[126,"CUNDINAMARCA","SECRETARIA DE EDUCACIÓN",2019000050020,"FORTALECIMIENTO DE LA PERMANENCIA DE LOS ESTUDIANTES PARA EL AÑO 2019 EN LOS MUNICIPIOS DEL DEPARTAMENTO DE CUNDINAMARCA","EDUCACIÓN",20536293937,20536293937,0,43629,2019,"089 DE 2019","TERMINADO",1,0.92430000000000001]
[127,"ENTIDAD APORTANTE RECURSOS","ICCU - GESPROY GB",2019000050023,"MEJORAMIENTO DE LA VÍA LENGUAZAQUE - VILLAPINZÓN, DEPARTAMENTO DE CUNDINAMARCA","TRANSPORTE",8636278689,7310087087,1326191602,43629,2019,"089 DE 2019","TERMINADO",1,0.83830000000000005]
[128,"CUNDINAMARCA","SECRETARIA DE AGRICULTURA",2019000050027," MEJORAMIENTO DE LA COMPETITIVIDAD  DE LA CADENA PRODUCTIVA DE CACAO EN EL DEPARTAMENTO DE CUNDINAMARCA","AGRICULTURA ",5862983962,4397237971,1465745991,43819,2019,"098 DE 2019","CONTRATADO EN EJECUCIÓN",1,0.76359999999999995]
[129,"ENTIDAD APORTANTE RECURSOS","ICCU - GESPROY GB",2019000050029,"MEJORAMIENTO DE LA VÍA GACHETÁ - GAMA, DEPARTAMENTO DE CUNDINAMARCA","TRANSPORTE","$ 5.477.582.208",5322582208,{"$f":"G138-H138","v":155000000},43629,2019,"089 DE 2019","TERMINADO",0.95509999999999995,0.84179999999999999]
[130,"CUNDINAMARCA","SECRETARIA DE SALUD",2019000050036,"ADQUISICIÓN DE AMBULANCIAS PARA EL FORTALECIMIENTO DE LA RED HOSPITALARIA DEL DEPARTAMENTO CUNDINAMARCA","SALUD Y PROTECCIÓN SOCIAL",2385000000,2385000000,0,43656,2019,"090 DE 2019","CERRADO",1,0.82809999999999995]
[131,"CUNDINAMARCA","UNIDAD ADMINISTRATIVA DE GESTIÓN DEL RIESGO.",2019000050037," FORTALECIMIENTO DEL SISTEMA DEPARTAMENTAL PARA LA GESTIÓN DEL RIESGO DE DESASTRES DEL DEPARTAMENTO DE CUNDINAMARCA","PRESIDENCIA DE LA REPÚBLICA",4936307506,4936307506,0,43748,2019,"094 DE 2019","DESAPROBADO",0,0]
[132,"ENTIDAD APORTANTE RECURSOS","MEDICINA LEGAL Y CIENCIAS FORENSES",2019000050025,"ESTUDIOS Y DISEÑOS PARA LA CONSTRUCCIÓN DE LA SEDE DE MEDICINA LEGAL EN EL DEPARTAMENTO DE CUNDINAMARCA","FISCALIA",904521100,904521100,0,43677,2019,"091 DE 2019","CONTRATADO EN EJECUCIÓN",0.4536,0.53190000000000004]
[133,"CUNDINAMARCA","SECRETARIA DE MINAS, ENERGIA Y GAS",2019000050039," ESTUDIO Y DISEÑO PARA LA CONSTRUCCIÓN DE REDES ELÉCTRICAS AÉREAS EN ZONAS RURALES DEL DEPARTAMENTO DE CUNDINAMARCA","MINAS Y ENERGÍA",1616407501,1616407501,0,43714,2019,"092 DE 2019","DESAPROBADO",0,0]
[134,"CUNDINAMARCA","SECRETARIA DE EDUCACIÓN",2019000050044,"FORTALECIMIENTO A LA ESTRATEGIA DE ALIMENTACIÓN ESCOLAR PARA MUNICIPIOS NO CERTIFICADOS, VIGENCIA 2019 DEL DEPARTAMENTO DE CUNDINAMARCA","EDUCACIÓN",18301749135,18301749135,0,43656,2019,"090 DE 2019","CERRADO",0.2152,0.53269999999999995]
[135,"ENTIDAD APORTANTE RECURSOS","ICCU - GESPROY GB",2019000050047,"MEJORAMIENTO DE LA VÍA SUSA - CARMEN DE CARUPA, DEPARTAMENTO DE CUNDINAMARCA","TRANSPORTE",4131178258,4131178258,0,43677,2019,"091 DE 2019","TERMINADO",1,0.79390000000000005]
[136,"ENTIDAD APORTANTE RECURSOS","ICCU - GESPROY GB",2019000050056,"MEJORAMIENTO DE LA VÍA QUE CONDUCE DEL MUNICIPIO DE NIMAIMA AL MUNICIPIO DE NOCAIMA, DEPARTAMENTO DE CUNDINAMARCA","TRANSPORTE",5082491569.8000002,4614214508,468277061.80000019,43748,2019,"094 DE 2019","TERMINADO",1,0.87219999999999998]
[137,"ENTIDAD APORTANTE RECURSOS","IDECUT",2019000050059,"FORTALECIMIENTO A LAS ESCUELAS MUNICIPALES DE MÚSICA, DANZA, TEATRO Y ARTES PLÁSTICAS Y VISUALES EN EL DEPARTAMENTO DE CUNDINAMARCA","CULTURA ",1972606058,1972606058,0,43748,2019,"094 DE 2019","TERMINADO",1,0]
[138,"ENTIDAD APORTANTE RECURSOS","ICCU - GESPROY GB",2019000050060,"ESTUDIOS Y DISEÑOS DE VÍAS PARA MEJORAR LA COMPETITIVIDAD DEL DEPARTAMENTO DE CUNDINAMARCA","TRANSPORTE",7089369627,7089369627,0,43714,2019,"092 DE 2019","TERMINADO",0.98650000000000004,0.62870000000000004]
[139,"CUNDINAMARCA","SECRETARIA DE MINAS, ENERGIA Y GAS",2019000050073,"AMPLIACIÓN DE LA COBERTURA DEL SERVICIO DE GAS COMBUSTIBLE DOMICILIARIO A TRAVÉS DE LA FINANCIACIÓN DE LA CONEXIÓN Y LA RED INTERNA PARA USUARIOS DE BARRIOS PERIFÉRICOS, VEREDAS Y CENTROS POBLADOS DEL DEPARTAMENTO DE CUNDINAMARCA","MINAS Y ENERGÍA",12461377100,6651376060,5810001040,43805,2019,"097 DE 2019","CONTRATADO EN EJECUCIÓN",0.89249999999999996,0.86629999999999996]
[140,"ENTIDAD APORTANTE RECURSOS","ICCU - GESPROY GB",2019000050075,"MEJORAMIENTO DE LA VÍA QUE CONDUCE DEL MUNICIPIO DE VIANI AL MUNICIPIO DE CHAGUANI, (DE LA Y DE SAN VICENTE A CHAGUANI), DEPARTAMENTO DE CUNDINAMARCA","TRANSPORTE",7504443091,7504443091,0,43819,2019,"098 DE 2019","CONTRATADO EN EJECUCIÓN",0.75549999999999995,0.86629999999999996]
[141,"ENTIDAD APORTANTE RECURSOS","ICCU - GESPROY GB",2019000050079,"MEJORAMIENTO DE LA VÍA SERREZUELA - EL TRIUNFO, MUNICIPIO DE LA CALERA, DEPARTAMENTO DE CUNDINAMARCA","TRANSPORTE",7614258187,7614258187,0,43748,2019,"094 DE 2019","TERMINADO",0.94289999999999996,0.8629]
[142,"ENTIDAD APORTANTE RECURSOS","ICCU - GESPROY GB",2019000050085,"MEJORAMIENTO DE LA VÍA QUE CONDUCE DEL MUNICIPIO DE LA MESA AL MUNICIPIO DE CACHIPAY, (DE LA INSPECCIÓN DE PEÑA NEGRA AL MUNICIPIO DE CACHIPAY), DEPARTAMENTO DE CUNDINAMARCA","TRANSPORTE",7019896083,7019896083,0,43852,2019,"96 DE 2019","CONTRATADO EN EJECUCIÓN",0.59450000000000003,0.66890000000000005]
[143,"ENTIDAD APORTANTE RECURSOS","TV ANDINA",2019000050064,"PROTECCIÓN Y PRESERVACIÓN DEL PATRIMONIO AUDIOVISUAL COLOMBIANO QUE SE ENCUENTRA EN EL CANAL PÚBLICO TEVEANDINA LOCALIZADO EN EL DEPARTAMENTO DE  CUNDINAMARCA","CULTURA ",5923285198,"$ 5.597.840.098",325445100,43774,2019,"095 DE 2019","CERRADO",1,0.99350000000000005]
[144,"ENTIDAD APORTANTE RECURSOS","UNAD",2019000050069,"MEJORAMIENTO DE INFRAESTRUCTURA FÍSICA, DOTACIÓN DE MOBILIARIO Y EQUIPAMIENTO TECNOLÓGICO DE LA UNIVERSIDAD NACIONAL ABIERTA Y A DISTANCIA EN MUNICIPIOS DEL DEPARTAMENTO DE CUNDINAMARCA","EDUCACIÓN",16011115461,16011115461,0,43774,2019,"095 DE 2019","TERMINADO",1,0.90449999999999997]
[145,"ENTIDAD APORTANTE RECURSOS","U TECNOLOGICA DE PEREIRA",2019000100009,"FORMACIÓN DE CAPITAL HUMANO DE ALTO NIVEL UNIVERSIDAD TECNOLÓGICA DE PEREIRA  NACIONAL","CTEL",4360028215,3950208215,409820000,43781,2019,"083 DE 2019","CONTRATADO EN EJECUCIÓN",0.51049999999999995,0.51070000000000004]
[146,"ENTIDAD APORTANTE RECURSOS","U EAN",2019000100015,"FORMACIÓN DE CAPITAL HUMANO DE ALTO NIVEL - UNIVERSIDAD EAN -  NACIONAL","CTEL",1294375000,1250000000,44375000,43830,2019,"087 DE 2019","CONTRATADO EN EJECUCIÓN",0.48039999999999999,0.4909]
[147,"ENTIDAD APORTANTE RECURSOS","U CATOLICA",2019000100022,"FORMACIÓN DE CAPITAL HUMANO DE ALTO NIVEL - UNIVERSIDAD CATÓLICA DE COLOMBIA -  NACIONAL","CTEL",343595000,299220000,44375000,43812,2019,"086 DE 2019","CONTRATADO EN EJECUCIÓN",0.65059999999999996,0.64290000000000003]
[148,"ENTIDAD APORTANTE RECURSOS","UNIVERSIDAD MILITAR NUEVA GRANADA",2019000100025,"FORMACIÓN DE CAPITAL HUMANO DE ALTO NIVEL UNIVERSIDAD MILITAR NUEVA GRANADA  NACIONAL","CTEL",294375000,250000000,44375000,43812,2019,"086 DE 2019","CONTRATADO EN EJECUCIÓN",0.46750000000000003,0.46750000000000003]
[149,"ENTIDAD APORTANTE RECURSOS","UNIVERSIDAD NACIONAL DE COLOMBIA",2019000100026,"FORMACIÓN DE CAPITAL HUMANO DE ALTO NIVEL UNIVERSIDAD NACIONAL DE COLOMBIA   NACIONAL","CTEL",21162064500,20233937500,928127000,43781,2019,"083 DE 2019","CONTRATADO EN EJECUCIÓN",0.51229999999999998,0.49199999999999999]
[150,"ENTIDAD APORTANTE RECURSOS","U DISTRITAL",2019000100027,"FORMACIÓN DE CAPITAL HUMANO DE ALTO NIVEL EN DOCTORADO PARA EL DESARROLLO REGIONAL, UNIVERSIDAD DISTRITAL FRANCISCO JOSÉ DE CALDAS, A NIVEL  NACIONAL","CTEL",1218668841,1113595753,105073088,43798,2019,"085 DE 2019","CONTRATADO EN EJECUCIÓN",0.3372,0.34100000000000003]
[151,"ENTIDAD APORTANTE RECURSOS","U JAVERIANA",2019000100028,"FORMACIÓN DE CAPITAL HUMANO DE ALTO NIVEL PONTIFICIA UNIVERSIDAD JAVERIANA SEDE CENTRAL  NACIONAL","CTEL",6524500000,6524500000,0,43781,2019,"083 DE 2019","CONTRATADO EN EJECUCIÓN",0.4577,0.45429999999999998]
[152,"ENTIDAD APORTANTE RECURSOS","U DE LOS ANDES",2019000100036,"FORMACIÓN  DE CAPITAL HUMANO DE ALTO NIVEL UNIVERSIDAD DE LOS ANDES   NACIONAL","CTEL",2814671307,2748000000,66671307,43798,2019,"085 DE 2019","CONTRATADO EN EJECUCIÓN",0.62960000000000005,0.62409999999999999]
[153,"ENTIDAD APORTANTE RECURSOS","UNIVERSIDAD NACIONAL DE COLOMBIA",2019000100061,"FORTALECIMIENTO DE LA CAPACIDAD TECNOLÓGICA INSTALADA EN EL CENTRO AGROPECUARIO MARENGO PARA LA INVESTIGACIÓN EN LOS SISTEMAS AGROPRODUCTIVOS DEL TRÓPICO ALTO, BAJO EL EFECTO DE LA VARIABILIDAD Y CAMBIO CLIMÁTICO -  CUNDINAMARCA","CTEL",2386591598.0999999,1994146760,392444838.0999999,43830,2019,"087 DE 2019","CONTRATADO EN EJECUCIÓN",0.43830000000000002,0.24299999999999999]
[154,"CUNDINAMARCA","SECRETARIA DE CIENCIA, TECNOLOGIA E INNOVACIÓN",2020000100137,"FORTALECIMIENTO DE LAS CAPACIDADES DE INVESTIGACIÓN Y DESARROLLO PARA ATENDER PROBLEMÁTICAS ASOCIADAS CON AGENTES BIOLÓGICOS PARA LA SALUD PÚBLICA, A TRAVÉS DEL MEJORAMIENTO DEL LABORATORIO DE SALUD PÚBLICA DE CUNDINAMARCA","CTEL",4506359274,4048003426,458355848,43966,2020,"093 DE 2020","CONTRATADO EN EJECUCIÓN",0.55889999999999995,0.55900000000000005]
[155,"CUNDINAMARCA","SECRETARIA DE SALUD",2020000050003,"ADQUISICIÓN DE AMBULANCIAS,EQUIPOS BIOMÉDICOS, ELEMENTOS DE PROTECCIÓN PERSONAL, ASEO Y DESINFECCIÓN PARA LA ATENCIÓN DE LA CALAMIDAD SANITARIA POR COVID-19 EN LAS E.S.E DEL DEPARTAMENTO DE   CUNDINAMARCA","SALUD Y PROTECCIÓN SOCIAL",43433295564,43433295564,0,43986,2020,"102 de 2020","CONTRATADO EN EJECUCIÓN",0.54379999999999995,0.54759999999999998]
[156,"CUNDINAMARCA","UNIDAD ADMINISTRATIVA DE GESTIÓN DEL RIESGO.",2020000050012,"ADQUISICIÓN DE ELEMENTOS DE PROTECCIÓN DE CONTAGIO DEL VIRUS COVID-19 PARA LOS CUERPOS OPERATIVOS DE EMERGENCIA, EN ATENCIÓN DE LA CALAMIDAD SANITARIA EN EL DEPARTAMENTO DE   CUNDINAMARCA","GOBIERNO TERRITORIAL",5419592232,5419592232,0,43986,2020,"102 DE 2020","CERRADO",0.67,0.67]
[157,"CUNDINAMARCA","SECRETARIA DE EDUCACIÓN",2020000050019,"FORTALECIMIENTO A LA ESTRATEGIA DE ALIMENTACIÓN ESCOLAR PARA EL AÑO 2020, EN LOS MUNICIPIOS DEL DEPARTAMENTO DE CUNDINAMARCA ","EDUCACIÓN",26240955000,26240955000,0,44040,2020,"105 DE 2020","TERMINADO",1,0.66359999999999997]
[158,"CUNDINAMARCA","SECRETARIA DE CIENCIA, TECNOLOGIA E INNOVACIÓN",2020000100266,"GENERACIÓN DE ESPACIOS DE ENCUENTRO DE LA SOCIEDAD CON LA CIENCIA Y LA TECNOLOGÍA - UN VIAJE CON LA CIENCIA EN EL DEPARTAMENTO DE CUNDINAMARCA","CTEL",2241429590,2218862102,22567488,44111,2020,"098 DE 2020","CONTRATADO EN EJECUCIÓN",0.52459999999999996,0.1011]
[159,"CUNDINAMARCA","SECRETARIA DE CIENCIA, TECNOLOGIA E INNOVACIÓN",2020000100246,"FORTALECIMIENTO DE LA COMPETITIVIDAD DE LA CADENA PRODUCTIVA DE LA GUADUA POR MEDIO DEL DESARROLLO E IMPLEMENTACIÓN DE DOS (2) PAQUETES TECNOLÓGICOS PARA LA GENERACIÓN DE PRODUCTOS CON VALOR AGREGADO EN EL DEPARTAMENTO DE CUNDINAMARCA ","CTEL",3144525520,2294345776,850179744,44111,2020,"098 DE 2020","CONTRATADO EN EJECUCIÓN",0.18959999999999999,0.2712]
[160,"ENTIDAD APORTANTE RECURSOS","CONNECT BOGOTA REGIÓN",2020000100078,"DISEÑO E IMPLEMENTACIÓN DE UN MODELO DE GESTIÓN DE CONOCIMIENTO, INNOVACIÓN Y TRANSFERENCIA DE TECNOLOGÍA CON APLICACIÓN EN EL SECTOR AGROPECUARIO Y AGROINDUSTRIAL EN EL DEPARTAMENTO DE CUNDINAMARCA ","CTEL",3309848753,2972617683,337231070,44111,2020,"098 DE 2020","CONTRATADO EN EJECUCIÓN",4.4999999999999997E-3,4.1000000000000003E-3]
[161,"ENTIDAD APORTANTE RECURSOS","FEDERACIÓN NACIONAL DE CAFETEROS",2020000100205,"TRASLADO DE TECNOLOGÍAS INNOVADORAS A CAFICULTORES CON IMPACTO SOBRE LA CALIDAD DEL CAFÉ Y LA GESTIÓN DEL RECURSO HÍDRICO DURANTE EL PROCESO DE BENEFICIO EN ZONA CAFETERA DEL DEPARTAMENTO DE CUNDINAMARCA ","CTEL",13783557324,12848931736,934625588,44111,2020,"098 DE 2020","CONTRATADO EN EJECUCIÓN",5.0000000000000001E-4,0]
[162,"ENTIDAD APORTANTE RECURSOS","AGROSAVIA",2020000100197,"DESARROLLO DE BIOPLAGUICIDAS POTENCIADOS DE NUEVA GENERACIÓN PARA EL MEJORAMIENTO DE LA PRODUCTIVIDAD E INOCUIDAD DEL CULTIVO DE TOMATE Y CRUCÍFERAS EN EL DEPARTAMENTO DE CUNDINAMARCA ","CTEL",4583970033,3282745260,1301224773,44111,2020,"098 DE 2020","CONTRATADO EN EJECUCIÓN",0.14330000000000001,0.14610000000000001]
[163,"ENTIDAD APORTANTE RECURSOS","UNIVERSIDAD NACIONAL DE COLOMBIA",2020000100240,"ESTUDIO DE PREFACTIBILIDAD PARA LA CREACIÓN DE UN CENTRO DE INNOVACIÓN Y DE PRODUCTIVIDAD PARA EL SECTOR AGROPECUARIO DE SABANA OCCIDENTE DE CUNDINAMARCA ","CTEL",1896154229,1707430133,188724096,44111,2020,"098 DE 2020","CONTRATADO EN EJECUCIÓN",0.10680000000000001,0.18110000000000001]
[164,"ENTIDAD APORTANTE RECURSOS","UNIVERSIDAD DE CUNDINAMARCA",2020000100158,"FORTALECIMIENTO DE LA INFRAESTRUCTURA FÍSICA Y TECNOLÓGICA DEL CENTRO DE ESTUDIOS AGROAMBIENTALES DE LA UNIVERSIDAD DE CUNDINAMARCA AGROU CUNDINAMARCA ","CTEL",2024433669,1997753509,26680160,44111,2020,"098 DE 2020","SIN CONTRATAR",0,0]
[165,"ENTIDAD APORTANTE RECURSOS","ZIPAQUIRA",2020000050013,"MEJORAMIENTO DE LA VÍA QUE COMUNICA A LOS MUNICIPIOS DE ZIPAQUIRÁ Y TOCANCIPÁ, TRAMO BARANDILLAS - LA FUENTE, DEPARTAMENTO DE CUNDINAMARCA","TRANSPORTE","6.788.620.869,00",{"$f":"G174","v":"6.788.620.869,00"},0,44152,2020,"107 del 2020","CONTRATADO EN EJECUCIÓN",0.40089999999999998,0.55589999999999995]
[166,"ENTIDAD APORTANTE RECURSOS","ZIPAQUIRA",2020000050015,"MEJORAMIENTO DE LA VÍA ZIPAQUIRÁ - SAN JORGE - TABIO DEPARTAMENTO DE CUNDINAMARCA","TRANSPORTE",7458735075,{"$f":"G175","v":7458735075},0,44152,2020,"107 del 2020","CONTRATADO EN EJECUCIÓN",0,0]
[167,"CUNDINAMARCA","SECRETARIA DE CIENCIA, TECNOLOGIA E INNOVACIÓN",2020000100695,"DESARROLLO, TRANSFERENCIA DE TECNOLOGÍA Y CONOCIMIENTO PARA LA INNOVACIÓN QUE FORTALEZCAN CAPACIDADES COMUNITARIAS EN LA COMPRENSIÓN Y/O MITIGACIÓN DE LOS PROBLEMAS DE VIOLENCIAS BASADAS EN GÉNERO, DERIVADAS DE LA EMERGENCIA POR COVID 19, EN CUNDINAMARCA","CTEL",3100000000,3000000000,100000000,44183,2020,"103 DE 2020","CONTRATADO EN EJECUCIÓN",0.26050000000000001,0.31390000000000001]
[168,"CUNDINAMARCA","SECRETARIA DE CIENCIA, TECNOLOGIA E INNOVACIÓN",2020000100650,"FORTALECIMIENTO DE CAPACIDADES DE CTEI PARALA INNOVACION EDUCATIVA EN LOS NIVELES DE BÁSICA Y\nMEDIA, MEDIANTE USO DE TICS EN INSTITUCIONES EDUCATIVAS OFICIALES DE LOS MUNICIPIOS NO\nCERTIFICADOS DEL DEPARTAMENTO DE CUNDINAMARCA","CTEL",10804663122,9999728696,804934426,44183,2020,"103 DE 2020","CONTRATADO EN EJECUCIÓN",0.10009999999999999,3.27E-2]
[169,"CUNDINAMARCA","SECRETARIA DE CIENCIA, TECNOLOGIA E INNOVACIÓN",2020000100696,"FORTALECIMIENTO DE CAPACIDADES DE CTEI PARA LA REACTIVACIÓN ECONÓMICA Y LA TRANSFORMACIÓN\nPRODUCTIVA EN CUNDINAMARCA","CTEL",7370634083,6974290175,396343908,44183,2020,"103 DE 2020","CONTRATADO EN EJECUCIÓN",0.154,0.42470000000000002]
[170,"CUNDINAMARCA","SECRETARIA DE CIENCIA, TECNOLOGIA E INNOVACIÓN",2020000100649,"FORTALECIMIENTO DE CAPACIDADES DE CTEI PARA EL RELACIONAMIENTO ESCUELA - CONTEXTO RURAL MEDIANTE LA APROPIACIÓN Y USO DE LAS TIC EN EL MUNICIPIO DE SIBATÉ, DEPARTAMENTO DE CUNDINAMARCA","CTEL",4292464018,2645464018,1647000000,44183,2020,"103 DE 2020","CONTRATADO EN EJECUCIÓN",0.29110000000000003,0.16919999999999999]
[171,"ENTIDAD APORTANTE RECURSOS","FUNDACION UNIVERSIDAD DEL VALLE",2020000050044,"FORTALECIMIENTO DE LAS COMPETENCIAS COMUNICATIVAS EN INGLÉS DE LOS ESTUDIANTES DE LOS ESTABLECIMIENTOS EDUCATIVOS NO OFICIALES DE CUNDINAMARCA","EDUCACIÓN","$ 10.468.961.978",10411761978,57200000,44195,2020,"110 DE 2020","CONTRATADO EN EJECUCIÓN",0.37640000000000001,0.3992]
[172,"ENTIDAD APORTANTE RECURSOS","UNAD",2020000100433,"INVESTIGACIÓN DE LOS COMPUESTOS VOLÁTILES ORGÁNICOS E INDUCIDOS PARA EL MANEJO DE MOSCAS PLAGAS EN GULUPA Y GRANADILLA EN EL DEPARTAMENTO DE  CUNDINAMARCA","CTEL",3412874201,1999985660,1412888541,44159,2020,"100 DE 2020","CONTRATADO EN EJECUCIÓN",0.1298,7.2900000000000006E-2]
[173,"ENTIDAD APORTANTE RECURSOS","UNIVERSIDAD INDUSTRIAL DE SANTANDER",2020000100415,"DESARROLLO DE UN SISTEMA ÓPTICO  COMPUTACIONAL PARA ESTIMAR EL CONTENIDO DE CARBONO ORGÁNICO DE SUELOS AGRÍCOLAS A TRAVÉS DE IMÁGENES ESPECTRALES E INTELIGENCIA ARTIFICIAL EN CULTIVOS DE CÍTRICOS DE   SANTANDER","CTEL",2184125885.29,1972224989,211900896.28999996,44160,2020,"100 DE 2020","CONTRATADO EN EJECUCIÓN",0.31180000000000002,0.22109999999999999]
[174,"ENTIDAD APORTANTE RECURSOS","UNIVERSIDAD INDUSTRIAL DE SANTANDER",2020000100375,"CONFORMACIÓN DE UNA PLATAFORMA PARA ESTUDIOS CELULARES AVANZADOS IN VIVO EN TIEMPO REAL PARA EL ANÁLISIS DE LA RESPUESTA INMUNOMETABÓLICA ANTE LA REEXPRESIÓN DE INTERFERÓN TIPO I KAPPA EN ESFEROIDES DE CÉLULAS TUMORALES DE CUELLO UTERINO EN  SANTANDER","CTEL",3123997801,1998887911,1125109890,44159,2020,"100 DE 2020","CONTRATADO EN EJECUCIÓN",0.55330000000000001,0.5111]
[175,"ENTIDAD APORTANTE RECURSOS","UNIVERSIDAD INDUSTRIAL DE SANTANDER",2020000100351,"DESARROLLO DE UN PROTOTIPO SELECTIVO Y SENSIBLE PARA MONITOREAR CONTENIDO DE CADMIO IN SITU EN DIVERSAS MATRICES ASOCIADAS A LA PRODUCCIÓN DE GRANOS DE CACAO EN EL DEPARTAMENTO DE  SANTANDER","CTEL",2585800000,2000000000,585800000,44159,2020,"100 DE 2020","CONTRATADO EN EJECUCIÓN",0.34389999999999998,0.39350000000000002]
[176,"ENTIDAD APORTANTE RECURSOS","INSTITUTO SUPERIOR DE EDUCACION RURAL DE PAMPLONA",2020000100343,"IMPLEMENTACIÓN LABORATORIO DE CALIDAD FISICOQUÍMICA DE ALIMENTOS PARA EL FORTALECIMIENTO COMPETITIVO Y SOSTENIBLE DE LASCADENAS AGROALIMENTARIAS DEL DEPARTAMENTO DE  NORTE DE SANTANDER","CTEL",1097306327,999999999,97306328,44159,2020,"100 DE 2020","CONTRATADO SIN ACTA DE INICIO",0,0]
[177,"ENTIDAD APORTANTE RECURSOS","UNIVERSIDAD NACIONAL DE COLOMBIA",2020000100342,"ESTUDIO DE POTENCIALES INSECTICIDAS EN MATRICES POLIMÉRICAS PARA EL CONTROL DE PLAGAS DE GRANOS ALMACENADOS BASADOS EN ACEITES ESENCIALES PROVENIENTES DE LA BIODIVERSIDADFLORÍSTICA DEL DEPARTAMENTO DE  CUNDINAMARCA","CTEL",2748237104,2000000000,748237104,44159,2020,"100 DE 2020","CONTRATADO EN EJECUCIÓN",5.8500000000000003E-2,0.29880000000000001]
[178,"ENTIDAD APORTANTE RECURSOS","UNIVERSIDAD MILITAR NUEVA GRANADA",2020000100728,"GENERACIÓN Y TRANSFERENCIA DE CONOCIMIENTOS Y TECNOLOGÍAS PARA ELEVAR CAPACIDADES DE CTEL DE PEQUEÑOS PRODUCTORES DE TOMATE PARA AFRONTAR PROBLEMAS DERIVADOS DEL COVID-19 ASOCIADAS A LA SEG. ALIMENTARIA EN LAS SAB. CENTRO Y ORIENTE  CUNDINAMARCA","CTEL",4162541452,2123613452,2038928000,44183,2020,"103 DE 2020","CONTRATADO EN EJECUCIÓN",0.2535,0.3216]
[179,"ENTIDAD APORTANTE RECURSOS","UNIVERSIDAD NACIONAL DE COLOMBIA",2020000100339,"DESARROLLO DE NUEVOS MÉTODOS NO DESTRUCTIVOS PARA MONITOREO IN SITU DE PROBABILIDAD DE OCURRENCIA DE FALLA EN TUBERÍAS EN EL SECTOR DE HIDROCARBUROS EN LOS DEPARTAMENTOS DE  BOGOTÁ BOYACÁ SANTANDER","CTEL",2412084140,1999876300,412207840,44159,2020,"100 DE 2020","CONTRATADO EN EJECUCIÓN",0.1472,0.21890000000000001]
[180,"ENTIDAD APORTANTE RECURSOS","UNIVERSIDAD MILITAR NUEVA GRANADA",2020000100216,"INNOVACIÓN Y TRANSFERENCIA TECNOLÓGICA DE UMNGBIO A PRODUCTORES DE FLORES PARA EL CONTROL BIOLÓGICO DE TETRANYCHUS URTICAE (ACARI: TETRANYCHIIDAE) EN CULTIVOS DE INVERNADERO CON EL ÁCARO BENÉFICO NEOSEIULUS CALIFORNICUS (ACARI: PHYTOSEIIDAE)  CUNDINAMARCA","CTEL",2431580000,1241580000,1190000000,44159,2020,"100 DE 2020","CONTRATADO EN EJECUCIÓN",0.50590000000000002,0.56789999999999996]
[181,"CUNDINAMARCA","SECRETARIA DE COMPETITIVIDAD",2019000050026,"DESARROLLO DE UN PROGRAMA PRODUCTIVO, AMIGABLE CON EL MEDIO AMBIENTE DEL SECTOR GANADERO EN EL DEPARTAMENTO DE CUNDINAMARCA CUNDINAMARCA","AGRICULTURA ",9757143522,6804242915,2952900607,44187,2020,"109 DE 2020","CONTRATADO EN EJECUCIÓN",0,0.1706]
[182,"ENTIDAD APORTANTE RECURSOS","UNIVERSIDAD NACIONAL DE COLOMBIA",2020000100169,"INVESTIGACIÓN DESARROLLO, INNOVACIÓN Y TRANSFERENCIA DE CONOCIMIENTO PARA EL PROCESAMIENTO DE LA SEMILLA DE SACHA INCHI EN PRODUCTOS DE VALOR AGREGADO, COMO ESTRATEGIA PARA MEJORAR LA PRODUCTIVIDAD DEL SECTOR AGROINDUSTRIAL DE LA REGIÓN  CUNDINAMARCA","CTEL",2757697312,456319666.11000001,2301377645.8899999,44078,2020,"97 DE 2020","CONTRATADO EN EJECUCIÓN",0.2792,0.26850000000000002]
[183,"ENTIDAD APORTANTE RECURSOS","UPTC",2020000100114,"FORTALECIMIENTO DEL ECOSISTEMA DE INVESTIGACIÓN CIENTÍFICA PARA CTEI EN LA UNIVERSIDAD PEDAGÓGICA Y TECNOLÓGICA DE COLOMBIA UPTC, I-SPACIO  SOGAMOSO","CTEL",2310634882,196703104,2113931778,44078,2020,"97 DE 2020","CONTRATADO EN EJECUCIÓN",0.14979999999999999,0.14810000000000001]
[184,"ENTIDAD APORTANTE RECURSOS","UNIVERSIDAD DE ANTIOQUIA",2020000100079,"FORTALECIMIENTO DE LA INFRAESTRUCTURA TECNOLÓGICA Y EQUIPAMIENTO DEL AMBIENTE DE FORMACIÓN INDUSTRIAL PARA EL AUMENTO DE LAS CAPACIDADES INSTITUCIONALES EN CTEI DE LA ETITC  BOGOTÁ","CTEL",1090608306,998808306,91800000,44078,2020,"97 DE 2020","CONTRATADO EN EJECUCIÓN",4.4900000000000002E-2,4.7500000000000001E-2]
[185,"ENTIDAD APORTANTE RECURSOS","UNIVERSIDAD NACIONAL DE COLOMBIA",2020000100075,"APROVECHAMIENTO DE LA BIODIVERSIDAD EN AGRAZ Y PAPA PARA EL DESARROLLO DE CULTIVOS PROMISORIOS EN EL DEPARTAMENTO DE   SANTANDER","CTEL",3177259696,2000000000,1177259696,44078,2020,"97 DE 2020","CONTRATADO EN EJECUCIÓN",4.1399999999999999E-2,2.63E-2]
[186,"ENTIDAD APORTANTE RECURSOS","UNIVERSIDAD NACIONAL DE COLOMBIA",2020000100019,"FORTALECIMIENTO DE CAPACIDADES DE INVESTIGACIÓN Y DESARROLLO TECNOLÓGICO DE LA UNIVERSIDAD COLEGIO MAYOR DE CUNDINAMARCA A PARTIR DE TECNOLOGÍAS INDUSTRIA 4.0 PARA EL DISEÑO Y CONSTRUCCIÓN EN   BOGOTÁ","CTEL",2077571214,1930000000,147571214,44078,2020,"97 DE 2020","CONTRATADO EN EJECUCIÓN",7.6E-3,3.7000000000000002E-3]
[187,"ENTIDAD APORTANTE RECURSOS","UNIVERSIDAD INDUSTRIAL DE SANTANDER",2020000100017,"FORTALECIMIENTO DE LA CAPACIDAD INSTITUCIONAL DE INVESTIGACIÓN DE LA UNIVERSIDAD INDUSTRIAL DESANTANDER  NACIONAL","CTEL",2808520000,456845037.89999998,2351674962.0999999,44078,2020,null,"CONTRATADO EN EJECUCIÓN",0,0]
[188,"ENTIDAD APORTANTE RECURSOS","UNIVERSIDAD MILITAR NUEVA GRANADA",2020000100103,"FORTALECIMIENTO DE CAPACIDADES INSTALADAS DE CIENCIA Y TECNOLOGÍA DEL LABORATORIO DE DIAGNÓSTICO EN EL CAMPUS DE LA UNIV MILITAR NUEVA GRANADA, PARA ATENDER PROBLEMÁTICAS ASOCIADAS CON AGENTES BIOLÓGICOS DE ALTO RIESGO PARA LA SALUD HUMANA,  CUNDINAMARCA","CTEL",5162742977,4168513565,994229412,43966,2020,"93 DE 2020","CONTRATADO EN EJECUCIÓN",0.29199999999999998,0.2964]
[189,"ENTIDAD APORTANTE RECURSOS","INSTITUTO UNIVERSITARIO DE LA PAZ – UNIPAZ",2020000100042,"FORTALECIMIENTO DE LOS PROCESOS ACADÉMICOS EN LOS PROGRAMAS OFRECIDOS POR EL INSTITUTO UNIVERSITARIO DE LA PAZ, UNIPAZ,   BARRANCABERMEJA","CTEL",1178749590,996109590,182640000,43998,2020,"94 DE 2020","CONTRATADO EN EJECUCIÓN",0.96719999999999995,0.94920000000000004]
[190,"ENTIDAD APORTANTE RECURSOS","INSTITUTO UNIVERSITARIO DE LA PAZ – UNIPAZ",2020000100016,"ADECUACIÓN , DOTACIÓN E IMPLEMENTACIÓN DE UN LABORATORIO DE FABRICACIÓN DIGITAL PARA PROMOVER EL DESARROLLO DE LA CIENCIA, LAINNOVACIÓN Y EL EMPRENDIMIENTO EN LA UNIVERSIDAD FRANCISCO DE PAULA SANTANDER.  CÚCUTA","CTEL",2921057589,1946843702,974213887,43950,2020,"92 DE 2020","CONTRATADO EN EJECUCIÓN",0.81569999999999998,0.84379999999999999]
[191,"ENTIDAD APORTANTE RECURSOS","UNIVERSIDAD TECNOLOGICA DE SANTANDER",2020000100004,"FORTALECIMIENTO Y ADECUACIÓN DE EQUIPOS E INFRAESTRUCTURA DEL LABORATORIO DE FÍSICA DEL DEPARTAMENTO DE CIENCIAS BÁSICAS, PARA EL MEJORAMIENTO DE LAS CAPACIDADES INSTITUCIONALES Y LA INVESTIGACIÓN EN LAS UNIDADES TECNOLÓGICAS DE SANTANDER -  BUCARAMANGA","CTEL",1016752702,980000000,36752702,43950,2020,"92 DE 2020","CONTRATADO EN EJECUCIÓN",2.7E-2,2.6800000000000001E-2]
[192,"CUNDINAMARCA","SECRETARIA DE EDUCACIÓN",2020000050037,"DOTACIÓN DEL MOBILIARIO ESCOLAR PARA LAS INSTITUCIONES EDUCATIVAS DE LOS MUNICIPIOS NO CERTIFICADOS DEL DEPARTAMENTO DE CUNDINAMARCA","EDUCACIÓN",10093038848,10093038848,0,44195,2020,"110 DE 2020","CONTRATADO EN EJECUCIÓN",0.69010000000000005,"51,78%"]
[193,"ENTIDAD APORTANTE RECURSOS","UNIVERSIDAD DEL NORTE",2020000100287,"FORMACIÓN DE CAPITAL HUMANO DE ALTO NIVEL UNIVERSIDAD DEL NORTE 2DO CORTE NACIONAL","CTEL",6920233499,6750000000,{"$f":"G202-H202","v":170233499},44330,2021,"004 DE 2021","CONTRATADO EN EJECUCIÓN",0.20269999999999999,0.1993]
[194,"ENTIDAD APORTANTE RECURSOS","UNIVERSIDAD DEL VALLE",2020000100345,"FORMACIÓN DE CAPITAL HUMANO DE ALTO NIVEL SEGUNDO CORTE UNIVERSIDAD DEL VALLE NACIONAL","CTEL",5913070114,5335769261,577300853,44348,2021,"05 DE 2021","CONTRATADO EN EJECUCIÓN",0.1142,0.18820000000000001]
[195,"ENTIDAD APORTANTE RECURSOS","UNIVERSIDAD NACIONAL DE COLOMBIA",2021000100003,"FORMACIÓN DE CAPITAL HUMANO DE ALTO NIVEL UNIVERSIDAD  NACIONAL DE COLOMBIA CORTE II NACIONL","CTEL",18418143500,17635937500,782206000,44330,2021,"04 DE 2021","CONTRATADO EN EJECUCIÓN",0.1593,0.1583]
[196,"ENTIDAD APORTANTE RECURSOS","UNIVERSIDAD DE LA SABANA",2021000100004,"FORMACIÓN DE CAPITAL HUMANO DE ALTO NIVEL UNIVERSIDAD DE LA SABANA CORE 2 NACIONAL","CTEL",1519950000,1309600000,210350000,44348,2021,"05 DE 2021","CONTRATADO EN EJECUCIÓN",9.6600000000000005E-2,0.2112]
[197,"ENTIDAD APORTANTE RECURSOS","UNIVERSIDAD ANTONIO NARIÑO",2021000100014,"FORMACIÓN DE CAPITAL HUMANO DE ALTO NIVEL UNIVERSIDAD ANTONIO NARIÑO CORE 2 NACIONAL","CTEL",4526652200,4250000000,276652200,44348,2021,"06 DE 2021","CONTRATADO EN EJECUCIÓN",0.1017,0.13339999999999999]
[198,"ENTIDAD APORTANTE RECURSOS","UNIVERSIDAD EAN",2021000100025,"FORMACIÓN DE CAPITAL HUMANO DE ALTO NIVEL UNIVERSIDAD EAN NACIONAL COHORTE II NACIONAL","CTEL",2044506416,1750000000,294506416,44368,2021,"06 DE 2021","CONTRATADO EN EJECUCIÓN",0.223,0.10150000000000001]
[199,"ENTIDAD APORTANTE RECURSOS","UNIVERSIDAD MILITAR NUEVA GRANADA",2021000100026,"FORMACIÓN DE CAPITAL HUMANO DE ALTO NIVEL UNIVERSIDAD MILITAR NUEVA GRANADA SEGUNDO CORTE NACIONAL","CTEL",751632481,650602304,101030177,44348,2021,"05 DE 2021","CONTRATADO EN EJECUCIÓN",0,0]
[200,"ENTIDAD APORTANTE RECURSOS","PONIFICA UNIVERSIDAD JAVERIANA",2021000100027,"FORMACIÓN DE CAPITAL HUMANO DE ALTO NIVEL PONTIFICIA UNIVERSIDAD JAVERIANA SEDE BOGOTÁ CORTE II NACIONAL","CTEL",8577491761,7246312500,1331179261,44348,2021,"05 DE 2021","CONTRATADO EN EJECUCIÓN",0,0.15079999999999999]
[201,"ENTIDAD APORTANTE RECURSOS","UNIVERSIDAD DE CALDAS",2021000100028,"FORMACIÓN DE CAPITAL HUMANO DE ALTO NIVEL CORTE 2 UNIVERSIDAD DE CALDAS - NACIONAL","CTEL",63580000000,6000000000,57580000000,44348,2021,"05 DE 2021","CONTRATADO EN EJECUCIÓN",0.23860000000000001,0.21579999999999999]
[202,"CUNDINAMARCA","SECRETARIA DE EDUCACIÓN",2021004250258,"FORTALECIMIENTO A LA ESTRATEGIA DE ALIMENTACIÓN ESCOLAR PARA EL AÑO 2021 EN LOS MUNICIPIOS DEL DEPARTAMENTO DE CUNDINAMARCA","EDUCACIÓN",16289941201,16289941201,0,44432,2021,"248 DE 2021","CONTRATADO EN EJECUCIÓN",0.96489999999999998,0.56240000000000001]
[203,"CUNDINAMARCA","SECRETARIA DE HABITAT Y VIVIENDA",2018000050050,"MEJORAMIENTO VIVIENDA RURAL MEDIANTE CONSTRUCCIÓN DE COCINAS HABITACIONES Y PISOS EN LOS MUNICIPIOS DE CUNDINAMARCA","AGRICULTURA ",5616585397,5616585397,{"$f":"G212-H212","v":0},44525,2021,"03 DE 2021","SIN CONTRATAR",0,0]
[204,"CUNDINAMARCA","SECRETARIA DE COMPETITIVIDAD",2020000050035,"FORTALECIMIENTO DE LOS SISTEMAS PRODUCTIVOS A TRAVÉS DE LA REACTIVACIÓN DEL SECTOR AGRÍCOLA EN EL DEPARTAMENTO DE CUNDINAMARCA","AGRICULTURA ",8993872200.5599995,8993872200.5599995,0,44529,2021,"454 DE 2021","SIN CONTRATAR",0,0]
["205","CUNDINAMARCA","MINAS Y ENERGIA",2021004250686,"CONSTRUCCIÓN DEL CENTRO DE FORMACIÓN E INNOVACIÓN MINERO ENERGÉTICO DE CUNDINAMARCA","GOBIERNO TERRITORIAL","$ 13.770.893.382,00","$ 6.928.967.103,00",6841926279,null,"2021","546 DE 2021","SIN CONTRATAR","0,00%","0,00%"]
[206,"CUNDINAMARCA","UNIDAD ADMINISTRATIVA DE GESTIÓN DEL RIESGO.",2021004250690,"FORTALECIMIENTO DEL SISTEMA AUTOMOTOR PARA LA GESTIÓN DEL RIESGO DE DESASTRES DEL DEPARTAMENTO DE CUNDINAMARCA","GOBIERNO TERRITORIAL",7299514100,7299514100,0,null,2021,"496 DE 2021","EN PROCESO DE CONTRATACIÓN","0,00%","0,00%"]
[207,"CUNDINAMARCA","SECRETARIA DE COMPETITIVIDAD",2020000050038,"OPTIMIZACIÓN DE LOS SISTEMAS GANADEROS BOVINOS DE CARNE LECHE Y DOBLE PROPÓSITO A PARTIR DE LA IMPLEMENTACIÓN DE MEJORAMIENTO GENÉTICO PRODUCTIVO Y ENTREGA DE MAQUINARIA Y EQUIPOS EN MUNICIPIOS DEL DEPARTAMENTO DE CUNDINAMARCA","AGRICULTURA ",8732449919,8732449919,0,null,2021,"547 DE 2021","SIN CONTRATAR",0,"0,00%"]
[208,"CUNDINAMARCA","SECRETARIA DE CIENCIA, TECNOLOGIA E INNOVACIÓN",21000100327,"DESARROLLO DE UN SISTEMA DE PRODUCCIÓN LECHERO PARA LA OBTENCIÓN DE LECHES INOCUAS DE ALTA CALIDAD Y CON UN PERFIL LIPÍDICO SALUDABLE EN EL DEPARTAMENTO DE CUNDINAMARCA","CTEL",3833042862,3044082702,788960160,44617,2022,"15 DE 2022","SIN CONTRATAR",0,"0,00%"]
[209,"CUNDINAMARCA","SECRETARIA DE CIENCIA, TECNOLOGIA E INNOVACIÓN",2021000100208,"FORTALECIMIENTO DE LOS NIVELES DE APROPIACIÓN SOCIAL DEL CONOCIMIENTO DE LA CTEI EN COMUNIDADES DE LAS PROVINCIAS DE ALMEIDAS Y UBATÉ DEL DEPARTAMENTO DE CUNDINAMARCA","CTEL",2191964751,1839764876,352199875,44615,2022,"15 DE 2021","SIN CONTRATAR",0,"0,00%"]
[210,"CUNDINAMARCA","SECRETARIA DE CIENCIA, TECNOLOGIA E INNOVACIÓN",2021000100243,"DESARROLLO PARTICIPATIVO DE UNA PLATAFORMA TECNOLÓGICA DE TELEDETECCIÓN PARA LA GESTIÓN SOSTENIBLE DE SUELOS EN AGROECOSISTEMAS DEL DEPARTAMENTO DE CUNDINAMARCA","CTEL",3042693625,2332094728,{"$f":"G219-H219","v":710598897},44617,2022,"15 DE 2021","SIN CONTRATAR",0,"0,00%"]
[211,"CUNDINAMARCA","SECRETARIA DE MINAS, ENERGIA Y GAS",2021000050019,"AMPLIACIÓN DE LA COBERTURA DEL SERVICIO DE GAS COMBUTIBLE POR REDES A TRAVES DE LA FINANCIACIÓN DEL CARGO POR CONEXIÓN Y LA RED INTERNA PARA USUARIOS DE BARRIOS PERIFÉRICOS VEREDAS Y CENTROS POBLADOS DE LOS MUNICIPIOS DE CUNDINAMARCA","MINAS Y ENERGÍA",10613927436,6059727436,{"$f":"G220-H220","v":4554200000},null,"2021","546 DE 2021","SIN CONTRATAR","0,00%","0,00%"]
[212,"CUNDINAMARCA","SECRETARIA DE EDUCACIÓN",2022000050007,"FORTALECIMIENTO A LA ESTRATEGIA DE ALIMENTACIÓN ESCOLAR EN LOS MUNICIPIOS NO CERTIFICADOS DEL DEPARTAMENTO DE CUNDINAMARCA PARA LA VIGENCIA 2022 CUNDINAMARCA\t","EDUCACIÓN",42966037310,42966037310,{"$f":"G221-H221","v":0},"2021-08-24",2021,"248 DE 2021","SIN CONTRATAR","0,00%","0,00%"]
[213,"CUNDINAMARCA","SECRETARIA DE CIENCIA, TECNOLOGIA E INNOVACIÓN",2021000100467,"FORTALECIMIENTO DE LAS CAPACIDADES INSTITUCIONALES PARA EL DESARROLLO Y GESTIÓN DEL ECOSISTEMA TERRITORIAL DE CTEI EN TODAS LAS PROVINCIAS DEL DEPARTAMENTO DE CUNDINAMARCA\n","CTEL",null,null,0,null,2022,null,"SIN CONTRATAR","0,00%","0,00%"]
[214,"CUNDINAMARCA","SECRETARIA DE CIENCIA, TECNOLOGIA E INNOVACIÓN",2021000100276,"DESARROLLO DE UN MODELO DE PROMOCIÓN TURÍSTICA SOSTENIBLE DESDE LA TECNOLOGÍA 4.0 EN LOS MUNICIPIOS DE LA PALMA Y YACOPI EN EL DEPARTAMENTO DE CUNDINAMARCA\n","CTEL",null,null,0,null,2022,null,"SIN CONTRATAR","0,00%","0,00%"]
[215,"CUNDINAMARCA","SECRETARIA DE CIENCIA, TECNOLOGIA E INNOVACIÓN",2021000100523,"DESARROLLO DE MICROREDES Y ALMACENAMIENTO (ESS) PRESTADORES DE SERVICIOS COMPLEMENTARIOS PARA INCREMENTAR LA COBERTURA EFICIENCIA Y CONFIABILIDAD DEL SERVICIO EN EL DEPARTAMENTO DE CUNDINAMARCA\n","CTEL",null,null,0,null,2022,null,"SIN CONTRATAR","0,00%","0,00%"]
[]
[null,null,null,"Fuente: Dirección de Gestión de la Inversión - Secretaría de Planeación"]
[null,null,null,"Fecha de corte: 15/06/2022"]

{"sheet":"Tablas","index":1,"n_rows":19,"n_cols":19,"rows_kept":19,"cut":false,"hidden":false,"merged":[]}
["EJECUTOR (Dpto / Entidad)","CUNDINAMARCA",null,null,null,"EJECUTOR (Dpto / Entidad)","CUNDINAMARCA",null,null,null,null,"EJECUTOR (Dpto / Entidad)","CUNDINAMARCA",null,null,"EJECUTOR (Dpto / Entidad)","CUNDINAMARCA"]
[null,null,null,null,null,"ESTADO","(Varios elementos)",null,null,null,null,"ESTADO","(Varios elementos)",null,null,"ESTADO","(Varios elementos)"]
["Etiquetas de fila","Cuenta de ESTADO"]
["CONTRATADO EN EJECUCIÓN",34,null,null,null,"Etiquetas de fila","Cuenta de SECTOR","Suma de VALOR PROYECTO","Suma de VALOR SGR",null,null,"Etiquetas de fila","Cuenta de EJECUTOR INTERNO",null,null,"Etiquetas de fila","Promedio de \tAVANCE FÍSICO","Promedio de \tAVANCE FINANCIERO","Cuenta de EJECUTOR INTERNO"]
["EN PROCESO DE CONTRATACIÓN",1,null,null,null,"CTEL",28,185880462797,150797284435,null,null,"ENTIDAD DESIGNADA PARA LA SUPERVISIÓN DEL PROYECTO O PARA CONTRATAR LA INTERVENTORÍA RAPE - INTERVENTORIA SECRETARIA DE PLANEACIÓN",1,null,null,"SECRETARIA DE CIENCIA, TECNOLOGIA E INNOVACIÓN",0.47832399999999992,0.5738727272727272,28]
["NO HA MIGRADO A GESPROY",1,null,null,null,"EDUCACIÓN",6,88155518786,88155518786,null,null,"SECRETARIA DE GOBIERNO",1,null,null,"SECRETARIA DE EDUCACIÓN",0.93100000000000005,0.75905,6]
["PARA CIERRE",2,null,null,null,"AGRICULTURA ",9,57849805829.559998,50487248957.559998,null,null,"ENTIDAD DESIGNADA PARA LA SUPERVISIÓN DEL PROYECTO O PARA CONTRATAR LA INTERVENTORÍA-EMPRESAS PUBLICAS DE CUNDINAMARCA -EPC",1,null,null,"SECRETARIA DE HABITAT Y VIVIENDA",0.73182499999999995,0.73582499999999995,4]
["SIN CONTRATAR",12,null,null,null,"SALUD Y PROTECCIÓN SOCIAL",1,43433295564,43433295564,null,null,"MINAS Y ENERGIA",1,null,null,"SECRETARIA DE MINAS, ENERGIA Y GAS",0.75229999999999997,0.92203333333333326,4]
["TERMINADO",7,null,null,null,"AMBIENTE Y DESARROLLO SOSTENIBLE",2,35584895155,35584895155,null,null,"SECRETARIA GENERAL",1,null,null,"SECRETARIA DE COMPETITIVIDAD",0.25,0.37376666666666664,4]
["Total general",57,null,null,null,"MINAS Y ENERGÍA",4,28895282235,10766151790,null,null,"SECRETARIA DE SALUD",1,null,null,"SECRETARIA DE AGRICULTURA",0.91310000000000002,0.67494999999999994,2]
[null,null,null,null,null,"JUSTICIA Y DEL DERECHO ",1,9260000000,8500000000,null,null,"SECRETARIA DE PLANEACIÓN",1,null,null,"UNIDAD ADMINISTRATIVA DE GESTIÓN DEL RIESGO.",0,0,2]
[null,null,null,null,null,"GOBIERNO TERRITORIAL",2,7299514100,7299514100,null,null,"SECRETARIA DE AGRICULTURA",2,null,null,"SECRETARIA DE PLANEACIÓN",0.98519999999999996,0.98650000000000004,1]
[null,null,null,null,null,"TRANSPORTE",1,6791102422,6725380622,null,null,"UNIDAD ADMINISTRATIVA DE GESTIÓN DEL RIESGO.",2,null,null,"ENTIDAD DESIGNADA PARA LA SUPERVISIÓN DEL PROYECTO O PARA CONTRATAR LA INTERVENTORÍA-EMPRESAS PUBLICAS DE CUNDINAMARCA -EPC",0.81769999999999998,0.7379,1]
[null,null,null,null,null,"VIVIENDA, CIUDAD Y TERRITORIO ",1,4999900475,4999900475,null,null,"SECRETARIA DE HABITAT Y VIVIENDA",4,null,null,"SECRETARIA DE SALUD",0.54379999999999995,0.54759999999999998,1]
[null,null,null,null,null,"COMERCIO, INDUSTRIA Y TURISMO ",1,1752501814,1708104361,null,null,"SECRETARIA DE MINAS, ENERGIA Y GAS",4,null,null,"SECRETARIA GENERAL",1,0.94640000000000002,1]
[null,null,null,null,null,"CULTURA ",1,1000000000,1000000000,null,null,"SECRETARIA DE COMPETITIVIDAD",4,null,null,"ENTIDAD DESIGNADA PARA LA SUPERVISIÓN DEL PROYECTO O PARA CONTRATAR LA INTERVENTORÍA RAPE - INTERVENTORIA SECRETARIA DE PLANEACIÓN",0.99809999999999999,0.99780000000000002,1]
[null,null,null,null,null,"Total general",57,470902279177.56,409457294245.56,null,null,"SECRETARIA DE EDUCACIÓN",6,null,null,"MINAS Y ENERGIA",{"$error":"#DIV/0!"},{"$error":"#DIV/0!"},1]
[null,null,null,null,null,null,null,null,null,null,null,"SECRETARIA DE CIENCIA, TECNOLOGIA E INNOVACIÓN",28,null,null,"SECRETARIA DE GOBIERNO",1,1,1]
[null,null,null,null,null,null,null,null,null,null,null,"Total general",57,null,null,"Total general",0.59936599999999995,0.64573777777777763,57]

{"sheet":"Vencimiento días","index":2,"n_rows":103,"n_cols":12,"rows_kept":103,"cut":false,"hidden":true,"merged":[]}
["EJECUTOR (Dpto / Entidad)","EJECUTOR INTERNO","ENCARGADO DE LA ENTIDAD ","ENLACE EMTIDAD EJECUTORA","BPIN ","PROYECTO","SECTOR","VALOR","ESTADO","FECHA DE TERMINACIÓN","HOY","VENCIMIENTO N° DÍAS "]
["CUNDINAMARCA","SECRETARIA GENERAL","YAHIR ARCINIEGAS","JIMENA TAFUR",2012000050010,"ESTUDIOS Y DISEÑOS PARA LA RECUPERACIÓN Y ADECUACION DEL PATRIMONIO HISTORICO CULTURAL PALACIO DE SAN FRANCISCO EN BOGOTA D.C. DEPARTAMENTO DE CUNDINAMARCA ","CULTURA ",1000000000,"TERMINADO",43465,{"$f":"+TODAY()","v":44753},{"$f":"J2-K2","v":-1288}]
["CUNDINAMARCA","SECRETARIA DE COMPETITIVIDAD","ALEXANDER RIVEROS/JEIMY FORERO","FABIAN CUESTA",2012000050030,"DESARROLLO CREACION Y FORTALECIMIENTO DE NUEVE (9) CENTROS DE EMPREDIMIENTO Y FORTALECIMIENTO EMPRESARIAL EN EL DEPARTAMENTO DE CUNDINAMARCA ","COMERCIO, INDUSTRIA Y TURISMO ",1752501814,"PARA CIERRE",42369,44753,-2384]
["CUNDINAMARCA","SECRETARIA DE CIENCIA, TECNOLOGIA E INNOVACIÓN","ALEXANDER RIVEROS Y YAHIR ARCINIEGAS","LUIS MANUEL GONZALEZ",2012000100010,"FORTALECIMIENTO DE LAS REGIONES COLOMBIANAS EN SUS CAPACIDADES DE CTI - CUNDINAMARCA","CTEL",8721806744,"CONTRATADO EN EJECUCIÓN",44926,44753,173]
["CUNDINAMARCA","SECRETARIA DE CIENCIA, TECNOLOGIA E INNOVACIÓN","ALEXANDER RIVEROS Y YAHIR ARCINIEGAS","LUIS MANUEL GONZALEZ",2012000100144,"INVESTIGACIÓN INVESTIGACION, DESARROLLO Y TRANSFERENCIA TECNOLOGICA EN EL SECTOR AGROPECUARIO Y AGROINDUSTRIAL CON EL FIN DE MEJORAR L TODO EL DEPARTAMENTO, CUNDINAMARCA, CENTRO ORIENTE","CTEL",50514736439,"CONTRATADO EN EJECUCIÓN",45716,44753,963]
["CUNDINAMARCA","SECRETARIA DE MINAS, ENERGIA Y GAS","DIEGO TORRES","ALVARO CHACON",2013000050026,"CONSTRUCCIÓN REDES ELECTRICAS EN LA ZONA RURAL DE LOS MUNICIPIOS DE PARATEBUENO Y GUTIERREZ EN EL DEPARTAMENTO DE CUNDINAMARCA","MINAS Y ENERGÍA",1068319227,"TERMINADO",42369,44753,-2384]
["ENTIDAD APORTANTE RECURSOS","BANCO AGRARIO DE COLOMBIA","DIEGO TORRES / JEIMY FORERO",null,2013000050044,"CONSTRUCCIÓN CUNDINAMARCA VISR 2013 TODO EL DEPARTAMENTO, CUNDINAMARCA, CENTRO ORIENTE","AGRICULTURA ",60041780218,"CONTRATADO EN EJECUCIÓN",45260,44753,507]
["CUNDINAMARCA","SECRETARIA DE CIENCIA, TECNOLOGIA E INNOVACIÓN","ALEXANDER RIVEROS Y YAHIR ARCINIEGAS","LUIS MANUEL GONZALEZ",2013000100129,"INCREMENTO EN LAS ESTRATEGIAS SUSTENTABLES EN EL USO DEL RECURSO DE ENERGA ELECTRICA PARA LA POBLACION VULNERABLE EN EL DPTO. DE CUNDINAMARCA","CTEL",5170002961,"CONTRATADO EN EJECUCIÓN",44865,44753,112]
["CUNDINAMARCA","SECRETARIA DE CIENCIA, TECNOLOGIA E INNOVACIÓN","ALEXANDER RIVEROS Y YAHIR ARCINIEGAS","LUIS MANUEL GONZALEZ",2013000100176,"INNOVACIÓN SISTEMA DE PRODUCCION DE FRUTAS/HORTALIZAS FRESCAS/PROCESADAS TIPO EXPORTACION CON TECNOLOGIA BIOLOGICA /INTEGRAL INOCUA SUBACHOQUE, CUNDINAMARCA, CENTRO ORIENTE","CTEL",9285096292,"CONTRATADO EN EJECUCIÓN",44377,44753,-376]
["CUNDINAMARCA","SECRETARIA DE CIENCIA, TECNOLOGIA E INNOVACIÓN","ALEXANDER RIVEROS Y YAHIR ARCINIEGAS","LUIS MANUEL GONZALEZ",2013000100248,"INNOVACIÓN , CIENCIA Y TECNOLOGIA PARA PRODUCTORES DE LECHE EN LA PROVINCIA DE UBATE, CUNDINAMARCA.","CTEL",11619725567,"CONTRATADO EN EJECUCIÓN",43496,44753,-1257]
["CUNDINAMARCA","SECRETARIA DE GOBIERNO","DAYANA FERNANDEZ ","EDUARDO ",2014000050010,"CONSTRUCCIÓN DE UN CENTRO DE ATENCION ESPECIALIZADA AL SERVICIO DE ADOLESCENTES INFRACTORES DE LA LEY PENAL EN EL DEPARTAMENTO DE CUNDINAMARCA","JUSTICIA Y DEL DERECHO ",9260000000,"PARA CIERRE",43190,44753,-1563]
["CUNDINAMARCA","SECRETARIA DE HABITAT Y VIVIENDA","ALEXANDER RIVEROS/JEIMY FORERO","BEATRIZ GAMEZ",2016000050052,"CONSTRUCCIÓN DE VIVIENDAS NUEVAS RURALES EN EL DEPARTAMENTO DE CUNDINAMARCA","AGRICULTURA ",5983779025,"CONTRATADO EN EJECUCIÓN",44561,{"$f":"+TODAY()","v":44753},{"$f":"J12-K12","v":-192}]
["CUNDINAMARCA","SECRETARIA DE CIENCIA, TECNOLOGIA E INNOVACIÓN","ALEXANDER RIVEROS Y YAHIR ARCINIEGAS","LUIS MANUEL GONZALEZ",2016000100027,"ANLISIS DE FACTORES GENETICOS, SANITARIOS Y MEDIOAMBIENTALES QUE AFECTAN LAS TASAS DE PREÑEZ A PARTIR DE EMBRIONES IN VITRO EN EL DEPARTAMENTO DE CUNDINAMARCA","CTEL",6401358633,"CONTRATADO EN EJECUCIÓN",44742,44753,-11]
["ENTIDAD DESIGNADA PARA LA SUPERVISIÓN DEL PROYECTO O PARA CONTRATAR LA INTERVENTORÍA","RAPE - INTERVENTORIA SECRETARIA DE PLANEACIÓN","YAHIR ARCINIEGAS","ANGELA MARTINEZ",2016000050012,"IMPLEMENTACIÓN DE ACCIONES DE CONSERVACION Y RESTAURACION DE LOS COMPLEJOS DE PARAMO, BOSQUE ALTO-ANDINO Y SERVICIOS ECOSISTEMICOS DE LA REGION CENTRAL","AMBIENTE Y DESARROLLO SOSTENIBLE",32499987282,"CONTRATADO EN EJECUCIÓN",44530,44753,-223]
["CUNDINAMARCA","SECRETARIA DE EDUCACIÓN","YAHIR ARCINIEGAS Y ALEXANDER RIVEROS","PABLO CAJAMARCA",2017000050027,"FORTALECIMIENTO DE LA PERMANENCIA DE LOS ESTUDIANTES EN LOS MUNICIPIOS DEL DEPARTAMENTO DE CUNDINAMARCA , CENTRO ORIENTE 2017 CUNDINAMARCA","EDUCACIÓN",14995289800,"TERMINADO",43100,44753,-1653]
["ENTIDAD APORTANTE RECURSOS","MUNICIPIO DE ZIPAQUIRA","ALEXANDER RIVEROS","JAIRO JARA",2017000050029,"CONSERVACIÓN  Y GESTIÓN INTEGRAL DEL RECURSO HÍDRICO MEDIANTE LA ADQUISICIÓN Y RESTAURACIÓN DE PREDIOS DE INTERÉS ECOSISTÉMICO EN ELDEPARTAMENTO DE   CUNDINAMARCA","AMBIENTE Y DESARROLLO SOSTENIBLE",900000000,"CONTRATADO EN EJECUCIÓN",44865,44753,112]
["CUNDINAMARCA","SECRETARIA DE MINAS, ENERGIA Y GAS","DIEGO TORRES / LIYUGETH ALFONSO","JAHIR HERNANDEZ",2017000050036,"IMPLEMENTACIÓN Y EXPANSIÓN DEL SERVICIO DE GAS COMBUSTIBLE POR REDES PARA VEREDAS Y CENTROS POBLADOS DEL DEPARTAMENTO DE CUNDINAMARCA","MINAS Y ENERGÍA",4751658472,"CONTRATADO EN EJECUCIÓN",44196,44753,-557]
["CUNDINAMARCA","SECRETARIA DE PLANEACIÓN","YESID CASTAÑO Y JEIMY FORERO","RUSVEL NIETO",2017000050039,"MEJORAMIENTO DE VÍAS TERCIARIAS MEDIANTE EL USO DE PLACA HUELLA EN LOS MUNICIPIOS DE GUATAVITA, PACHO, SAN JUAN DE RIOSECO, SUBACHOQUE, TENA Y ZIPAQUIRÁ, DEPARTAMENTO DE CUNDINAMARCA","TRANSPORTE",6791102422,"CONTRATADO EN EJECUCIÓN",43830,44753,-923]
["CUNDINAMARCA","SECRETARIA DE HABITAT Y VIVIENDA","ALEXANDER RIVEROS/JEIMY FORERO","BEATRIZ GAMEZ",2017000050042,"MEJORAMIENTO DE VIVIENDAS RURALES DE LA PROVINCIA DE UBATÉ - CUNDINAMARCA","AGRICULTURA ",2354318125,"CONTRATADO EN EJECUCIÓN",44561,44753,-192]
["CUNDINAMARCA","SECRETARIA DE AGRICULTURA","DIEGO TORRES/VALENTINA PORTILLO","JAVIER HERREDIA",2017000050065,"MEJORAMIENTO DE LA PRODUCTIVIDAD Y RENTABILIDAD DE LOS CAFICULTORES DEL DEPARTAMENTO DE CUNDINAMARCA","AGRICULTURA ",6523880054,"CONTRATADO EN EJECUCIÓN",44196,44753,-557]
["CUNDINAMARCA","SECRETARIA DE CIENCIA, TECNOLOGIA E INNOVACIÓN","ALEXANDER RIVEROS Y YAHIR ARCINIEGAS","LUIS MANUEL GONZALEZ",2017000100016,"IMPLEMENTACIÓN PROGRAMA DE INNOVACIÓN PARA LA VALIDACIÓN Y GENERACIÓN DE PRODUCTOS DERIVADOS DE LA BIODIVERSIDAD EN EL DEPARTAMENTO DE CUNDINAMARCA","CTEL",4486653319,"CONTRATADO EN EJECUCIÓN",44926,44753,173]
["CUNDINAMARCA","SECRETARIA DE CIENCIA, TECNOLOGIA E INNOVACIÓN","ALEXANDER RIVEROS Y YAHIR ARCINIEGAS","LUIS MANUEL GONZALEZ",2017000100034,"IMPLEMENTACIÓN DE UN SISTEMA DE GESTIÓN DE INNOVACIÓN PARA LA INDUSTRIA DE CUNDINAMARCA","CTEL",3925471448,"CONTRATADO EN EJECUCIÓN",44530,44753,-223]
["CUNDINAMARCA","SECRETARIA DE CIENCIA, TECNOLOGIA E INNOVACIÓN","ALEXANDER RIVEROS Y YAHIR ARCINIEGAS","LUIS MANUEL GONZALEZ",2017000100074,"IMPLEMENTACIÓN DE ESTRATEGIAS DE FOMENTO A LA CULTURA Y SERVICIOS DE INNOVACIÓN EN LAS PROVINCIAS SABANA OCCIDENTE, SABANA CENTRAL, SOACHA Y SUMAPAZ CUNDINAMARCA","CTEL",6183633276,"CONTRATADO EN EJECUCIÓN",44592,44753,-161]
["CUNDINAMARCA","SECRETARIA DE CIENCIA, TECNOLOGIA E INNOVACIÓN","ALEXANDER RIVEROS Y YAHIR ARCINIEGAS","LUIS MANUEL GONZALEZ",2017000100076,"FORTALECIMIENTO DE CAPACIDADES DE GESTIÓN DEL RIESGO A TRAVÉS DE APROPIACIÓN SOCIAL DE LA CIENCIA, LA TECNOLOGÍA Y LA INNOVACIÓN EN EL DEPARTAMENTO DE CUNDINAMARCA","CTEL",4404970720,"CONTRATADO EN EJECUCIÓN",44895,44753,142]
["CUNDINAMARCA","SECRETARIA DE CIENCIA, TECNOLOGIA E INNOVACIÓN","ALEXANDER RIVEROS Y YAHIR ARCINIEGAS","LUIS MANUEL GONZALEZ",2017000100087,"FORMACIÓN DE TALENTO HUMANO DE ALTO NIVEL EN MAESTRÍAS EN EL DEPARTAMENTO DE CUNDINAMARCA","CTEL",5148022960,"CONTRATADO EN EJECUCIÓN",45747,44753,994]
["CUNDINAMARCA","SECRETARIA DE CIENCIA, TECNOLOGIA E INNOVACIÓN","ALEXANDER RIVEROS Y YAHIR ARCINIEGAS","LUIS MANUEL GONZALEZ",2017000100104,"FORTALECIMIENTO DE LA CULTURA DE LA GESTIÓN Y UTILIZACIÓN DEL CONOCIMIENTO EN CTEI EN NIÑOS, JÓVENES Y COMUNIDADES DEL DEPARTAMENTO DE CUNDINAMARCA","CTEL",9498967749,"CONTRATADO EN EJECUCIÓN",44926,44753,173]
["CUNDINAMARCA","UNIDAD ADMINISTRATIVA DE GESTIÓN DEL RIESGO.","DIEGO TORRES/VALENTINA PORTILLO","GINNA HERRERA",20172401060022,"ESTUDIOS DETALLADOS PARA LA INCORPORACIÓN DE LA GESTIÓN DEL RIESGO PARA LOS MUNICIPIOS DE GIRARDOT, RICAURTE","AMBIENTE Y DESARROLLO SOSTENIBLE",3084907873,"CONTRATADO EN EJECUCIÓN",44773,44753,20]
["CUNDINAMARCA","SECRETARIA DE CIENCIA, TECNOLOGIA E INNOVACIÓN","ALEXANDER RIVEROS Y YAHIR ARCINIEGAS","LUIS MANUEL GONZALEZ",20170000100012,"CONFORMACIÓN DE UNA CONVOCATORIA REGIONAL DE PROYECTOS I+D EN FOCOS PRIORIZADOS CTEI PARA EL FORTALECIMIENTO DE LOS GRUPOS DE INVESTIGACIÓN CUNDINAMARCA","CTEL",7321934035,"CONTRATADO EN EJECUCIÓN",44926,44753,173]
["ENTIDAD APORTANTE RECURSOS","CAR","YESID CASTAÑO","CARLOS MURCIA",2017000050063,"RECUPERACIÓN HIDRÁULICA Y AMBIENTAL DEL COMPLEJO LAGUNAR  FÚQUENE","AMBIENTE Y DESARROLLO SOSTENIBLE",18000000000,"CONTRATADO EN EJECUCIÓN",45199,44753,446]
["ENTIDAD APORTANTE RECURSOS","MUNICIPIO DE UTICA","JUAN CARLOS TORRES","CESAR SIMANCAS",2017000050087,"MEJORAMIENTO DEL SENDERO TURÍSTICO DE LA PROVINCIA DEL GUALIVÁ  – ÚTICA  CUNDINAMARCA","COMERCIO, INDUSTRIA Y TURISMO ",2347004868,"CONTRATADO EN EJECUCIÓN",44530,44753,-223]
["CUNDINAMARCA","SECRETARIA DE HABITAT Y VIVIENDA","ALEXANDER RIVEROS/JEIMY FORERO","BEATRIZ GAMEZ",2018000050039,"MEJORAMIENTO DE VIVIENDA RURAL EN LOS MUNICIPIOS DE CUCUNUBÁ, JERUSALEN, QUEBRADANEGRA Y VIOTÁ - DEPARTAMENTO DE CUNDINAMARCA","AGRICULTURA ",4024793625,"CONTRATADO EN EJECUCIÓN",44561,44753,-192]
["CUNDINAMARCA","SECRETARIA DE CIENCIA, TECNOLOGIA E INNOVACIÓN","ALEXANDER RIVEROS Y YAHIR ARCINIEGAS","LUIS MANUEL GONZALEZ",2018000100106,"INNOVACIÓN EN EL MODELO DE GESTIÓN DEL MEDICAMENTO FASE III EN EL DEPARTAMENTO DE  CUNDINAMARCA","CTEL",3452890062,"NO HA MIGRADO A GESPROY",null,44753,-44753]
["CUNDINAMARCA","SECRETARIA DE CIENCIA, TECNOLOGIA E INNOVACIÓN","ALEXANDER RIVEROS Y YAHIR ARCINIEGAS","LUIS MANUEL GONZALEZ",2018000100160,"FORMACIÓN DE CAPITAL HUMANO DE ALTO NIVEL PARA LA INVESTIGACIÓN, EL DESARROLLO TECNOLÓGICO Y LA INNOVACIÓN MAESTRÍAS DE INVESTIGACIÓN PARA DOCENTES DEL DEPARTAMENTO DE CUNDINAMARCA","CTEL",5217415747,"CONTRATADO EN EJECUCIÓN","30/11/2027\n",44753,{"$error":"#VALUE!"}]
["ENTIDAD DESIGNADA PARA LA SUPERVISIÓN DEL PROYECTO O PARA CONTRATAR LA INTERVENTORÍA","EMPRESAS PUBLICAS DE CUNDINAMARCA -EPC","ALEXANDER RIVEROS/LIYUGETH ALFONSO","PAULA ACUÑA",20181301010555,"CONSTRUCCIÓN DE UNIDADES SANITARIAS EN EL ÁREA RURAL DEL DEPARTAMENTO DE CUNDINAMARCA","VIVIENDA, CIUDAD Y TERRITORIO ",4999900475,"CONTRATADO EN EJECUCIÓN",44347,44753,-406]
["CUNDINAMARCA","SECRETARIA DE EDUCACIÓN","YAHIR ARCINIEGAS Y ALEXANDER RIVEROS","PABLO CAJAMARCA",2019000050020,"FORTALECIMIENTO DE LA PERMANENCIA DE LOS ESTUDIANTES PARA EL AÑO 2019 EN LOS MUNICIPIOS DEL DEPARTAMENTO DE CUNDINAMARCA","EDUCACIÓN",20536293937,"TERMINADO",43769,44753,-984]
["CUNDINAMARCA","SECRETARIA DE AGRICULTURA","DIEGO TORRES/VALENTINA PORTILLO","JAVIER HERREDIA",2019000050027," MEJORAMIENTO DE LA COMPETITIVIDAD  DE LA CADENA PRODUCTIVA DE CACAO EN EL DEPARTAMENTO DE CUNDINAMARCA","AGRICULTURA ",5862983962,"CONTRATADO EN EJECUCIÓN",44651,44753,-102]
["ENTIDAD APORTANTE RECURSOS","MEDICINA LEGAL Y CIENCIAS FORENSES","ALEXANDER RIVEROS","MARTIN SEPULVEDA",2019000050025,"ESTUDIOS Y DISEÑOS PARA LA CONSTRUCCIÓN DE LA SEDE DE MEDICINA LEGAL EN EL DEPARTAMENTO DE CUNDINAMARCA","FISCALIA",904521100,"CONTRATADO EN EJECUCIÓN",44620,{"$f":"+TODAY()","v":44753},{"$f":"J37-K37","v":-133}]
["ENTIDAD APORTANTE RECURSOS","IDECUT","DIEGO TORRES Y YAHIR ARCINIEGAS","MARTHA VANEGAS",2019000050059,"FORTALECIMIENTO A LAS ESCUELAS MUNICIPALES DE MÚSICA, DANZA, TEATRO Y ARTES PLÁSTICAS Y VISUALES EN EL DEPARTAMENTO DE CUNDINAMARCA","CULTURA ",1972606058,"CONTRATADO EN EJECUCIÓN",44530,44753,-223]
["CUNDINAMARCA","SECRETARIA DE MINAS, ENERGIA Y GAS","DIEGO TORRES / LIYUGETH ALFONSO","JAHIR HERNANDEZ",2019000050073,"AMPLIACIÓN DE LA COBERTURA DEL SERVICIO DE GAS COMBUSTIBLE DOMICILIARIO A TRAVÉS DE LA FINANCIACIÓN DE LA CONEXIÓN Y LA RED INTERNA PARA USUARIOS DE BARRIOS PERIFÉRICOS, VEREDAS Y CENTROS POBLADOS DEL DEPARTAMENTO DE CUNDINAMARCA","MINAS Y ENERGÍA",12461377100,"CONTRATADO EN EJECUCIÓN",44530,44753,-223]
["ENTIDAD APORTANTE RECURSOS","TV ANDINA","ALEXANDER RIVEROS","EDWIN",2019000050064,"PROTECCIÓN Y PRESERVACIÓN DEL PATRIMONIO AUDIOVISUAL COLOMBIANO QUE SE ENCUENTRA EN EL CANAL PÚBLICO TEVEANDINA LOCALIZADO EN EL DEPARTAMENTO DE  CUNDINAMARCA","CULTURA ",5923285198,"TERMINADO",44439,44753,-314]
["ENTIDAD APORTANTE RECURSOS","UNAD","ALEXANDER RIVEROS","ANDRES ACOSTA",2019000050069,"MEJORAMIENTO DE INFRAESTRUCTURA FÍSICA, DOTACIÓN DE MOBILIARIO Y EQUIPAMIENTO TECNOLÓGICO DE LA UNIVERSIDAD NACIONAL ABIERTA Y A DISTANCIA EN MUNICIPIOS DEL DEPARTAMENTO DE CUNDINAMARCA","EDUCACIÓN",16011115461,"TERMINADO",44165,44753,-588]
["ENTIDAD APORTANTE RECURSOS","U TECNOLOGICA DE PEREIRA","YAHIR ARCINIEGAS","LUIS MANUEL GONZALEZ",2019000100009,"FORMACIÓN DE CAPITAL HUMANO DE ALTO NIVEL UNIVERSIDAD TECNOLÓGICA DE PEREIRA  NACIONAL","CTEL",4360028215,"CONTRATADO EN EJECUCIÓN",46752,44753,1999]
["ENTIDAD APORTANTE RECURSOS","U EAN","YAHIR ARCINIEGAS","LUIS MANUEL GONZALEZ",2019000100015,"FORMACIÓN DE CAPITAL HUMANO DE ALTO NIVEL - UNIVERSIDAD EAN -  NACIONAL","CTEL",1294375000,"CONTRATADO EN EJECUCIÓN",45351,44753,598]
["ENTIDAD APORTANTE RECURSOS","U CATOLICA","YAHIR ARCINIEGAS","LUIS MANUEL GONZALEZ",2019000100022,"FORMACIÓN DE CAPITAL HUMANO DE ALTO NIVEL - UNIVERSIDAD CATÓLICA DE COLOMBIA -  NACIONAL","CTEL",343595000,"CONTRATADO EN EJECUCIÓN",46783,44753,2030]
["ENTIDAD APORTANTE RECURSOS","UNIVERSIDAD MILITAR NUEVA GRANADA","YAHIR ARCINIEGAS","LUIS MANUEL GONZALEZ",2019000100025,"FORMACIÓN DE CAPITAL HUMANO DE ALTO NIVEL UNIVERSIDAD MILITAR NUEVA GRANADA  NACIONAL","CTEL",294375000,"CONTRATADO EN EJECUCIÓN",46752,44753,1999]
["ENTIDAD APORTANTE RECURSOS","UNIVERSIDAD NACIONAL DE COLOMBIA","YAHIR ARCINIEGAS","LUIS MANUEL GONZALEZ",2019000100026,"FORMACIÓN DE CAPITAL HUMANO DE ALTO NIVEL UNIVERSIDAD NACIONAL DE COLOMBIA   NACIONAL","CTEL",21162064500,"CONTRATADO EN EJECUCIÓN",46904,44753,2151]
["ENTIDAD APORTANTE RECURSOS","U DISTRITAL","YAHIR ARCINIEGAS","LUIS MANUEL GONZALEZ",2019000100027,"FORMACIÓN DE CAPITAL HUMANO DE ALTO NIVEL EN DOCTORADO PARA EL DESARROLLO REGIONAL, UNIVERSIDAD DISTRITAL FRANCISCO JOSÉ DE CALDAS, A NIVEL  NACIONAL","CTEL",1218668841,"CONTRATADO EN EJECUCIÓN",46873,44753,2120]
["ENTIDAD APORTANTE RECURSOS","U JAVERIANA","YAHIR ARCINIEGAS","LUIS MANUEL GONZALEZ",2019000100028,"FORMACIÓN DE CAPITAL HUMANO DE ALTO NIVEL PONTIFICIA UNIVERSIDAD JAVERIANA SEDE CENTRAL  NACIONAL","CTEL",6524500000,"CONTRATADO EN EJECUCIÓN",46812,44753,2059]
["ENTIDAD APORTANTE RECURSOS","U DE LOS ANDES","YAHIR ARCINIEGAS","LUIS MANUEL GONZALEZ",2019000100036,"FORMACIÓN  DE CAPITAL HUMANO DE ALTO NIVEL UNIVERSIDAD DE LOS ANDES   NACIONAL","CTEL",2814671307,"CONTRATADO EN EJECUCIÓN",46568,44753,1815]
["ENTIDAD APORTANTE RECURSOS","UNIVERSIDAD NACIONAL DE COLOMBIA","YAHIR ARCINIEGAS","LUIS MANUEL GONZALEZ",2019000100061,"FORTALECIMIENTO DE LA CAPACIDAD TECNOLÓGICA INSTALADA EN EL CENTRO AGROPECUARIO MARENGO PARA LA INVESTIGACIÓN EN LOS SISTEMAS AGROPRODUCTIVOS DEL TRÓPICO ALTO, BAJO EL EFECTO DE LA VARIABILIDAD Y CAMBIO CLIMÁTICO -  CUNDINAMARCA","CTEL",2386591598.0999999,"CONTRATADO EN EJECUCIÓN",46569,44753,1816]
["CUNDINAMARCA","SECRETARIA DE CIENCIA, TECNOLOGIA E INNOVACIÓN","ALEXANDER RIVEROS Y YAHIR ARCINIEGAS","LUIS MANUEL GONZALEZ",2020000100137,"FORTALECIMIENTO DE LAS CAPACIDADES DE INVESTIGACIÓN Y DESARROLLO PARA ATENDER PROBLEMÁTICAS ASOCIADAS CON AGENTES BIOLÓGICOS PARA LA SALUD PÚBLICA, A TRAVÉS DEL MEJORAMIENTO DEL LABORATORIO DE SALUD PÚBLICA DE CUNDINAMARCA","CTEL",4506359274,"CONTRATADO EN EJECUCIÓN",44681,44753,-72]
["CUNDINAMARCA","SECRETARIA DE SALUD","DAYANA FERNANDEZ/ LIYUGETH ALFONSO","OLGA LUCIA GARZON",2020000050003,"ADQUISICIÓN DE AMBULANCIAS,EQUIPOS BIOMÉDICOS, ELEMENTOS DE PROTECCIÓN PERSONAL, ASEO Y DESINFECCIÓN PARA LA ATENCIÓN DE LA CALAMIDAD SANITARIA POR COVID-19 EN LAS E.S.E DEL DEPARTAMENTO DE   CUNDINAMARCA","SALUD Y PROTECCIÓN SOCIAL",43433295564,"CONTRATADO EN EJECUCIÓN",44742,44753,-11]
["CUNDINAMARCA","SECRETARIA DE EDUCACIÓN","YAHIR ARCINIEGAS Y ALEXANDER RIVEROS","GENNY PADILLA",2020000050019,"FORTALECIMIENTO A LA ESTRATEGIA DE ALIMENTACIÓN ESCOLAR PARA EL AÑO 2020, EN LOS MUNICIPIOS DEL DEPARTAMENTO DE CUNDINAMARCA ","EDUCACIÓN",26240955000,"TERMINADO",44165,44753,-588]
["CUNDINAMARCA","SECRETARIA DE CIENCIA, TECNOLOGIA E INNOVACIÓN","ALEXANDER RIVEROS Y YAHIR ARCINIEGAS","LUIS MANUEL GONZALEZ",2020000100266,"GENERACIÓN DE ESPACIOS DE ENCUENTRO DE LA SOCIEDAD CON LA CIENCIA Y LA TECNOLOGÍA - UN VIAJE CON LA CIENCIA EN EL DEPARTAMENTO DE CUNDINAMARCA","CTEL",2241429590,"CONTRATADO EN EJECUCIÓN",44926,44753,173]
["CUNDINAMARCA","SECRETARIA DE CIENCIA, TECNOLOGIA E INNOVACIÓN","ALEXANDER RIVEROS Y YAHIR ARCINIEGAS","LUIS MANUEL GONZALEZ",2020000100246,"FORTALECIMIENTO DE LA COMPETITIVIDAD DE LA CADENA PRODUCTIVA DE LA GUADUA POR MEDIO DEL DESARROLLO E IMPLEMENTACIÓN DE DOS (2) PAQUETES TECNOLÓGICOS PARA LA GENERACIÓN DE PRODUCTOS CON VALOR AGREGADO EN EL DEPARTAMENTO DE CUNDINAMARCA ","CTEL",3144525520,"CONTRATADO EN EJECUCIÓN",45107,44753,354]
["ENTIDAD APORTANTE RECURSOS","CONNECT BOGOTA REGIÓN","YAHIR ARCINIEGAS","LUIS MANUEL GONZALEZ",2020000100078,"DISEÑO E IMPLEMENTACIÓN DE UN MODELO DE GESTIÓN DE CONOCIMIENTO, INNOVACIÓN Y TRANSFERENCIA DE TECNOLOGÍA CON APLICACIÓN EN EL SECTOR AGROPECUARIO Y AGROINDUSTRIAL EN EL DEPARTAMENTO DE CUNDINAMARCA ","CTEL",3309848753,"CONTRATADO EN EJECUCIÓN",45473,44753,720]
["ENTIDAD APORTANTE RECURSOS","FEDERACIÓN NACIONAL DE CAFETEROS","YAHIR ARCINIEGAS","LUIS MANUEL GONZALEZ",2020000100205,"TRASLADO DE TECNOLOGÍAS INNOVADORAS A CAFICULTORES CON IMPACTO SOBRE LA CALIDAD DEL CAFÉ Y LA GESTIÓN DEL RECURSO HÍDRICO DURANTE EL PROCESO DE BENEFICIO EN ZONA CAFETERA DEL DEPARTAMENTO DE CUNDINAMARCA ","CTEL",13783557324,"CONTRATADO EN EJECUCIÓN",45596,44753,843]
["ENTIDAD APORTANTE RECURSOS","AGROSAVIA","YAHIR ARCINIEGAS","LUIS MANUEL GONZALEZ",2020000100197,"DESARROLLO DE BIOPLAGUICIDAS POTENCIADOS DE NUEVA GENERACIÓN PARA EL MEJORAMIENTO DE LA PRODUCTIVIDAD E INOCUIDAD DEL CULTIVO DE TOMATE Y CRUCÍFERAS EN EL DEPARTAMENTO DE CUNDINAMARCA ","CTEL",4583970033,"CONTRATADO EN EJECUCIÓN",46112,44753,1359]
["ENTIDAD APORTANTE RECURSOS","UNIVERSIDAD NACIONAL DE COLOMBIA","YAHIR ARCINIEGAS","LUIS MANUEL GONZALEZ",2020000100240,"ESTUDIO DE PREFACTIBILIDAD PARA LA CREACIÓN DE UN CENTRO DE INNOVACIÓN Y DE PRODUCTIVIDAD PARA EL SECTOR AGROPECUARIO DE SABANA OCCIDENTE DE CUNDINAMARCA ","CTEL",1896154229,"CONTRATADO EN EJECUCIÓN",44926,44753,173]
["ENTIDAD APORTANTE RECURSOS","UNIVERSIDAD DE CUNDINAMARCA","YAHIR ARCINIEGAS","LUIS MANUEL GONZALEZ",2020000100158,"FORTALECIMIENTO DE LA INFRAESTRUCTURA FÍSICA Y TECNOLÓGICA DEL CENTRO DE ESTUDIOS AGROAMBIENTALES DE LA UNIVERSIDAD DE CUNDINAMARCA AGROU CUNDINAMARCA ","CTEL",2024433669,"SIN CONTRATAR",null,44753]
["ENTIDAD APORTANTE RECURSOS","ZIPAQUIRA","YESID CASTAÑO / JEIMY FORERO",null,2020000050013,"Mejoramiento de la vía que comunica a los municipios de Zipaquirá y Tocancipá, tramo barandillas - la fuente, departamento de Cundinamarca","TRANSPORTE","6.788.620.869,00","CONTRATADO EN EJECUCIÓN",44681,44753,-72]
["ENTIDAD APORTANTE RECURSOS","ZIPAQUIRA","YESID CASTAÑO / JEIMY FORERO",null,2020000050015,"MEJORAMIENTO DE LA VÍA ZIPAQUIRÁ - SAN JORGE - TABIO DEPARTAMENTO DE CUNDINAMARCA","TRANSPORTE",7458735075,"CONTRATADO SIN ACTA DE INICIO",44926,44753,173]
["CUNDINAMARCA","SECRETARIA DE CIENCIA, TECNOLOGIA E INNOVACIÓN","ALEXANDER RIVEROS Y YAHIR ARCINIEGAS","LUIS MANUEL GONZALEZ",2020000100695,"DESARROLLO, TRANSFERENCIA DE TECNOLOGÍA Y CONOCIMIENTO PARA LA INNOVACIÓN QUE FORTALEZCAN CAPACIDADES COMUNITARIAS EN LA COMPRENSIÓN Y/O MITIGACIÓN DE LOS PROBLEMAS DE VIOLENCIAS BASADAS EN GÉNERO, DERIVADAS DE LA EMERGENCIA POR COVID 19, EN CUNDINAMARCA","CTEL",3100000000,"CONTRATADO EN EJECUCIÓN",45016,44753,263]
["CUNDINAMARCA","SECRETARIA DE CIENCIA, TECNOLOGIA E INNOVACIÓN","ALEXANDER RIVEROS Y YAHIR ARCINIEGAS","LUIS MANUEL GONZALEZ",2020000100650,"FORTALECIMIENTO DE CAPACIDADES DE CTEI PARALA INNOVACION EDUCATIVA EN LOS NIVELES DE BÁSICA Y\nMEDIA, MEDIANTE USO DE TICS EN INSTITUCIONES EDUCATIVAS OFICIALES DE LOS MUNICIPIOS NO\nCERTIFICADOS DEL DEPARTAMENTO DE CUNDINAMARCA","CTEL",10804663122,"CONTRATADO EN EJECUCIÓN",45230,44753,477]
["CUNDINAMARCA","SECRETARIA DE CIENCIA, TECNOLOGIA E INNOVACIÓN","ALEXANDER RIVEROS Y YAHIR ARCINIEGAS","LUIS MANUEL GONZALEZ",2020000100696,"FORTALECIMIENTO DE CAPACIDADES DE CTEI PARA LA REACTIVACIÓN ECONÓMICA Y LA TRANSFORMACIÓN\nPRODUCTIVA EN CUNDINAMARCA","CTEL",7370634083,"CONTRATADO EN EJECUCIÓN",45199,44753,446]
["CUNDINAMARCA","SECRETARIA DE CIENCIA, TECNOLOGIA E INNOVACIÓN","ALEXANDER RIVEROS Y YAHIR ARCINIEGAS","LUIS MANUEL GONZALEZ",2020000100649,"FORTALECIMIENTO DE CAPACIDADES DE CTeI PARA EL RELACIONAMIENTO ESCUELA - CONTEXTO RURAL MEDIANTE LA APROPIACIÓN Y USO DE LAS TIC EN EL MUNICIPIO DE SIBATÉ, DEPARTAMENTO DE CUNDINAMARCA","CTEL",4292464018,"CONTRATADO EN EJECUCIÓN",45260,44753,507]
["ENTIDAD APORTANTE RECURSOS","FUNDACION UNIVERSIDAD DEL VALLE","YAHIR ARCINIEGAS","JOSE MARIA LEITON",2020000050044,"FORTALECIMIENTO DE LAS COMPETENCIAS COMUNICATIVAS EN INGLÉS DE LOS ESTUDIANTES DE LOS ESTABLECIMIENTOS EDUCATIVOS NO OFICIALES DE CUNDINAMARCA","EDUCACIÓN","$ 10.468.961.978","CONTRATADO EN EJECUCIÓN",45138,44753,385]
["ENTIDAD APORTANTE RECURSOS","UNAD","YAHIR ARCINIEGAS","LUIS MANUEL GONZALEZ",2020000100433,"Investigación de los compuestos volátiles orgánicos e inducidos para el manejo de moscas plagas en gulupa y granadilla en el departamento de  Cundinamarca","CTEL",3412874201,"CONTRATADO EN EJECUCIÓN",45535,44753,782]
["ENTIDAD APORTANTE RECURSOS","UNIVERSIDAD INDUSTRIAL DE SANTANDER","YAHIR ARCINIEGAS","LUIS MANUEL GONZALEZ",2020000100415,"Desarrollo de un sistema óptico  computacional para estimar el contenido de carbono orgánico de suelos agrícolas a través de imágenes espectrales e inteligencia artificial en cultivos de cítricos de   Santander","CTEL",2184125885.29,"CONTRATADO EN EJECUCIÓN",45382,44753,629]
["ENTIDAD APORTANTE RECURSOS","UNIVERSIDAD INDUSTRIAL DE SANTANDER","YAHIR ARCINIEGAS","LUIS MANUEL GONZALEZ",2020000100375,"Conformación de una plataforma para estudios celulares avanzados in vivo en tiempo real para el análisis de la respuesta inmunometabólica ante la reexpresión de interferón tipo I kappa en esferoides de células tumorales de cuello uterino en  Santander","CTEL",3123997801,"CONTRATADO EN EJECUCIÓN",45443,44753,690]
["ENTIDAD APORTANTE RECURSOS","UNIVERSIDAD INDUSTRIAL DE SANTANDER","YAHIR ARCINIEGAS","LUIS MANUEL GONZALEZ",2020000100351,"Desarrollo de un prototipo selectivo y sensible para monitorear contenido de cadmio in situ en diversas matrices asociadas a la producción de granos de cacao en el departamento de  Santander","CTEL",2585800000,"CONTRATADO EN EJECUCIÓN",44865,44753,112]
["ENTIDAD APORTANTE RECURSOS","INSTITUTO SUPERIOR DE EDUCACION RURAL DE PAMPLONA","YAHIR ARCINIEGAS","LUIS MANUEL GONZALEZ",2020000100343,"Implementación laboratorio de calidad fisicoquímica de alimentos para el fortalecimiento competitivo y sostenible de lascadenas agroalimentarias del departamento de  Norte de Santander","CTEL",1097306327,"SIN CONTRATAR",45322,44753,569]
["ENTIDAD APORTANTE RECURSOS","UNIVERSIDAD NACIONAL DE COLOMBIA","YAHIR ARCINIEGAS","LUIS MANUEL GONZALEZ",2020000100342,"Estudio de potenciales insecticidas en matrices poliméricas para el control de plagas de granos almacenados basados en aceites esenciales provenientes de la biodiversidadflorística del departamento de  Cundinamarca","CTEL",2748237104,"CONTRATADO EN EJECUCIÓN",45504,44753,751]
["ENTIDAD APORTANTE RECURSOS","UNIVERSIDAD MILITAR NUEVA GRANADA","YAHIR ARCINIEGAS","LUIS MANUEL GONZALEZ",2020000100728,"Generación y transferencia de conocimientos y tecnologías para elevar capacidades de CTel de pequeños productores de tomate para afrontar problemas derivados del COVID-19 asociadas a la Seg. Alimentaria en las Sab. Centro y Oriente  Cundinamarca","CTEL",4162541452,"CONTRATADO EN EJECUCIÓN",45138,44753,385]
["ENTIDAD APORTANTE RECURSOS","UNIVERSIDAD NACIONAL DE COLOMBIA","YAHIR ARCINIEGAS","LUIS MANUEL GONZALEZ",2020000100339,"Desarrollo de Nuevos Métodos No Destructivos para Monitoreo In Situ de Probabilidad de Ocurrencia de Falla en Tuberías en el Sector de Hidrocarburos en los Departamentos de  Bogotá Boyacá Santander","CTEL",2412084140,"CONTRATADO EN EJECUCIÓN",45077,44753,324]
["ENTIDAD APORTANTE RECURSOS","UNIVERSIDAD MILITAR NUEVA GRANADA","YAHIR ARCINIEGAS","LUIS MANUEL GONZALEZ",2020000100216,"Innovación y transferencia tecnológica de UMNGBIO a productores de flores para el control biológico de Tetranychus urticae (Acari: Tetranychiidae) en cultivos de invernadero con el ácaro benéfico Neoseiulus californicus (Acari: Phytoseiidae)  Cundinamarca","CTEL",2431580000,"CONTRATADO EN EJECUCIÓN",45473,44753,720]
["CUNDINAMARCA","SECRETARIA DE COMPETITIVIDAD","DIEGO TORRES/VALENTINA PORTILLO","FABIAN CUESTA",2019000050026,"Desarrollo de un programa productivo, amigable con el medio ambiente del sector ganadero en el Departamento de Cundinamarca Cundinamarca","AGRICULTURA ",9757143522,"CONTRATADO SIN ACTA DE INICIO",44773,44753,20]
["ENTIDAD APORTANTE RECURSOS","UNIVERSIDAD NACIONAL DE COLOMBIA","YAHIR ARCINIEGAS","LUIS MANUEL GONZALEZ",2020000100169,"Investigación Desarrollo, innovación y transferencia de conocimiento para el procesamiento de la semilla de Sacha Inchi en productos de valor agregado, como estrategia para mejorar la productividad del sector agroindustrial de la Región  Cundinamarca","CTEL",2757697312,"CONTRATADO EN EJECUCIÓN",45473,44753,720]
["ENTIDAD APORTANTE RECURSOS","UPTC","YAHIR ARCINIEGAS","LUIS MANUEL GONZALEZ",2020000100114,"Fortalecimiento del ecosistema de investigación científica para CTeI en la universidad pedagógica y tecnológica de Colombia UPTC, I-SPACIO  Sogamoso","CTEL",2310634882,"CONTRATADO EN EJECUCIÓN",45077,44753,324]
["ENTIDAD APORTANTE RECURSOS","UNIVERSIDAD DE ANTIOQUIA","YAHIR ARCINIEGAS","LUIS MANUEL GONZALEZ",2020000100079,"Fortalecimiento de la infraestructura tecnológica y equipamiento del ambiente de formación industrial para el aumento de las capacidades institucionales en CTeI de la ETITC  Bogotá","CTEL",1090608306,"CONTRATADO EN EJECUCIÓN",45046,44753,293]
["ENTIDAD APORTANTE RECURSOS","UNIVERSIDAD NACIONAL DE COLOMBIA","YAHIR ARCINIEGAS","LUIS MANUEL GONZALEZ",2020000100075,"Aprovechamiento de la biodiversidad en agraz y papa para el desarrollo de cultivos promisorios en el departamento de   Santander","CTEL",3177259696,"CONTRATADO EN EJECUCIÓN",45565,44753,812]
["ENTIDAD APORTANTE RECURSOS","UNIVERSIDAD NACIONAL DE COLOMBIA","YAHIR ARCINIEGAS","LUIS MANUEL GONZALEZ",2020000100019,"Fortalecimiento de capacidades de investigación y desarrollo tecnológico de la Universidad Colegio Mayor de Cundinamarca a partir de tecnologías industria 4.0 para el diseño y construcción en   Bogotá","CTEL",2077571214,"CONTRATADO EN EJECUCIÓN",45077,44753,324]
["ENTIDAD APORTANTE RECURSOS","UNIVERSIDAD INDUSTRIAL DE SANTANDER","YAHIR ARCINIEGAS","LUIS MANUEL GONZALEZ",2020000100017,"Fortalecimiento DE LA CAPACIDAD INSTITUCIONAL DE INVESTIGACIÓN DE LA UNIVERSIDAD INDUSTRIAL DESANTANDER  Nacional","CTEL",2808520000,"CONTRATADO EN EJECUCIÓN",45260,44753,507]
["ENTIDAD APORTANTE RECURSOS","UNIVERSIDAD MILITAR NUEVA GRANADA","YAHIR ARCINIEGAS","LUIS MANUEL GONZALEZ",2020000100103,"Fortalecimiento de capacidades instaladas de Ciencia y Tecnología del Laboratorio de Diagnóstico en el Campus de la Univ Militar Nueva Granada, para atender problemáticas asociadas con agentes biológicos de alto riesgo para la salud humana,  Cundinamarca","CTEL",5162742977,"CONTRATADO EN EJECUCIÓN",44834,44753,81]
["ENTIDAD APORTANTE RECURSOS","INSTITUTO UNIVERSITARIO DE LA PAZ – UNIPAZ","YAHIR ARCINIEGAS","LUIS MANUEL GONZALEZ",2020000100042,"Fortalecimiento de los procesos académicos en los programas ofrecidos por el Instituto Universitario de la Paz, UNIPAZ,   Barrancabermeja","CTEL",1178749590,"CONTRATADO EN EJECUCIÓN",44712,44753,-41]
["ENTIDAD APORTANTE RECURSOS","INSTITUTO UNIVERSITARIO DE LA PAZ – UNIPAZ","YAHIR ARCINIEGAS","LUIS MANUEL GONZALEZ",2020000100016,"Adecuación , DOTACIÓN E IMPLEMENTACIÓN DE UN LABORATORIO DE FABRICACIÓN DIGITAL PARA PROMOVER EL DESARROLLO DE LA CIENCIA, LAINNOVACIÓN Y EL EMPRENDIMIENTO EN LA UNIVERSIDAD FRANCISCO DE PAULA SANTANDER.  Cúcuta","CTEL",2921057589,"CONTRATADO EN EJECUCIÓN",44865,44753,112]
["ENTIDAD APORTANTE RECURSOS","UNIVERSIDAD TECNOLOGICA DE SANTANDER","YAHIR ARCINIEGAS","LUIS MANUEL GONZALEZ",2020000100004,"Fortalecimiento y adecuación de equipos e infraestructura del Laboratorio de física del Departamento de Ciencias Básicas, para el mejoramiento de las capacidades institucionales y la investigación en las Unidades Tecnológicas de Santander -  Bucaramanga","CTEL",1016752702,"CONTRATADO EN EJECUCIÓN",44773,44753,20]
["CUNDINAMARCA","SECRETARIA DE EDUCACIÓN","YAHIR ARCINIEGAS","GENNY PADILLA",2020000050037,"Dotación del mobiliario escolar para las instituciones educativas de los municipios no certificados del Departamento de Cundinamarca","EDUCACIÓN",10093038848,"CONTRATADO EN EJECUCIÓN",44712,44753,-41]
["ENTIDAD APORTANTE RECURSOS","UNIVERSIDAD DEL NORTE","YAHIR ARCINIEGAS","LUIS MANUEL GONZALEZ",2020000100287,"Formación de Capital Humano de Alto Nivel Universidad del Norte 2do Corte Nacional","CTEL",6920233499,"CONTRATADO EN EJECUCIÓN",47238,44753,2485]
["ENTIDAD APORTANTE RECURSOS","UNIVERSIDAD DEL VALLE","YAHIR ARCINIEGAS","LUIS MANUEL GONZALEZ",2020000100345,"Formación de capital humano de alto Nivel segundo Corte Universidad del Valle Nacional","CTEL",5913070114,"CONTRATADO EN EJECUCIÓN",47330,{"$f":"+TODAY()","v":44753},{"$f":"J90-K90","v":2577}]
["ENTIDAD APORTANTE RECURSOS","UNIVERSIDAD NACIONAL DE COLOMBIA","YAHIR ARCINIEGAS","LUIS MANUEL GONZALEZ",2021000100003,"Formación de Capital Humano de Alto Nivel Universidad  Nacional de Colombia Corte II Nacionl","CTEL",18418143500,"CONTRATADO EN EJECUCIÓN",47330,44753,2577]
["ENTIDAD APORTANTE RECURSOS","UNIVERSIDAD DE LA SABANA","YAHIR ARCINIEGAS","LUIS MANUEL GONZALEZ",2021000100004,"Formación de Capital Humano de Alto Nivel Universidad de La Sabana Core 2 Nacional","CTEL",1519950000,"CONTRATADO EN EJECUCIÓN",47391,44753,2638]
["ENTIDAD APORTANTE RECURSOS","UNIVERSIDAD ANTONIO NARIÑO","YAHIR ARCINIEGAS","LUIS MANUEL GONZALEZ",2021000100014,"Formación de Capital Humano de Alto Nivel Universidad Antonio Nariño Core 2 Nacional","CTEL",4526652200,"CONTRATADO EN EJECUCIÓN",47299,44753,2546]
["ENTIDAD APORTANTE RECURSOS","UNIVERSIDAD EAN","YAHIR ARCINIEGAS","LUIS MANUEL GONZALEZ",2021000100025,"Formación DE CAPITAL HUMANO DE ALTO NIVEL UNIVERSIDAD EAN NACIONAL COHORTE II Nacional","CTEL",2044506416,"CONTRATADO EN EJECUCIÓN",45716,44753,963]
["ENTIDAD APORTANTE RECURSOS","UNIVERSIDAD MILITAR NUEVA GRANADA","YAHIR ARCINIEGAS","LUIS MANUEL GONZALEZ",2021000100026,"Formación de Capital Humano de Alto Nivel Universidad Militar Nueva Granada Segundo Corte Nacional","CTEL",751632481,"CONTRATADO EN EJECUCIÓN",47087,44753,2334]
["ENTIDAD APORTANTE RECURSOS","PONIFICA UNIVERSIDAD JAVERIANA","YAHIR ARCINIEGAS","LUIS MANUEL GONZALEZ",2021000100027,"Formación de Capital Humano de Alto Nivel Pontificia Universidad Javeriana Sede Bogotá Corte II Nacional","CTEL",8577491761,"CONTRATADO EN EJECUCIÓN",null,44753]
["ENTIDAD APORTANTE RECURSOS","UNIVERSIDAD DE CALDAS","YAHIR ARCINIEGAS","LUIS MANUEL GONZALEZ",2021000100028,"Formación de capital humano de alto nivel Corte 2 Universidad de Caldas - Nacional","CTEL",63580000000,"CONTRATADO EN EJECUCIÓN",47361,44753,2608]
["CUNDINAMARCA","SECRETARIA DE EDUCACIÓN","YAHIR ARCINIEGAS","GENNY PADILLA",2021004250258,"Fortalecimiento a la Estrategia de Alimentación Escolar para el año 2021 en los municipios del Departamento de Cundinamarca","EDUCACIÓN",16289941201,"CONTRATADO EN EJECUCIÓN",44561,44753,-192]
["CUNDINAMARCA","SECRETARIA DE HABITAT Y VIVIENDA","ALEXANDER RIVEROS/JEIMY FORERO","BEATRIZ GAMEZ",2018000050050,"Mejoramiento vivienda rural mediante construcción de cocinas habitaciones y pisos en los municipios de Cundinamarca","AGRICULTURA ",5616585397,"SIN CONTRATAR","No definido",44753]
["CUNDINAMARCA","SECRETARIA DE COMPETITIVIDAD","ALEXANDER RIVEROS/JEIMY FORERO","FABIAN CUESTA",2020000050035,"Fortalecimiento de los sistemas productivos a través de la reactivación del sector agrícola en el Departamento de Cundinamarca","AGRICULTURA ",8993872200.5599995,"SIN CONTRATAR","No definido",44753]
["CUNDINAMARCA","MINAS Y ENERGIA","DIEGO TORRES / LIYUGETH ALFONSO","YAHIR","2021004250686","Construcción Del Centro De Formación E Innovación Minero Energético De Cundinamarca","GOBIERNO TERRITORIAL","$ 13.770.893.382,00","SIN CONTRATAR","No definido",44753]
["CUNDINAMARCA","UNIDAD ADMINISTRATIVA DE GESTIÓN DEL RIESGO.","DIEGO TORRES/VALENTINA PORTILLO","GINNA HERRERA",2021004250690,"Fortalecimiento del sistema automotor para la gestión del riesgo de desastres del departamento de Cundinamarca","GOBIERNO TERRITORIAL",7299514100,"SIN CONTRATAR","No definido",44753]
["CUNDINAMARCA","SECRETARIA DE COMPETITIVIDAD","ALEXANDER RIVEROS/JEIMY FORERO","FABIAN CUESTA",2020000050038,"Optimización de los sistemas Ganaderos bovinos de carne leche y doble propósito a partir de la implementación de mejoramiento genético productivo y entrega de maquinaria y equipos en municipios del Departamento de Cundinamarca","AGRICULTURA ",8732449919,"SIN CONTRATAR","No definido",44753]

{"sheet":"Riesgo de liberación","index":3,"n_rows":17,"n_cols":18,"rows_kept":17,"cut":false,"hidden":true,"merged":[]}
[]
["N°","EJECUTOR (Dpto / Entidad)","EJECUTOR INTERNO","ENCARGADO DE LA ENTIDAD ","ENLACE EMTIDAD EJECUTORA","BPIN ","PROYECTO","SECTOR","VALOR PROYECTO","VALOR SGR","OTRAS FUENTES","FECHA DE APROBACIÓN OCAD","ACUERDO DE APROBACIÓN","ESTADO","FECHA LIMITE","DÍAS TRANSCURRIDOS DESDE EL ACUERDO DE APROBACIÓN  ","Columna1","DÍAS HABILES PARA REALIZAR ACTO DE APERTURA"]
[164,"ENTIDAD APORTANTE RECURSOS","UNIVERSIDAD DE CUNDINAMARCA","YAHIR ARCINIEGAS","LUIS MANUEL GONZALEZ",2020000100158,"FORTALECIMIENTO DE LA INFRAESTRUCTURA FÍSICA Y TECNOLÓGICA DEL CENTRO DE ESTUDIOS AGROAMBIENTALES DE LA UNIVERSIDAD DE CUNDINAMARCA AGROU CUNDINAMARCA ","CTEL",2024433669,1997753509,{"$f":"I3-J3","v":26680160},44111,"098 DE 2020","SIN CONTRATAR",{"$f":"IF(L3=0,\"-\",EDATE(L3,6))","v":44293},{"$f":"IF(L3=0,\"-\",_xlfn.DAYS(TODAY(),L3))","v":642},{"$f":"IF(O3=\"-\",\"-\",_xlfn.DAYS(TODAY(),O3))","v":460},{"$f":"-Tabla25[[#This Row],[Columna1]]","v":-460}]
[203,"CUNDINAMARCA","SECRETARIA DE HABITAT Y VIVIENDA","ALEXANDER RIVEROS/JEIMY FORERO","BEATRIZ GAMEZ",2018000050050,"Mejoramiento vivienda rural mediante construcción de cocinas habitaciones y pisos en los municipios de Cundinamarca","AGRICULTURA ",5616585397,5616585397,{"$f":"I4-J4","v":0},44525,"03 DE 2021","SIN CONTRATAR",{"$f":"IF(L4=0,\"-\",EDATE(L4,6))","v":44706},{"$f":"IF(L4=0,\"-\",_xlfn.DAYS(TODAY(),L4))","v":228},{"$f":"IF(O4=\"-\",\"-\",_xlfn.DAYS(TODAY(),O4))","v":47},{"$f":"-Tabla25[[#This Row],[Columna1]]","v":-47}]
[204,"CUNDINAMARCA","SECRETARIA DE COMPETITIVIDAD","ALEXANDER RIVEROS/JEIMY FORERO","FABIAN CUESTA",2020000050035,"Fortalecimiento de los sistemas productivos a través de la reactivación del sector agrícola en el Departamento de Cundinamarca","AGRICULTURA ",8993872200.5599995,8993872200.5599995,0,44529,"454 DE 2021","SIN CONTRATAR",{"$f":"IF(L5=0,\"-\",EDATE(L5,6))","v":44710},{"$f":"IF(L5=0,\"-\",_xlfn.DAYS(TODAY(),L5))","v":224},{"$f":"IF(O5=\"-\",\"-\",_xlfn.DAYS(TODAY(),O5))","v":43},{"$f":"-Tabla25[[#This Row],[Columna1]]","v":-43}]
["205","CUNDINAMARCA","MINAS Y ENERGIA","DIEGO TORRES / LIYUGETH ALFONSO","YAHIR","2021004250686","Construcción Del Centro De Formación E Innovación Minero Energético De Cundinamarca","GOBIERNO TERRITORIAL","$ 13.770.893.382,00","$ 6.928.967.103,00",{"$f":"I6-J6","v":6841926279},"31/12/2021","546 DE 2021","SIN CONTRATAR",{"$f":"IF(L6=0,\"-\",EDATE(L6,6))","v":44742},{"$f":"IF(L6=0,\"-\",_xlfn.DAYS(TODAY(),L6))","v":192},{"$f":"IF(O6=\"-\",\"-\",_xlfn.DAYS(TODAY(),O6))","v":11},{"$f":"-Tabla25[[#Totals],[Columna1]]","v":-11}]
[207,"CUNDINAMARCA","SECRETARIA DE COMPETITIVIDAD","ALEXANDER RIVEROS/JEIMY FORERO","FABIAN CUESTA",2020000050038,"Optimización de los sistemas Ganaderos bovinos de carne leche y doble propósito a partir de la implementación de mejoramiento genético productivo y entrega de maquinaria y equipos en municipios del Departamento de Cundinamarca","AGRICULTURA ",8732449919,8732449919,0,44561,"547 DE 2021","SIN CONTRATAR",44742,{"$f":"IF(L7=0,\"-\",_xlfn.DAYS(TODAY(),L7))","v":192},{"$f":"IF(O7=\"-\",\"-\",_xlfn.DAYS(TODAY(),O7))","v":11},{"$f":"-Q7","v":-11}]
[208,"CUNDINAMARCA",null,"YAHIR ARCINIEGAS","LUIS MANUEL GONZALEZ",21000100327,"Desarrollo de un sistema de producción lechero para la obtención de leches inocuas de alta calidad y con un perfil lipídico saludable en el Departamento de Cundinamarca","CTEL",3833042862,3044082702,788960160,44617,"15 DE 2022","SIN CONTRATAR",44798,136,-45,{"$f":"-Q8","v":45}]
[209,"CUNDINAMARCA","SECRETARIA DE CIENCIA, TECNOLOGIA E INNOVACIÓN","YAHIR ARCINIEGAS","LUIS MANUEL GONZALEZ",2021000100208,"Fortalecimiento de los niveles de Apropiación social del Conocimiento de la CTeI en comunidades de las provincias de Almeidas y Ubaté del Departamento de Cundinamarca","CTEL",2191964751,1839764876,352199875,44615,"15 DE 2021","SIN CONTRATAR",44796,138,-43,{"$f":"-Q9","v":43}]
[210,"CUNDINAMARCA","SECRETARIA DE CIENCIA, TECNOLOGIA E INNOVACIÓN","YAHIR ARCINIEGAS","LUIS MANUEL GONZALEZ",2021000100243,"Desarrollo participativo de una plataforma tecnológica de teledetección para la gestión sostenible de suelos en agroecosistemas del Departamento de Cundinamarca","CTEL",3042693625,2332094728,710598897,44617,"15 DE 2021","SIN CONTRATAR",44798,136,-45,{"$f":"-Q10","v":45}]
[211,"CUNDINAMARCA","SECRETARIA DE MINAS, ENERGIA Y GAS","DIEGO TORRES / LIYUGETH ALFONSO","YAHIR",2021000050019,"Ampliación DE LA COBERTURA DEL SERVICIO DE GAS COMBUTIBLE POR REDES A TRAVES DE LA FINANCIACIÓN DEL CARGO POR CONEXIÓN Y LA RED INTERNA PARA USUARIOS DE BARRIOS PERIFÉRICOS VEREDAS Y CENTROS POBLADOS DE LOS MUNICIPIOS DE Cundinamarca","MINAS Y ENERGÍA",10613927436,"\t6.059.727.436,00",{"$f":"I11-J11","v":{"$error":"#VALUE!"}},null,null,"SIN CONTRATAR",{"$f":"IF(L11=0,\"-\",EDATE(L11,6))","v":"-"},{"$f":"IF(L11=0,\"-\",_xlfn.DAYS(TODAY(),L11))","v":"-"},{"$f":"IF(O11=\"-\",\"-\",_xlfn.DAYS(TODAY(),O11))","v":"-"},{"$f":"-Q11","v":{"$error":"#VALUE!"}}]
[212,"CUNDINAMARCA","SECRETARIA DE EDUCACIÓN","YAHIR ARCINIEGAS","GENNY PADILLA",2022000050007,"Fortalecimiento a la Estrategia de Alimentación Escolar en los municipios no certificados del Departamento de Cundinamarca para la vigencia 2022 Cundinamarca\t","EDUCACIÓN","\t42.966.037.310,00","\t42.966.037.310,00",0,"2021-08-24","248 DE 2021","SIN CONTRATAR",44616,321,137,-137]
[213,"CUNDINAMARCA","SECRETARIA DE CIENCIA, TECNOLOGIA E INNOVACIÓN","YAHIR ARCINIEGAS","LUIS MANUEL GONZALEZ",2021000100467,"Fortalecimiento de las capacidades institucionales para el desarrollo y gestión del Ecosistema Territorial de CTeI en todas las provincias del Departamento de Cundinamarca\n","CTEL",2801037429,2299692877,{"$f":"I13-J13","v":501344552},"2022-04-13","18 DE 2022","SIN CONTRATAR",44847,89,-94,94]
[214,"CUNDINAMARCA","SECRETARIA DE CIENCIA, TECNOLOGIA E INNOVACIÓN","YAHIR ARCINIEGAS","LUIS MANUEL GONZALEZ",2021000100276,"Desarrollo DE UN MODELO DE PROMOCIÓN TURÍSTICA SOSTENIBLE DESDE LA TECNOLOGÍA 4.0 EN LOS MUNICIPIOS DE LA PALMA Y YACOPI EN EL DEPARTAMENTO DE Cundinamarca\n","CTEL",2608055295,2401327735,206727560,"2022-03-17","16 DE 2022","SIN CONTRATAR",44821,116,-68,68]
[215,"CUNDINAMARCA","SECRETARIA DE CIENCIA, TECNOLOGIA E INNOVACIÓN","YAHIR ARCINIEGAS","LUIS MANUEL GONZALEZ",2021000100523,"Desarrollo de Microredes y almacenamiento (ESS) prestadores de servicios complementarios para incrementar la cobertura eficiencia y confiabilidad del servicio en el departamento de Cundinamarca\n","CTEL",3942973233,3296088001,646885232,"2022-05-04","20 DE 2022","SIN CONTRATAR",44869,68,-116,116]
[]
[null,null,null,null,null,null,null,null,{"$f":"SUM(I3:I10)","v":34435042423.559998},{"$f":"SUM(J3:J10)","v":32556603331.559998}]

{"sheet":"Control de avances","index":4,"n_rows":1651,"n_cols":33,"rows_kept":1651,"cut":false,"hidden":true,"merged":[[216,19,216,21],[217,19,217,21],[0,0,0,14],[0,18,0,19],[0,21,0,22],[214,19,214,21],[215,19,215,21],[7,0,7,6]]}
[" SISTEMAS GENERAL DEL REGALÍAS-BASE DE PROYECTOS APROBADOS",null,null,null,null,null,null,null,null,null,null,null,null,null,null,null,null,null,"\tAVANCE FÍSICO Y FINANCIERO",null,null,"ESTADO"]
[null,null,null,null,null,null,null,null,null,null,null,null,null,null,null,null,null,null,"presento avance en el mes vigente ",null,null,"presento avance en el mes vigente ",null,null,null,null,"ESTADO"]
[null,null,null,null,null,null,null,null,null,null,null,null,null,null,null,null,null,null,"lleva 1 mes sin reportar avance",null,null,"lleva 3 mes sin reportar avance",null,null,null,null,44607,44607,{"$f":"IF(AA3=0,0,_xlfn.DAYS(AA3,TODAY()))","v":-146},{"$f":"IF(AB3=0,0,_xlfn.DAYS(AB3,TODAY()))","v":-146},{"$f":"IF(Z3=0,0,_xlfn.DAYS(Z3,TODAY()))","v":0}]
[null,null,null,null,null,null,null,null,null,null,null,null,null,null,null,null,null,null,"lleva 3 mes sin reportar avance",null,null,"lleva 6 mes sin reportar avance",null,null,null,null,44607,44607,{"$f":"IF(AA4=0,0,_xlfn.DAYS(AA4,TODAY()))","v":-146},{"$f":"IF(AB4=0,0,_xlfn.DAYS(AB4,TODAY()))","v":-146},{"$f":"IF(Z4=0,0,_xlfn.DAYS(Z4,TODAY()))","v":0}]
[null,null,null,null,null,null,null,null,null,null,null,null,null,null,null,null,null,null,"lleva 4 mes sin reportar avance",null,null,"lleva 9 mes sin reportar avance",null,null,null,null,44607,44607,{"$f":"IF(AA5=0,0,_xlfn.DAYS(AA5,TODAY()))","v":-146},-146,{"$f":"IF(Z5=0,0,_xlfn.DAYS(Z5,TODAY()))","v":0}]
[null,null,null,null,null,null,null,null,null,null,null,null,null,null,null,null,null,null,"lleva 6 mes sin reportar avance",null,null,"lleva 1 año sin reportar avance",null,null,null,null,44607,44607,{"$f":"IF(AA6=0,0,_xlfn.DAYS(AA6,TODAY()))","v":-146},-146,0]
[null,null,null,null,null,null,null,null,null,null,null,null,null,null,null,null,null,null,null,null,null,null,null,null,null,null,44607,44607,-146,-146,0]
[" SISTEMAS GENERAL DEL REGALÍAS-BASE DE PROYECTOS APROBADOS",null,null,null,null,null,null,null,null,null,null,null,null,null,null,null,null,null,null,null,null,null,null,null,null,null,44607,44607,-146,-146,0]
["N°","EJECUTOR (Dpto / Entidad)","EJECUTOR INTERNO","BPIN ","PROYECTO","SECTOR","VALOR PROYECTO","OTRAS FUENTES","FECHA DE APROBACIÓN OCAD","AÑO DE APROBACIÓN","ACUERDO DE APROBACIÓN","ESTADO",null,null,null,null,null,null,null,null,null,null,null,null,null,null,44607,44607,-146,-146,0]
[1,"CUNDINAMARCA","SECRETARIA DE AMBIENTE",2012000050005,"ESTUDIOS Y DISEÑOS DE DETALLE EMBALSE CALANDAIMA MUNICIPIO DE EL COLEGIO DEPARTAMENTO DE CUNDINAMARCA","AMBIENTE Y DESARROLLO SOSTENIBLE",4000000000,{"$f":"F10-G10","v":{"$error":"#VALUE!"}},41271,2012,"004 DE 2012","CERRADO",null,null,null,null,null,null,null,null,null,null,null,null,null,null,44607,44607,-146,-146,0]
[2,"CUNDINAMARCA","ICCU - GESPROY GB",2012000050006,"CONSTRUCCIÓN CUBIERTA COLISEO DEL CENTRO AGROTECNOLOGICO DE EXPOSICIONES Y COMERCIALIZACION DE LA REGION DEL SUMAPAZ EN EL MUNICIPIO DE FUSAGASUGA - CUNDINAMARCA","AGRICULTURA ",6352617736,{"$error":"#VALUE!"},41271,2012,"004 DE 2012","CERRADO",null,null,null,null,null,null,null,null,null,null,null,null,null,null,44607,44607,-146,-146,0]
[3,"CUNDINAMARCA","SECRETARIA DE AGRICULTURA",2012000050007,"FORTALECIMIENTO DE LAS CADENAS HORTIFRUTICOLA Y AROMATICAS EN CUNDINAMARCA","AGRICULTURA ",2490400000,{"$error":"#VALUE!"},41271,2012,"004 DE 2012","CERRADO",null,null,null,null,null,null,null,null,null,null,null,null,null,null,44607,44607,-146,-146,0]
[4,"CUNDINAMARCA","SECRETARIA DE AGRICULTURA",2012000050009,"FORTALECIMIENTO DE LA PRODUCTIVIDAD Y COMPETITIVIDAD DEL SECTOR CACAOTERO EN EL DEPARTAMENTO DE CUNDINAMARCA ","AGRICULTURA ",2334689275,{"$error":"#VALUE!"},41271,2012,"004 DE 2012","CERRADO",null,null,null,null,null,null,null,null,null,null,null,null,null,null,44607,44607,-146,-146,0]
[5,"CUNDINAMARCA","SECRETARIA GENERAL",2012000050010,"ESTUDIOS Y DISEÑOS PARA LA RECUPERACIÓN Y ADECUACION DEL PATRIMONIO HISTORICO CULTURAL PALACIO DE SAN FRANCISCO EN BOGOTA D.C. DEPARTAMENTO DE CUNDINAMARCA ","CULTURA ",1000000000,{"$error":"#VALUE!"},41271,2012,"004 DE 2012","TERMINADO",null,null,null,null,null,null,null,null,null,null,null,null,null,null,44607,44607,-146,-146,0]
[6,"CUNDINAMARCA","SECRETARIA DE EDUCACIÓN",2012000050011,"FORTALECIMIENTO DE LA PERMANENCIA DE LOS ESTUDIANTES EN LOS MUNICIPIOS DEL DEPARTAMENTO DE CUNDINAMARCA DEPARTAMENTO DE CUNDINAMARCA\n","EDUCACIÓN",6000000000,{"$error":"#VALUE!"},41187,2012,"003 DE 2012","CERRADO",null,null,null,null,null,null,null,null,null,null,null,null,null,null,44607,44607,-146,-146,0]
[7,"CUNDINAMARCA","SECRETARIA DE DESARROLLO E INCLUSIÓN SOCIAL",2012000050012,"IMPLEMENTACIÓN DEL PROGRAMA DE COMPLEMENTACION ALIMENTARIA Y NUTRICIONAL EN MENORES DE 5 AÑOS, MUJERES GESTANTES Y LACTANTES EN TODO EL DEPARTAMENTO DE CUNDINAMARCA","SALUD Y PROTECCIÓN SOCIAL",4531022720,{"$error":"#VALUE!"},41187,2012,"003 DE 2012","CERRADO",null,null,null,null,null,null,null,null,null,null,null,null,null,null,44607,44607,-146,-146,0]
[8,"CUNDINAMARCA","SECRETARIA DE TRANSPORTE Y MOVILIDAD",2012000050013,"ACTUALIZACION Y FORMULACION DE LOS ESTUDIOS Y DISEÑOS FASE II Y III DE LA EXTENCION NORTE - QUITO - SUR DEL SISTEMA TRANSMILENIO AL MUNICIPIO DE SOACHA DEPARTAMENTO DE CUNDINAMARCA ","SALUD Y PROTECCIÓN SOCIAL",4026917304,{"$error":"#VALUE!"},41187,2012,"003 DE 2012","CERRADO",null,null,null,null,null,null,null,null,null,null,null,null,null,null,44607,44607,-146,-146,0]
[9,"CUNDINAMARCA","SECRETARIA DE AGRICULTURA",2012000050014,"MEJORAMIENTO DE LA COMPETITIVIDAD Y SOSTENIBILIDAD DEL SUB SECTOR PANELERO DE CUNDINAMARCA","AGRICULTURA ",1559272190,{"$error":"#VALUE!"},41271,2012,"004 DE 2012","CERRADO",null,null,null,null,null,null,null,null,null,null,null,null,null,null,44607,44607,-146,-146,0]
[10,"CUNDINAMARCA","SECRETARIA DE AGRICULTURA",2012000050023,"FORTALECIMIENTO DE LA ACTIVIDAD CAFETERA COMO ALTERNATIVA SOSTENIBLE DE DESARROLLO REGIONAL EN EL DEPARTAMENTO DE CUNDINAMARCA ","AGRICULTURA ",77168795512,{"$error":"#VALUE!"},41271,2012,"004 DE 2012","CERRADO",null,null,null,null,null,null,null,null,null,null,null,null,null,null,44607,44607,-146,-146,0]
[11,"CUNDINAMARCA","SECRETARIA DE AGRICULTURA",2012000050024,"IMPLEMENTACION DE UN MODELO DE PRODUCCION EN SISTEMAS DE DOBLE PROPOSITO EN PEQUEÑOS PRODUCTORES DEL DEPARTAMENTO DE CUNDINAMARCA","AGRICULTURA ",3371686373,{"$error":"#VALUE!"},41271,2012,"004 DE 2012","CERRADO",null,null,null,null,null,null,null,null,null,null,null,null,null,null,44607,44607,-146,-146,0]
[12,"CUNDINAMARCA","SECRETARIA DE GOBIERNO",2012000050025,"ESTUDIOS Y DISEÑOS PARA LA CONSTRUCCIÓN DE UN CENTRO ESPECIALIZADO AL SERVICIO DE ADOLESCENTES INFRACTORES DE LA LEY EN EL DEPARTAMENTO DE CUNDINAMARCA","DEFENSA",200000000,{"$error":"#VALUE!"},41271,2012,"004 DE 2012","CERRADO",null,null,null,null,null,null,null,null,null,null,null,null,null,null,44607,44607,-146,-146,0]
[13,"ENTIDAD APORTANTE RECURSOS","MUNICIPIO DE COGUA",2012000050026,"MEJORAMIENTO DE LA VA COGUA-SAN CAYETANO (SECTOR LAS MARGARITAS K8+300 SECTOR LAS MARGARITAS HASTA K10+300) CON K0+00 EN COGUA DEPARTAMENTO DE CUNDINAMARCA","TRANSPORTE",2000000000,{"$error":"#VALUE!"},41271,2012,"005 DE 2012","CERRADO",null,null,null,null,null,null,null,null,null,null,null,null,null,null,44607,44607,-146,-146,0]
[14,"ENTIDAD APORTANTE RECURSOS","ICCU - GESPROY GB",2012000050027,"MEJORAMIENTO DE LA VA UBALA-PALOMAS-MAMBITA (K0+00 UBICADO EN EL SITIO PROFESIONALES MUNICIPIO DE UBALA), DEPARTAMENTO DE CUNDINAMARCA ","TRANSPORTE",3359160462,{"$error":"#VALUE!"},41271,2012,"04 DE 2012","CERRADO",null,null,null,null,null,null,null,null,null,null,null,null,null,null,44607,44607,-146,-146,0]
[15,"ENTIDAD APORTANTE RECURSOS","ICCU - GESPROY GB",2012000050028,"MEJORAMIENTO Y MANTENIMIENTO DE LA RED VIAL SECUNDARIA Y TERCIARIA MEDIANTE LA DOTACIÓN DE MAQUINARIA A LOS MUNICIPIOS DEL DEPARTAMENTO DE CUNDINAMARCA ","TRANSPORTE",19769772343,{"$error":"#VALUE!"},41271,2012,"004 DE 2012","CERRADO",null,null,null,null,null,null,null,null,null,null,null,null,null,null,44607,44607,-146,-146,0]
[16,"ENTIDAD APORTANTE RECURSOS","SECRETARIA DE MINAS, ENERGIA Y GAS",2012000050029,"IMPLEMENTACIÓN Y MASIFICACION DEL SERVICIO DE GAS COMBUSTIBLE POR REDES PARA MUNICIPIOS DE ANOLAIMA, CACHIPAY, CHOACHI, FOMEQUE, UBAQUE Y VIOTA CUNDINAMARCA","MINAS Y ENERGÍA",15253036000,{"$error":"#VALUE!"},41271,2012,"004 DE 2012","CERRADO",null,null,null,null,null,null,null,null,null,null,null,null,null,null,44607,44740,-146,-13,0]
[17,"CUNDINAMARCA","SECRETARIA DE COMPETITIVIDAD",2012000050030,"DESARROLLO CREACION Y FORTALECIMIENTO DE NUEVE (9) CENTROS DE EMPREDIMIENTO Y FORTALECIMIENTO EMPRESARIAL EN EL DEPARTAMENTO DE CUNDINAMARCA ","COMERCIO, INDUSTRIA Y TURISMO ",1752501814,{"$error":"#VALUE!"},41271,2012,"004 DE 2012","PARA CIERRE",null,null,null,null,null,null,null,null,null,null,null,null,null,null,44607,44607,-146,-146,0]
[18,"ENTIDAD APORTANTE RECURSOS","MUNICIPIO DE MOSQUERA",2012000050039,"MEJORAMIENTO DE LA VIA CALLE 23 ENTRE CRA 3 Y 9B EN MOSQUERA CLL 7 ENTRE CRA 13 Y 24 EN FUNZA DEPARTAMENTO DE CUNDINAMARCA","TRANSPORTE",2816415712,{"$error":"#VALUE!"},41271,2012,"004 DE 2012","CERRADO",null,null,null,null,null,null,null,null,null,null,null,null,null,null,44607,44607,-146,-146,0]
[19,"ENTIDAD APORTANTE RECURSOS","MUNICIPIO DE SOACHA",2012000050044,"REHABILITACIÓN Y MEJORAMIENTO DE LA VIA PARALELA ( TRANSVERSAL 8 Y CARRERA 7) ENTRE CARRERA 13 CON AUTOPISTA SUR BARRIO LA DESPENSA, HASTA LA CALLE 27 DEL CENTRO DEL MUNICIPIO DE SOACHA CUNDINAMARCA (TRAMO N 1 - K0+000 HASTA K0+262)","TRANSPORTE",1000000000,{"$error":"#VALUE!"},41271,2012,"004 DE 2012","CERRADO",null,null,null,null,null,null,null,null,null,null,null,null,null,null,44607,44607,-146,-146,0]
[20,"CUNDINAMARCA","ICCU - GESPROY GB",2012000050051,"MEJORAMIENTO DEL PUENTE GUATIMBOL SOBRE EL RIO SUMAPAZ EN LA VA VENECIA - ICONONZO DEPARTAMENTO DE CUNDINAMARCA","TRANSPORTE",827195639,{"$error":"#VALUE!"},41271,2012,"004 DE 2012","CERRADO",null,null,null,null,null,null,null,null,null,null,null,null,null,44669,44635,44706,-118,-47,-84]
[21,"CUNDINAMARCA","ICCU - GESPROY GB",2012000050052,"FORMULACIÓN Y ACTUALIZACION DE LOS ESTUDIOS Y DISEÑOS DE LA VIA UBAQUE - LOS CEREZOS - CHIPAQUE DEPARTAMENTO DE CUNDINAMARCA","TRANSPORTE",257457261,{"$error":"#VALUE!"},41271,2012,"004 DE 2012","CERRADO",null,null,null,null,null,null,null,null,null,null,null,null,null,null,44607,44607,-146,-146,0]
[22,"CUNDINAMARCA","ICCU - GESPROY GB",2012000050054,"FORMULACIÓN Y ACTUALIZACION DE LOS ESTUDIOS Y DISEÑOS PARA EL MEJORAMIENTO DE LA TRONCAL DEL CARBON EN LONGITUD DE 43 KMS (K0+00 LOCALIZADO EN TIERRA NEGRA) DEPARTAMENTO DE CUNDINAMARCA","TRANSPORTE",777429075,{"$error":"#VALUE!"},41271,2012,"004 DE 2012","CERRADO",null,null,null,null,null,null,null,null,null,null,null,null,null,null,44607,44607,-146,-146,0]
[23,"CUNDINAMARCA","SECRETARIA DE CIENCIA, TECNOLOGIA E INNOVACIÓN",2012000100010,"FORTALECIMIENTO DE LAS REGIONES COLOMBIANAS EN SUS CAPACIDADES DE CTI - CUNDINAMARCA","CTEL",8721806744,{"$error":"#VALUE!"},41263,2012,"001 DE 2012","CONTRATADO EN EJECUCIÓN",null,null,null,null,null,null,null,null,null,null,null,null,null,null,44607,44607,-146,-146,0]
[24,"CUNDINAMARCA","SECRETARIA DE CIENCIA, TECNOLOGIA E INNOVACIÓN",2012000100056,"INVESTIGACIÓN ESTRATEGIAS DE VALORACION Y APROPIACION DE LOS RECURSOS NATURALES MECANISMOS DE ADAPTACION A CAMBIO CLIMATICO. REGION DEL BAJO MAGDALENA","CTEL",7184175232,{"$error":"#VALUE!"},41263,2012,"001 DE 2012","CERRADO",null,null,null,null,null,null,null,null,null,null,null,null,null,null,44607,44607,-146,-146,0]
[25,"CUNDINAMARCA","SECRETARIA DE CIENCIA, TECNOLOGIA E INNOVACIÓN",2012000100063,"FORTALECIMIENTO DE LAS CAPACIDADES DE INNOVACIÓN SOCIAL POR MEDIO DEL PARQUE CIENTIFICO EN BOGOTA - CUNDINAMARCA","CTEL",16942704000,{"$error":"#VALUE!"},41263,2012,"001 DE 2012","CERRADO",null,null,null,null,null,null,null,null,null,null,null,null,null,null,44607,44607,-146,-146,0]
[26,"CAR","SECRETARIA DE CIENCIA, TECNOLOGIA E INNOVACIÓN",2012000100118,"FORMACION EN CIENCIA, TECNOLOGIA E INNOVACION EN LA COMUNIDAD EDUCATIVA DE LAS INSTITUCIONES EDUCATIVAS OFICIALES DE LOS MUNICIPIOS NO CERTIFICADOS DEL DEPARTAMENTO","CTEL",22788739251,{"$error":"#VALUE!"},41295,2013,"001 DE 2012","CERRADO",null,null,null,null,null,null,null,null,null,null,null,null,null,null,44607,44607,-146,-146,0]
[27,"CUNDINAMARCA","SECRETARIA DE CIENCIA, TECNOLOGIA E INNOVACIÓN",2012000100144,"INVESTIGACIÓN INVESTIGACION, DESARROLLO Y TRANSFERENCIA TECNOLOGICA EN EL SECTOR AGROPECUARIO Y AGROINDUSTRIAL CON EL FIN DE MEJORAR L TODO EL DEPARTAMENTO, CUNDINAMARCA, CENTRO ORIENTE","CTEL",50514736439,{"$error":"#VALUE!"},41263,2012,"001 DE 2012","CONTRATADO EN EJECUCIÓN",null,null,null,null,null,null,null,null,null,null,null,null,null,null,44607,44607,-146,-146,0]
[28,"CUNDINAMARCA","SECRETARIA DE CIENCIA, TECNOLOGIA E INNOVACIÓN",2012000100156,"CONSTRUCCIÓN DEL ECOSISTEMA DE INNOVACION TIC PARA EL DEPTO DE CUNDINAMARCA","CTEL",7088000000,{"$error":"#VALUE!"},41263,2012,"001 DE 2012","CERRADO",null,null,null,null,null,null,null,null,null,null,null,null,null,null,44607,44607,-146,-146,0]
[29,"ENTIDAD APORTANTE RECURSOS","ICCU - GESPROY GB",2013000050003,"ESTUDIOS Y DISEÑOS PARA EL MEJORAMIENTO DE LA VA VILLAPINZON-TURMEQUE EN LONGITUD DE 11 KMS (K0+00 LOCALIZADO EN VILLAPINZON DEPARTAMENTO DE CUNDINAMARCA","TRANSPORTE",245000000,{"$error":"#VALUE!"},41400,2013,"006 DE 2013","CERRADO",null,null,null,null,null,null,null,null,null,null,null,null,null,null,44607,44607,-146,-146,0]
[30,"ENTIDAD APORTANTE RECURSOS","ICCU - GESPROY GB",2013000050004,"ESTUDIOS Y DISEÑOS PARA EL MEJORAMIENTO DE LA VA YACOPI - LA VICTORIA CON K0+00 EN YACOPI DEPARTAMENTO DE CUNDINAMARCA","TRANSPORTE",250000000,{"$error":"#VALUE!"},41400,2013,"006 DE 2013","CERRADO",null,null,null,null,null,null,null,null,null,null,null,null,null,null,44607,44607,-146,-146,0]
[31,"CUNDINAMARCA","SECRETARIA DE DESARROLLO E INCLUSIÓN SOCIAL",2013000050005,"IMPLEMENTACIÓN DEL PROGRAMA DE COMPLEMENTACION ALIMENTARIA Y NUTRICIONAL PARA MENORES DE CINCO AÑOS Y MUJERES GESTANTES Y LACTANTES EN TODO EL DEPARTAMENTO DE CUNDINAMARCA","EDUCACIÓN",6189832118,{"$error":"#VALUE!"},41400,2013,"006 DE 2013","CERRADO",null,null,null,null,null,null,null,null,null,null,null,null,null,null,44607,44607,-146,-146,0]
[32,"CUNDINAMARCA","SECRETARIA DE EDUCACIÓN",2013000050011,"FORTALECIMIENTO DE LA PERMANENCIA DE LOS ESTUDIANTES EN LOS MUNICIPIOS DEL DEPARTAMENTO DE CUNDINAMARCA 2013-2014 CUNDINAMARCA, CENTRO ORIENTE","EDUCACIÓN",13360387595,{"$error":"#VALUE!"},41400,2013,"006 DE 2013","CERRADO",null,null,null,null,null,null,null,null,null,null,null,null,null,null,44607,44607,-146,-146,0]
[33,"CUNDINAMARCA","SECRETARIA DE MINAS, ENERGIA Y GAS",2013000050026,"CONSTRUCCIÓN REDES ELECTRICAS EN LA ZONA RURAL DE LOS MUNICIPIOS DE PARATEBUENO Y GUTIERREZ EN EL DEPARTAMENTO DE CUNDINAMARCA","MINAS Y ENERGÍA",1068319227,{"$error":"#VALUE!"},41502,2013,"007 DE 2013","TERMINADO",null,null,null,null,null,null,null,null,null,null,null,null,null,null,44607,44607,-146,-146,0]
[34,"U CATOLICA","SECRETARIA DE AGRICULTURA",2013000050027,"FORTALECIMIENTO DE LA ACTIVIDAD CAFETERA COMO ESTRATEGIA DE MEJORAMIENTO DE LA PRODUCTIVIDAD Y LA COMPETITIVIDAD EN EL DEPARTAMENTO DE CUNDINAMARCA, CENTRO ORIENTE","AGRICULTURA ",18756930869,{"$error":"#VALUE!"},41502,2013,"025 DE 2014","CERRADO",null,null,null,null,null,null,null,null,null,null,null,null,null,null,44607,44607,-146,-146,0]
[35,"UNIVERSIDAD MILITAR NUEVA GRANADA","SECRETARIA DE AGRICULTURA",2013000050028,"FORTALECIMIENTO DEL SUBSECTOR PANELERO EN EL DEPARTAMENTO DE CUNDINAMARCA","AGRICULTURA ",3427279826,{"$error":"#VALUE!"},41502,2013,"007 DE 2013","CERRADO",null,null,null,null,null,null,null,null,null,null,null,null,null,null,44607,44607,-146,-146,0]
[36,"ENTIDAD APORTANTE RECURSOS","ICCU - GESPROY GB",2013000050043,"MEJORAMIENTO Y REHABILITACION DE LA VIA GUACHETA - CAPELLANIA (SECTOR K0+780 AL K2+240) K0+000 LOCALIZADO EN EL RIO UBATE GUACHET, CUNDINAMARCA, CENTRO ORIENTE","TRANSPORTE",1019047619,{"$error":"#VALUE!"},41639,2013,"015 DE 2013","CERRADO",null,null,null,null,null,null,null,null,null,null,null,null,null,null,44607,44607,-146,-146,0]
[37,"ENTIDAD APORTANTE RECURSOS","BANCO AGRARIO DE COLOMBIA",2013000050044,"CONSTRUCCIÓN CUNDINAMARCA VISR 2013 TODO EL DEPARTAMENTO, CUNDINAMARCA, CENTRO ORIENTE","AGRICULTURA ",60041780218,{"$error":"#VALUE!"},41569,2013,"005 DE 2015","CONTRATADO EN EJECUCIÓN",null,null,null,null,null,null,null,null,null,null,null,null,null,null,44607,44607,-146,-146,0]
[38,"ENTIDAD APORTANTE RECURSOS","ICCU - GESPROY GB",2013000050045,"MEJORAMIENTO Y PAVIMENTACIÓN DE LA VIA FOSCA - GUTIERREZ, DESDE EL KM 2+000 AL KM 3+000 (K0+000 LOCALIZADO EN FOSCA), DEPARTAMENTO DE CUNDINAMARCA","TRANSPORTE",2534999997,{"$error":"#VALUE!"},41579,2013,"012 DE 2013","CERRADO",null,null,null,null,null,null,null,null,null,null,null,null,null,null,44607,44607,-146,-146,0]
[39,"CUNDINAMARCA","SECRETARIA DE MINAS, ENERGIA Y GAS",2013000050046,"IMPLEMENTACIÓN Y MASIFICACION DEL SERVICIO DE GAS COMBUSTIBLE POR REDES PARA LOS MUNICIPIOS DE CAPARRAPI, EL PEÑON, LA PALMA, PAIME, TOPAIPI Y VILLAGOMEZ CUNDINAMARCA","MINAS Y ENERGÍA",6609136508,{"$error":"#VALUE!"},41579,2013,"012 DE 2013","CERRADO",null,null,null,null,null,null,null,null,null,null,null,null,null,null,44607,44607,-146,-146,0]
[40,"ENTIDAD APORTANTE RECURSOS","ICCU - GESPROY GB",2013000050047,"MEJORAMIENTO Y PAVIMENTACIÓN VIA GUANACAS - EL PEÑON DESDE EL K0+000 AL K2+000 (K0+000 UBICADO EN GUANACAS) MUNICIPIO EL PEÑON, CUNDINAMARCA","TRANSPORTE",3000000000,{"$error":"#VALUE!"},41808,2014,"022 DE 2014","CERRADO",null,null,null,null,null,null,null,null,null,null,null,null,null,null,44607,44607,-146,-146,0]
[41,"ENTIDAD APORTANTE RECURSOS","ICCU - GESPROY GB",2013000050049,"MEJORAMIENTO Y MANTENIMIENTO DE LA RE VIAL MEDIANTE LA ADQUISICION DE MAQUINARIA AÑO 2013-2014 PARA LOS MUNICIPIOS DEL DEPARTAMENTO DE CUNDINAMARCA","TRANSPORTE",14330854376,{"$error":"#VALUE!"},41609,2013,"012 DE 2013","CERRADO",null,null,null,null,null,null,null,null,null,null,null,null,null,null,44607,44607,-146,-146,0]
[42,"ENTIDAD APORTANTE RECURSOS","ICCU - GESPROY GB",2013000050050,"MEJORAMIENTO Y PAVIMENTACIÓN DE LA VIA SANAME - PUENTE QUETAME DESDE K0+000 AL K1+500 (K0+000 LOCALIZADO EN PUENTE QUEMADO) MUNICIPIO FOSCA, CUNDINAMARCA","TRANSPORTE",6000000000,{"$error":"#VALUE!"},41639,2013,"015 DE 2013","CERRADO",null,null,null,null,null,null,null,null,null,null,null,null,null,null,44607,44607,-146,-146,0]
[43,"CUNDINAMARCA","SECRETARIA DE AMBIENTE",2013000050051,"FORTALECIMIENTO DE LA GESTION INTEGRAL DE RESIDUOS SOLIDOS, A TRAVES DE SISTEMAS RECIONALES EN LAS PROVINCIAS DE UBATE Y RIONEGRO EN EL DEPARTAMENTO DE CUNDINAMARCA","VIVIENDA, CIUDAD Y TERRITORIO ",3000000000,{"$error":"#VALUE!"},41579,2013,"012 DE 2013","CERRADO",null,null,null,null,null,null,null,null,null,null,null,null,null,null,44607,44607,-146,-146,0]
[44,"CUNDINAMARCA","SECRETARIA DE AGRICULTURA",2013000050054,"MEJORAMIENTO DE LA PRODUCTIVIDAD Y COMPETITIVIDAD DEL SECTOR CAUCHERO EN EL DEPARTAMENTO DE CUNDINAMARCA","AGRICULTURA ",3765860000,{"$error":"#VALUE!"},41639,2013,"015 DE 2013","CERRADO",null,null,null,null,null,null,null,null,null,null,null,null,null,null,44607,44607,-146,-146,0]
[45,"CUNDINAMARCA","SECRETARIA DE GOBIERNO",2013000050056,"PREVENCIN DE INCENDIOS FORESTALES CON LA ADQUISICION DE VEHICULOS 4X4 ACCION RAPIDA TIPO FORESTAL PARA EL DEPARTAMENTO DE CUNDINAMARCA","AMBIENTE Y DESARROLLO SOSTENIBLE",4000000000,{"$error":"#VALUE!"},41579,2013,"012 DE 2013","CERRADO",null,null,null,null,null,null,null,null,null,null,null,null,null,null,44607,44607,-146,-146,0]
[46,"CUNDINAMARCA","SECRETARIA DE AGRICULTURA",2013000050081,"MEJORAMIENTO DE LA PRODUCTIVIDAD, CALIDAD, POSCOSECHA Y MERCADEO DE LAS CADENAS HORTIFRUTCOLA Y AROMATICAS DE CUNDINAMARCA","AGRICULTURA ",4900400000,{"$error":"#VALUE!"},41808,2014,"022 DE 2014","CERRADO",null,null,null,null,null,null,null,null,null,null,null,null,null,null,44607,44607,-146,-146,0]
[47,"CUNDINAMARCA","SECRETARIA DE AGRICULTURA",2013000050083,"IMPLEMENTACIÓN Y PUESTA EN MARCHA DE UNA PLANTA HOMOGENIZADORA DE MIELES PARA LA PRODUCCION DE PANELA EN CAPARRAPI CUNDINAMARCA, CENTRO ORIENTE","AGRICULTURA ",3322683076.3200002,{"$error":"#VALUE!"},41808,2014,"022 DE 2014","CERRADO",null,null,null,null,null,null,null,null,null,null,null,null,null,null,44607,44607,-146,-146,0]
[48,"ENTIDAD APORTANTE RECURSOS","ICCU - GESPROY GB",2013000050094,"MEJORAMIENTO Y REHABILITACION DE LA VIA TABIO - CHIA DEL K1+100 AL K3+200","TRANSPORTE",2000000000,{"$error":"#VALUE!"},41639,2013,"015 DE 2013","DESAPROBADO",null,null,null,null,null,null,null,null,null,null,null,null,null,null,44607,44607,-146,-146,0]
[49,"CUNDINAMARCA","SECRETARIA DE CIENCIA, TECNOLOGIA E INNOVACIÓN",2013000100129,"INCREMENTO EN LAS ESTRATEGIAS SUSTENTABLES EN EL USO DEL RECURSO DE ENERGA ELECTRICA PARA LA POBLACION VULNERABLE EN EL DPTO. DE CUNDINAMARCA","CTEL",5170002961,{"$error":"#VALUE!"},41789,2014,"025 DE 2014","CONTRATADO EN EJECUCIÓN",null,null,null,null,null,null,null,null,null,null,null,null,null,null,44607,44607,-146,-146,0]
[50,"CUNDINAMARCA","SECRETARIA DE CIENCIA, TECNOLOGIA E INNOVACIÓN",2013000100131,"INVESTIGACIÓN ESTIMAR VULNERABILIDAD AL CAMBIO CLIMATICO DE SISTEMAS CAFETEROS Y DISEÑO DE ARREGLOS AGROFORESTALES CON BIOTECNOLOGIA PACHO, TIBACUY, SAN JUAN DE RIO SECO, CUNDINAMARCA","AGRICULTURA ",3287867000,{"$error":"#VALUE!"},41474,2013,"005 DE 2013","CERRADO",null,null,null,null,null,null,null,null,null,null,null,null,null,44740,44607,44740,-146,-13,-13]
[51,"CUNDINAMARCA","SECRETARIA DE CIENCIA, TECNOLOGIA E INNOVACIÓN",2013000100149,"INNOVACIÓN EN EL MODELO DE GESTION DE MEDICAMENTO EN EL DEPARTAMENTO DE CUNDINAMARCA FASE II","CTEL",3079583047,{"$error":"#VALUE!"},41474,2013,"005 DE 2013","CERRADO",null,null,null,null,null,null,null,null,null,null,null,null,null,null,44607,44607,-146,-146,0]
[52,"CUNDINAMARCA","SECRETARIA DE CIENCIA, TECNOLOGIA E INNOVACIÓN",2013000100176,"INNOVACIÓN SISTEMA DE PRODUCCION DE FRUTAS/HORTALIZAS FRESCAS/PROCESADAS TIPO EXPORTACION CON TECNOLOGIA BIOLOGICA /INTEGRAL INOCUA SUBACHOQUE, CUNDINAMARCA, CENTRO ORIENTE","CTEL",9285096292,{"$error":"#VALUE!"},41474,2013,"005 DE 2013","CONTRATADO EN EJECUCIÓN",null,null,null,null,null,null,null,null,null,null,null,null,null,null,44607,44607,-146,-146,0]
[53,"CUNDINAMARCA","SECRETARIA DE CIENCIA, TECNOLOGIA E INNOVACIÓN",2013000100180,"DISEÑO SMART TON: TALENTO E INNOVACION APLICADA AL TERRITORIO","CTEL",3089954000,{"$error":"#VALUE!"},41509,2013,"008 DE 2013","CERRADO",null,null,null,null,null,null,null,null,null,null,null,null,null,null,44607,44607,-146,-146,0]
[54,"CUNDINAMARCA","SECRETARIA DE CIENCIA, TECNOLOGIA E INNOVACIÓN",2013000100215,"FORTALECIMIENTO DE LA GESTIN COMUNITARIA DEL RECURSO HIDRICO, POR MEDIO DE LA DISMINUCION DEL CONSUMO DE ESTE, UTILIZANDO TP Y TICS , CUNDINAMARCA, CENTRO ORIENTE","CTEL",1811292700,{"$error":"#VALUE!"},41565,2013,"011 DE 2013","CERRADO",null,null,null,null,null,null,null,null,null,null,null,null,null,null,44607,44607,-146,-146,0]
[55,"CUNDINAMARCA","SECRETARIA DE CIENCIA, TECNOLOGIA E INNOVACIÓN",2013000100217,"FORTALECIMIENTO DE LA COMPETITIVIDAD DEL SECTOR FLORICULTOR COLOMBIANO MEDIANTE EL USO DE CIENCIA, TECNOLOGA E INNOVACION APLICADAS EN EL DEPARTAMENTO DE CUNDINAMARCA","CTEL",7204002875,{"$error":"#VALUE!"},41789,2014,"025 DE 2014","CERRADO",null,null,null,null,null,null,null,null,null,null,null,null,null,null,44607,44607,-146,-146,0]
[56,"CUNDINAMARCA","SECRETARIA DE CIENCIA, TECNOLOGIA E INNOVACIÓN",2013000100247,"INVESTIGACIÓN E INNOVACIÓN TECNOLÓGICA Y APROPIACIÓN SOCIAL DE CONOCIMIENTO CIENTÍFICO DE ORQUÍDEAS NATIVAS DE CUNDINAMARCA","CTEL",3400306874,{"$error":"#VALUE!"},41856,2014,"027 DE 2014","CERRADO",null,null,null,null,null,null,null,null,null,null,null,null,null,null,44607,44607,-146,-146,0]
[57,"CUNDINAMARCA","SECRETARIA DE CIENCIA, TECNOLOGIA E INNOVACIÓN",2013000100248,"INNOVACIÓN , CIENCIA Y TECNOLOGIA PARA PRODUCTORES DE LECHE EN LA PROVINCIA DE UBATE, CUNDINAMARCA.","CTEL",11619725567,{"$error":"#VALUE!"},41565,2013,"011 DE 2013","CONTRATADO EN EJECUCIÓN",null,null,null,null,null,null,null,null,null,null,null,null,null,null,44607,44607,-146,-146,0]
[58,"ENTIDAD APORTANTE RECURSOS","MUNICIPIO DE MADRID",2013000050048,"MEJORAMIENTO Y PAVIMENTACIÓN DE LA VIA AJOVER-SANTA CRUZ EN 2 KILOMETROS, MUNICIPIO DE MADRID, CUNDINAMARCA","TRANSPORTE",8946944399,{"$error":"#VALUE!"},41689,2014,"017 DE 2014","CERRADO",null,null,null,null,null,null,null,null,null,null,null,null,null,null,44607,44607,-146,-146,0]
[59,"ENTIDAD APORTANTE RECURSOS","CORMAGDALENA",20132401060001,"MANTENIMIENTO Y RECUPERACIÓN DE LA NAVEGABILIDAD DEL RIO MAGDALENA","TRANSPORTE",3527443454052,{"$error":"#VALUE!"},41514,2013,"001 DE 2013","CERRADO",null,null,null,null,null,null,null,null,null,null,null,null,null,null,44607,44607,{"$f":"IF(AA68=0,0,_xlfn.DAYS(AA68,TODAY()))","v":-146},-146,0]
[60,"ENTIDAD APORTANTE RECURSOS","ICCU - GESPROY GB",2014000050033,"MEJORAMIENTO Y REHABILITACIÓN DE LA VIA TABIO - CHIA DEL K0+000 AL K1+800","TRANSPORTE",2570000000,{"$error":"#VALUE!"},41893,2014,"026 DE 2014","CERRADO",null,null,null,null,null,null,null,null,null,null,null,null,null,null,44607,44607,-146,-146,{"$f":"IF(Z69=0,0,_xlfn.DAYS(Z69,TODAY()))","v":0}]
[61,"ENTIDAD APORTANTE RECURSOS","ICCU - GESPROY GB",2014257720001,"MEJORAMIENTO Y PAVIMENTACIÓN DE LA VIA SUESCA LA PLAYA - SESQUILE DEPARTAMENTO DE CUNDINAMARCA","TRANSPORTE",4191000000,{"$error":"#VALUE!"},41743,2014,"001 DE 2014","CERRADO",null,null,null,null,null,null,null,null,null,null,null,null,null,null,44607,44607,-146,-146,0]
[62,"CUNDINAMARCA","SECRETARIA DE GOBIERNO",2014000050010,"CONSTRUCCIÓN DE UN CENTRO DE ATENCION ESPECIALIZADA AL SERVICIO DE ADOLESCENTES INFRACTORES DE LA LEY PENAL EN EL DEPARTAMENTO DE CUNDINAMARCA","JUSTICIA Y DEL DERECHO ",9260000000,{"$error":"#VALUE!"},41808,2014,"022 DE 2014","PARA CIERRE",null,null,null,null,null,null,null,null,null,null,null,null,null,null,44607,44607,-146,-146,0]
[63,"ENTIDAD APORTANTE RECURSOS","MUNICIPIO DE VILLETA",2014000050048,"MEJORAMIENTO Y PAVIMENTACIÓN DE LA VIA VILLETA-PANTANILLO-CORREDOR CHUGUACAL -CAMBAO DEL K0+360 AL K1+060 VILLETA, CUNDINAMARCA, CENTRO ORIENTE","TRANSPORTE",1701612797,{"$error":"#VALUE!"},42089,2015,"033 DE 2015","CERRADO",null,null,null,null,null,null,null,null,null,null,null,null,null,null,44607,44607,-146,-146,0]
[64,"ENTIDAD APORTANTE RECURSOS","ICCU - GESPROY GB",2015000050010,"MEJORAMIENTO DE LA VA SAN CAYETANO - COGUA SECTOR K6+670 - K8+366 (K0+000 LOCALIZADO EN EL CASCO URBANO DEL MUNICIPIO DE SAN CAYETANO) CUNDINAMARCA","TRANSPORTE",3796247522,{"$error":"#VALUE!"},42158,2015,"036 DE 2015","CERRADO",null,null,null,null,null,null,null,null,null,null,null,null,null,null,44607,44607,-146,-146,0]
[65,"ENTIDAD APORTANTE RECURSOS","ICCU - GESPROY GB",2015000050013,"MEJORAMIENTO DE LA VA UBAQUE - LOS CEREZOS - CHIPAQUE SECTORES DEL K0+000 AL K2+040 Y DEL K16+000 AL K18+260 (K0+000 LOCALIZADO EN UBAQUE) DEPARTAMENTO DE CUNDINAMARCA","TRANSPORTE",8000000000,{"$f":"F74-G74","v":{"$error":"#VALUE!"}},42159,2015,"036 de 2015","CERRADO",null,null,null,null,null,null,null,null,null,null,null,null,null,null,44607,44607,-146,-146,0]
[66,"CUNDINAMARCA","SECRETARIA DE HABITAT Y VIVIENDA",2015000050014,"CONSTRUCCIÓN DE VIVIENDAS NUEVAS RURALES VISR 2015 EN EL DEPARTAMENTO DE CUNDINAMARCA-SGR","AGRICULTURA ",7588896000,{"$error":"#VALUE!"},42173,2015,"036 de 2015","CERRADO",null,null,null,null,null,null,null,null,null,null,null,null,null,null,44607,44607,-146,-146,0]
[67,"CUNDINAMARCA","SECRETARIA DE EDUCACIÓN",2015000050015,"FORTALECIMIENTO DE LA PERMANENCIA DE LOS ESTUDIANTES EN LOS MUNICIPIOS DEL DEPARTAMENTO DE CUNDINAMARCA, CENTRO ORIENTE - 2015","EDUCACIÓN",8373797030,{"$error":"#VALUE!"},42159,2015,"036 de 2015","CERRADO",null,null,null,null,null,null,null,null,null,null,null,null,null,null,44607,44607,-146,-146,0]
[68,"ENTIDAD APORTANTE RECURSOS","ICCU - GESPROY GB",2015000050025,"MEJORAMIENTO Y PAVIMENTACIÓN DE LA TRONCAL DEL CARBON SECTOR K0+000 AL K2+860 (K0+000 LOCALIZADO EN TIERRA NEGRA, MUNICIPIO DE TAUSA), DEPARTAMENTO DE CUNDINAMARCA","TRANSPORTE",7913699780,{"$error":"#VALUE!"},42159,2015,"036 DE 2015","CERRADO",null,null,null,null,null,null,null,null,null,null,null,null,null,null,44607,44607,-146,-146,0]
[69,"CUNDINAMARCA","SECRETARIA DE EDUCACIÓN",2015000050026,"FORTALECIMIENTO A LA ESTRATEGIA DE ALIMENTACIÓN ESCOLAR PARA MUNICIPIOS NO CERTIFICADOS DEL DEPARTAMENTO DE CUNDINAMARCA, CENTRO ORIENTE","EDUCACIÓN",2100000000,{"$error":"#VALUE!"},42159,2015,"036 de 2015","CERRADO",null,null,null,null,null,null,null,null,null,null,null,null,null,null,44607,44607,-146,-146,0]
[70,"CUNDINAMARCA","SECRETARIA DE AGRICULTURA",2015000050029,"IMPLEMENTACIÓN Y PUESTA EN MARCHA DE UNA PLANTA HOMOGENIZADORA DE MIELES PARA LA PRODUCCION DE PANELA EN EL MUNICIPIO DE QUIPILE, CUNDINAMARCA, CENTRO ORIENTE","AGRICULTURA ",3395531657,{"$error":"#VALUE!"},42180,2015,"037 de 25 2015","CERRADO",null,null,null,null,null,null,null,null,null,null,null,null,null,null,44607,44607,-146,-146,0]
[71,"CUNDINAMARCA","SECRETARIA DE AGRICULTURA",2015000050030,"FORTALECIMIENTO A LA CADENA PRODUCTIVA DEL CACAO EN EL DEPARTAMENTO DE CUNDINAMARCA","AGRICULTURA ",2253334400,{"$error":"#VALUE!"},42159,2015,"036 de 2015","CERRADO",null,null,null,null,null,null,null,null,null,null,null,null,null,null,44607,44607,-146,-146,0]
[72,"CUNDINAMARCA","SECRETARIA DE GOBIERNO",2015000050031,"ADQUISICIÓN DE VEHICULOS PARA LOS CUERPOS OPERATIVOS (BOMBEROS) PARA LAS PROVINCIAS DEL DEPARTAMENTO DE CUNDINAMARCA","AMBIENTE Y DESARROLLO SOSTENIBLE",3670000000,{"$error":"#VALUE!"},42159,2015,"036 de 2015","CERRADO",null,null,null,null,null,null,null,null,null,null,null,null,null,null,44607,44607,-146,-146,0]
[73,"CUNDINAMARCA","SECRETARIA DE AGRICULTURA",2015000050034,"FORTALECIMIENTO DE LA PRODUCTIVIDAD Y COMPETITIVIDAD DEL SECTOR CAUCHERO EN EL DEPARTAMENTO DE CUNDINAMARCA","AGRICULTURA ",2158800000,{"$error":"#VALUE!"},42159,2015,"036 de 2015","CERRADO",null,null,null,null,null,null,null,null,null,null,null,null,null,null,44607,44607,-146,-146,0]
[74,"ENTIDAD APORTANTE RECURSOS","ICCU - GESPROY GB",2015000050041,"MEJORAMIENTO DE LA VA UBALA - PALOMAS - MAMBITA - MEDINA (K0+000 UBICADO EN EL SITIO PROFESIONALES MUNICIPIO DE UBALA, DEPARTAMENTO DE CUNDINAMARCA","TRANSPORTE",13663491451,{"$error":"#VALUE!"},42180,2015,"037 DE 2015","CERRADO",null,null,null,null,null,null,null,null,null,null,null,null,null,null,44607,44607,-146,-146,0]
[75,"CUNDINAMARCA","SECRETARIA DE DESARROLLO E INCLUSIÓN SOCIAL",2015000050048,"IMPLEMENTACIÓN DEL PROGRAMA DE COMPLEMENTACION ALIMENTARIA Y NUTRICIONAL PARA MENORES DE 5 AÑOS, MADRES GESTANTES Y LACTANTES EN TODO EL DEPARTAMENTO DE CUNDINAMARCA 2015","SALUD Y PROTECCIÓN SOCIAL",2900000000,{"$error":"#VALUE!"},42348,2015,"044 de 2015","CERRADO",null,null,null,null,null,null,null,null,null,null,null,null,null,null,44607,44607,-146,-146,0]
[76,"CUNDINAMARCA","SECRETARIA DE EDUCACIÓN",2016000050005,"FORTALECIMIENTO DE LA PERMANENCIA DE LOS ESTUDIANTES EN LOS MUNICIPIOS DEL DEPARTAMENTO DE CUNDINAMARCA, CENTRO ORIENTE - 2016","EDUCACIÓN",14963757156,{"$error":"#VALUE!"},42605,2016,"054 DE 2016","CERRADO",null,null,null,null,null,null,null,null,null,null,null,null,null,44740,44607,44607,-146,-146,-13]
[77,"CUNDINAMARCA","SECRETARIA DE EDUCACIÓN",2016000050014,"FORTALECIMIENTO A LA ESTRATEGIA DE ALIMENTACION ESCOLAR PARA MUNICIPIOS NO CERTIFICADOS DEL DEPARTAMENTO DE CUNDINAMARCA, SGR 2016.","EDUCACIÓN",12339894658,{"$error":"#VALUE!"},42625,2016,"055 de 2016","CERRADO",null,null,null,null,null,null,null,null,null,null,null,null,null,44740,44607,44706,-146,-47,-13]
[78,"ENTIDAD APORTANTE RECURSOS","ICCU - GESPROY GB",2016000050023,"MANTENIMIENTO DE LA RED VIAL EN AFIRMADO A TRAVS DE LA ADQUISICION DE MAQUINARIA PESADA Y EQUIPO DE TRANSPORTE EN EL DEPARTAMENTO DE CUNDINAMARCA","TRANSPORTE",24179817530,{"$error":"#VALUE!"},43066,2017,"068 de 2017","CERRADO",null,null,null,null,null,null,null,null,null,null,null,null,null,null,44607,44740,-146,-13,0]
[79,"ENTIDAD APORTANTE RECURSOS","ICCU - GESPROY GB",2016000050025,"REHABILITACIÓN DE LA VIA BOQUERON - PANDI DEL DEPARTAMENTO DE CUNDINAMARCA","TRANSPORTE",4991550669,{"$error":"#VALUE!"},42825,2017,"061 DE 2017","CERRADO",null,null,null,null,null,null,null,null,null,null,null,null,null,null,44607,44607,-146,-146,0]
[80,"ENTIDAD APORTANTE RECURSOS","ICCU - GESPROY GB",2016000050029,"REHABILITACIÓN DE LA VIA LA QUINTA - REPRESA DEL NEUSA, MUNICIPIO DE COGUA, DEPARTAMENTO DE CUNDINAMARCA","TRANSPORTE",6798676732,{"$error":"#VALUE!"},42846,2017,"061 de 2017","CERRADO",null,null,null,null,null,null,null,null,null,null,null,null,null,44740,44635,44607,-118,-146,-13]
[81,"ENTIDAD APORTANTE RECURSOS","ICCU - GESPROY GB",2016000050032,"REHABILITACIÓN DE LA VIA CLUB EL BOSQUE - TIBACUY - CUMACA DEL DEPARTAMENTO DE CUNDINAMARCA","TRANSPORTE",4022150134,{"$error":"#VALUE!"},42825,2017,"061 DE 2017","CERRADO",null,null,null,null,null,null,null,null,null,null,null,null,null,null,44607,44607,-146,-146,0]
[82,"ENTIDAD APORTANTE RECURSOS","ALCALDIA MAYOR DE BOGOTA",2016000050033,"ELABORACIÓN DE LA ENCUESTA MULTIPROPOSITO 2017 : BOGOTA - CUNDINAMARCA","VIVIENDA, CIUDAD Y TERRITORIO ",17282722269,{"$error":"#VALUE!"},42825,2017,"061 DE 2017","CERRADO",null,null,null,null,null,null,null,null,null,null,null,null,null,null,44607,44607,-146,-146,0]
[83,"CUNDINAMARCA","SECRETARIA DE HABITAT Y VIVIENDA",2016000050052,"CONSTRUCCIÓN DE VIVIENDAS NUEVAS RURALES EN EL DEPARTAMENTO DE CUNDINAMARCA","AGRICULTURA ",5983779025,{"$error":"#VALUE!"},43090,2017,"069 de 2017","CONTRATADO EN EJECUCIÓN",null,null,null,null,null,null,null,null,null,null,null,null,null,null,44607,44635,-146,-118,0]
[84,"CUNDINAMARCA","SECRETARIA DE CIENCIA, TECNOLOGIA E INNOVACIÓN",2016000100027,"ANLISIS DE FACTORES GENETICOS, SANITARIOS Y MEDIOAMBIENTALES QUE AFECTAN LAS TASAS DE PREÑEZ A PARTIR DE EMBRIONES IN VITRO EN EL DEPARTAMENTO DE CUNDINAMARCA","CTEL",6401358633,{"$error":"#VALUE!"},43098,2017,"063 DE 2017","CONTRATADO EN EJECUCIÓN",null,null,null,null,null,null,null,null,null,null,null,null,null,null,44607,44607,-146,-146,0]
[85,"CUNDINAMARCA","ENTIDAD DESIGNADA PARA LA SUPERVISIÓN DEL PROYECTO O PARA CONTRATAR LA INTERVENTORÍA RAPE - INTERVENTORIA SECRETARIA DE PLANEACIÓN",2016000050012,"IMPLEMENTACIÓN DE ACCIONES DE CONSERVACION Y RESTAURACION DE LOS COMPLEJOS DE PARAMO, BOSQUE ALTO-ANDINO Y SERVICIOS ECOSISTEMICOS DE LA REGION CENTRAL","AMBIENTE Y DESARROLLO SOSTENIBLE",32499987282,{"$error":"#VALUE!"},42829,2017," 058 DE 2016","CONTRATADO EN EJECUCIÓN",null,null,null,null,null,null,null,null,null,null,null,null,null,null,44741,44607,-12,-146,0]
[86,"CUNDINAMARCA","SECRETARIA DE DESARROLLO E INCLUSIÓN SOCIAL",2017000050017,"FORTALECIMIENTO DEL PROGRAMA DE COMPLEMENTACIÓN ALIMENTARIA Y NUTRICIONAL PARA NIÑAS, NIÑOS MENORES DE 5 AÑOS Y MADRES GESTANTES Y LACTANTES EN RIESGO DE DESNUTRICIÓN DEL DEPARTAMENTO DE CUNDINAMARCA","INCLUSIÓN SOCIAL Y RECONCILIACIÓN",8199993544,{"$error":"#VALUE!"},42915,2017,"062 de 2017","CERRADO",null,null,null,null,null,null,null,null,null,null,null,null,null,null,44607,44607,-146,-146,0]
[87,"CUNDINAMARCA","SECRETARIA DE EDUCACIÓN",2017000050027,"FORTALECIMIENTO DE LA PERMANENCIA DE LOS ESTUDIANTES EN LOS MUNICIPIOS DEL DEPARTAMENTO DE CUNDINAMARCA , CENTRO ORIENTE 2017 CUNDINAMARCA","EDUCACIÓN",14995289800,{"$error":"#VALUE!"},42961,2017,"064 de 2017","TERMINADO",null,null,null,null,null,null,null,null,null,null,null,null,null,null,44607,44607,-146,-146,0]
[88,"ENTIDAD APORTANTE RECURSOS","MUNICIPIO DE ZIPAQUIRA",2017000050029,"CONSERVACIÓN  Y GESTIÓN INTEGRAL DEL RECURSO HÍDRICO MEDIANTE LA ADQUISICIÓN Y RESTAURACIÓN DE PREDIOS DE INTERÉS ECOSISTÉMICO EN ELDEPARTAMENTO DE   CUNDINAMARCA","AMBIENTE Y DESARROLLO SOSTENIBLE",900000000,{"$error":"#VALUE!"},43340,2018,"077 DE 2018","CONTRATADO EN EJECUCIÓN",null,null,null,null,null,null,null,null,null,null,null,null,null,null,44607,44607,-146,-146,0]
[89,"CUNDINAMARCA","SECRETARIA DE EDUCACIÓN",2017000050033,"FORTALECIMIENTO A LA ESTRATEGIA DE ALIMENTACIÓN ESCOLAR PARA MUNICIPIOS NO CERTIFICADOS DEL DEPARTAMENTO DE CUNDINAMARCA","EDUCACIÓN",14000000000,{"$error":"#VALUE!"},42977,2017,"065 de 2017","CERRADO",null,null,null,null,null,null,null,null,null,null,null,null,null,44740,44607,44706,-146,-47,-13]
[90,"CUNDINAMARCA","SECRETARIA DE MINAS, ENERGIA Y GAS",2017000050036,"IMPLEMENTACIÓN Y EXPANSIÓN DEL SERVICIO DE GAS COMBUSTIBLE POR REDES PARA VEREDAS Y CENTROS POBLADOS DEL DEPARTAMENTO DE CUNDINAMARCA","MINAS Y ENERGÍA",4751658472,{"$error":"#VALUE!"},43356,2018,"077 DE 2018","CONTRATADO EN EJECUCIÓN",null,null,null,null,null,null,null,null,null,null,null,null,null,44740,44607,44706,-146,-47,-13]
[91,"CUNDINAMARCA","SECRETARIA DE PLANEACIÓN",2017000050039,"MEJORAMIENTO DE VÍAS TERCIARIAS MEDIANTE EL USO DE PLACA HUELLA EN LOS MUNICIPIOS DE GUATAVITA, PACHO, SAN JUAN DE RIOSECO, SUBACHOQUE, TENA Y ZIPAQUIRÁ, DEPARTAMENTO DE CUNDINAMARCA","TRANSPORTE",6791102422,{"$error":"#VALUE!"},43124,2017,"067 DE 2017","CONTRATADO EN EJECUCIÓN",null,null,null,null,null,null,null,null,null,null,null,null,null,null,44607,44706,-146,-47,0]
[92,"CUNDINAMARCA","SECRETARIA DE HABITAT Y VIVIENDA",2017000050042,"MEJORAMIENTO DE VIVIENDAS RURALES DE LA PROVINCIA DE UBATÉ - CUNDINAMARCA","AGRICULTURA ",2354318125,{"$error":"#VALUE!"},43096,2017,"069 de 2017","TERMINADO",null,null,null,null,null,null,null,null,null,null,null,null,null,44669,44706,44669,-47,-84,-84]
[93,"CUNDINAMARCA","SECRETARIA DE SALUD",2017000050061,"ADQUISICIÓN AMBULANCIAS DE TRANSPORTE ASISTENCIAL BÁSICO (TAB) Y TRANSPORTE ASISTENCIAL MEDICALIZADA (TAM), PARA EL APOYO DEL SISTEMA DE REFERENCIA Y CONTRA REFERENCIA DE LA RED HOSPITALARIA DEL DEPARTAMENTO DE CUNDINAMARCA","SALUD Y PROTECCIÓN SOCIAL",3764666699,{"$error":"#VALUE!"},43081,2017,"069 de 2017","CERRADO",null,null,null,null,null,null,null,null,null,null,null,null,null,44706,44607,44740,-146,-13,-47]
[94,"CUNDINAMARCA","SECRETARIA DE AGRICULTURA",2017000050062,"FORTALECIMIENTO DE LAS CADENAS PRODUCTIVAS DE MANGO, AGUACATE Y CÍTRICOS EN EL DEPARTAMENTO DE CUNDINAMARCA","AGRICULTURA ",3000129600,{"$error":"#VALUE!"},43124,2018,"072 DE 2018","CERRADO",null,null,null,null,null,null,null,null,null,null,null,null,null,44740,44607,44740,-146,-13,-13]
[95,"CUNDINAMARCA","SECRETARIA DE MINAS, ENERGIA Y GAS",2017000050064,"CONSTRUCCIÓN DE REDES ELÉCTRICAS EN ZONA RURAL DE 13 MUNICIPIOS, EN EL MARCO DEL PROYECTO ILUMINANDO VIDAS DEL DEPARTAMENTO DE CUNDINAMARCA","MINAS Y ENERGÍA",2972842689,{"$error":"#VALUE!"},43273,2018,"076 DE 2018","CERRADO",null,null,null,null,null,null,null,null,null,null,null,null,null,44740,44607,44740,-146,-13,-13]
[96,"CUNDINAMARCA","SECRETARIA DE AGRICULTURA",2017000050065,"MEJORAMIENTO DE LA PRODUCTIVIDAD Y RENTABILIDAD DE LOS CAFICULTORES DEL DEPARTAMENTO DE CUNDINAMARCA","AGRICULTURA ",6523880054,{"$error":"#VALUE!"},43096,2017,"069 DE 2017","CONTRATADO EN EJECUCIÓN",null,null,null,null,null,null,null,null,null,null,null,null,null,null,44607,44607,-146,-146,0]
[97,"CUNDINAMARCA","SECRETARIA DE CIENCIA, TECNOLOGIA E INNOVACIÓN",2017000100016,"IMPLEMENTACIÓN PROGRAMA DE INNOVACIÓN PARA LA VALIDACIÓN Y GENERACIÓN DE PRODUCTOS DERIVADOS DE LA BIODIVERSIDAD EN EL DEPARTAMENTO DE CUNDINAMARCA","CTEL",4486653319,{"$error":"#VALUE!"},42941,2017,"058 DE 2017","CONTRATADO EN EJECUCIÓN",null,null,null,null,null,null,null,null,null,null,null,null,null,44740,44635,44740,-118,-13,-13]
[98,"CUNDINAMARCA","SECRETARIA DE CIENCIA, TECNOLOGIA E INNOVACIÓN",2017000100034,"IMPLEMENTACIÓN DE UN SISTEMA DE GESTIÓN DE INNOVACIÓN PARA LA INDUSTRIA DE CUNDINAMARCA","CTEL",3925471448,{"$error":"#VALUE!"},42941,2017,"058 DE 2017","CONTRATADO EN EJECUCIÓN",null,null,null,null,null,null,null,null,null,null,null,null,null,null,44607,44607,-146,-146,0]
[99,"CUNDINAMARCA","SECRETARIA DE CIENCIA, TECNOLOGIA E INNOVACIÓN",2017000100074,"IMPLEMENTACIÓN DE ESTRATEGIAS DE FOMENTO A LA CULTURA Y SERVICIOS DE INNOVACIÓN EN LAS PROVINCIAS SABANA OCCIDENTE, SABANA CENTRAL, SOACHA Y SUMAPAZ CUNDINAMARCA","CTEL",6183633276,{"$error":"#VALUE!"},43098,2017,"063 DE 2017","TERMINADO",null,null,null,null,null,null,null,null,null,null,null,null,null,null,44607,44607,-146,-146,0]
[100,"CUNDINAMARCA","SECRETARIA DE CIENCIA, TECNOLOGIA E INNOVACIÓN",2017000100076,"FORTALECIMIENTO DE CAPACIDADES DE GESTIÓN DEL RIESGO A TRAVÉS DE APROPIACIÓN SOCIAL DE LA CIENCIA, LA TECNOLOGÍA Y LA INNOVACIÓN EN EL DEPARTAMENTO DE CUNDINAMARCA","CTEL",4404970720,{"$error":"#VALUE!"},43322,2018,"068 DE 2018","CONTRATADO EN EJECUCIÓN",null,null,null,null,null,null,null,null,null,null,null,null,null,44740,44607,44607,-146,-146,-13]
[101,"CUNDINAMARCA","SECRETARIA DE CIENCIA, TECNOLOGIA E INNOVACIÓN",2017000100087,"FORMACIÓN DE TALENTO HUMANO DE ALTO NIVEL EN MAESTRÍAS EN EL DEPARTAMENTO DE CUNDINAMARCA","CTEL",5148022960,{"$error":"#VALUE!"},43698,2019,"078 DE 2019","CONTRATADO EN EJECUCIÓN",null,null,null,null,null,null,null,null,null,null,null,null,null,null,44607,44607,-146,-146,0]
[102,"CUNDINAMARCA","SECRETARIA DE CIENCIA, TECNOLOGIA E INNOVACIÓN",2017000100104,"FORTALECIMIENTO DE LA CULTURA DE LA GESTIÓN Y UTILIZACIÓN DEL CONOCIMIENTO EN CTEI EN NIÑOS, JÓVENES Y COMUNIDADES DEL DEPARTAMENTO DE CUNDINAMARCA","CTEL",9498967749,{"$error":"#VALUE!"},43565,2019,"074 DE 2019","CONTRATADO EN EJECUCIÓN",null,null,null,null,null,null,null,null,null,null,null,null,null,44706,44706,44607,-47,-146,-47]
[103,"CUNDINAMARCA","UNIDAD ADMINISTRATIVA DE GESTIÓN DEL RIESGO.",20172401060022,"ESTUDIOS DETALLADOS PARA LA INCORPORACIÓN DE LA GESTIÓN DEL RIESGO PARA LOS MUNICIPIOS DE GIRARDOT, RICAURTE","AMBIENTE Y DESARROLLO SOSTENIBLE",3084907873,{"$error":"#VALUE!"},43802,2019,"033 DE 2019","CONTRATADO EN EJECUCIÓN",null,null,null,null,null,null,null,null,null,null,null,null,null,null,44607,44607,-146,-146,0]
[104,"CUNDINAMARCA","SECRETARIA DE CIENCIA, TECNOLOGIA E INNOVACIÓN",20170000100012,"CONFORMACIÓN DE UNA CONVOCATORIA REGIONAL DE PROYECTOS I+D EN FOCOS PRIORIZADOS CTEI PARA EL FORTALECIMIENTO DE LOS GRUPOS DE INVESTIGACIÓN CUNDINAMARCA","CTEL",7321934035,{"$error":"#VALUE!"},42941,2017,"058 DE 2017","CONTRATADO EN EJECUCIÓN",null,null,null,null,null,null,null,null,null,null,null,null,null,null,44607,44607,-146,-146,0]
[105,"ENTIDAD APORTANTE RECURSOS","CAR",2017000050063,"RECUPERACIÓN HIDRÁULICA Y AMBIENTAL DEL COMPLEJO LAGUNAR  FÚQUENE","AMBIENTE Y DESARROLLO SOSTENIBLE",18000000000,{"$error":"#VALUE!"},43364,2018,"081 DE 2018","CONTRATADO EN EJECUCIÓN",null,null,null,null,null,null,null,null,null,null,null,null,null,null,44607,44607,-146,-146,0]
[106,"ENTIDAD APORTANTE RECURSOS","CAR",2017000050070,"CONSTRUCCIÓN DE OBRAS DE MITIGACIÓN DEL RIESGO POR EVENTOS CLIMÁTICOS EN LA CUENCA DE LA QUEBRADA LA PARROQUIA EN EL CERRO DE FUSACATÁN DEL MUNICIPIO DE  FUSAGASUGÁ, CUNDINAMARCA","AMBIENTE Y DESARROLLO SOSTENIBLE",1976558725,{"$error":"#VALUE!"},43417,2018,"082 DE 2018","DESAPROBADO",null,null,null,null,null,null,null,null,null,null,null,null,null,null,44607,44671,-146,-82,0]
[107,"ENTIDAD APORTANTE RECURSOS","MUNICIPIO DE UTICA",2017000050087,"MEJORAMIENTO DEL SENDERO TURÍSTICO DE LA PROVINCIA DEL GUALIVÁ  – ÚTICA  CUNDINAMARCA","COMERCIO, INDUSTRIA Y TURISMO ",2347004868,{"$error":"#VALUE!"},43211,2018,"075 de 2018","CONTRATADO EN EJECUCIÓN",null,null,null,null,null,null,null,null,null,null,null,null,null,44706,44706,44740,-47,-13,-47]
[108,"CUNDINAMARCA","SECRETARIA DE EDUCACIÓN",2018000050019,"FORTALECIMIENTO DE LA PERMANENCIA DE LOS ESTUDIANTES EN LOS MUNICIPIOS DEL DEPARTAMENTO DE CUNDINAMARCA, CENTRO ORIENTE 2018 CUNDINAMARCA","EDUCACIÓN",19395559645,{"$error":"#VALUE!"},43336,2018,"080 DE 2018","CERRADO",null,null,null,null,null,null,null,null,null,null,null,null,null,null,44740,44607,-13,-146,0]
[109,"ENTIDAD APORTANTE RECURSOS","ICCU - GESPROY GB",2018000050022,"MEJORAMIENTO Y REHABILITACIÓN DE VÍAS SECUNDARIAS EN LA PROVINCIA DE UBATÉ, DEPARTAMENTO DE CUNDINAMARCA","TRANSPORTE",7524876363,{"$error":"#VALUE!"},43320,2018,"078 de 2018","PARA CIERRE",null,null,null,null,null,null,null,null,null,null,null,null,null,null,44607,44607,-146,-146,0]
[110,"ENTIDAD APORTANTE RECURSOS","ICCU - GESPROY GB",2018000050024,"MEJORAMIENTO Y REHABILITACIÓN DE LA VÍA LA MARÍA – TOBIA - PASO EL REJO - LA PEÑA, DEPARTAMENTO DE CUNDINAMARCA","TRANSPORTE",9149162991,{"$error":"#VALUE!"},43417,2018,"082 de 2018","TERMINADO",null,null,null,null,null,null,null,null,null,null,null,null,null,null,44607,44607,-146,-146,0]
[111,"ENTIDAD APORTANTE RECURSOS","ICCU - GESPROY GB",2018000050026,"MEJORAMIENTO DE VÍAS EN LA PROVINCIA DE SUMAPAZ PARA LA CONSOLIDACIÓN DE UNA PAZ ESTABLE Y DURADERA EN EL DEPARTAMENTO DE CUNDINAMARCA","TRANSPORTE",11457047617,{"$error":"#VALUE!"},43462,2018,"011 de 2018 - OCAD PAZ","CONTRATADO EN EJECUCIÓN",null,null,null,null,null,null,null,null,null,null,null,null,null,44740,44607,44740,-146,-13,-13]
[112,"CUNDINAMARCA","UNIDAD ADMINISTRATIVA DE GESTIÓN DEL RIESGO.",2018000050036,"CONSTRUCCIÓN DE OBRAS PARA LA MITIGACIÓN DEL RIESGO EN EL MUNICIPIO DE SAN BERNARDO, BENEFICIANDO A COMUNIDADES DE LOS MUNICIPIOS DE ARBELAEZ, PANDI Y VENECIA CUNDINAMARCA","AMBIENTE Y DESARROLLO SOSTENIBLE",2305788182,{"$error":"#VALUE!"},43629,2019,"089 de 2019","DESAPROBADO",null,null,null,null,null,null,null,null,null,null,null,null,null,44671,44607,44706,-146,-47,-82]
[113,"CUNDINAMARCA","SECRETARIA DE HABITAT Y VIVIENDA",2018000050039,"MEJORAMIENTO DE VIVIENDA RURAL EN LOS MUNICIPIOS DE CUCUNUBÁ, JERUSALEN, QUEBRADANEGRA Y VIOTÁ - DEPARTAMENTO DE CUNDINAMARCA","AGRICULTURA ",4024793625,{"$error":"#VALUE!"},43571,2019,"009 DE 2019","CONTRATADO EN EJECUCIÓN",null,null,null,null,null,null,null,null,null,null,null,null,null,null,44607,44607,-146,-146,0]
[114,"ENTIDAD APORTANTE RECURSOS","ICCU - GESPROY GB",2018000050049,"MEJORAMIENTO DE LA VÍA SESQUILÉ – GUATAVITA - GACHETÁ, DEPARTAMENTO DE CUNDINAMARCA","TRANSPORTE",3997714045,{"$error":"#VALUE!"},43455,2018,"084 de 2018","PARA CIERRE",null,null,null,null,null,null,null,null,null,null,null,null,null,null,44740,44607,-13,-146,0]
[115,"ENTIDAD APORTANTE RECURSOS","ICCU - GESPROY GB",2018000050055,"MEJORAMIENTO DE LA TRONCAL DE RIONEGRO, SECTOR LA PALMA CHARCO LARGO PARA LA CONSOLIDACIÓN DE UNA PAZ ESTABLE Y DURADERA EN EL DEPARTAMENTO DE CUNDINAMARCA","TRANSPORTE",17928531277,{"$error":"#VALUE!"},43532,2019,"086 de 2019","CERRADO",null,null,null,null,null,null,null,null,null,null,null,null,null,null,44740,44607,-13,-146,0]
[116,"ENTIDAD APORTANTE RECURSOS","ICCU - GESPROY GB",2018000050059,"MEJORAMIENTO DE LA VÍA GUSBITA - TIBIRITA DEL DEPARTAMENTO DE CUNDINAMARCA","TRANSPORTE",5500531740,{"$error":"#VALUE!"},43532,2019,"086 de 2019","TERMINADO",null,null,null,null,null,null,null,null,null,null,null,null,null,null,44607,44607,-146,-146,0]
[117,"CUNDINAMARCA","SECRETARIA DE CIENCIA, TECNOLOGIA E INNOVACIÓN",2018000100106,"INNOVACIÓN EN EL MODELO DE GESTIÓN DEL MEDICAMENTO FASE III EN EL DEPARTAMENTO DE  CUNDINAMARCA","CTEL",3452890062,{"$error":"#VALUE!"},43830,2019,"087 DE 2019","NO HA MIGRADO A GESPROY",null,null,null,null,null,null,null,null,null,null,null,null,null,44740,44635,44740,-118,-13,-13]
[118,"CUNDINAMARCA","SECRETARIA DE CIENCIA, TECNOLOGIA E INNOVACIÓN",2018000100160,"FORMACIÓN DE CAPITAL HUMANO DE ALTO NIVEL PARA LA INVESTIGACIÓN, EL DESARROLLO TECNOLÓGICO Y LA INNOVACIÓN MAESTRÍAS DE INVESTIGACIÓN PARA DOCENTES DEL DEPARTAMENTO DE CUNDINAMARCA","CTEL",5217415747,{"$error":"#VALUE!"},43731,2019,"080 DE 2019","CONTRATADO EN EJECUCIÓN",null,null,null,null,null,null,null,null,null,null,null,null,null,44740,44607,44607,-146,-146,-13]
[119,"CUNDINAMARCA","ENTIDAD DESIGNADA PARA LA SUPERVISIÓN DEL PROYECTO O PARA CONTRATAR LA INTERVENTORÍA-EMPRESAS PUBLICAS DE CUNDINAMARCA -EPC",20181301010555,"CONSTRUCCIÓN DE UNIDADES SANITARIAS EN EL ÁREA RURAL DEL DEPARTAMENTO DE CUNDINAMARCA","VIVIENDA, CIUDAD Y TERRITORIO ",4999900475,{"$error":"#VALUE!"},43378,2018,"010 DE 2018 - OCAD PAZ","CONTRATADO EN EJECUCIÓN",null,null,null,null,null,null,null,null,null,null,null,null,null,44740,44607,44607,-146,-146,-13]
[120,"ENTIDAD APORTANTE RECURSOS","ICCU - GESPROY GB",2019000050002,"MEJORAMIENTO DE LA VÍA DEPARTAMENTAL LA VICTORIA (EL COLEGIO) SAN GABRIEL (VIOTÁ), TRAMO LA VICTORIA ALTO DE LA MULA, DEPARTAMENTO DE CUNDINAMARCA","TRANSPORTE",5745879373,{"$error":"#VALUE!"},43532,2019,"086 de 2019","CERRADO",null,null,null,null,null,null,null,null,null,null,null,null,null,null,44607,44607,-146,-146,0]
[121,"ENTIDAD APORTANTE RECURSOS","ICCU - GESPROY GB",2019000050003,"MEJORAMIENTO DE LA VÍA CÁQUEZA FOSCA, DEPARTAMENTO DE CUNDINAMARCA","TRANSPORTE",4049029755,{"$error":"#VALUE!"},43585,2019,"088 de 2019","CERRADO",null,null,null,null,null,null,null,null,null,null,null,null,null,44740,44607,44706,-146,-47,-13]
[122,"ENTIDAD APORTANTE RECURSOS","ICCU - GESPROY GB",2019000050005,"MEJORAMIENTO DE LA VÍA FÓMEQUE UBAQUE, DEPARTAMENTO DE CUNDINAMARCA","TRANSPORTE",16514204213,{"$error":"#VALUE!"},43629,2019,"089 DE 2019","CERRADO",null,null,null,null,null,null,null,null,null,null,null,null,null,44706,44671,44607,-82,-146,-47]
[123,"ENTIDAD APORTANTE RECURSOS","ICCU - GESPROY GB",2019000050011,"MEJORAMIENTO DE LA VÍA SUPATÁ - PACHO, DEPARTAMENTO DE CUNDINAMARCA","TRANSPORTE",7339441010,{"$error":"#VALUE!"},43585,2019,"088 DE 2019","CONTRATADO EN EJECUCIÓN",null,null,null,null,null,null,null,null,null,null,null,null,null,null,44607,44607,{"$f":"IF(AA132=0,0,_xlfn.DAYS(AA132,TODAY()))","v":-146},-146,0]
[124,"ENTIDAD APORTANTE RECURSOS","ICCU - GESPROY GB",2019000050013,"CONSTRUCCIÓN DE LA PLAZA DE MERCADO DEL MUNICIPIO DE CHOACHÍ CUNDINAMARCA","AGRICULTURA ",3152125044,{"$error":"#VALUE!"},43687,2019,"090 DE 2019","CONTRATADO EN EJECUCIÓN",null,null,null,null,null,null,null,null,null,null,null,null,null,null,44607,44607,-146,-146,{"$f":"IF(Z133=0,0,_xlfn.DAYS(Z133,TODAY()))","v":0}]
[125,"ENTIDAD APORTANTE RECURSOS","ICCU - GESPROY GB",2019000050016,"MEJORAMIENTO DE LA VÍA ANOLAIMA CORRALEJAS (INSPECCIÓN DE CORRALEJAS), DEPARTAMENTO DE CUNDINAMARCA","TRANSPORTE",6898362469,{"$error":"#VALUE!"},43629,2019,"089 DE 2019","TERMINADO",null,null,null,null,null,null,null,null,null,null,null,null,null,44740,44607,44740,-146,-13,-13]
[126,"CUNDINAMARCA","SECRETARIA DE EDUCACIÓN",2019000050020,"FORTALECIMIENTO DE LA PERMANENCIA DE LOS ESTUDIANTES PARA EL AÑO 2019 EN LOS MUNICIPIOS DEL DEPARTAMENTO DE CUNDINAMARCA","EDUCACIÓN",20536293937,{"$error":"#VALUE!"},43629,2019,"089 DE 2019","TERMINADO",null,null,null,null,null,null,null,null,null,null,null,null,null,null,44607,44607,-146,-146,0]
[127,"ENTIDAD APORTANTE RECURSOS","ICCU - GESPROY GB",2019000050023,"MEJORAMIENTO DE LA VÍA LENGUAZAQUE - VILLAPINZÓN, DEPARTAMENTO DE CUNDINAMARCA","TRANSPORTE",8636278689,{"$error":"#VALUE!"},43629,2019,"089 DE 2019","TERMINADO",null,null,null,null,null,null,null,null,null,null,null,null,null,null,44607,44607,-146,-146,0]
[128,"CUNDINAMARCA","SECRETARIA DE AGRICULTURA",2019000050027," MEJORAMIENTO DE LA COMPETITIVIDAD  DE LA CADENA PRODUCTIVA DE CACAO EN EL DEPARTAMENTO DE CUNDINAMARCA","AGRICULTURA ",5862983962,{"$error":"#VALUE!"},43819,2019,"098 DE 2019","CONTRATADO EN EJECUCIÓN",null,null,null,null,null,null,null,null,null,null,null,null,null,null,44607,44607,-146,-146,0]
[129,"ENTIDAD APORTANTE RECURSOS","ICCU - GESPROY GB",2019000050029,"MEJORAMIENTO DE LA VÍA GACHETÁ - GAMA, DEPARTAMENTO DE CUNDINAMARCA","TRANSPORTE","$ 5.477.582.208",{"$f":"F138-G138","v":{"$error":"#VALUE!"}},43629,2019,"089 DE 2019","TERMINADO",null,null,null,null,null,null,null,null,null,null,null,null,null,null,44706,44607,-47,-146,0]
[130,"CUNDINAMARCA","SECRETARIA DE SALUD",2019000050036,"ADQUISICIÓN DE AMBULANCIAS PARA EL FORTALECIMIENTO DE LA RED HOSPITALARIA DEL DEPARTAMENTO CUNDINAMARCA","SALUD Y PROTECCIÓN SOCIAL",2385000000,{"$error":"#VALUE!"},43656,2019,"090 DE 2019","CERRADO",null,null,null,null,null,null,null,null,null,null,null,null,null,null,44706,44706,-47,-47,0]
[131,"CUNDINAMARCA","UNIDAD ADMINISTRATIVA DE GESTIÓN DEL RIESGO.",2019000050037," FORTALECIMIENTO DEL SISTEMA DEPARTAMENTAL PARA LA GESTIÓN DEL RIESGO DE DESASTRES DEL DEPARTAMENTO DE CUNDINAMARCA","PRESIDENCIA DE LA REPÚBLICA",4936307506,{"$error":"#VALUE!"},43748,2019,"094 DE 2019","DESAPROBADO",null,null,null,null,null,null,null,null,null,null,null,null,null,44740,44607,44607,-146,-146,-13]
[132,"ENTIDAD APORTANTE RECURSOS","MEDICINA LEGAL Y CIENCIAS FORENSES",2019000050025,"ESTUDIOS Y DISEÑOS PARA LA CONSTRUCCIÓN DE LA SEDE DE MEDICINA LEGAL EN EL DEPARTAMENTO DE CUNDINAMARCA","FISCALIA",904521100,{"$error":"#VALUE!"},43677,2019,"091 DE 2019","CONTRATADO EN EJECUCIÓN",null,null,null,null,null,null,null,null,null,null,null,null,null,44740,44607,44607,-146,-146,-13]
[133,"CUNDINAMARCA","SECRETARIA DE MINAS, ENERGIA Y GAS",2019000050039," ESTUDIO Y DISEÑO PARA LA CONSTRUCCIÓN DE REDES ELÉCTRICAS AÉREAS EN ZONAS RURALES DEL DEPARTAMENTO DE CUNDINAMARCA","MINAS Y ENERGÍA",1616407501,{"$error":"#VALUE!"},43714,2019,"092 DE 2019","DESAPROBADO",null,null,null,null,null,null,null,null,null,null,null,null,null,44706,44607,44706,-146,-47,-47]
[134,"CUNDINAMARCA","SECRETARIA DE EDUCACIÓN",2019000050044,"FORTALECIMIENTO A LA ESTRATEGIA DE ALIMENTACIÓN ESCOLAR PARA MUNICIPIOS NO CERTIFICADOS, VIGENCIA 2019 DEL DEPARTAMENTO DE CUNDINAMARCA","EDUCACIÓN",18301749135,{"$error":"#VALUE!"},43656,2019,"090 DE 2019","CERRADO",null,null,null,null,null,null,null,null,null,null,null,null,null,null,44607,44607,-146,-146,0]
[135,"ENTIDAD APORTANTE RECURSOS","ICCU - GESPROY GB",2019000050047,"MEJORAMIENTO DE LA VÍA SUSA - CARMEN DE CARUPA, DEPARTAMENTO DE CUNDINAMARCA","TRANSPORTE",4131178258,{"$error":"#VALUE!"},43677,2019,"091 DE 2019","TERMINADO",null,null,null,null,null,null,null,null,null,null,null,null,null,null,44607,44607,-146,-146,0]
[136,"ENTIDAD APORTANTE RECURSOS","ICCU - GESPROY GB",2019000050056,"MEJORAMIENTO DE LA VÍA QUE CONDUCE DEL MUNICIPIO DE NIMAIMA AL MUNICIPIO DE NOCAIMA, DEPARTAMENTO DE CUNDINAMARCA","TRANSPORTE",5082491569.8000002,{"$error":"#VALUE!"},43748,2019,"094 DE 2019","TERMINADO",null,null,null,null,null,null,null,null,null,null,null,null,null,null,44706,44607,-47,-146,0]
[137,"ENTIDAD APORTANTE RECURSOS","IDECUT",2019000050059,"FORTALECIMIENTO A LAS ESCUELAS MUNICIPALES DE MÚSICA, DANZA, TEATRO Y ARTES PLÁSTICAS Y VISUALES EN EL DEPARTAMENTO DE CUNDINAMARCA","CULTURA ",1972606058,{"$error":"#VALUE!"},43748,2019,"094 DE 2019","TERMINADO",null,null,null,null,null,null,null,null,null,null,null,null,null,null,44607,44607,-146,-146,0]
[138,"ENTIDAD APORTANTE RECURSOS","ICCU - GESPROY GB",2019000050060,"ESTUDIOS Y DISEÑOS DE VÍAS PARA MEJORAR LA COMPETITIVIDAD DEL DEPARTAMENTO DE CUNDINAMARCA","TRANSPORTE",7089369627,{"$error":"#VALUE!"},43714,2019,"092 DE 2019","TERMINADO",null,null,null,null,null,null,null,null,null,null,null,null,null,44706,44635,44706,-118,-47,-47]
[139,"CUNDINAMARCA","SECRETARIA DE MINAS, ENERGIA Y GAS",2019000050073,"AMPLIACIÓN DE LA COBERTURA DEL SERVICIO DE GAS COMBUSTIBLE DOMICILIARIO A TRAVÉS DE LA FINANCIACIÓN DE LA CONEXIÓN Y LA RED INTERNA PARA USUARIOS DE BARRIOS PERIFÉRICOS, VEREDAS Y CENTROS POBLADOS DEL DEPARTAMENTO DE CUNDINAMARCA","MINAS Y ENERGÍA",12461377100,{"$error":"#VALUE!"},43805,2019,"097 DE 2019","CONTRATADO EN EJECUCIÓN",null,null,null,null,null,null,null,null,null,null,null,null,null,44706,44635,44706,-118,-47,-47]
[140,"ENTIDAD APORTANTE RECURSOS","ICCU - GESPROY GB",2019000050075,"MEJORAMIENTO DE LA VÍA QUE CONDUCE DEL MUNICIPIO DE VIANI AL MUNICIPIO DE CHAGUANI, (DE LA Y DE SAN VICENTE A CHAGUANI), DEPARTAMENTO DE CUNDINAMARCA","TRANSPORTE",7504443091,{"$error":"#VALUE!"},43819,2019,"098 DE 2019","CONTRATADO EN EJECUCIÓN",null,null,null,null,null,null,null,null,null,null,null,null,null,44706,44607,44671,-146,-82,-47]
[141,"ENTIDAD APORTANTE RECURSOS","ICCU - GESPROY GB",2019000050079,"MEJORAMIENTO DE LA VÍA SERREZUELA - EL TRIUNFO, MUNICIPIO DE LA CALERA, DEPARTAMENTO DE CUNDINAMARCA","TRANSPORTE",7614258187,{"$error":"#VALUE!"},43748,2019,"094 DE 2019","TERMINADO",null,null,null,null,null,null,null,null,null,null,null,null,null,44706,44635,44706,-118,-47,-47]
[142,"ENTIDAD APORTANTE RECURSOS","ICCU - GESPROY GB",2019000050085,"MEJORAMIENTO DE LA VÍA QUE CONDUCE DEL MUNICIPIO DE LA MESA AL MUNICIPIO DE CACHIPAY, (DE LA INSPECCIÓN DE PEÑA NEGRA AL MUNICIPIO DE CACHIPAY), DEPARTAMENTO DE CUNDINAMARCA","TRANSPORTE",7019896083,{"$error":"#VALUE!"},43852,2019,"96 DE 2019","CONTRATADO EN EJECUCIÓN",null,null,null,null,null,null,null,null,null,null,null,null,null,44706,44635,44706,-118,-47,-47]
[143,"ENTIDAD APORTANTE RECURSOS","TV ANDINA",2019000050064,"PROTECCIÓN Y PRESERVACIÓN DEL PATRIMONIO AUDIOVISUAL COLOMBIANO QUE SE ENCUENTRA EN EL CANAL PÚBLICO TEVEANDINA LOCALIZADO EN EL DEPARTAMENTO DE  CUNDINAMARCA","CULTURA ",5923285198,{"$error":"#VALUE!"},43774,2019,"095 DE 2019","CERRADO",null,null,null,null,null,null,null,null,null,null,null,null,null,44706,44607,44706,-146,-47,-47]
[144,"ENTIDAD APORTANTE RECURSOS","UNAD",2019000050069,"MEJORAMIENTO DE INFRAESTRUCTURA FÍSICA, DOTACIÓN DE MOBILIARIO Y EQUIPAMIENTO TECNOLÓGICO DE LA UNIVERSIDAD NACIONAL ABIERTA Y A DISTANCIA EN MUNICIPIOS DEL DEPARTAMENTO DE CUNDINAMARCA","EDUCACIÓN",16011115461,{"$error":"#VALUE!"},43774,2019,"095 DE 2019","TERMINADO",null,null,null,null,null,null,null,null,null,null,null,null,null,44706,44607,44671,-146,-82,-47]
[145,"ENTIDAD APORTANTE RECURSOS","U TECNOLOGICA DE PEREIRA",2019000100009,"FORMACIÓN DE CAPITAL HUMANO DE ALTO NIVEL UNIVERSIDAD TECNOLÓGICA DE PEREIRA  NACIONAL","CTEL",4360028215,{"$error":"#VALUE!"},43781,2019,"083 DE 2019","CONTRATADO EN EJECUCIÓN",null,null,null,null,null,null,null,null,null,null,null,null,null,44671,44635,44706,-118,-47,-82]
[146,"ENTIDAD APORTANTE RECURSOS","U EAN",2019000100015,"FORMACIÓN DE CAPITAL HUMANO DE ALTO NIVEL - UNIVERSIDAD EAN -  NACIONAL","CTEL",1294375000,{"$error":"#VALUE!"},43830,2019,"087 DE 2019","CONTRATADO EN EJECUCIÓN",null,null,null,null,null,null,null,null,null,null,null,null,null,44706,44635,44706,-118,-47,-47,null,2019000100061]
[147,"ENTIDAD APORTANTE RECURSOS","U CATOLICA",2019000100022,"FORMACIÓN DE CAPITAL HUMANO DE ALTO NIVEL - UNIVERSIDAD CATÓLICA DE COLOMBIA -  NACIONAL","CTEL",343595000,{"$error":"#VALUE!"},43812,2019,"086 DE 2019","CONTRATADO EN EJECUCIÓN",null,null,null,null,null,null,null,null,null,null,null,null,null,44740,44636,44706,-117,-47,-13,null,2020000100137]
[148,"ENTIDAD APORTANTE RECURSOS","UNIVERSIDAD MILITAR NUEVA GRANADA",2019000100025,"FORMACIÓN DE CAPITAL HUMANO DE ALTO NIVEL UNIVERSIDAD MILITAR NUEVA GRANADA  NACIONAL","CTEL",294375000,{"$error":"#VALUE!"},43812,2019,"086 DE 2019","CONTRATADO EN EJECUCIÓN",null,null,null,null,null,null,null,null,null,null,null,null,null,44740,44637,44607,-116,-146,-13,null,2020000050003]
[149,"ENTIDAD APORTANTE RECURSOS","UNIVERSIDAD NACIONAL DE COLOMBIA",2019000100026,"FORMACIÓN DE CAPITAL HUMANO DE ALTO NIVEL UNIVERSIDAD NACIONAL DE COLOMBIA   NACIONAL","CTEL",21162064500,{"$error":"#VALUE!"},43781,2019,"083 DE 2019","CONTRATADO EN EJECUCIÓN",null,null,null,null,null,null,null,null,null,null,null,null,null,null,44607,44607,-146,-146,0,null,2020000050012]
[150,"ENTIDAD APORTANTE RECURSOS","U DISTRITAL",2019000100027,"FORMACIÓN DE CAPITAL HUMANO DE ALTO NIVEL EN DOCTORADO PARA EL DESARROLLO REGIONAL, UNIVERSIDAD DISTRITAL FRANCISCO JOSÉ DE CALDAS, A NIVEL  NACIONAL","CTEL",1218668841,{"$error":"#VALUE!"},43798,2019,"085 DE 2019","CONTRATADO EN EJECUCIÓN",null,null,null,null,null,null,null,null,null,null,null,null,null,null,44607,44607,-146,-146,0,null,2020000050019]
[151,"ENTIDAD APORTANTE RECURSOS","U JAVERIANA",2019000100028,"FORMACIÓN DE CAPITAL HUMANO DE ALTO NIVEL PONTIFICIA UNIVERSIDAD JAVERIANA SEDE CENTRAL  NACIONAL","CTEL",6524500000,{"$error":"#VALUE!"},43781,2019,"083 DE 2019","CONTRATADO EN EJECUCIÓN",null,null,null,null,null,null,null,null,null,null,null,null,null,44740,44607,44740,-146,-13,-13,null,2020000100266]
[152,"ENTIDAD APORTANTE RECURSOS","U DE LOS ANDES",2019000100036,"FORMACIÓN  DE CAPITAL HUMANO DE ALTO NIVEL UNIVERSIDAD DE LOS ANDES   NACIONAL","CTEL",2814671307,{"$error":"#VALUE!"},43798,2019,"085 DE 2019","CONTRATADO EN EJECUCIÓN",null,null,null,null,null,null,null,null,null,null,null,null,null,44740,44635,44740,-118,-13,-13,null,2020000100246]
[153,"ENTIDAD APORTANTE RECURSOS","UNIVERSIDAD NACIONAL DE COLOMBIA",2019000100061,"FORTALECIMIENTO DE LA CAPACIDAD TECNOLÓGICA INSTALADA EN EL CENTRO AGROPECUARIO MARENGO PARA LA INVESTIGACIÓN EN LOS SISTEMAS AGROPRODUCTIVOS DEL TRÓPICO ALTO, BAJO EL EFECTO DE LA VARIABILIDAD Y CAMBIO CLIMÁTICO -  CUNDINAMARCA","CTEL",2386591598.0999999,{"$error":"#VALUE!"},43830,2019,"087 DE 2019","CONTRATADO EN EJECUCIÓN",null,null,null,null,null,null,null,null,null,null,null,null,null,44671,44741,44671,-12,-82,-82,null,2020000100078]
[154,"CUNDINAMARCA","SECRETARIA DE CIENCIA, TECNOLOGIA E INNOVACIÓN",2020000100137,"FORTALECIMIENTO DE LAS CAPACIDADES DE INVESTIGACIÓN Y DESARROLLO PARA ATENDER PROBLEMÁTICAS ASOCIADAS CON AGENTES BIOLÓGICOS PARA LA SALUD PÚBLICA, A TRAVÉS DEL MEJORAMIENTO DEL LABORATORIO DE SALUD PÚBLICA DE CUNDINAMARCA","CTEL",4506359274,{"$error":"#VALUE!"},43966,2020,"093 DE 2020","CONTRATADO EN EJECUCIÓN",null,null,null,null,null,null,null,null,null,null,null,null,null,null,44635,44635,-118,-118,0,null,2020000100205]
[155,"CUNDINAMARCA","SECRETARIA DE SALUD",2020000050003,"ADQUISICIÓN DE AMBULANCIAS,EQUIPOS BIOMÉDICOS, ELEMENTOS DE PROTECCIÓN PERSONAL, ASEO Y DESINFECCIÓN PARA LA ATENCIÓN DE LA CALAMIDAD SANITARIA POR COVID-19 EN LAS E.S.E DEL DEPARTAMENTO DE   CUNDINAMARCA","SALUD Y PROTECCIÓN SOCIAL",43433295564,{"$error":"#VALUE!"},43986,2020,"102 de 2020","CONTRATADO EN EJECUCIÓN",null,null,null,null,null,null,null,null,null,null,null,null,null,44671,44635,44671,-118,-82,-82,null,2020000100197]
[156,"CUNDINAMARCA","UNIDAD ADMINISTRATIVA DE GESTIÓN DEL RIESGO.",2020000050012,"ADQUISICIÓN DE ELEMENTOS DE PROTECCIÓN DE CONTAGIO DEL VIRUS COVID-19 PARA LOS CUERPOS OPERATIVOS DE EMERGENCIA, EN ATENCIÓN DE LA CALAMIDAD SANITARIA EN EL DEPARTAMENTO DE   CUNDINAMARCA","GOBIERNO TERRITORIAL",5419592232,{"$error":"#VALUE!"},43986,2020,"102 DE 2020","CERRADO",null,null,null,null,null,null,null,null,null,null,null,null,null,44671,44635,44671,-118,-82,-82,null,2020000100240]
[157,"CUNDINAMARCA","SECRETARIA DE EDUCACIÓN",2020000050019,"FORTALECIMIENTO A LA ESTRATEGIA DE ALIMENTACIÓN ESCOLAR PARA EL AÑO 2020, EN LOS MUNICIPIOS DEL DEPARTAMENTO DE CUNDINAMARCA ","EDUCACIÓN",26240955000,{"$error":"#VALUE!"},44040,2020,"105 DE 2020","TERMINADO",null,null,null,null,null,null,null,null,null,null,null,null,null,null,44607,44607,-146,-146,0,null,2020000100158]
[158,"CUNDINAMARCA","SECRETARIA DE CIENCIA, TECNOLOGIA E INNOVACIÓN",2020000100266,"GENERACIÓN DE ESPACIOS DE ENCUENTRO DE LA SOCIEDAD CON LA CIENCIA Y LA TECNOLOGÍA - UN VIAJE CON LA CIENCIA EN EL DEPARTAMENTO DE CUNDINAMARCA","CTEL",2241429590,{"$error":"#VALUE!"},44111,2020,"098 DE 2020","CONTRATADO EN EJECUCIÓN",null,null,null,null,null,null,null,null,null,null,null,null,null,null,44635,44635,-118,-118,0,null,2020000050013]
[159,"CUNDINAMARCA","SECRETARIA DE CIENCIA, TECNOLOGIA E INNOVACIÓN",2020000100246,"FORTALECIMIENTO DE LA COMPETITIVIDAD DE LA CADENA PRODUCTIVA DE LA GUADUA POR MEDIO DEL DESARROLLO E IMPLEMENTACIÓN DE DOS (2) PAQUETES TECNOLÓGICOS PARA LA GENERACIÓN DE PRODUCTOS CON VALOR AGREGADO EN EL DEPARTAMENTO DE CUNDINAMARCA ","CTEL",3144525520,{"$error":"#VALUE!"},44111,2020,"098 DE 2020","CONTRATADO EN EJECUCIÓN",null,null,null,null,null,null,null,null,null,null,null,null,null,null,44740,44607,-13,-146,0,null,2020000050015]
[160,"ENTIDAD APORTANTE RECURSOS","CONNECT BOGOTA REGIÓN",2020000100078,"DISEÑO E IMPLEMENTACIÓN DE UN MODELO DE GESTIÓN DE CONOCIMIENTO, INNOVACIÓN Y TRANSFERENCIA DE TECNOLOGÍA CON APLICACIÓN EN EL SECTOR AGROPECUARIO Y AGROINDUSTRIAL EN EL DEPARTAMENTO DE CUNDINAMARCA ","CTEL",3309848753,{"$error":"#VALUE!"},44111,2020,"098 DE 2020","CONTRATADO EN EJECUCIÓN",null,null,null,null,null,null,null,null,null,null,null,null,null,44740,44607,44740,-146,-13,-13,null,2020000100695]
[161,"ENTIDAD APORTANTE RECURSOS","FEDERACIÓN NACIONAL DE CAFETEROS",2020000100205,"TRASLADO DE TECNOLOGÍAS INNOVADORAS A CAFICULTORES CON IMPACTO SOBRE LA CALIDAD DEL CAFÉ Y LA GESTIÓN DEL RECURSO HÍDRICO DURANTE EL PROCESO DE BENEFICIO EN ZONA CAFETERA DEL DEPARTAMENTO DE CUNDINAMARCA ","CTEL",13783557324,{"$error":"#VALUE!"},44111,2020,"098 DE 2020","CONTRATADO EN EJECUCIÓN",null,null,null,null,null,null,null,null,null,null,null,null,null,44740,44635,44740,-118,-13,-13]
[162,"ENTIDAD APORTANTE RECURSOS","AGROSAVIA",2020000100197,"DESARROLLO DE BIOPLAGUICIDAS POTENCIADOS DE NUEVA GENERACIÓN PARA EL MEJORAMIENTO DE LA PRODUCTIVIDAD E INOCUIDAD DEL CULTIVO DE TOMATE Y CRUCÍFERAS EN EL DEPARTAMENTO DE CUNDINAMARCA ","CTEL",4583970033,{"$error":"#VALUE!"},44111,2020,"098 DE 2020","CONTRATADO EN EJECUCIÓN",null,null,null,null,null,null,null,null,null,null,null,null,null,44740,44607,44740,-146,-13,-13,null,2020000100696]
[163,"ENTIDAD APORTANTE RECURSOS","UNIVERSIDAD NACIONAL DE COLOMBIA",2020000100240,"ESTUDIO DE PREFACTIBILIDAD PARA LA CREACIÓN DE UN CENTRO DE INNOVACIÓN Y DE PRODUCTIVIDAD PARA EL SECTOR AGROPECUARIO DE SABANA OCCIDENTE DE CUNDINAMARCA ","CTEL",1896154229,{"$error":"#VALUE!"},44111,2020,"098 DE 2020","CONTRATADO EN EJECUCIÓN",null,null,null,null,null,null,null,null,null,null,null,null,null,44740,44607,44740,-146,-13,-13,null,2020000100649]
[164,"ENTIDAD APORTANTE RECURSOS","UNIVERSIDAD DE CUNDINAMARCA",2020000100158,"FORTALECIMIENTO DE LA INFRAESTRUCTURA FÍSICA Y TECNOLÓGICA DEL CENTRO DE ESTUDIOS AGROAMBIENTALES DE LA UNIVERSIDAD DE CUNDINAMARCA AGROU CUNDINAMARCA ","CTEL",2024433669,{"$error":"#VALUE!"},44111,2020,"098 DE 2020","SIN CONTRATAR",null,null,null,null,null,null,null,null,null,null,null,null,null,null,44635,44635,-118,-118,0]
[165,"ENTIDAD APORTANTE RECURSOS","ZIPAQUIRA",2020000050013,"MEJORAMIENTO DE LA VÍA QUE COMUNICA A LOS MUNICIPIOS DE ZIPAQUIRÁ Y TOCANCIPÁ, TRAMO BARANDILLAS - LA FUENTE, DEPARTAMENTO DE CUNDINAMARCA","TRANSPORTE","6.788.620.869,00",{"$error":"#VALUE!"},44152,2020,"107 del 2020","CONTRATADO EN EJECUCIÓN",null,null,null,null,null,null,null,null,null,null,null,null,null,44671,44635,44671,-118,-82,-82]
[166,"ENTIDAD APORTANTE RECURSOS","ZIPAQUIRA",2020000050015,"MEJORAMIENTO DE LA VÍA ZIPAQUIRÁ - SAN JORGE - TABIO DEPARTAMENTO DE CUNDINAMARCA","TRANSPORTE",7458735075,{"$error":"#VALUE!"},44152,2020,"107 del 2020","CONTRATADO EN EJECUCIÓN",null,null,null,null,null,null,null,null,null,null,null,null,null,44671,44635,44671,-118,-82,-82]
[167,"CUNDINAMARCA","SECRETARIA DE CIENCIA, TECNOLOGIA E INNOVACIÓN",2020000100695,"DESARROLLO, TRANSFERENCIA DE TECNOLOGÍA Y CONOCIMIENTO PARA LA INNOVACIÓN QUE FORTALEZCAN CAPACIDADES COMUNITARIAS EN LA COMPRENSIÓN Y/O MITIGACIÓN DE LOS PROBLEMAS DE VIOLENCIAS BASADAS EN GÉNERO, DERIVADAS DE LA EMERGENCIA POR COVID 19, EN CUNDINAMARCA","CTEL",3100000000,{"$error":"#VALUE!"},44183,2020,"103 DE 2020","CONTRATADO EN EJECUCIÓN",null,null,null,null,null,null,null,null,null,null,null,null,null,44671,44635,44671,-118,-82,-82]
[168,"CUNDINAMARCA","SECRETARIA DE CIENCIA, TECNOLOGIA E INNOVACIÓN",2020000100650,"FORTALECIMIENTO DE CAPACIDADES DE CTEI PARALA INNOVACION EDUCATIVA EN LOS NIVELES DE BÁSICA Y\nMEDIA, MEDIANTE USO DE TICS EN INSTITUCIONES EDUCATIVAS OFICIALES DE LOS MUNICIPIOS NO\nCERTIFICADOS DEL DEPARTAMENTO DE CUNDINAMARCA","CTEL",10804663122,{"$error":"#VALUE!"},44183,2020,"103 DE 2020","CONTRATADO EN EJECUCIÓN",null,null,null,null,null,null,null,null,null,null,null,null,null,44671,44607,44671,-146,-82,-82,null,2020000100351]
[169,"CUNDINAMARCA","SECRETARIA DE CIENCIA, TECNOLOGIA E INNOVACIÓN",2020000100696,"FORTALECIMIENTO DE CAPACIDADES DE CTEI PARA LA REACTIVACIÓN ECONÓMICA Y LA TRANSFORMACIÓN\nPRODUCTIVA EN CUNDINAMARCA","CTEL",7370634083,{"$error":"#VALUE!"},44183,2020,"103 DE 2020","CONTRATADO EN EJECUCIÓN",null,null,null,null,null,null,null,null,null,null,null,null,null,44740,44740,44740,-13,-13,-13,null,2020000100343]
[170,"CUNDINAMARCA","SECRETARIA DE CIENCIA, TECNOLOGIA E INNOVACIÓN",2020000100649,"FORTALECIMIENTO DE CAPACIDADES DE CTEI PARA EL RELACIONAMIENTO ESCUELA - CONTEXTO RURAL MEDIANTE LA APROPIACIÓN Y USO DE LAS TIC EN EL MUNICIPIO DE SIBATÉ, DEPARTAMENTO DE CUNDINAMARCA","CTEL",4292464018,{"$error":"#VALUE!"},44183,2020,"103 DE 2020","CONTRATADO EN EJECUCIÓN",null,null,null,null,null,null,null,null,null,null,null,null,null,null,44635,44635,-118,-118,0]
[171,"ENTIDAD APORTANTE RECURSOS","FUNDACION UNIVERSIDAD DEL VALLE",2020000050044,"FORTALECIMIENTO DE LAS COMPETENCIAS COMUNICATIVAS EN INGLÉS DE LOS ESTUDIANTES DE LOS ESTABLECIMIENTOS EDUCATIVOS NO OFICIALES DE CUNDINAMARCA","EDUCACIÓN","$ 10.468.961.978",{"$error":"#VALUE!"},44195,2020,"110 DE 2020","CONTRATADO EN EJECUCIÓN",null,null,null,null,null,null,null,null,null,null,null,null,null,44671,44635,44671,-118,-82,-82]
[172,"ENTIDAD APORTANTE RECURSOS","UNAD",2020000100433,"INVESTIGACIÓN DE LOS COMPUESTOS VOLÁTILES ORGÁNICOS E INDUCIDOS PARA EL MANEJO DE MOSCAS PLAGAS EN GULUPA Y GRANADILLA EN EL DEPARTAMENTO DE  CUNDINAMARCA","CTEL",3412874201,{"$error":"#VALUE!"},44159,2020,"100 DE 2020","CONTRATADO EN EJECUCIÓN",null,null,null,null,null,null,null,null,null,null,null,null,null,44671,44607,44671,-146,-82,-82,null,2020000100339]
[173,"ENTIDAD APORTANTE RECURSOS","UNIVERSIDAD INDUSTRIAL DE SANTANDER",2020000100415,"DESARROLLO DE UN SISTEMA ÓPTICO  COMPUTACIONAL PARA ESTIMAR EL CONTENIDO DE CARBONO ORGÁNICO DE SUELOS AGRÍCOLAS A TRAVÉS DE IMÁGENES ESPECTRALES E INTELIGENCIA ARTIFICIAL EN CULTIVOS DE CÍTRICOS DE   SANTANDER","CTEL",2184125885.29,{"$error":"#VALUE!"},44160,2020,"100 DE 2020","CONTRATADO EN EJECUCIÓN",null,null,null,null,null,null,null,null,null,null,null,null,null,44671,44635,44635,-118,-118,-82]
[174,"ENTIDAD APORTANTE RECURSOS","UNIVERSIDAD INDUSTRIAL DE SANTANDER",2020000100375,"CONFORMACIÓN DE UNA PLATAFORMA PARA ESTUDIOS CELULARES AVANZADOS IN VIVO EN TIEMPO REAL PARA EL ANÁLISIS DE LA RESPUESTA INMUNOMETABÓLICA ANTE LA REEXPRESIÓN DE INTERFERÓN TIPO I KAPPA EN ESFEROIDES DE CÉLULAS TUMORALES DE CUELLO UTERINO EN  SANTANDER","CTEL",3123997801,{"$error":"#VALUE!"},44159,2020,"100 DE 2020","CONTRATADO EN EJECUCIÓN",null,null,null,null,null,null,null,null,null,null,null,null,null,44740,44740,44607,-13,-146,-13,null,2019000050026]
[175,"ENTIDAD APORTANTE RECURSOS","UNIVERSIDAD INDUSTRIAL DE SANTANDER",2020000100351,"DESARROLLO DE UN PROTOTIPO SELECTIVO Y SENSIBLE PARA MONITOREAR CONTENIDO DE CADMIO IN SITU EN DIVERSAS MATRICES ASOCIADAS A LA PRODUCCIÓN DE GRANOS DE CACAO EN EL DEPARTAMENTO DE  SANTANDER","CTEL",2585800000,{"$error":"#VALUE!"},44159,2020,"100 DE 2020","CONTRATADO EN EJECUCIÓN",null,null,null,null,null,null,null,null,null,null,null,null,null,44671,44740,44671,-13,-82,-82]
[176,"ENTIDAD APORTANTE RECURSOS","INSTITUTO SUPERIOR DE EDUCACION RURAL DE PAMPLONA",2020000100343,"IMPLEMENTACIÓN LABORATORIO DE CALIDAD FISICOQUÍMICA DE ALIMENTOS PARA EL FORTALECIMIENTO COMPETITIVO Y SOSTENIBLE DE LASCADENAS AGROALIMENTARIAS DEL DEPARTAMENTO DE  NORTE DE SANTANDER","CTEL",1097306327,{"$error":"#VALUE!"},44159,2020,"100 DE 2020","CONTRATADO SIN ACTA DE INICIO",null,null,null,null,null,null,null,null,null,null,null,null,null,44671,44635,44671,-118,-82,-82]
[177,"ENTIDAD APORTANTE RECURSOS","UNIVERSIDAD NACIONAL DE COLOMBIA",2020000100342,"ESTUDIO DE POTENCIALES INSECTICIDAS EN MATRICES POLIMÉRICAS PARA EL CONTROL DE PLAGAS DE GRANOS ALMACENADOS BASADOS EN ACEITES ESENCIALES PROVENIENTES DE LA BIODIVERSIDADFLORÍSTICA DEL DEPARTAMENTO DE  CUNDINAMARCA","CTEL",2748237104,{"$error":"#VALUE!"},44159,2020,"100 DE 2020","CONTRATADO EN EJECUCIÓN",null,null,null,null,null,null,null,null,null,null,null,null,null,44671,44635,44671,-118,-82,-82]
[178,"ENTIDAD APORTANTE RECURSOS","UNIVERSIDAD MILITAR NUEVA GRANADA",2020000100728,"GENERACIÓN Y TRANSFERENCIA DE CONOCIMIENTOS Y TECNOLOGÍAS PARA ELEVAR CAPACIDADES DE CTEL DE PEQUEÑOS PRODUCTORES DE TOMATE PARA AFRONTAR PROBLEMAS DERIVADOS DEL COVID-19 ASOCIADAS A LA SEG. ALIMENTARIA EN LAS SAB. CENTRO Y ORIENTE  CUNDINAMARCA","CTEL",4162541452,{"$error":"#VALUE!"},44183,2020,"103 DE 2020","CONTRATADO EN EJECUCIÓN",null,null,null,null,null,null,null,null,null,null,null,null,null,null,44607,44607,-146,-146,0,null,2020000100075]
[179,"ENTIDAD APORTANTE RECURSOS","UNIVERSIDAD NACIONAL DE COLOMBIA",2020000100339,"DESARROLLO DE NUEVOS MÉTODOS NO DESTRUCTIVOS PARA MONITOREO IN SITU DE PROBABILIDAD DE OCURRENCIA DE FALLA EN TUBERÍAS EN EL SECTOR DE HIDROCARBUROS EN LOS DEPARTAMENTOS DE  BOGOTÁ BOYACÁ SANTANDER","CTEL",2412084140,{"$error":"#VALUE!"},44159,2020,"100 DE 2020","CONTRATADO EN EJECUCIÓN",null,null,null,null,null,null,null,null,null,null,null,null,null,null,44607,44607,-146,-146,0,null,2020000100019]
[180,"ENTIDAD APORTANTE RECURSOS","UNIVERSIDAD MILITAR NUEVA GRANADA",2020000100216,"INNOVACIÓN Y TRANSFERENCIA TECNOLÓGICA DE UMNGBIO A PRODUCTORES DE FLORES PARA EL CONTROL BIOLÓGICO DE TETRANYCHUS URTICAE (ACARI: TETRANYCHIIDAE) EN CULTIVOS DE INVERNADERO CON EL ÁCARO BENÉFICO NEOSEIULUS CALIFORNICUS (ACARI: PHYTOSEIIDAE)  CUNDINAMARCA","CTEL",2431580000,{"$error":"#VALUE!"},44159,2020,"100 DE 2020","CONTRATADO EN EJECUCIÓN",null,null,null,null,null,null,null,null,null,null,null,null,null,null,44607,44607,-146,-146,0,null,2020000100017]
[181,"CUNDINAMARCA","SECRETARIA DE COMPETITIVIDAD",2019000050026,"DESARROLLO DE UN PROGRAMA PRODUCTIVO, AMIGABLE CON EL MEDIO AMBIENTE DEL SECTOR GANADERO EN EL DEPARTAMENTO DE CUNDINAMARCA CUNDINAMARCA","AGRICULTURA ",9757143522,{"$error":"#VALUE!"},44187,2020,"109 DE 2020","CONTRATADO EN EJECUCIÓN",null,null,null,null,null,null,null,null,null,null,null,null,null,44671,44635,44635,-118,-118,-82]
[182,"ENTIDAD APORTANTE RECURSOS","UNIVERSIDAD NACIONAL DE COLOMBIA",2020000100169,"INVESTIGACIÓN DESARROLLO, INNOVACIÓN Y TRANSFERENCIA DE CONOCIMIENTO PARA EL PROCESAMIENTO DE LA SEMILLA DE SACHA INCHI EN PRODUCTOS DE VALOR AGREGADO, COMO ESTRATEGIA PARA MEJORAR LA PRODUCTIVIDAD DEL SECTOR AGROINDUSTRIAL DE LA REGIÓN  CUNDINAMARCA","CTEL",2757697312,{"$error":"#VALUE!"},44078,2020,"97 DE 2020","CONTRATADO EN EJECUCIÓN",null,null,null,null,null,null,null,null,null,null,null,null,null,44671,44635,44671,-118,-82,-82]
[183,"ENTIDAD APORTANTE RECURSOS","UPTC",2020000100114,"FORTALECIMIENTO DEL ECOSISTEMA DE INVESTIGACIÓN CIENTÍFICA PARA CTEI EN LA UNIVERSIDAD PEDAGÓGICA Y TECNOLÓGICA DE COLOMBIA UPTC, I-SPACIO  SOGAMOSO","CTEL",2310634882,{"$error":"#VALUE!"},44078,2020,"97 DE 2020","CONTRATADO EN EJECUCIÓN",null,null,null,null,null,null,null,null,null,null,null,null,null,null,44635,44635,-118,-118,0]
[184,"ENTIDAD APORTANTE RECURSOS","UNIVERSIDAD DE ANTIOQUIA",2020000100079,"FORTALECIMIENTO DE LA INFRAESTRUCTURA TECNOLÓGICA Y EQUIPAMIENTO DEL AMBIENTE DE FORMACIÓN INDUSTRIAL PARA EL AUMENTO DE LAS CAPACIDADES INSTITUCIONALES EN CTEI DE LA ETITC  BOGOTÁ","CTEL",1090608306,{"$error":"#VALUE!"},44078,2020,"97 DE 2020","CONTRATADO EN EJECUCIÓN",null,null,null,null,null,null,null,null,null,null,null,null,null,null,44635,44671,-118,-82,0]
[185,"ENTIDAD APORTANTE RECURSOS","UNIVERSIDAD NACIONAL DE COLOMBIA",2020000100075,"APROVECHAMIENTO DE LA BIODIVERSIDAD EN AGRAZ Y PAPA PARA EL DESARROLLO DE CULTIVOS PROMISORIOS EN EL DEPARTAMENTO DE   SANTANDER","CTEL",3177259696,{"$error":"#VALUE!"},44078,2020,"97 DE 2020","CONTRATADO EN EJECUCIÓN",null,null,null,null,null,null,null,null,null,null,null,null,null,null,44607,44740,-146,-13,0,null,2020000050037]
[186,"ENTIDAD APORTANTE RECURSOS","UNIVERSIDAD NACIONAL DE COLOMBIA",2020000100019,"FORTALECIMIENTO DE CAPACIDADES DE INVESTIGACIÓN Y DESARROLLO TECNOLÓGICO DE LA UNIVERSIDAD COLEGIO MAYOR DE CUNDINAMARCA A PARTIR DE TECNOLOGÍAS INDUSTRIA 4.0 PARA EL DISEÑO Y CONSTRUCCIÓN EN   BOGOTÁ","CTEL",2077571214,{"$error":"#VALUE!"},44078,2020,"97 DE 2020","CONTRATADO EN EJECUCIÓN",null,null,null,null,null,null,null,null,null,null,null,null,null,44740,44607,44740,-146,-13,-13,null,2020000100287]
[187,"ENTIDAD APORTANTE RECURSOS","UNIVERSIDAD INDUSTRIAL DE SANTANDER",2020000100017,"FORTALECIMIENTO DE LA CAPACIDAD INSTITUCIONAL DE INVESTIGACIÓN DE LA UNIVERSIDAD INDUSTRIAL DESANTANDER  NACIONAL","CTEL",2808520000,{"$error":"#VALUE!"},44078,2020,null,"CONTRATADO EN EJECUCIÓN",null,null,null,null,null,null,null,null,null,null,null,null,null,44671,44635,44635,{"$f":"IF(AA196=0,0,_xlfn.DAYS(AA196,TODAY()))","v":-118},-118,-82]
[188,"ENTIDAD APORTANTE RECURSOS","UNIVERSIDAD MILITAR NUEVA GRANADA",2020000100103,"FORTALECIMIENTO DE CAPACIDADES INSTALADAS DE CIENCIA Y TECNOLOGÍA DEL LABORATORIO DE DIAGNÓSTICO EN EL CAMPUS DE LA UNIV MILITAR NUEVA GRANADA, PARA ATENDER PROBLEMÁTICAS ASOCIADAS CON AGENTES BIOLÓGICOS DE ALTO RIESGO PARA LA SALUD HUMANA,  CUNDINAMARCA","CTEL",5162742977,{"$error":"#VALUE!"},43966,2020,"93 DE 2020","CONTRATADO EN EJECUCIÓN",null,null,null,null,null,null,null,null,null,null,null,null,null,44671,44607,44671,-146,-82,{"$f":"IF(Z197=0,0,_xlfn.DAYS(Z197,TODAY()))","v":-82},null,2021000100003]
[189,"ENTIDAD APORTANTE RECURSOS","INSTITUTO UNIVERSITARIO DE LA PAZ – UNIPAZ",2020000100042,"FORTALECIMIENTO DE LOS PROCESOS ACADÉMICOS EN LOS PROGRAMAS OFRECIDOS POR EL INSTITUTO UNIVERSITARIO DE LA PAZ, UNIPAZ,   BARRANCABERMEJA","CTEL",1178749590,{"$error":"#VALUE!"},43998,2020,"94 DE 2020","CONTRATADO EN EJECUCIÓN",null,null,null,null,null,null,null,null,null,null,null,null,null,null,44635,44635,-118,-118,0]
[190,"ENTIDAD APORTANTE RECURSOS","INSTITUTO UNIVERSITARIO DE LA PAZ – UNIPAZ",2020000100016,"ADECUACIÓN , DOTACIÓN E IMPLEMENTACIÓN DE UN LABORATORIO DE FABRICACIÓN DIGITAL PARA PROMOVER EL DESARROLLO DE LA CIENCIA, LAINNOVACIÓN Y EL EMPRENDIMIENTO EN LA UNIVERSIDAD FRANCISCO DE PAULA SANTANDER.  CÚCUTA","CTEL",2921057589,{"$error":"#VALUE!"},43950,2020,"92 DE 2020","CONTRATADO EN EJECUCIÓN",null,null,null,null,null,null,null,null,null,null,null,null,null,44671,44607,44671,-146,-82,-82,null,2021000100014]
[191,"ENTIDAD APORTANTE RECURSOS","UNIVERSIDAD TECNOLOGICA DE SANTANDER",2020000100004,"FORTALECIMIENTO Y ADECUACIÓN DE EQUIPOS E INFRAESTRUCTURA DEL LABORATORIO DE FÍSICA DEL DEPARTAMENTO DE CIENCIAS BÁSICAS, PARA EL MEJORAMIENTO DE LAS CAPACIDADES INSTITUCIONALES Y LA INVESTIGACIÓN EN LAS UNIDADES TECNOLÓGICAS DE SANTANDER -  BUCARAMANGA","CTEL",1016752702,{"$error":"#VALUE!"},43950,2020,"92 DE 2020","CONTRATADO EN EJECUCIÓN",null,null,null,null,null,null,null,null,null,null,null,null,null,null,44635,44635,-118,-118,0]
[192,"CUNDINAMARCA","SECRETARIA DE EDUCACIÓN",2020000050037,"DOTACIÓN DEL MOBILIARIO ESCOLAR PARA LAS INSTITUCIONES EDUCATIVAS DE LOS MUNICIPIOS NO CERTIFICADOS DEL DEPARTAMENTO DE CUNDINAMARCA","EDUCACIÓN",10093038848,{"$error":"#VALUE!"},44195,2020,"110 DE 2020","CONTRATADO EN EJECUCIÓN",null,null,null,null,null,null,null,null,null,null,null,null,null,null,44607,44607,-146,-146,0,null,2021000100026]
[193,"ENTIDAD APORTANTE RECURSOS","UNIVERSIDAD DEL NORTE",2020000100287,"FORMACIÓN DE CAPITAL HUMANO DE ALTO NIVEL UNIVERSIDAD DEL NORTE 2DO CORTE NACIONAL","CTEL",6920233499,{"$f":"F202-G202","v":{"$error":"#VALUE!"}},44330,2021,"004 DE 2021","CONTRATADO EN EJECUCIÓN",null,null,null,null,null,null,null,null,null,null,null,null,null,null,44607,44607,-146,-146,0,null,2021000100027]
[194,"ENTIDAD APORTANTE RECURSOS","UNIVERSIDAD DEL VALLE",2020000100345,"FORMACIÓN DE CAPITAL HUMANO DE ALTO NIVEL SEGUNDO CORTE UNIVERSIDAD DEL VALLE NACIONAL","CTEL",5913070114,{"$error":"#VALUE!"},44348,2021,"05 DE 2021","CONTRATADO EN EJECUCIÓN",null,null,null,null,null,null,null,null,null,null,null,null,null,44740,44607,44740,-146,-13,-13,null,2021000100028]
[195,"ENTIDAD APORTANTE RECURSOS","UNIVERSIDAD NACIONAL DE COLOMBIA",2021000100003,"FORMACIÓN DE CAPITAL HUMANO DE ALTO NIVEL UNIVERSIDAD  NACIONAL DE COLOMBIA CORTE II NACIONL","CTEL",18418143500,{"$error":"#VALUE!"},44330,2021,"04 DE 2021","CONTRATADO EN EJECUCIÓN",null,null,null,null,null,null,null,null,null,null,null,null,null,44740,44635,44740,-118,-13,-13]
[196,"ENTIDAD APORTANTE RECURSOS","UNIVERSIDAD DE LA SABANA",2021000100004,"FORMACIÓN DE CAPITAL HUMANO DE ALTO NIVEL UNIVERSIDAD DE LA SABANA CORE 2 NACIONAL","CTEL",1519950000,{"$error":"#VALUE!"},44348,2021,"05 DE 2021","CONTRATADO EN EJECUCIÓN",null,null,null,null,null,null,null,null,null,null,null,null,null,null,44607,44607,{"$f":"IF(AA205=0,0,_xlfn.DAYS(AA205,TODAY()))","v":-146},-146,0,null,2018000050050]
[197,"ENTIDAD APORTANTE RECURSOS","UNIVERSIDAD ANTONIO NARIÑO",2021000100014,"FORMACIÓN DE CAPITAL HUMANO DE ALTO NIVEL UNIVERSIDAD ANTONIO NARIÑO CORE 2 NACIONAL","CTEL",4526652200,{"$error":"#VALUE!"},44348,2021,"06 DE 2021","CONTRATADO EN EJECUCIÓN",null,null,null,null,null,null,null,null,null,null,null,null,null,null,44607,44607,-146,-146,0,null,2020000050035]
[198,"ENTIDAD APORTANTE RECURSOS","UNIVERSIDAD EAN",2021000100025,"FORMACIÓN DE CAPITAL HUMANO DE ALTO NIVEL UNIVERSIDAD EAN NACIONAL COHORTE II NACIONAL","CTEL",2044506416,{"$error":"#VALUE!"},44368,2021,"06 DE 2021","CONTRATADO EN EJECUCIÓN",null,null,null,null,null,null,null,null,null,null,null,null,null,null,44607,44607,-146,-146,0,null,"2021004250686"]
[199,"ENTIDAD APORTANTE RECURSOS","UNIVERSIDAD MILITAR NUEVA GRANADA",2021000100026,"FORMACIÓN DE CAPITAL HUMANO DE ALTO NIVEL UNIVERSIDAD MILITAR NUEVA GRANADA SEGUNDO CORTE NACIONAL","CTEL",751632481,{"$error":"#VALUE!"},44348,2021,"05 DE 2021","CONTRATADO EN EJECUCIÓN",null,null,null,null,null,null,null,null,null,null,null,null,null,null,44741,44607,-12,-146,0,null,2021004250690]
[200,"ENTIDAD APORTANTE RECURSOS","PONIFICA UNIVERSIDAD JAVERIANA",2021000100027,"FORMACIÓN DE CAPITAL HUMANO DE ALTO NIVEL PONTIFICIA UNIVERSIDAD JAVERIANA SEDE BOGOTÁ CORTE II NACIONAL","CTEL",8577491761,{"$error":"#VALUE!"},44348,2021,"05 DE 2021","CONTRATADO EN EJECUCIÓN",null,null,null,null,null,null,null,null,null,null,null,null,null,null,44607,44607,-146,-146,0,null,2020000050038]
[201,"ENTIDAD APORTANTE RECURSOS","UNIVERSIDAD DE CALDAS",2021000100028,"FORMACIÓN DE CAPITAL HUMANO DE ALTO NIVEL CORTE 2 UNIVERSIDAD DE CALDAS - NACIONAL","CTEL",63580000000,{"$error":"#VALUE!"},44348,2021,"05 DE 2021","CONTRATADO EN EJECUCIÓN",null,null,null,null,null,null,null,null,null,null,null,null,null,null,null,44741,0,-12,0]
[202,"CUNDINAMARCA","SECRETARIA DE EDUCACIÓN",2021004250258,"FORTALECIMIENTO A LA ESTRATEGIA DE ALIMENTACIÓN ESCOLAR PARA EL AÑO 2021 EN LOS MUNICIPIOS DEL DEPARTAMENTO DE CUNDINAMARCA","EDUCACIÓN",16289941201,{"$error":"#VALUE!"},44432,2021,"248 DE 2021","CONTRATADO EN EJECUCIÓN",null,null,null,null,null,null,null,null,null,null,null,null,null,null,null,null,0,0,0]
[203,"CUNDINAMARCA","SECRETARIA DE HABITAT Y VIVIENDA",2018000050050,"MEJORAMIENTO VIVIENDA RURAL MEDIANTE CONSTRUCCIÓN DE COCINAS HABITACIONES Y PISOS EN LOS MUNICIPIOS DE CUNDINAMARCA","AGRICULTURA ",5616585397,{"$error":"#VALUE!"},44525,2021,"03 DE 2021","SIN CONTRATAR",null,null,null,null,null,null,null,null,null,null,null,null,null,null,null,null,0,0,0]
[204,"CUNDINAMARCA","SECRETARIA DE COMPETITIVIDAD",2020000050035,"FORTALECIMIENTO DE LOS SISTEMAS PRODUCTIVOS A TRAVÉS DE LA REACTIVACIÓN DEL SECTOR AGRÍCOLA EN EL DEPARTAMENTO DE CUNDINAMARCA","AGRICULTURA ",8993872200.5599995,{"$error":"#VALUE!"},44529,2021,"454 DE 2021","SIN CONTRATAR",null,null,null,null,null,null,null,null,null,null,null,null,null,null,44741,null,-12,0,0]
["205","CUNDINAMARCA","MINAS Y ENERGIA",2021004250686,"CONSTRUCCIÓN DEL CENTRO DE FORMACIÓN E INNOVACIÓN MINERO ENERGÉTICO DE CUNDINAMARCA","GOBIERNO TERRITORIAL","$ 13.770.893.382,00",{"$error":"#VALUE!"},null,"2021","546 DE 2021","SIN CONTRATAR",null,null,null,null,null,null,null,null,null,null,null,null,null,null,null,null,0,0,0]
[206,"CUNDINAMARCA","UNIDAD ADMINISTRATIVA DE GESTIÓN DEL RIESGO.",2021004250690,"FORTALECIMIENTO DEL SISTEMA AUTOMOTOR PARA LA GESTIÓN DEL RIESGO DE DESASTRES DEL DEPARTAMENTO DE CUNDINAMARCA","GOBIERNO TERRITORIAL",7299514100,{"$error":"#VALUE!"},null,2021,"496 DE 2021","EN PROCESO DE CONTRATACIÓN",null,null,null,null,null,null,1,"Hoy o menos de un mes desde que se modifico",null,null,null,null,null,null,null,null,0,0,0]
[207,"CUNDINAMARCA","SECRETARIA DE COMPETITIVIDAD",2020000050038,"OPTIMIZACIÓN DE LOS SISTEMAS GANADEROS BOVINOS DE CARNE LECHE Y DOBLE PROPÓSITO A PARTIR DE LA IMPLEMENTACIÓN DE MEJORAMIENTO GENÉTICO PRODUCTIVO Y ENTREGA DE MAQUINARIA Y EQUIPOS EN MUNICIPIOS DEL DEPARTAMENTO DE CUNDINAMARCA","AGRICULTURA ",8732449919,{"$error":"#VALUE!"},null,2021,"547 DE 2021","SIN CONTRATAR",null,null,null,null,null,null,1,"1 mes desde que no se modifica",null,null,null,null,null,null,null,null,0,0,0]
[208,"CUNDINAMARCA","SECRETARIA DE CIENCIA, TECNOLOGIA E INNOVACIÓN",21000100327,"DESARROLLO DE UN SISTEMA DE PRODUCCIÓN LECHERO PARA LA OBTENCIÓN DE LECHES INOCUAS DE ALTA CALIDAD Y CON UN PERFIL LIPÍDICO SALUDABLE EN EL DEPARTAMENTO DE CUNDINAMARCA","CTEL",3833042862,{"$error":"#VALUE!"},44617,2022,"15 DE 2022","SIN CONTRATAR",null,null,null,null,null,null,null,"2meses desde que no se modifica",null,null,null,null,null,null,null,null,0,0,0]
[209,"CUNDINAMARCA","SECRETARIA DE CIENCIA, TECNOLOGIA E INNOVACIÓN",2021000100208,"FORTALECIMIENTO DE LOS NIVELES DE APROPIACIÓN SOCIAL DEL CONOCIMIENTO DE LA CTEI EN COMUNIDADES DE LAS PROVINCIAS DE ALMEIDAS Y UBATÉ DEL DEPARTAMENTO DE CUNDINAMARCA","CTEL",2191964751,{"$error":"#VALUE!"},44615,2022,"15 DE 2021","SIN CONTRATAR",null,null,null,null,null,null,0.01,"3 meses desde que no se modifica",null,null,null,null,null,null,null,null,0,0,0]
[210,"CUNDINAMARCA","SECRETARIA DE CIENCIA, TECNOLOGIA E INNOVACIÓN",2021000100243,"DESARROLLO PARTICIPATIVO DE UNA PLATAFORMA TECNOLÓGICA DE TELEDETECCIÓN PARA LA GESTIÓN SOSTENIBLE DE SUELOS EN AGROECOSISTEMAS DEL DEPARTAMENTO DE CUNDINAMARCA","CTEL",3042693625,{"$f":"F219-G219","v":{"$error":"#VALUE!"}},44617,2022,"15 DE 2021","SIN CONTRATAR",null,null,null,null,null,null,null,null,null,null,null,null,null,null,null,null,0,0,0]
[211,"CUNDINAMARCA","SECRETARIA DE MINAS, ENERGIA Y GAS",2021000050019,"AMPLIACIÓN DE LA COBERTURA DEL SERVICIO DE GAS COMBUTIBLE POR REDES A TRAVES DE LA FINANCIACIÓN DEL CARGO POR CONEXIÓN Y LA RED INTERNA PARA USUARIOS DE BARRIOS PERIFÉRICOS VEREDAS Y CENTROS POBLADOS DE LOS MUNICIPIOS DE CUNDINAMARCA","MINAS Y ENERGÍA",10613927436,{"$f":"F220-G220","v":{"$error":"#VALUE!"}},null,"2021","546 DE 2021","SIN CONTRATAR",null,null,null,null,null,null,null,null,null,null,null,null,null,null,null,null,0,0,0]
[212,"CUNDINAMARCA","SECRETARIA DE EDUCACIÓN",2022000050007,"FORTALECIMIENTO A LA ESTRATEGIA DE ALIMENTACIÓN ESCOLAR EN LOS MUNICIPIOS NO CERTIFICADOS DEL DEPARTAMENTO DE CUNDINAMARCA PARA LA VIGENCIA 2022 CUNDINAMARCA\t","EDUCACIÓN",42966037310,{"$f":"F221-G221","v":{"$error":"#VALUE!"}},"2021-08-24",2021,"248 DE 2021","SIN CONTRATAR",null,null,null,null,null,null,null,null,null,null,null,null,null,null,null,null,0,0,0]
[213,"CUNDINAMARCA","SECRETARIA DE CIENCIA, TECNOLOGIA E INNOVACIÓN",2021000100467,"FORTALECIMIENTO DE LAS CAPACIDADES INSTITUCIONALES PARA EL DESARROLLO Y GESTIÓN DEL ECOSISTEMA TERRITORIAL DE CTEI EN TODAS LAS PROVINCIAS DEL DEPARTAMENTO DE CUNDINAMARCA\n","CTEL",null,{"$error":"#VALUE!"},null,2022,null,"SIN CONTRATAR",null,null,null,null,null,null,null,null,null,null,null,null,null,null,null,null,0,0,0]
[214,"CUNDINAMARCA","SECRETARIA DE CIENCIA, TECNOLOGIA E INNOVACIÓN",2021000100276,"DESARROLLO DE UN MODELO DE PROMOCIÓN TURÍSTICA SOSTENIBLE DESDE LA TECNOLOGÍA 4.0 EN LOS MUNICIPIOS DE LA PALMA Y YACOPI EN EL DEPARTAMENTO DE CUNDINAMARCA\n","CTEL",null,{"$error":"#VALUE!"},null,2022,null,"SIN CONTRATAR",null,null,null,null,null,null,null,null,null,null,null,null,null,null,44742,null,-11,0,0]
[215,"CUNDINAMARCA","SECRETARIA DE CIENCIA, TECNOLOGIA E INNOVACIÓN",2021000100523,"DESARROLLO DE MICROREDES Y ALMACENAMIENTO (ESS) PRESTADORES DE SERVICIOS COMPLEMENTARIOS PARA INCREMENTAR LA COBERTURA EFICIENCIA Y CONFIABILIDAD DEL SERVICIO EN EL DEPARTAMENTO DE CUNDINAMARCA\n","CTEL",null,{"$error":"#VALUE!"},null,2022,null,"SIN CONTRATAR",null,null,null,null,null,null,null,null,null,null,null,null,null,null,null,null,0,0,0]
[null,null,null,null,null,null,null,null,null,null,null,null,null,null,null,null,null,null,null,null,null,null,null,null,null,null,null,null,0,0,0]
[null,null,null,null,null,null,null,null,null,null,null,null,null,null,null,null,null,null,null,null,null,null,null,null,null,null,null,null,0,0,0]
[null,null,null,null,null,null,null,null,null,null,null,null,null,null,null,null,null,null,null,null,null,null,null,null,null,null,null,null,0,0,0]
[null,null,null,null,null,null,null,null,null,null,null,null,null,null,null,null,null,null,null,null,null,null,null,null,null,null,null,null,0,0,0]
[null,null,null,null,null,null,null,null,null,null,null,null,null,null,null,null,null,null,null,null,null,null,null,null,null,null,null,null,0,0,0]
[null,null,null,null,null,null,null,null,null,null,null,null,null,null,null,null,null,null,null,null,null,null,null,null,null,null,null,null,0,0,0]
[null,null,null,null,null,null,null,null,null,null,null,null,null,null,null,null,null,null,null,null,null,null,null,null,null,null,null,null,0,0,0]
[null,null,null,null,null,null,null,null,null,null,null,null,null,null,null,null,null,null,null,null,null,null,null,null,null,null,null,null,0,0,0]
[null,null,null,null,null,null,null,null,null,null,null,null,null,null,null,null,null,null,null,null,null,null,null,null,null,null,null,null,0,0,0]
[null,null,null,null,null,null,null,null,null,null,null,null,null,null,null,null,null,null,null,null,null,null,null,null,null,null,null,null,0,0,0]
[null,null,null,null,null,null,null,null,null,null,null,null,null,null,null,null,null,null,null,null,null,null,null,null,null,null,null,null,0,0,0]
[null,null,null,null,null,null,null,null,null,null,null,null,null,null,null,null,null,null,null,null,null,null,null,null,null,null,null,null,0,0,0]
[null,null,null,null,null,null,null,null,null,null,null,null,null,null,null,null,null,null,null,null,null,null,null,null,null,null,null,null,0,0,0]
[null,null,null,null,null,null,null,null,null,null,null,null,null,null,null,null,null,null,null,null,null,null,null,null,null,null,null,null,0,0,0]
[null,null,null,null,null,null,null,null,null,null,null,null,null,null,null,null,null,null,null,null,null,null,null,null,null,null,null,null,0,0,0]
[null,null,null,null,null,null,null,null,null,null,null,null,null,null,null,null,null,null,null,null,null,null,null,null,null,null,null,null,0,0,0]
[null,null,null,null,null,null,null,null,null,null,null,null,null,null,null,null,null,null,null,null,null,null,null,null,null,null,null,null,0,0,0]
[null,null,null,null,null,null,null,null,null,null,null,null,null,null,null,null,null,null,null,null,null,null,null,null,null,null,null,null,0,0,0]
[null,null,null,null,null,null,null,null,null,null,null,null,null,null,null,null,null,null,null,null,null,null,null,null,null,null,null,null,0,0,0]
[null,null,null,null,null,null,null,null,null,null,null,null,null,null,null,null,null,null,null,null,null,null,null,null,null,null,null,null,0,0,0]
[null,null,null,null,null,null,null,null,null,null,null,null,null,null,null,null,null,null,null,null,null,null,null,null,null,null,null,null,0,0,0]
[null,null,null,null,null,null,null,null,null,null,null,null,null,null,null,null,null,null,null,null,null,null,null,null,null,null,null,null,0,0,0]
[null,null,null,null,null,null,null,null,null,null,null,null,null,null,null,null,null,null,null,null,null,null,null,null,null,null,null,null,0,0,0]
[null,null,null,null,null,null,null,null,null,null,null,null,null,null,null,null,null,null,null,null,null,null,null,null,null,null,null,null,0,0,0]
[null,null,null,null,null,null,null,null,null,null,null,null,null,null,null,null,null,null,null,null,null,null,null,null,null,null,null,null,0,0,0]
[null,null,null,null,null,null,null,null,null,null,null,null,null,null,null,null,null,null,null,null,null,null,null,null,null,null,null,null,0,0,0]
[null,null,null,null,null,null,null,null,null,null,null,null,null,null,null,null,null,null,null,null,null,null,null,null,null,null,null,null,0,0,0]
[null,null,null,null,null,null,null,null,null,null,null,null,null,null,null,null,null,null,null,null,null,null,null,null,null,null,null,null,0,0,0]
[null,null,null,null,null,null,null,null,null,null,null,null,null,null,null,null,null,null,null,null,null,null,null,null,null,null,null,null,0,0,0]
[null,null,null,null,null,null,null,null,null,null,null,null,null,null,null,null,null,null,null,null,null,null,null,null,null,null,null,null,0,0,0]
[null,null,null,null,null,null,null,null,null,null,null,null,null,null,null,null,null,null,null,null,null,null,null,null,null,null,null,null,0,0,0]
[null,null,null,null,null,null,null,null,null,null,null,null,null,null,null,null,null,null,null,null,null,null,null,null,null,null,null,null,0,0,0]
[null,null,null,null,null,null,null,null,null,null,null,null,null,null,null,null,null,null,null,null,null,null,null,null,null,null,null,null,0,0,0]
[null,null,null,null,null,null,null,null,null,null,null,null,null,null,null,null,null,null,null,null,null,null,null,null,null,null,null,null,0,0,0]
[null,null,null,null,null,null,null,null,null,null,null,null,null,null,null,null,null,null,null,null,null,null,null,null,null,null,null,null,{"$f":"IF(AA259=0,0,_xlfn.DAYS(AA259,TODAY()))","v":0},0,0]
[null,null,null,null,null,null,null,null,null,null,null,null,null,null,null,null,null,null,null,null,null,null,null,null,null,null,null,null,0,0,0]
[null,null,null,null,null,null,null,null,null,null,null,null,null,null,null,null,null,null,null,null,null,null,null,null,null,null,null,null,0,0,{"$f":"IF(Z261=0,0,_xlfn.DAYS(Z261,TODAY()))","v":0}]
[null,null,null,null,null,null,null,null,null,null,null,null,null,null,null,null,null,null,null,null,null,null,null,null,null,null,null,null,0,0,0]
[null,null,null,null,null,null,null,null,null,null,null,null,null,null,null,null,null,null,null,null,null,null,null,null,null,null,null,null,0,0,0]
[null,null,null,null,null,null,null,null,null,null,null,null,null,null,null,null,null,null,null,null,null,null,null,null,null,null,null,null,0,0,0]
[null,null,null,null,null,null,null,null,null,null,null,null,null,null,null,null,null,null,null,null,null,null,null,null,null,null,null,null,0,0,0]
[null,null,null,null,null,null,null,null,null,null,null,null,null,null,null,null,null,null,null,null,null,null,null,null,null,null,null,null,0,0,0]
[null,null,null,null,null,null,null,null,null,null,null,null,null,null,null,null,null,null,null,null,null,null,null,null,null,null,null,null,0,0,0]
[null,null,null,null,null,null,null,null,null,null,null,null,null,null,null,null,null,null,null,null,null,null,null,null,null,null,null,null,0,0,0]
[null,null,null,null,null,null,null,null,null,null,null,null,null,null,null,null,null,null,null,null,null,null,null,null,null,null,null,null,0,0,0]
[null,null,null,null,null,null,null,null,null,null,null,null,null,null,null,null,null,null,null,null,null,null,null,null,null,null,null,null,0,0,0]
[null,null,null,null,null,null,null,null,null,null,null,null,null,null,null,null,null,null,null,null,null,null,null,null,null,null,null,null,0,0,0]
[null,null,null,null,null,null,null,null,null,null,null,null,null,null,null,null,null,null,null,null,null,null,null,null,null,null,null,null,0,0,0]
[null,null,null,null,null,null,null,null,null,null,null,null,null,null,null,null,null,null,null,null,null,null,null,null,null,null,null,null,0,0,0]
[null,null,null,null,null,null,null,null,null,null,null,null,null,null,null,null,null,null,null,null,null,null,null,null,null,null,null,null,0,0,0]
[null,null,null,null,null,null,null,null,null,null,null,null,null,null,null,null,null,null,null,null,null,null,null,null,null,null,null,null,0,0,0]
[null,null,null,null,null,null,null,null,null,null,null,null,null,null,null,null,null,null,null,null,null,null,null,null,null,null,null,null,0,0,0]
[null,null,null,null,null,null,null,null,null,null,null,null,null,null,null,null,null,null,null,null,null,null,null,null,null,null,null,null,0,0,0]
[null,null,null,null,null,null,null,null,null,null,null,null,null,null,null,null,null,null,null,null,null,null,null,null,null,null,null,null,0,0,0]
[null,null,null,null,null,null,null,null,null,null,null,null,null,null,null,null,null,null,null,null,null,null,null,null,null,null,null,null,0,0,0]
[null,null,null,null,null,null,null,null,null,null,null,null,null,null,null,null,null,null,null,null,null,null,null,null,null,null,null,null,0,0,0]
[null,null,null,null,null,null,null,null,null,null,null,null,null,null,null,null,null,null,null,null,null,null,null,null,null,null,null,null,0,0,0]
[null,null,null,null,null,null,null,null,null,null,null,null,null,null,null,null,null,null,null,null,null,null,null,null,null,null,null,null,0,0,0]
[null,null,null,null,null,null,null,null,null,null,null,null,null,null,null,null,null,null,null,null,null,null,null,null,null,null,null,null,0,0,0]
[null,null,null,null,null,null,null,null,null,null,null,null,null,null,null,null,null,null,null,null,null,null,null,null,null,null,null,null,0,0,0]
[null,null,null,null,null,null,null,null,null,null,null,null,null,null,null,null,null,null,null,null,null,null,null,null,null,null,null,null,0,0,0]
[null,null,null,null,null,null,null,null,null,null,null,null,null,null,null,null,null,null,null,null,null,null,null,null,null,null,null,null,0,0,0]
[null,null,null,null,null,null,null,null,null,null,null,null,null,null,null,null,null,null,null,null,null,null,null,null,null,null,null,null,0,0,0]
[null,null,null,null,null,null,null,null,null,null,null,null,null,null,null,null,null,null,null,null,null,null,null,null,null,null,null,null,0,0,0]
[null,null,null,null,null,null,null,null,null,null,null,null,null,null,null,null,null,null,null,null,null,null,null,null,null,null,null,null,0,0,0]
[null,null,null,null,null,null,null,null,null,null,null,null,null,null,null,null,null,null,null,null,null,null,null,null,null,null,null,null,0,0,0]
[null,null,null,null,null,null,null,null,null,null,null,null,null,null,null,null,null,null,null,null,null,null,null,null,null,null,null,null,0,0,0]
[null,null,null,null,null,null,null,null,null,null,null,null,null,null,null,null,null,null,null,null,null,null,null,null,null,null,null,null,0,0,0]
[null,null,null,null,null,null,null,null,null,null,null,null,null,null,null,null,null,null,null,null,null,null,null,null,null,null,null,null,0,0,0]
[null,null,null,null,null,null,null,null,null,null,null,null,null,null,null,null,null,null,null,null,null,null,null,null,null,null,null,null,0,0,0]
[null,null,null,null,null,null,null,null,null,null,null,null,null,null,null,null,null,null,null,null,null,null,null,null,null,null,null,null,0,0,0]
[null,null,null,null,null,null,null,null,null,null,null,null,null,null,null,null,null,null,null,null,null,null,null,null,null,null,null,null,0,0,0]
[null,null,null,null,null,null,null,null,null,null,null,null,null,null,null,null,null,null,null,null,null,null,null,null,null,null,null,null,0,0,0]
[null,null,null,null,null,null,null,null,null,null,null,null,null,null,null,null,null,null,null,null,null,null,null,null,null,null,null,null,0,0,0]
[null,null,null,null,null,null,null,null,null,null,null,null,null,null,null,null,null,null,null,null,null,null,null,null,null,null,null,null,0,0,0]
[null,null,null,null,null,null,null,null,null,null,null,null,null,null,null,null,null,null,null,null,null,null,null,null,null,null,null,null,0,0,0]
[null,null,null,null,null,null,null,null,null,null,null,null,null,null,null,null,null,null,null,null,null,null,null,null,null,null,null,null,0,0,0]
[null,null,null,null,null,null,null,null,null,null,null,null,null,null,null,null,null,null,null,null,null,null,null,null,null,null,null,null,0,0,0]
[null,null,null,null,null,null,null,null,null,null,null,null,null,null,null,null,null,null,null,null,null,null,null,null,null,null,null,null,0,0,0]
[null,null,null,null,null,null,null,null,null,null,null,null,null,null,null,null,null,null,null,null,null,null,null,null,null,null,null,null,0,0,0]
[null,null,null,null,null,null,null,null,null,null,null,null,null,null,null,null,null,null,null,null,null,null,null,null,null,null,null,null,0,0,0]
[null,null,null,null,null,null,null,null,null,null,null,null,null,null,null,null,null,null,null,null,null,null,null,null,null,null,null,null,0,0,0]
[null,null,null,null,null,null,null,null,null,null,null,null,null,null,null,null,null,null,null,null,null,null,null,null,null,null,null,null,0,0,0]
[null,null,null,null,null,null,null,null,null,null,null,null,null,null,null,null,null,null,null,null,null,null,null,null,null,null,null,null,0,0,0]
[null,null,null,null,null,null,null,null,null,null,null,null,null,null,null,null,null,null,null,null,null,null,null,null,null,null,null,null,0,0,0]
[null,null,null,null,null,null,null,null,null,null,null,null,null,null,null,null,null,null,null,null,null,null,null,null,null,null,null,null,0,0,0]
[null,null,null,null,null,null,null,null,null,null,null,null,null,null,null,null,null,null,null,null,null,null,null,null,null,null,null,null,0,0,0]
[null,null,null,null,null,null,null,null,null,null,null,null,null,null,null,null,null,null,null,null,null,null,null,null,null,null,null,null,0,0,0]
[null,null,null,null,null,null,null,null,null,null,null,null,null,null,null,null,null,null,null,null,null,null,null,null,null,null,null,null,0,0,0]
[null,null,null,null,null,null,null,null,null,null,null,null,null,null,null,null,null,null,null,null,null,null,null,null,null,null,null,null,0,0,0]
[null,null,null,null,null,null,null,null,null,null,null,null,null,null,null,null,null,null,null,null,null,null,null,null,null,null,null,null,0,0,0]
[null,null,null,null,null,null,null,null,null,null,null,null,null,null,null,null,null,null,null,null,null,null,null,null,null,null,null,null,0,0,0]
[null,null,null,null,null,null,null,null,null,null,null,null,null,null,null,null,null,null,null,null,null,null,null,null,null,null,null,null,0,0,0]
[null,null,null,null,null,null,null,null,null,null,null,null,null,null,null,null,null,null,null,null,null,null,null,null,null,null,null,null,0,0,0]
[null,null,null,null,null,null,null,null,null,null,null,null,null,null,null,null,null,null,null,null,null,null,null,null,null,null,null,null,0,0,0]
[null,null,null,null,null,null,null,null,null,null,null,null,null,null,null,null,null,null,null,null,null,null,null,null,null,null,null,null,0,0,0]
[null,null,null,null,null,null,null,null,null,null,null,null,null,null,null,null,null,null,null,null,null,null,null,null,null,null,null,null,0,0,0]
[null,null,null,null,null,null,null,null,null,null,null,null,null,null,null,null,null,null,null,null,null,null,null,null,null,null,null,null,0,0,0]
[null,null,null,null,null,null,null,null,null,null,null,null,null,null,null,null,null,null,null,null,null,null,null,null,null,null,null,null,{"$f":"IF(AA323=0,0,_xlfn.DAYS(AA323,TODAY()))","v":0},0,0]
[null,null,null,null,null,null,null,null,null,null,null,null,null,null,null,null,null,null,null,null,null,null,null,null,null,null,null,null,0,0,0]
[null,null,null,null,null,null,null,null,null,null,null,null,null,null,null,null,null,null,null,null,null,null,null,null,null,null,null,null,0,0,{"$f":"IF(Z325=0,0,_xlfn.DAYS(Z325,TODAY()))","v":0}]
[null,null,null,null,null,null,null,null,null,null,null,null,null,null,null,null,null,null,null,null,null,null,null,null,null,null,null,null,0,0,0]
[null,null,null,null,null,null,null,null,null,null,null,null,null,null,null,null,null,null,null,null,null,null,null,null,null,null,null,null,0,0,0]
[null,null,null,null,null,null,null,null,null,null,null,null,null,null,null,null,null,null,null,null,null,null,null,null,null,null,null,null,0,0,0]
[null,null,null,null,null,null,null,null,null,null,null,null,null,null,null,null,null,null,null,null,null,null,null,null,null,null,null,null,0,0,0]
[null,null,null,null,null,null,null,null,null,null,null,null,null,null,null,null,null,null,null,null,null,null,null,null,null,null,null,null,0,0,0]
[null,null,null,null,null,null,null,null,null,null,null,null,null,null,null,null,null,null,null,null,null,null,null,null,null,null,null,null,0,0,0]
[null,null,null,null,null,null,null,null,null,null,null,null,null,null,null,null,null,null,null,null,null,null,null,null,null,null,null,null,0,0,0]
[null,null,null,null,null,null,null,null,null,null,null,null,null,null,null,null,null,null,null,null,null,null,null,null,null,null,null,null,0,0,0]
[null,null,null,null,null,null,null,null,null,null,null,null,null,null,null,null,null,null,null,null,null,null,null,null,null,null,null,null,0,0,0]
[null,null,null,null,null,null,null,null,null,null,null,null,null,null,null,null,null,null,null,null,null,null,null,null,null,null,null,null,0,0,0]
[null,null,null,null,null,null,null,null,null,null,null,null,null,null,null,null,null,null,null,null,null,null,null,null,null,null,null,null,0,0,0]
[null,null,null,null,null,null,null,null,null,null,null,null,null,null,null,null,null,null,null,null,null,null,null,null,null,null,null,null,0,0,0]
[null,null,null,null,null,null,null,null,null,null,null,null,null,null,null,null,null,null,null,null,null,null,null,null,null,null,null,null,0,0,0]
[null,null,null,null,null,null,null,null,null,null,null,null,null,null,null,null,null,null,null,null,null,null,null,null,null,null,null,null,0,0,0]
[null,null,null,null,null,null,null,null,null,null,null,null,null,null,null,null,null,null,null,null,null,null,null,null,null,null,null,null,0,0,0]
[null,null,null,null,null,null,null,null,null,null,null,null,null,null,null,null,null,null,null,null,null,null,null,null,null,null,null,null,0,0,0]
[null,null,null,null,null,null,null,null,null,null,null,null,null,null,null,null,null,null,null,null,null,null,null,null,null,null,null,null,0,0,0]
[null,null,null,null,null,null,null,null,null,null,null,null,null,null,null,null,null,null,null,null,null,null,null,null,null,null,null,null,0,0,0]
[null,null,null,null,null,null,null,null,null,null,null,null,null,null,null,null,null,null,null,null,null,null,null,null,null,null,null,null,0,0,0]
[null,null,null,null,null,null,null,null,null,null,null,null,null,null,null,null,null,null,null,null,null,null,null,null,null,null,null,null,0,0,0]
[null,null,null,null,null,null,null,null,null,null,null,null,null,null,null,null,null,null,null,null,null,null,null,null,null,null,null,null,0,0,0]
[null,null,null,null,null,null,null,null,null,null,null,null,null,null,null,null,null,null,null,null,null,null,null,null,null,null,null,null,0,0,0]
[null,null,null,null,null,null,null,null,null,null,null,null,null,null,null,null,null,null,null,null,null,null,null,null,null,null,null,null,0,0,0]
[null,null,null,null,null,null,null,null,null,null,null,null,null,null,null,null,null,null,null,null,null,null,null,null,null,null,null,null,0,0,0]
[null,null,null,null,null,null,null,null,null,null,null,null,null,null,null,null,null,null,null,null,null,null,null,null,null,null,null,null,0,0,0]
[null,null,null,null,null,null,null,null,null,null,null,null,null,null,null,null,null,null,null,null,null,null,null,null,null,null,null,null,0,0,0]
[null,null,null,null,null,null,null,null,null,null,null,null,null,null,null,null,null,null,null,null,null,null,null,null,null,null,null,null,0,0,0]
[null,null,null,null,null,null,null,null,null,null,null,null,null,null,null,null,null,null,null,null,null,null,null,null,null,null,null,null,0,0,0]
[null,null,null,null,null,null,null,null,null,null,null,null,null,null,null,null,null,null,null,null,null,null,null,null,null,null,null,null,0,0,0]
[null,null,null,null,null,null,null,null,null,null,null,null,null,null,null,null,null,null,null,null,null,null,null,null,null,null,null,null,0,0,0]
[null,null,null,null,null,null,null,null,null,null,null,null,null,null,null,null,null,null,null,null,null,null,null,null,null,null,null,null,0,0,0]
[null,null,null,null,null,null,null,null,null,null,null,null,null,null,null,null,null,null,null,null,null,null,null,null,null,null,null,null,0,0,0]
[null,null,null,null,null,null,null,null,null,null,null,null,null,null,null,null,null,null,null,null,null,null,null,null,null,null,null,null,0,0,0]
[null,null,null,null,null,null,null,null,null,null,null,null,null,null,null,null,null,null,null,null,null,null,null,null,null,null,null,null,0,0,0]
[null,null,null,null,null,null,null,null,null,null,null,null,null,null,null,null,null,null,null,null,null,null,null,null,null,null,null,null,0,0,0]
[null,null,null,null,null,null,null,null,null,null,null,null,null,null,null,null,null,null,null,null,null,null,null,null,null,null,null,null,0,0,0]
[null,null,null,null,null,null,null,null,null,null,null,null,null,null,null,null,null,null,null,null,null,null,null,null,null,null,null,null,0,0,0]
[null,null,null,null,null,null,null,null,null,null,null,null,null,null,null,null,null,null,null,null,null,null,null,null,null,null,null,null,0,0,0]
[null,null,null,null,null,null,null,null,null,null,null,null,null,null,null,null,null,null,null,null,null,null,null,null,null,null,null,null,0,0,0]
[null,null,null,null,null,null,null,null,null,null,null,null,null,null,null,null,null,null,null,null,null,null,null,null,null,null,null,null,0,0,0]
[null,null,null,null,null,null,null,null,null,null,null,null,null,null,null,null,null,null,null,null,null,null,null,null,null,null,null,null,0,0,0]
[null,null,null,null,null,null,null,null,null,null,null,null,null,null,null,null,null,null,null,null,null,null,null,null,null,null,null,null,0,0,0]
[null,null,null,null,null,null,null,null,null,null,null,null,null,null,null,null,null,null,null,null,null,null,null,null,null,null,null,null,0,0,0]
[null,null,null,null,null,null,null,null,null,null,null,null,null,null,null,null,null,null,null,null,null,null,null,null,null,null,null,null,0,0,0]
[null,null,null,null,null,null,null,null,null,null,null,null,null,null,null,null,null,null,null,null,null,null,null,null,null,null,null,null,0,0,0]
[null,null,null,null,null,null,null,null,null,null,null,null,null,null,null,null,null,null,null,null,null,null,null,null,null,null,null,null,0,0,0]
[null,null,null,null,null,null,null,null,null,null,null,null,null,null,null,null,null,null,null,null,null,null,null,null,null,null,null,null,0,0,0]
[null,null,null,null,null,null,null,null,null,null,null,null,null,null,null,null,null,null,null,null,null,null,null,null,null,null,null,null,0,0,0]
[null,null,null,null,null,null,null,null,null,null,null,null,null,null,null,null,null,null,null,null,null,null,null,null,null,null,null,null,0,0,0]
[null,null,null,null,null,null,null,null,null,null,null,null,null,null,null,null,null,null,null,null,null,null,null,null,null,null,null,null,0,0,0]
[null,null,null,null,null,null,null,null,null,null,null,null,null,null,null,null,null,null,null,null,null,null,null,null,null,null,null,null,0,0,0]
[null,null,null,null,null,null,null,null,null,null,null,null,null,null,null,null,null,null,null,null,null,null,null,null,null,null,null,null,0,0,0]
[null,null,null,null,null,null,null,null,null,null,null,null,null,null,null,null,null,null,null,null,null,null,null,null,null,null,null,null,0,0,0]
[null,null,null,null,null,null,null,null,null,null,null,null,null,null,null,null,null,null,null,null,null,null,null,null,null,null,null,null,0,0,0]
[null,null,null,null,null,null,null,null,null,null,null,null,null,null,null,null,null,null,null,null,null,null,null,null,null,null,null,null,0,0,0]
[null,null,null,null,null,null,null,null,null,null,null,null,null,null,null,null,null,null,null,null,null,null,null,null,null,null,null,null,0,0,0]
[null,null,null,null,null,null,null,null,null,null,null,null,null,null,null,null,null,null,null,null,null,null,null,null,null,null,null,null,{"$f":"IF(AA382=0,0,_xlfn.DAYS(AA382,TODAY()))","v":0},0,{"$f":"IF(Z382=0,0,_xlfn.DAYS(Z382,TODAY()))","v":0}]
[null,null,null,null,null,null,null,null,null,null,null,null,null,null,null,null,null,null,null,null,null,null,null,null,null,null,null,null,0,0,0]
[null,null,null,null,null,null,null,null,null,null,null,null,null,null,null,null,null,null,null,null,null,null,null,null,null,null,null,null,0,0,0]
[null,null,null,null,null,null,null,null,null,null,null,null,null,null,null,null,null,null,null,null,null,null,null,null,null,null,null,null,0,0,0]
[null,null,null,null,null,null,null,null,null,null,null,null,null,null,null,null,null,null,null,null,null,null,null,null,null,null,null,null,{"$f":"IF(AA386=0,0,_xlfn.DAYS(AA386,TODAY()))","v":0},0,0]
[null,null,null,null,null,null,null,null,null,null,null,null,null,null,null,null,null,null,null,null,null,null,null,null,null,null,null,null,0,0,{"$f":"IF(Z387=0,0,_xlfn.DAYS(Z387,TODAY()))","v":0}]
[null,null,null,null,null,null,null,null,null,null,null,null,null,null,null,null,null,null,null,null,null,null,null,null,null,null,null,null,0,0,0]
[null,null,null,null,null,null,null,null,null,null,null,null,null,null,null,null,null,null,null,null,null,null,null,null,null,null,null,null,0,0,0]
[null,null,null,null,null,null,null,null,null,null,null,null,null,null,null,null,null,null,null,null,null,null,null,null,null,null,null,null,0,0,0]
[null,null,null,null,null,null,null,null,null,null,null,null,null,null,null,null,null,null,null,null,null,null,null,null,null,null,null,null,0,0,0]
[null,null,null,null,null,null,null,null,null,null,null,null,null,null,null,null,null,null,null,null,null,null,null,null,null,null,null,null,0,0,0]
[null,null,null,null,null,null,null,null,null,null,null,null,null,null,null,null,null,null,null,null,null,null,null,null,null,null,null,null,0,0,0]
[null,null,null,null,null,null,null,null,null,null,null,null,null,null,null,null,null,null,null,null,null,null,null,null,null,null,null,null,0,0,0]
[null,null,null,null,null,null,null,null,null,null,null,null,null,null,null,null,null,null,null,null,null,null,null,null,null,null,null,null,0,0,0]
[null,null,null,null,null,null,null,null,null,null,null,null,null,null,null,null,null,null,null,null,null,null,null,null,null,null,null,null,0,0,0]
[null,null,null,null,null,null,null,null,null,null,null,null,null,null,null,null,null,null,null,null,null,null,null,null,null,null,null,null,0,0,0]
[null,null,null,null,null,null,null,null,null,null,null,null,null,null,null,null,null,null,null,null,null,null,null,null,null,null,null,null,0,0,0]
[null,null,null,null,null,null,null,null,null,null,null,null,null,null,null,null,null,null,null,null,null,null,null,null,null,null,null,null,0,0,0]
[null,null,null,null,null,null,null,null,null,null,null,null,null,null,null,null,null,null,null,null,null,null,null,null,null,null,null,null,0,0,0]
[null,null,null,null,null,null,null,null,null,null,null,null,null,null,null,null,null,null,null,null,null,null,null,null,null,null,null,null,0,0,0]
[null,null,null,null,null,null,null,null,null,null,null,null,null,null,null,null,null,null,null,null,null,null,null,null,null,null,null,null,0,0,0]
[null,null,null,null,null,null,null,null,null,null,null,null,null,null,null,null,null,null,null,null,null,null,null,null,null,null,null,null,0,0,0]
[null,null,null,null,null,null,null,null,null,null,null,null,null,null,null,null,null,null,null,null,null,null,null,null,null,null,null,null,0,0,0]
[null,null,null,null,null,null,null,null,null,null,null,null,null,null,null,null,null,null,null,null,null,null,null,null,null,null,null,null,0,0,0]
[null,null,null,null,null,null,null,null,null,null,null,null,null,null,null,null,null,null,null,null,null,null,null,null,null,null,null,null,0,0,0]
[null,null,null,null,null,null,null,null,null,null,null,null,null,null,null,null,null,null,null,null,null,null,null,null,null,null,null,null,0,0,0]
[null,null,null,null,null,null,null,null,null,null,null,null,null,null,null,null,null,null,null,null,null,null,null,null,null,null,null,null,0,0,0]
[null,null,null,null,null,null,null,null,null,null,null,null,null,null,null,null,null,null,null,null,null,null,null,null,null,null,null,null,0,0,0]
[null,null,null,null,null,null,null,null,null,null,null,null,null,null,null,null,null,null,null,null,null,null,null,null,null,null,null,null,0,0,0]
[null,null,null,null,null,null,null,null,null,null,null,null,null,null,null,null,null,null,null,null,null,null,null,null,null,null,null,null,0,0,0]
[null,null,null,null,null,null,null,null,null,null,null,null,null,null,null,null,null,null,null,null,null,null,null,null,null,null,null,null,0,0,0]
[null,null,null,null,null,null,null,null,null,null,null,null,null,null,null,null,null,null,null,null,null,null,null,null,null,null,null,null,0,0,0]
[null,null,null,null,null,null,null,null,null,null,null,null,null,null,null,null,null,null,null,null,null,null,null,null,null,null,null,null,0,0,0]
[null,null,null,null,null,null,null,null,null,null,null,null,null,null,null,null,null,null,null,null,null,null,null,null,null,null,null,null,0,0,0]
[null,null,null,null,null,null,null,null,null,null,null,null,null,null,null,null,null,null,null,null,null,null,null,null,null,null,null,null,0,0,0]
[null,null,null,null,null,null,null,null,null,null,null,null,null,null,null,null,null,null,null,null,null,null,null,null,null,null,null,null,0,0,0]
[null,null,null,null,null,null,null,null,null,null,null,null,null,null,null,null,null,null,null,null,null,null,null,null,null,null,null,null,0,0,0]
[null,null,null,null,null,null,null,null,null,null,null,null,null,null,null,null,null,null,null,null,null,null,null,null,null,null,null,null,0,0,0]
[null,null,null,null,null,null,null,null,null,null,null,null,null,null,null,null,null,null,null,null,null,null,null,null,null,null,null,null,0,0,0]
[null,null,null,null,null,null,null,null,null,null,null,null,null,null,null,null,null,null,null,null,null,null,null,null,null,null,null,null,0,0,0]
[null,null,null,null,null,null,null,null,null,null,null,null,null,null,null,null,null,null,null,null,null,null,null,null,null,null,null,null,0,0,0]
[null,null,null,null,null,null,null,null,null,null,null,null,null,null,null,null,null,null,null,null,null,null,null,null,null,null,null,null,0,0,0]
[null,null,null,null,null,null,null,null,null,null,null,null,null,null,null,null,null,null,null,null,null,null,null,null,null,null,null,null,0,0,0]
[null,null,null,null,null,null,null,null,null,null,null,null,null,null,null,null,null,null,null,null,null,null,null,null,null,null,null,null,0,0,0]
[null,null,null,null,null,null,null,null,null,null,null,null,null,null,null,null,null,null,null,null,null,null,null,null,null,null,null,null,0,0,0]
[null,null,null,null,null,null,null,null,null,null,null,null,null,null,null,null,null,null,null,null,null,null,null,null,null,null,null,null,0,0,0]
[null,null,null,null,null,null,null,null,null,null,null,null,null,null,null,null,null,null,null,null,null,null,null,null,null,null,null,null,0,0,0]
[null,null,null,null,null,null,null,null,null,null,null,null,null,null,null,null,null,null,null,null,null,null,null,null,null,null,null,null,0,0,0]
[null,null,null,null,null,null,null,null,null,null,null,null,null,null,null,null,null,null,null,null,null,null,null,null,null,null,null,null,0,0,0]
[null,null,null,null,null,null,null,null,null,null,null,null,null,null,null,null,null,null,null,null,null,null,null,null,null,null,null,null,0,0,0]
[null,null,null,null,null,null,null,null,null,null,null,null,null,null,null,null,null,null,null,null,null,null,null,null,null,null,null,null,0,0,0]
[null,null,null,null,null,null,null,null,null,null,null,null,null,null,null,null,null,null,null,null,null,null,null,null,null,null,null,null,0,0,0]
[null,null,null,null,null,null,null,null,null,null,null,null,null,null,null,null,null,null,null,null,null,null,null,null,null,null,null,null,0,0,0]
[null,null,null,null,null,null,null,null,null,null,null,null,null,null,null,null,null,null,null,null,null,null,null,null,null,null,null,null,0,0,0]
[null,null,null,null,null,null,null,null,null,null,null,null,null,null,null,null,null,null,null,null,null,null,null,null,null,null,null,null,0,0,0]
[null,null,null,null,null,null,null,null,null,null,null,null,null,null,null,null,null,null,null,null,null,null,null,null,null,null,null,null,0,0,0]
[null,null,null,null,null,null,null,null,null,null,null,null,null,null,null,null,null,null,null,null,null,null,null,null,null,null,null,null,0,0,0]
[null,null,null,null,null,null,null,null,null,null,null,null,null,null,null,null,null,null,null,null,null,null,null,null,null,null,null,null,0,0,0]
[null,null,null,null,null,null,null,null,null,null,null,null,null,null,null,null,null,null,null,null,null,null,null,null,null,null,null,null,0,0,0]
[null,null,null,null,null,null,null,null,null,null,null,null,null,null,null,null,null,null,null,null,null,null,null,null,null,null,null,null,0,0,0]
[null,null,null,null,null,null,null,null,null,null,null,null,null,null,null,null,null,null,null,null,null,null,null,null,null,null,null,null,0,0,0]
[null,null,null,null,null,null,null,null,null,null,null,null,null,null,null,null,null,null,null,null,null,null,null,null,null,null,null,null,0,0,0]
[null,null,null,null,null,null,null,null,null,null,null,null,null,null,null,null,null,null,null,null,null,null,null,null,null,null,null,null,0,0,0]
[null,null,null,null,null,null,null,null,null,null,null,null,null,null,null,null,null,null,null,null,null,null,null,null,null,null,null,null,0,0,0]
[null,null,null,null,null,null,null,null,null,null,null,null,null,null,null,null,null,null,null,null,null,null,null,null,null,null,null,null,0,0,0]
[null,null,null,null,null,null,null,null,null,null,null,null,null,null,null,null,null,null,null,null,null,null,null,null,null,null,null,null,0,0,0]
[null,null,null,null,null,null,null,null,null,null,null,null,null,null,null,null,null,null,null,null,null,null,null,null,null,null,null,null,0,0,0]
[null,null,null,null,null,null,null,null,null,null,null,null,null,null,null,null,null,null,null,null,null,null,null,null,null,null,null,null,0,0,0]
[null,null,null,null,null,null,null,null,null,null,null,null,null,null,null,null,null,null,null,null,null,null,null,null,null,null,null,null,{"$f":"IF(AA450=0,0,_xlfn.DAYS(AA450,TODAY()))","v":0},0,0]
[null,null,null,null,null,null,null,null,null,null,null,null,null,null,null,null,null,null,null,null,null,null,null,null,null,null,null,null,0,0,{"$f":"IF(Z451=0,0,_xlfn.DAYS(Z451,TODAY()))","v":0}]
[null,null,null,null,null,null,null,null,null,null,null,null,null,null,null,null,null,null,null,null,null,null,null,null,null,null,null,null,0,0,0]
[null,null,null,null,null,null,null,null,null,null,null,null,null,null,null,null,null,null,null,null,null,null,null,null,null,null,null,null,0,0,0]
[null,null,null,null,null,null,null,null,null,null,null,null,null,null,null,null,null,null,null,null,null,null,null,null,null,null,null,null,0,0,0]
[null,null,null,null,null,null,null,null,null,null,null,null,null,null,null,null,null,null,null,null,null,null,null,null,null,null,null,null,0,0,0]
[null,null,null,null,null,null,null,null,null,null,null,null,null,null,null,null,null,null,null,null,null,null,null,null,null,null,null,null,0,0,0]
[null,null,null,null,null,null,null,null,null,null,null,null,null,null,null,null,null,null,null,null,null,null,null,null,null,null,null,null,0,0,0]
[null,null,null,null,null,null,null,null,null,null,null,null,null,null,null,null,null,null,null,null,null,null,null,null,null,null,null,null,0,0,0]
[null,null,null,null,null,null,null,null,null,null,null,null,null,null,null,null,null,null,null,null,null,null,null,null,null,null,null,null,0,0,0]
[null,null,null,null,null,null,null,null,null,null,null,null,null,null,null,null,null,null,null,null,null,null,null,null,null,null,null,null,0,0,0]
[null,null,null,null,null,null,null,null,null,null,null,null,null,null,null,null,null,null,null,null,null,null,null,null,null,null,null,null,0,0,0]
[null,null,null,null,null,null,null,null,null,null,null,null,null,null,null,null,null,null,null,null,null,null,null,null,null,null,null,null,0,0,0]
[null,null,null,null,null,null,null,null,null,null,null,null,null,null,null,null,null,null,null,null,null,null,null,null,null,null,null,null,0,0,0]
[null,null,null,null,null,null,null,null,null,null,null,null,null,null,null,null,null,null,null,null,null,null,null,null,null,null,null,null,0,0,0]
[null,null,null,null,null,null,null,null,null,null,null,null,null,null,null,null,null,null,null,null,null,null,null,null,null,null,null,null,0,0,0]
[null,null,null,null,null,null,null,null,null,null,null,null,null,null,null,null,null,null,null,null,null,null,null,null,null,null,null,null,0,0,0]
[null,null,null,null,null,null,null,null,null,null,null,null,null,null,null,null,null,null,null,null,null,null,null,null,null,null,null,null,0,0,0]
[null,null,null,null,null,null,null,null,null,null,null,null,null,null,null,null,null,null,null,null,null,null,null,null,null,null,null,null,0,0,0]
[null,null,null,null,null,null,null,null,null,null,null,null,null,null,null,null,null,null,null,null,null,null,null,null,null,null,null,null,0,0,0]
[null,null,null,null,null,null,null,null,null,null,null,null,null,null,null,null,null,null,null,null,null,null,null,null,null,null,null,null,0,0,0]
[null,null,null,null,null,null,null,null,null,null,null,null,null,null,null,null,null,null,null,null,null,null,null,null,null,null,null,null,0,0,0]
[null,null,null,null,null,null,null,null,null,null,null,null,null,null,null,null,null,null,null,null,null,null,null,null,null,null,null,null,0,0,0]
[null,null,null,null,null,null,null,null,null,null,null,null,null,null,null,null,null,null,null,null,null,null,null,null,null,null,null,null,0,0,0]
[null,null,null,null,null,null,null,null,null,null,null,null,null,null,null,null,null,null,null,null,null,null,null,null,null,null,null,null,0,0,0]
[null,null,null,null,null,null,null,null,null,null,null,null,null,null,null,null,null,null,null,null,null,null,null,null,null,null,null,null,0,0,0]
[null,null,null,null,null,null,null,null,null,null,null,null,null,null,null,null,null,null,null,null,null,null,null,null,null,null,null,null,0,0,0]
[null,null,null,null,null,null,null,null,null,null,null,null,null,null,null,null,null,null,null,null,null,null,null,null,null,null,null,null,0,0,0]
[null,null,null,null,null,null,null,null,null,null,null,null,null,null,null,null,null,null,null,null,null,null,null,null,null,null,null,null,0,0,0]
[null,null,null,null,null,null,null,null,null,null,null,null,null,null,null,null,null,null,null,null,null,null,null,null,null,null,null,null,0,0,0]
[null,null,null,null,null,null,null,null,null,null,null,null,null,null,null,null,null,null,null,null,null,null,null,null,null,null,null,null,0,0,0]
[null,null,null,null,null,null,null,null,null,null,null,null,null,null,null,null,null,null,null,null,null,null,null,null,null,null,null,null,0,0,0]
[null,null,null,null,null,null,null,null,null,null,null,null,null,null,null,null,null,null,null,null,null,null,null,null,null,null,null,null,0,0,0]
[null,null,null,null,null,null,null,null,null,null,null,null,null,null,null,null,null,null,null,null,null,null,null,null,null,null,null,null,0,0,0]
[null,null,null,null,null,null,null,null,null,null,null,null,null,null,null,null,null,null,null,null,null,null,null,null,null,null,null,null,0,0,0]
[null,null,null,null,null,null,null,null,null,null,null,null,null,null,null,null,null,null,null,null,null,null,null,null,null,null,null,null,0,0,0]
[null,null,null,null,null,null,null,null,null,null,null,null,null,null,null,null,null,null,null,null,null,null,null,null,null,null,null,null,0,0,0]
[null,null,null,null,null,null,null,null,null,null,null,null,null,null,null,null,null,null,null,null,null,null,null,null,null,null,null,null,0,0,0]
[null,null,null,null,null,null,null,null,null,null,null,null,null,null,null,null,null,null,null,null,null,null,null,null,null,null,null,null,0,0,0]
[null,null,null,null,null,null,null,null,null,null,null,null,null,null,null,null,null,null,null,null,null,null,null,null,null,null,null,null,0,0,0]
[null,null,null,null,null,null,null,null,null,null,null,null,null,null,null,null,null,null,null,null,null,null,null,null,null,null,null,null,0,0,0]
[null,null,null,null,null,null,null,null,null,null,null,null,null,null,null,null,null,null,null,null,null,null,null,null,null,null,null,null,0,0,0]
[null,null,null,null,null,null,null,null,null,null,null,null,null,null,null,null,null,null,null,null,null,null,null,null,null,null,null,null,0,0,0]
[null,null,null,null,null,null,null,null,null,null,null,null,null,null,null,null,null,null,null,null,null,null,null,null,null,null,null,null,0,0,0]
[null,null,null,null,null,null,null,null,null,null,null,null,null,null,null,null,null,null,null,null,null,null,null,null,null,null,null,null,0,0,0]
[null,null,null,null,null,null,null,null,null,null,null,null,null,null,null,null,null,null,null,null,null,null,null,null,null,null,null,null,0,0,0]
[null,null,null,null,null,null,null,null,null,null,null,null,null,null,null,null,null,null,null,null,null,null,null,null,null,null,null,null,0,0,0]
[null,null,null,null,null,null,null,null,null,null,null,null,null,null,null,null,null,null,null,null,null,null,null,null,null,null,null,null,0,0,0]
[null,null,null,null,null,null,null,null,null,null,null,null,null,null,null,null,null,null,null,null,null,null,null,null,null,null,null,null,0,0,0]
[null,null,null,null,null,null,null,null,null,null,null,null,null,null,null,null,null,null,null,null,null,null,null,null,null,null,null,null,0,0,0]
[null,null,null,null,null,null,null,null,null,null,null,null,null,null,null,null,null,null,null,null,null,null,null,null,null,null,null,null,0,0,0]
[null,null,null,null,null,null,null,null,null,null,null,null,null,null,null,null,null,null,null,null,null,null,null,null,null,null,null,null,0,0,0]
[null,null,null,null,null,null,null,null,null,null,null,null,null,null,null,null,null,null,null,null,null,null,null,null,null,null,null,null,0,0,0]
[null,null,null,null,null,null,null,null,null,null,null,null,null,null,null,null,null,null,null,null,null,null,null,null,null,null,null,null,0,0,0]
[null,null,null,null,null,null,null,null,null,null,null,null,null,null,null,null,null,null,null,null,null,null,null,null,null,null,null,null,0,0,0]
[null,null,null,null,null,null,null,null,null,null,null,null,null,null,null,null,null,null,null,null,null,null,null,null,null,null,null,null,0,0,0]
[null,null,null,null,null,null,null,null,null,null,null,null,null,null,null,null,null,null,null,null,null,null,null,null,null,null,null,null,0,0,0]
[null,null,null,null,null,null,null,null,null,null,null,null,null,null,null,null,null,null,null,null,null,null,null,null,null,null,null,null,0,0,0]
[null,null,null,null,null,null,null,null,null,null,null,null,null,null,null,null,null,null,null,null,null,null,null,null,null,null,null,null,0,0,0]
[null,null,null,null,null,null,null,null,null,null,null,null,null,null,null,null,null,null,null,null,null,null,null,null,null,null,null,null,0,0,0]
[null,null,null,null,null,null,null,null,null,null,null,null,null,null,null,null,null,null,null,null,null,null,null,null,null,null,null,null,0,0,0]
[null,null,null,null,null,null,null,null,null,null,null,null,null,null,null,null,null,null,null,null,null,null,null,null,null,null,null,null,0,0,0]
[null,null,null,null,null,null,null,null,null,null,null,null,null,null,null,null,null,null,null,null,null,null,null,null,null,null,null,null,0,0,0]
[null,null,null,null,null,null,null,null,null,null,null,null,null,null,null,null,null,null,null,null,null,null,null,null,null,null,null,null,0,0,0]
[null,null,null,null,null,null,null,null,null,null,null,null,null,null,null,null,null,null,null,null,null,null,null,null,null,null,null,null,{"$f":"IF(AA514=0,0,_xlfn.DAYS(AA514,TODAY()))","v":0},0,0]
[null,null,null,null,null,null,null,null,null,null,null,null,null,null,null,null,null,null,null,null,null,null,null,null,null,null,null,null,0,0,{"$f":"IF(Z515=0,0,_xlfn.DAYS(Z515,TODAY()))","v":0}]
[null,null,null,null,null,null,null,null,null,null,null,null,null,null,null,null,null,null,null,null,null,null,null,null,null,null,null,null,0,0,0]
[null,null,null,null,null,null,null,null,null,null,null,null,null,null,null,null,null,null,null,null,null,null,null,null,null,null,null,null,0,0,0]
[null,null,null,null,null,null,null,null,null,null,null,null,null,null,null,null,null,null,null,null,null,null,null,null,null,null,null,null,0,0,0]
[null,null,null,null,null,null,null,null,null,null,null,null,null,null,null,null,null,null,null,null,null,null,null,null,null,null,null,null,0,0,0]
[null,null,null,null,null,null,null,null,null,null,null,null,null,null,null,null,null,null,null,null,null,null,null,null,null,null,null,null,0,0,0]
[null,null,null,null,null,null,null,null,null,null,null,null,null,null,null,null,null,null,null,null,null,null,null,null,null,null,null,null,0,0,0]
[null,null,null,null,null,null,null,null,null,null,null,null,null,null,null,null,null,null,null,null,null,null,null,null,null,null,null,null,0,0,0]
[null,null,null,null,null,null,null,null,null,null,null,null,null,null,null,null,null,null,null,null,null,null,null,null,null,null,null,null,0,0,0]
[null,null,null,null,null,null,null,null,null,null,null,null,null,null,null,null,null,null,null,null,null,null,null,null,null,null,null,null,0,0,0]
[null,null,null,null,null,null,null,null,null,null,null,null,null,null,null,null,null,null,null,null,null,null,null,null,null,null,null,null,0,0,0]
[null,null,null,null,null,null,null,null,null,null,null,null,null,null,null,null,null,null,null,null,null,null,null,null,null,null,null,null,0,0,0]
[null,null,null,null,null,null,null,null,null,null,null,null,null,null,null,null,null,null,null,null,null,null,null,null,null,null,null,null,0,0,0]
[null,null,null,null,null,null,null,null,null,null,null,null,null,null,null,null,null,null,null,null,null,null,null,null,null,null,null,null,0,0,0]
[null,null,null,null,null,null,null,null,null,null,null,null,null,null,null,null,null,null,null,null,null,null,null,null,null,null,null,null,0,0,0]
[null,null,null,null,null,null,null,null,null,null,null,null,null,null,null,null,null,null,null,null,null,null,null,null,null,null,null,null,0,0,0]
[null,null,null,null,null,null,null,null,null,null,null,null,null,null,null,null,null,null,null,null,null,null,null,null,null,null,null,null,0,0,0]
[null,null,null,null,null,null,null,null,null,null,null,null,null,null,null,null,null,null,null,null,null,null,null,null,null,null,null,null,0,0,0]
[null,null,null,null,null,null,null,null,null,null,null,null,null,null,null,null,null,null,null,null,null,null,null,null,null,null,null,null,0,0,0]
[null,null,null,null,null,null,null,null,null,null,null,null,null,null,null,null,null,null,null,null,null,null,null,null,null,null,null,null,0,0]
[null,null,null,null,null,null,null,null,null,null,null,null,null,null,null,null,null,null,null,null,null,null,null,null,null,null,null,null,0,0]
[null,null,null,null,null,null,null,null,null,null,null,null,null,null,null,null,null,null,null,null,null,null,null,null,null,null,null,null,0,0]
[null,null,null,null,null,null,null,null,null,null,null,null,null,null,null,null,null,null,null,null,null,null,null,null,null,null,null,null,0,0]
[null,null,null,null,null,null,null,null,null,null,null,null,null,null,null,null,null,null,null,null,null,null,null,null,null,null,null,null,0,0]
[null,null,null,null,null,null,null,null,null,null,null,null,null,null,null,null,null,null,null,null,null,null,null,null,null,null,null,null,{"$f":"IF(AA539=0,0,_xlfn.DAYS(AA539,TODAY()))","v":0},0]
[null,null,null,null,null,null,null,null,null,null,null,null,null,null,null,null,null,null,null,null,null,null,null,null,null,null,null,null,0,0]
[null,null,null,null,null,null,null,null,null,null,null,null,null,null,null,null,null,null,null,null,null,null,null,null,null,null,null,null,0,0]
[null,null,null,null,null,null,null,null,null,null,null,null,null,null,null,null,null,null,null,null,null,null,null,null,null,null,null,null,0,0]
[null,null,null,null,null,null,null,null,null,null,null,null,null,null,null,null,null,null,null,null,null,null,null,null,null,null,null,null,0,{"$f":"IF(AB543=0,0,_xlfn.DAYS(AB543,TODAY()))","v":0}]
[null,null,null,null,null,null,null,null,null,null,null,null,null,null,null,null,null,null,null,null,null,null,null,null,null,null,null,null,0,0]
[null,null,null,null,null,null,null,null,null,null,null,null,null,null,null,null,null,null,null,null,null,null,null,null,null,null,null,null,0,0]
[null,null,null,null,null,null,null,null,null,null,null,null,null,null,null,null,null,null,null,null,null,null,null,null,null,null,null,null,0,0]
[null,null,null,null,null,null,null,null,null,null,null,null,null,null,null,null,null,null,null,null,null,null,null,null,null,null,null,null,0,0]
[null,null,null,null,null,null,null,null,null,null,null,null,null,null,null,null,null,null,null,null,null,null,null,null,null,null,null,null,0,0]
[null,null,null,null,null,null,null,null,null,null,null,null,null,null,null,null,null,null,null,null,null,null,null,null,null,null,null,null,0,0]
[null,null,null,null,null,null,null,null,null,null,null,null,null,null,null,null,null,null,null,null,null,null,null,null,null,null,null,null,0,0]
[null,null,null,null,null,null,null,null,null,null,null,null,null,null,null,null,null,null,null,null,null,null,null,null,null,null,null,null,0,0]
[null,null,null,null,null,null,null,null,null,null,null,null,null,null,null,null,null,null,null,null,null,null,null,null,null,null,null,null,0,0]
[null,null,null,null,null,null,null,null,null,null,null,null,null,null,null,null,null,null,null,null,null,null,null,null,null,null,null,null,0,0]
[null,null,null,null,null,null,null,null,null,null,null,null,null,null,null,null,null,null,null,null,null,null,null,null,null,null,null,null,0,0]
[null,null,null,null,null,null,null,null,null,null,null,null,null,null,null,null,null,null,null,null,null,null,null,null,null,null,null,null,0,0]
[null,null,null,null,null,null,null,null,null,null,null,null,null,null,null,null,null,null,null,null,null,null,null,null,null,null,null,null,0,0]
[null,null,null,null,null,null,null,null,null,null,null,null,null,null,null,null,null,null,null,null,null,null,null,null,null,null,null,null,0,0]
[null,null,null,null,null,null,null,null,null,null,null,null,null,null,null,null,null,null,null,null,null,null,null,null,null,null,null,null,0,0]
[null,null,null,null,null,null,null,null,null,null,null,null,null,null,null,null,null,null,null,null,null,null,null,null,null,null,null,null,0,0]
[null,null,null,null,null,null,null,null,null,null,null,null,null,null,null,null,null,null,null,null,null,null,null,null,null,null,null,null,0,0]
[null,null,null,null,null,null,null,null,null,null,null,null,null,null,null,null,null,null,null,null,null,null,null,null,null,null,null,null,0,0]
[null,null,null,null,null,null,null,null,null,null,null,null,null,null,null,null,null,null,null,null,null,null,null,null,null,null,null,null,0,0]
[null,null,null,null,null,null,null,null,null,null,null,null,null,null,null,null,null,null,null,null,null,null,null,null,null,null,null,null,0,0]
[null,null,null,null,null,null,null,null,null,null,null,null,null,null,null,null,null,null,null,null,null,null,null,null,null,null,null,null,0,0]
[null,null,null,null,null,null,null,null,null,null,null,null,null,null,null,null,null,null,null,null,null,null,null,null,null,null,null,null,0,0]
[null,null,null,null,null,null,null,null,null,null,null,null,null,null,null,null,null,null,null,null,null,null,null,null,null,null,null,null,0,0]
[null,null,null,null,null,null,null,null,null,null,null,null,null,null,null,null,null,null,null,null,null,null,null,null,null,null,null,null,0,0]
[null,null,null,null,null,null,null,null,null,null,null,null,null,null,null,null,null,null,null,null,null,null,null,null,null,null,null,null,0,0]
[null,null,null,null,null,null,null,null,null,null,null,null,null,null,null,null,null,null,null,null,null,null,null,null,null,null,null,null,0,0]
[null,null,null,null,null,null,null,null,null,null,null,null,null,null,null,null,null,null,null,null,null,null,null,null,null,null,null,null,0,0]
[null,null,null,null,null,null,null,null,null,null,null,null,null,null,null,null,null,null,null,null,null,null,null,null,null,null,null,null,0,0]
[null,null,null,null,null,null,null,null,null,null,null,null,null,null,null,null,null,null,null,null,null,null,null,null,null,null,null,null,0,0]
[null,null,null,null,null,null,null,null,null,null,null,null,null,null,null,null,null,null,null,null,null,null,null,null,null,null,null,null,0,0]
[null,null,null,null,null,null,null,null,null,null,null,null,null,null,null,null,null,null,null,null,null,null,null,null,null,null,null,null,0,0]
[null,null,null,null,null,null,null,null,null,null,null,null,null,null,null,null,null,null,null,null,null,null,null,null,null,null,null,null,0,0]
[null,null,null,null,null,null,null,null,null,null,null,null,null,null,null,null,null,null,null,null,null,null,null,null,null,null,null,null,0,0]
[null,null,null,null,null,null,null,null,null,null,null,null,null,null,null,null,null,null,null,null,null,null,null,null,null,null,null,null,0,0]
[null,null,null,null,null,null,null,null,null,null,null,null,null,null,null,null,null,null,null,null,null,null,null,null,null,null,null,null,{"$f":"IF(AA578=0,0,_xlfn.DAYS(AA578,TODAY()))","v":0},{"$f":"IF(AB578=0,0,_xlfn.DAYS(AB578,TODAY()))","v":0}]
[null,null,null,null,null,null,null,null,null,null,null,null,null,null,null,null,null,null,null,null,null,null,null,null,null,null,null,null,0,0]
[null,null,null,null,null,null,null,null,null,null,null,null,null,null,null,null,null,null,null,null,null,null,null,null,null,null,null,null,0,0]
[null,null,null,null,null,null,null,null,null,null,null,null,null,null,null,null,null,null,null,null,null,null,null,null,null,null,null,null,0,0]
[null,null,null,null,null,null,null,null,null,null,null,null,null,null,null,null,null,null,null,null,null,null,null,null,null,null,null,null,0,0]
[null,null,null,null,null,null,null,null,null,null,null,null,null,null,null,null,null,null,null,null,null,null,null,null,null,null,null,null,0,0]
[null,null,null,null,null,null,null,null,null,null,null,null,null,null,null,null,null,null,null,null,null,null,null,null,null,null,null,null,0,0]
[null,null,null,null,null,null,null,null,null,null,null,null,null,null,null,null,null,null,null,null,null,null,null,null,null,null,null,null,0,0]
[null,null,null,null,null,null,null,null,null,null,null,null,null,null,null,null,null,null,null,null,null,null,null,null,null,null,null,null,0,0]
[null,null,null,null,null,null,null,null,null,null,null,null,null,null,null,null,null,null,null,null,null,null,null,null,null,null,null,null,0,0]
[null,null,null,null,null,null,null,null,null,null,null,null,null,null,null,null,null,null,null,null,null,null,null,null,null,null,null,null,0,0]
[null,null,null,null,null,null,null,null,null,null,null,null,null,null,null,null,null,null,null,null,null,null,null,null,null,null,null,null,0,0]
[null,null,null,null,null,null,null,null,null,null,null,null,null,null,null,null,null,null,null,null,null,null,null,null,null,null,null,null,0,0]
[null,null,null,null,null,null,null,null,null,null,null,null,null,null,null,null,null,null,null,null,null,null,null,null,null,null,null,null,0,0]
[null,null,null,null,null,null,null,null,null,null,null,null,null,null,null,null,null,null,null,null,null,null,null,null,null,null,null,null,0,0]
[null,null,null,null,null,null,null,null,null,null,null,null,null,null,null,null,null,null,null,null,null,null,null,null,null,null,null,null,0,0]
[null,null,null,null,null,null,null,null,null,null,null,null,null,null,null,null,null,null,null,null,null,null,null,null,null,null,null,null,0,0]
[null,null,null,null,null,null,null,null,null,null,null,null,null,null,null,null,null,null,null,null,null,null,null,null,null,null,null,null,0,0]
[null,null,null,null,null,null,null,null,null,null,null,null,null,null,null,null,null,null,null,null,null,null,null,null,null,null,null,null,0,0]
[null,null,null,null,null,null,null,null,null,null,null,null,null,null,null,null,null,null,null,null,null,null,null,null,null,null,null,null,0,0]
[null,null,null,null,null,null,null,null,null,null,null,null,null,null,null,null,null,null,null,null,null,null,null,null,null,null,null,null,0,0]
[null,null,null,null,null,null,null,null,null,null,null,null,null,null,null,null,null,null,null,null,null,null,null,null,null,null,null,null,0,0]
[null,null,null,null,null,null,null,null,null,null,null,null,null,null,null,null,null,null,null,null,null,null,null,null,null,null,null,null,0,0]
[null,null,null,null,null,null,null,null,null,null,null,null,null,null,null,null,null,null,null,null,null,null,null,null,null,null,null,null,0,0]
[null,null,null,null,null,null,null,null,null,null,null,null,null,null,null,null,null,null,null,null,null,null,null,null,null,null,null,null,0,0]
[null,null,null,null,null,null,null,null,null,null,null,null,null,null,null,null,null,null,null,null,null,null,null,null,null,null,null,null,0,0]
[null,null,null,null,null,null,null,null,null,null,null,null,null,null,null,null,null,null,null,null,null,null,null,null,null,null,null,null,0,0]
[null,null,null,null,null,null,null,null,null,null,null,null,null,null,null,null,null,null,null,null,null,null,null,null,null,null,null,null,0,0]
[null,null,null,null,null,null,null,null,null,null,null,null,null,null,null,null,null,null,null,null,null,null,null,null,null,null,null,null,0,0]
[null,null,null,null,null,null,null,null,null,null,null,null,null,null,null,null,null,null,null,null,null,null,null,null,null,null,null,null,0,0]
[null,null,null,null,null,null,null,null,null,null,null,null,null,null,null,null,null,null,null,null,null,null,null,null,null,null,null,null,0,0]
[null,null,null,null,null,null,null,null,null,null,null,null,null,null,null,null,null,null,null,null,null,null,null,null,null,null,null,null,0,0]
[null,null,null,null,null,null,null,null,null,null,null,null,null,null,null,null,null,null,null,null,null,null,null,null,null,null,null,null,0,0]
[null,null,null,null,null,null,null,null,null,null,null,null,null,null,null,null,null,null,null,null,null,null,null,null,null,null,null,null,0,0]
[null,null,null,null,null,null,null,null,null,null,null,null,null,null,null,null,null,null,null,null,null,null,null,null,null,null,null,null,0,0]
[null,null,null,null,null,null,null,null,null,null,null,null,null,null,null,null,null,null,null,null,null,null,null,null,null,null,null,null,0,0]
[null,null,null,null,null,null,null,null,null,null,null,null,null,null,null,null,null,null,null,null,null,null,null,null,null,null,null,null,0,0]
[null,null,null,null,null,null,null,null,null,null,null,null,null,null,null,null,null,null,null,null,null,null,null,null,null,null,null,null,0,0]
[null,null,null,null,null,null,null,null,null,null,null,null,null,null,null,null,null,null,null,null,null,null,null,null,null,null,null,null,0,0]
[null,null,null,null,null,null,null,null,null,null,null,null,null,null,null,null,null,null,null,null,null,null,null,null,null,null,null,null,0,0]
[null,null,null,null,null,null,null,null,null,null,null,null,null,null,null,null,null,null,null,null,null,null,null,null,null,null,null,null,0,0]
[null,null,null,null,null,null,null,null,null,null,null,null,null,null,null,null,null,null,null,null,null,null,null,null,null,null,null,null,0,0]
[null,null,null,null,null,null,null,null,null,null,null,null,null,null,null,null,null,null,null,null,null,null,null,null,null,null,null,null,0,0]
[null,null,null,null,null,null,null,null,null,null,null,null,null,null,null,null,null,null,null,null,null,null,null,null,null,null,null,null,0,0]
[null,null,null,null,null,null,null,null,null,null,null,null,null,null,null,null,null,null,null,null,null,null,null,null,null,null,null,null,0,0]
[null,null,null,null,null,null,null,null,null,null,null,null,null,null,null,null,null,null,null,null,null,null,null,null,null,null,null,null,0,0]
[null,null,null,null,null,null,null,null,null,null,null,null,null,null,null,null,null,null,null,null,null,null,null,null,null,null,null,null,0,0]
[null,null,null,null,null,null,null,null,null,null,null,null,null,null,null,null,null,null,null,null,null,null,null,null,null,null,null,null,0,0]
[null,null,null,null,null,null,null,null,null,null,null,null,null,null,null,null,null,null,null,null,null,null,null,null,null,null,null,null,0,0]
[null,null,null,null,null,null,null,null,null,null,null,null,null,null,null,null,null,null,null,null,null,null,null,null,null,null,null,null,0,0]
[null,null,null,null,null,null,null,null,null,null,null,null,null,null,null,null,null,null,null,null,null,null,null,null,null,null,null,null,0,0]
[null,null,null,null,null,null,null,null,null,null,null,null,null,null,null,null,null,null,null,null,null,null,null,null,null,null,null,null,0,0]
[null,null,null,null,null,null,null,null,null,null,null,null,null,null,null,null,null,null,null,null,null,null,null,null,null,null,null,null,0,0]
[null,null,null,null,null,null,null,null,null,null,null,null,null,null,null,null,null,null,null,null,null,null,null,null,null,null,null,null,0,0]
[null,null,null,null,null,null,null,null,null,null,null,null,null,null,null,null,null,null,null,null,null,null,null,null,null,null,null,null,0,0]
[null,null,null,null,null,null,null,null,null,null,null,null,null,null,null,null,null,null,null,null,null,null,null,null,null,null,null,null,0,0]
[null,null,null,null,null,null,null,null,null,null,null,null,null,null,null,null,null,null,null,null,null,null,null,null,null,null,null,null,0,0]
[null,null,null,null,null,null,null,null,null,null,null,null,null,null,null,null,null,null,null,null,null,null,null,null,null,null,null,null,0,0]
[null,null,null,null,null,null,null,null,null,null,null,null,null,null,null,null,null,null,null,null,null,null,null,null,null,null,null,null,0,0]
[null,null,null,null,null,null,null,null,null,null,null,null,null,null,null,null,null,null,null,null,null,null,null,null,null,null,null,null,0,0]
[null,null,null,null,null,null,null,null,null,null,null,null,null,null,null,null,null,null,null,null,null,null,null,null,null,null,null,null,0,0]
[null,null,null,null,null,null,null,null,null,null,null,null,null,null,null,null,null,null,null,null,null,null,null,null,null,null,null,null,0,0]
[null,null,null,null,null,null,null,null,null,null,null,null,null,null,null,null,null,null,null,null,null,null,null,null,null,null,null,null,0,0]
[null,null,null,null,null,null,null,null,null,null,null,null,null,null,null,null,null,null,null,null,null,null,null,null,null,null,null,null,0,0]
[null,null,null,null,null,null,null,null,null,null,null,null,null,null,null,null,null,null,null,null,null,null,null,null,null,null,null,null,{"$f":"IF(AA642=0,0,_xlfn.DAYS(AA642,TODAY()))","v":0},{"$f":"IF(AB642=0,0,_xlfn.DAYS(AB642,TODAY()))","v":0}]
[null,null,null,null,null,null,null,null,null,null,null,null,null,null,null,null,null,null,null,null,null,null,null,null,null,null,null,null,0,0]
[null,null,null,null,null,null,null,null,null,null,null,null,null,null,null,null,null,null,null,null,null,null,null,null,null,null,null,null,0,0]
[null,null,null,null,null,null,null,null,null,null,null,null,null,null,null,null,null,null,null,null,null,null,null,null,null,null,null,null,0,0]
[null,null,null,null,null,null,null,null,null,null,null,null,null,null,null,null,null,null,null,null,null,null,null,null,null,null,null,null,0,0]
[null,null,null,null,null,null,null,null,null,null,null,null,null,null,null,null,null,null,null,null,null,null,null,null,null,null,null,null,0,0]
[null,null,null,null,null,null,null,null,null,null,null,null,null,null,null,null,null,null,null,null,null,null,null,null,null,null,null,null,0,0]
[null,null,null,null,null,null,null,null,null,null,null,null,null,null,null,null,null,null,null,null,null,null,null,null,null,null,null,null,0,0]
[null,null,null,null,null,null,null,null,null,null,null,null,null,null,null,null,null,null,null,null,null,null,null,null,null,null,null,null,0,0]
[null,null,null,null,null,null,null,null,null,null,null,null,null,null,null,null,null,null,null,null,null,null,null,null,null,null,null,null,0,0]
[null,null,null,null,null,null,null,null,null,null,null,null,null,null,null,null,null,null,null,null,null,null,null,null,null,null,null,null,0,0]
[null,null,null,null,null,null,null,null,null,null,null,null,null,null,null,null,null,null,null,null,null,null,null,null,null,null,null,null,0,0]
[null,null,null,null,null,null,null,null,null,null,null,null,null,null,null,null,null,null,null,null,null,null,null,null,null,null,null,null,0,0]
[null,null,null,null,null,null,null,null,null,null,null,null,null,null,null,null,null,null,null,null,null,null,null,null,null,null,null,null,0,0]
[null,null,null,null,null,null,null,null,null,null,null,null,null,null,null,null,null,null,null,null,null,null,null,null,null,null,null,null,0,0]
[null,null,null,null,null,null,null,null,null,null,null,null,null,null,null,null,null,null,null,null,null,null,null,null,null,null,null,null,0,0]
[null,null,null,null,null,null,null,null,null,null,null,null,null,null,null,null,null,null,null,null,null,null,null,null,null,null,null,null,0,0]
[null,null,null,null,null,null,null,null,null,null,null,null,null,null,null,null,null,null,null,null,null,null,null,null,null,null,null,null,0,0]
[null,null,null,null,null,null,null,null,null,null,null,null,null,null,null,null,null,null,null,null,null,null,null,null,null,null,null,null,0,0]
[null,null,null,null,null,null,null,null,null,null,null,null,null,null,null,null,null,null,null,null,null,null,null,null,null,null,null,null,0,0]
[null,null,null,null,null,null,null,null,null,null,null,null,null,null,null,null,null,null,null,null,null,null,null,null,null,null,null,null,0,0]
[null,null,null,null,null,null,null,null,null,null,null,null,null,null,null,null,null,null,null,null,null,null,null,null,null,null,null,null,0,0]
[null,null,null,null,null,null,null,null,null,null,null,null,null,null,null,null,null,null,null,null,null,null,null,null,null,null,null,null,0,0]
[null,null,null,null,null,null,null,null,null,null,null,null,null,null,null,null,null,null,null,null,null,null,null,null,null,null,null,null,0,0]
[null,null,null,null,null,null,null,null,null,null,null,null,null,null,null,null,null,null,null,null,null,null,null,null,null,null,null,null,0,0]
[null,null,null,null,null,null,null,null,null,null,null,null,null,null,null,null,null,null,null,null,null,null,null,null,null,null,null,null,0,0]
[null,null,null,null,null,null,null,null,null,null,null,null,null,null,null,null,null,null,null,null,null,null,null,null,null,null,null,null,0,0]
[null,null,null,null,null,null,null,null,null,null,null,null,null,null,null,null,null,null,null,null,null,null,null,null,null,null,null,null,0,0]
[null,null,null,null,null,null,null,null,null,null,null,null,null,null,null,null,null,null,null,null,null,null,null,null,null,null,null,null,0,0]
[null,null,null,null,null,null,null,null,null,null,null,null,null,null,null,null,null,null,null,null,null,null,null,null,null,null,null,null,0,0]
[null,null,null,null,null,null,null,null,null,null,null,null,null,null,null,null,null,null,null,null,null,null,null,null,null,null,null,null,0,0]
[null,null,null,null,null,null,null,null,null,null,null,null,null,null,null,null,null,null,null,null,null,null,null,null,null,null,null,null,0,0]
[null,null,null,null,null,null,null,null,null,null,null,null,null,null,null,null,null,null,null,null,null,null,null,null,null,null,null,null,0,0]
[null,null,null,null,null,null,null,null,null,null,null,null,null,null,null,null,null,null,null,null,null,null,null,null,null,null,null,null,0,0]
[null,null,null,null,null,null,null,null,null,null,null,null,null,null,null,null,null,null,null,null,null,null,null,null,null,null,null,null,0,0]
[null,null,null,null,null,null,null,null,null,null,null,null,null,null,null,null,null,null,null,null,null,null,null,null,null,null,null,null,0,0]
[null,null,null,null,null,null,null,null,null,null,null,null,null,null,null,null,null,null,null,null,null,null,null,null,null,null,null,null,0,0]
[null,null,null,null,null,null,null,null,null,null,null,null,null,null,null,null,null,null,null,null,null,null,null,null,null,null,null,null,0,0]
[null,null,null,null,null,null,null,null,null,null,null,null,null,null,null,null,null,null,null,null,null,null,null,null,null,null,null,null,0,0]
[null,null,null,null,null,null,null,null,null,null,null,null,null,null,null,null,null,null,null,null,null,null,null,null,null,null,null,null,0,0]
[null,null,null,null,null,null,null,null,null,null,null,null,null,null,null,null,null,null,null,null,null,null,null,null,null,null,null,null,0,0]
[null,null,null,null,null,null,null,null,null,null,null,null,null,null,null,null,null,null,null,null,null,null,null,null,null,null,null,null,0,0]
[null,null,null,null,null,null,null,null,null,null,null,null,null,null,null,null,null,null,null,null,null,null,null,null,null,null,null,null,0,0]
[null,null,null,null,null,null,null,null,null,null,null,null,null,null,null,null,null,null,null,null,null,null,null,null,null,null,null,null,0,0]
[null,null,null,null,null,null,null,null,null,null,null,null,null,null,null,null,null,null,null,null,null,null,null,null,null,null,null,null,0,0]
[null,null,null,null,null,null,null,null,null,null,null,null,null,null,null,null,null,null,null,null,null,null,null,null,null,null,null,null,0,0]
[null,null,null,null,null,null,null,null,null,null,null,null,null,null,null,null,null,null,null,null,null,null,null,null,null,null,null,null,0,0]
[null,null,null,null,null,null,null,null,null,null,null,null,null,null,null,null,null,null,null,null,null,null,null,null,null,null,null,null,0,0]
[null,null,null,null,null,null,null,null,null,null,null,null,null,null,null,null,null,null,null,null,null,null,null,null,null,null,null,null,0,0]
[null,null,null,null,null,null,null,null,null,null,null,null,null,null,null,null,null,null,null,null,null,null,null,null,null,null,null,null,0,0]
[null,null,null,null,null,null,null,null,null,null,null,null,null,null,null,null,null,null,null,null,null,null,null,null,null,null,null,null,0,0]
[null,null,null,null,null,null,null,null,null,null,null,null,null,null,null,null,null,null,null,null,null,null,null,null,null,null,null,null,0,0]
[null,null,null,null,null,null,null,null,null,null,null,null,null,null,null,null,null,null,null,null,null,null,null,null,null,null,null,null,0,0]
[null,null,null,null,null,null,null,null,null,null,null,null,null,null,null,null,null,null,null,null,null,null,null,null,null,null,null,null,0,0]
[null,null,null,null,null,null,null,null,null,null,null,null,null,null,null,null,null,null,null,null,null,null,null,null,null,null,null,null,0,0]
[null,null,null,null,null,null,null,null,null,null,null,null,null,null,null,null,null,null,null,null,null,null,null,null,null,null,null,null,0,0]
[null,null,null,null,null,null,null,null,null,null,null,null,null,null,null,null,null,null,null,null,null,null,null,null,null,null,null,null,0,0]
[null,null,null,null,null,null,null,null,null,null,null,null,null,null,null,null,null,null,null,null,null,null,null,null,null,null,null,null,0,0]
[null,null,null,null,null,null,null,null,null,null,null,null,null,null,null,null,null,null,null,null,null,null,null,null,null,null,null,null,0,0]
[null,null,null,null,null,null,null,null,null,null,null,null,null,null,null,null,null,null,null,null,null,null,null,null,null,null,null,null,0,0]
[null,null,null,null,null,null,null,null,null,null,null,null,null,null,null,null,null,null,null,null,null,null,null,null,null,null,null,null,0,0]
[null,null,null,null,null,null,null,null,null,null,null,null,null,null,null,null,null,null,null,null,null,null,null,null,null,null,null,null,0,0]
[null,null,null,null,null,null,null,null,null,null,null,null,null,null,null,null,null,null,null,null,null,null,null,null,null,null,null,null,0,0]
[null,null,null,null,null,null,null,null,null,null,null,null,null,null,null,null,null,null,null,null,null,null,null,null,null,null,null,null,0,0]
[null,null,null,null,null,null,null,null,null,null,null,null,null,null,null,null,null,null,null,null,null,null,null,null,null,null,null,null,{"$f":"IF(AA706=0,0,_xlfn.DAYS(AA706,TODAY()))","v":0},{"$f":"IF(AB706=0,0,_xlfn.DAYS(AB706,TODAY()))","v":0}]
[null,null,null,null,null,null,null,null,null,null,null,null,null,null,null,null,null,null,null,null,null,null,null,null,null,null,null,null,0,0]
[null,null,null,null,null,null,null,null,null,null,null,null,null,null,null,null,null,null,null,null,null,null,null,null,null,null,null,null,0,0]
[null,null,null,null,null,null,null,null,null,null,null,null,null,null,null,null,null,null,null,null,null,null,null,null,null,null,null,null,0,0]
[null,null,null,null,null,null,null,null,null,null,null,null,null,null,null,null,null,null,null,null,null,null,null,null,null,null,null,null,0,0]
[null,null,null,null,null,null,null,null,null,null,null,null,null,null,null,null,null,null,null,null,null,null,null,null,null,null,null,null,0,0]
[null,null,null,null,null,null,null,null,null,null,null,null,null,null,null,null,null,null,null,null,null,null,null,null,null,null,null,null,0,0]
[null,null,null,null,null,null,null,null,null,null,null,null,null,null,null,null,null,null,null,null,null,null,null,null,null,null,null,null,0,0]
[null,null,null,null,null,null,null,null,null,null,null,null,null,null,null,null,null,null,null,null,null,null,null,null,null,null,null,null,0,0]
[null,null,null,null,null,null,null,null,null,null,null,null,null,null,null,null,null,null,null,null,null,null,null,null,null,null,null,null,0,0]
[null,null,null,null,null,null,null,null,null,null,null,null,null,null,null,null,null,null,null,null,null,null,null,null,null,null,null,null,0,0]
[null,null,null,null,null,null,null,null,null,null,null,null,null,null,null,null,null,null,null,null,null,null,null,null,null,null,null,null,0,0]
[null,null,null,null,null,null,null,null,null,null,null,null,null,null,null,null,null,null,null,null,null,null,null,null,null,null,null,null,0,0]
[null,null,null,null,null,null,null,null,null,null,null,null,null,null,null,null,null,null,null,null,null,null,null,null,null,null,null,null,0,0]
[null,null,null,null,null,null,null,null,null,null,null,null,null,null,null,null,null,null,null,null,null,null,null,null,null,null,null,null,0,0]
[null,null,null,null,null,null,null,null,null,null,null,null,null,null,null,null,null,null,null,null,null,null,null,null,null,null,null,null,0,0]
[null,null,null,null,null,null,null,null,null,null,null,null,null,null,null,null,null,null,null,null,null,null,null,null,null,null,null,null,0,0]
[null,null,null,null,null,null,null,null,null,null,null,null,null,null,null,null,null,null,null,null,null,null,null,null,null,null,null,null,0,0]
[null,null,null,null,null,null,null,null,null,null,null,null,null,null,null,null,null,null,null,null,null,null,null,null,null,null,null,null,0,0]
[null,null,null,null,null,null,null,null,null,null,null,null,null,null,null,null,null,null,null,null,null,null,null,null,null,null,null,null,0,0]
[null,null,null,null,null,null,null,null,null,null,null,null,null,null,null,null,null,null,null,null,null,null,null,null,null,null,null,null,0,0]
[null,null,null,null,null,null,null,null,null,null,null,null,null,null,null,null,null,null,null,null,null,null,null,null,null,null,null,null,0,0]
[null,null,null,null,null,null,null,null,null,null,null,null,null,null,null,null,null,null,null,null,null,null,null,null,null,null,null,null,0,0]
[null,null,null,null,null,null,null,null,null,null,null,null,null,null,null,null,null,null,null,null,null,null,null,null,null,null,null,null,0,0]
[null,null,null,null,null,null,null,null,null,null,null,null,null,null,null,null,null,null,null,null,null,null,null,null,null,null,null,null,0,0]
[null,null,null,null,null,null,null,null,null,null,null,null,null,null,null,null,null,null,null,null,null,null,null,null,null,null,null,null,0,0]
[null,null,null,null,null,null,null,null,null,null,null,null,null,null,null,null,null,null,null,null,null,null,null,null,null,null,null,null,0,0]
[null,null,null,null,null,null,null,null,null,null,null,null,null,null,null,null,null,null,null,null,null,null,null,null,null,null,null,null,0,0]
[null,null,null,null,null,null,null,null,null,null,null,null,null,null,null,null,null,null,null,null,null,null,null,null,null,null,null,null,0,0]
[null,null,null,null,null,null,null,null,null,null,null,null,null,null,null,null,null,null,null,null,null,null,null,null,null,null,null,null,0,0]
[null,null,null,null,null,null,null,null,null,null,null,null,null,null,null,null,null,null,null,null,null,null,null,null,null,null,null,null,0,0]
[null,null,null,null,null,null,null,null,null,null,null,null,null,null,null,null,null,null,null,null,null,null,null,null,null,null,null,null,0,0]
[null,null,null,null,null,null,null,null,null,null,null,null,null,null,null,null,null,null,null,null,null,null,null,null,null,null,null,null,0,0]
[null,null,null,null,null,null,null,null,null,null,null,null,null,null,null,null,null,null,null,null,null,null,null,null,null,null,null,null,0,0]
[null,null,null,null,null,null,null,null,null,null,null,null,null,null,null,null,null,null,null,null,null,null,null,null,null,null,null,null,0,0]
[null,null,null,null,null,null,null,null,null,null,null,null,null,null,null,null,null,null,null,null,null,null,null,null,null,null,null,null,0,0]
[null,null,null,null,null,null,null,null,null,null,null,null,null,null,null,null,null,null,null,null,null,null,null,null,null,null,null,null,0,0]
[null,null,null,null,null,null,null,null,null,null,null,null,null,null,null,null,null,null,null,null,null,null,null,null,null,null,null,null,0,0]
[null,null,null,null,null,null,null,null,null,null,null,null,null,null,null,null,null,null,null,null,null,null,null,null,null,null,null,null,0,0]
[null,null,null,null,null,null,null,null,null,null,null,null,null,null,null,null,null,null,null,null,null,null,null,null,null,null,null,null,0,0]
[null,null,null,null,null,null,null,null,null,null,null,null,null,null,null,null,null,null,null,null,null,null,null,null,null,null,null,null,0,0]
[null,null,null,null,null,null,null,null,null,null,null,null,null,null,null,null,null,null,null,null,null,null,null,null,null,null,null,null,0,0]
[null,null,null,null,null,null,null,null,null,null,null,null,null,null,null,null,null,null,null,null,null,null,null,null,null,null,null,null,0,0]
[null,null,null,null,null,null,null,null,null,null,null,null,null,null,null,null,null,null,null,null,null,null,null,null,null,null,null,null,0,0]
[null,null,null,null,null,null,null,null,null,null,null,null,null,null,null,null,null,null,null,null,null,null,null,null,null,null,null,null,0,0]
[null,null,null,null,null,null,null,null,null,null,null,null,null,null,null,null,null,null,null,null,null,null,null,null,null,null,null,null,0,0]
[null,null,null,null,null,null,null,null,null,null,null,null,null,null,null,null,null,null,null,null,null,null,null,null,null,null,null,null,0,0]
[null,null,null,null,null,null,null,null,null,null,null,null,null,null,null,null,null,null,null,null,null,null,null,null,null,null,null,null,0,0]
[null,null,null,null,null,null,null,null,null,null,null,null,null,null,null,null,null,null,null,null,null,null,null,null,null,null,null,null,0,0]
[null,null,null,null,null,null,null,null,null,null,null,null,null,null,null,null,null,null,null,null,null,null,null,null,null,null,null,null,0,0]
[null,null,null,null,null,null,null,null,null,null,null,null,null,null,null,null,null,null,null,null,null,null,null,null,null,null,null,null,0,0]
[null,null,null,null,null,null,null,null,null,null,null,null,null,null,null,null,null,null,null,null,null,null,null,null,null,null,null,null,0,0]
[null,null,null,null,null,null,null,null,null,null,null,null,null,null,null,null,null,null,null,null,null,null,null,null,null,null,null,null,0,0]
[null,null,null,null,null,null,null,null,null,null,null,null,null,null,null,null,null,null,null,null,null,null,null,null,null,null,null,null,0,0]
[null,null,null,null,null,null,null,null,null,null,null,null,null,null,null,null,null,null,null,null,null,null,null,null,null,null,null,null,0,0]
[null,null,null,null,null,null,null,null,null,null,null,null,null,null,null,null,null,null,null,null,null,null,null,null,null,null,null,null,0,0]
[null,null,null,null,null,null,null,null,null,null,null,null,null,null,null,null,null,null,null,null,null,null,null,null,null,null,null,null,0,0]
[null,null,null,null,null,null,null,null,null,null,null,null,null,null,null,null,null,null,null,null,null,null,null,null,null,null,null,null,0,0]
[null,null,null,null,null,null,null,null,null,null,null,null,null,null,null,null,null,null,null,null,null,null,null,null,null,null,null,null,0,0]
[null,null,null,null,null,null,null,null,null,null,null,null,null,null,null,null,null,null,null,null,null,null,null,null,null,null,null,null,0,0]
[null,null,null,null,null,null,null,null,null,null,null,null,null,null,null,null,null,null,null,null,null,null,null,null,null,null,null,null,0,0]
[null,null,null,null,null,null,null,null,null,null,null,null,null,null,null,null,null,null,null,null,null,null,null,null,null,null,null,null,0,0]
[null,null,null,null,null,null,null,null,null,null,null,null,null,null,null,null,null,null,null,null,null,null,null,null,null,null,null,null,0,0]
[null,null,null,null,null,null,null,null,null,null,null,null,null,null,null,null,null,null,null,null,null,null,null,null,null,null,null,null,0,0]
[null,null,null,null,null,null,null,null,null,null,null,null,null,null,null,null,null,null,null,null,null,null,null,null,null,null,null,null,{"$f":"IF(AA770=0,0,_xlfn.DAYS(AA770,TODAY()))","v":0},{"$f":"IF(AB770=0,0,_xlfn.DAYS(AB770,TODAY()))","v":0}]
[null,null,null,null,null,null,null,null,null,null,null,null,null,null,null,null,null,null,null,null,null,null,null,null,null,null,null,null,0,0]
[null,null,null,null,null,null,null,null,null,null,null,null,null,null,null,null,null,null,null,null,null,null,null,null,null,null,null,null,0,0]
[null,null,null,null,null,null,null,null,null,null,null,null,null,null,null,null,null,null,null,null,null,null,null,null,null,null,null,null,0,0]
[null,null,null,null,null,null,null,null,null,null,null,null,null,null,null,null,null,null,null,null,null,null,null,null,null,null,null,null,0,0]
[null,null,null,null,null,null,null,null,null,null,null,null,null,null,null,null,null,null,null,null,null,null,null,null,null,null,null,null,0,0]
[null,null,null,null,null,null,null,null,null,null,null,null,null,null,null,null,null,null,null,null,null,null,null,null,null,null,null,null,0,0]
[null,null,null,null,null,null,null,null,null,null,null,null,null,null,null,null,null,null,null,null,null,null,null,null,null,null,null,null,0,0]
[null,null,null,null,null,null,null,null,null,null,null,null,null,null,null,null,null,null,null,null,null,null,null,null,null,null,null,null,0,0]
[null,null,null,null,null,null,null,null,null,null,null,null,null,null,null,null,null,null,null,null,null,null,null,null,null,null,null,null,0,0]
[null,null,null,null,null,null,null,null,null,null,null,null,null,null,null,null,null,null,null,null,null,null,null,null,null,null,null,null,0,0]
[null,null,null,null,null,null,null,null,null,null,null,null,null,null,null,null,null,null,null,null,null,null,null,null,null,null,null,null,0,0]
[null,null,null,null,null,null,null,null,null,null,null,null,null,null,null,null,null,null,null,null,null,null,null,null,null,null,null,null,0,0]
[null,null,null,null,null,null,null,null,null,null,null,null,null,null,null,null,null,null,null,null,null,null,null,null,null,null,null,null,0,0]
[null,null,null,null,null,null,null,null,null,null,null,null,null,null,null,null,null,null,null,null,null,null,null,null,null,null,null,null,0,0]
[null,null,null,null,null,null,null,null,null,null,null,null,null,null,null,null,null,null,null,null,null,null,null,null,null,null,null,null,0,0]
[null,null,null,null,null,null,null,null,null,null,null,null,null,null,null,null,null,null,null,null,null,null,null,null,null,null,null,null,0,0]
[null,null,null,null,null,null,null,null,null,null,null,null,null,null,null,null,null,null,null,null,null,null,null,null,null,null,null,null,0,0]
[null,null,null,null,null,null,null,null,null,null,null,null,null,null,null,null,null,null,null,null,null,null,null,null,null,null,null,null,0,0]
[null,null,null,null,null,null,null,null,null,null,null,null,null,null,null,null,null,null,null,null,null,null,null,null,null,null,null,null,0,0]
[null,null,null,null,null,null,null,null,null,null,null,null,null,null,null,null,null,null,null,null,null,null,null,null,null,null,null,null,0,0]
[null,null,null,null,null,null,null,null,null,null,null,null,null,null,null,null,null,null,null,null,null,null,null,null,null,null,null,null,0,0]
[null,null,null,null,null,null,null,null,null,null,null,null,null,null,null,null,null,null,null,null,null,null,null,null,null,null,null,null,0,0]
[null,null,null,null,null,null,null,null,null,null,null,null,null,null,null,null,null,null,null,null,null,null,null,null,null,null,null,null,0,0]
[null,null,null,null,null,null,null,null,null,null,null,null,null,null,null,null,null,null,null,null,null,null,null,null,null,null,null,null,0,0]
[null,null,null,null,null,null,null,null,null,null,null,null,null,null,null,null,null,null,null,null,null,null,null,null,null,null,null,null,0,0]
[null,null,null,null,null,null,null,null,null,null,null,null,null,null,null,null,null,null,null,null,null,null,null,null,null,null,null,null,0,0]
[null,null,null,null,null,null,null,null,null,null,null,null,null,null,null,null,null,null,null,null,null,null,null,null,null,null,null,null,0,0]
[null,null,null,null,null,null,null,null,null,null,null,null,null,null,null,null,null,null,null,null,null,null,null,null,null,null,null,null,0,0]
[null,null,null,null,null,null,null,null,null,null,null,null,null,null,null,null,null,null,null,null,null,null,null,null,null,null,null,null,0,0]
[null,null,null,null,null,null,null,null,null,null,null,null,null,null,null,null,null,null,null,null,null,null,null,null,null,null,null,null,0,0]
[null,null,null,null,null,null,null,null,null,null,null,null,null,null,null,null,null,null,null,null,null,null,null,null,null,null,null,null,0,0]
[null,null,null,null,null,null,null,null,null,null,null,null,null,null,null,null,null,null,null,null,null,null,null,null,null,null,null,null,0,0]
[null,null,null,null,null,null,null,null,null,null,null,null,null,null,null,null,null,null,null,null,null,null,null,null,null,null,null,null,0,0]
[null,null,null,null,null,null,null,null,null,null,null,null,null,null,null,null,null,null,null,null,null,null,null,null,null,null,null,null,0,0]
[null,null,null,null,null,null,null,null,null,null,null,null,null,null,null,null,null,null,null,null,null,null,null,null,null,null,null,null,0,0]
[null,null,null,null,null,null,null,null,null,null,null,null,null,null,null,null,null,null,null,null,null,null,null,null,null,null,null,null,0,0]
[null,null,null,null,null,null,null,null,null,null,null,null,null,null,null,null,null,null,null,null,null,null,null,null,null,null,null,null,0,0]
[null,null,null,null,null,null,null,null,null,null,null,null,null,null,null,null,null,null,null,null,null,null,null,null,null,null,null,null,0,0]
[null,null,null,null,null,null,null,null,null,null,null,null,null,null,null,null,null,null,null,null,null,null,null,null,null,null,null,null,0,0]
[null,null,null,null,null,null,null,null,null,null,null,null,null,null,null,null,null,null,null,null,null,null,null,null,null,null,null,null,0,0]
[null,null,null,null,null,null,null,null,null,null,null,null,null,null,null,null,null,null,null,null,null,null,null,null,null,null,null,null,0,0]
[null,null,null,null,null,null,null,null,null,null,null,null,null,null,null,null,null,null,null,null,null,null,null,null,null,null,null,null,0,0]
[null,null,null,null,null,null,null,null,null,null,null,null,null,null,null,null,null,null,null,null,null,null,null,null,null,null,null,null,0,0]
[null,null,null,null,null,null,null,null,null,null,null,null,null,null,null,null,null,null,null,null,null,null,null,null,null,null,null,null,0,0]
[null,null,null,null,null,null,null,null,null,null,null,null,null,null,null,null,null,null,null,null,null,null,null,null,null,null,null,null,0,0]
[null,null,null,null,null,null,null,null,null,null,null,null,null,null,null,null,null,null,null,null,null,null,null,null,null,null,null,null,0,0]
[null,null,null,null,null,null,null,null,null,null,null,null,null,null,null,null,null,null,null,null,null,null,null,null,null,null,null,null,0,0]
[null,null,null,null,null,null,null,null,null,null,null,null,null,null,null,null,null,null,null,null,null,null,null,null,null,null,null,null,0,0]
[null,null,null,null,null,null,null,null,null,null,null,null,null,null,null,null,null,null,null,null,null,null,null,null,null,null,null,null,0,0]
[null,null,null,null,null,null,null,null,null,null,null,null,null,null,null,null,null,null,null,null,null,null,null,null,null,null,null,null,0,0]
[null,null,null,null,null,null,null,null,null,null,null,null,null,null,null,null,null,null,null,null,null,null,null,null,null,null,null,null,0,0]
[null,null,null,null,null,null,null,null,null,null,null,null,null,null,null,null,null,null,null,null,null,null,null,null,null,null,null,null,0,0]
[null,null,null,null,null,null,null,null,null,null,null,null,null,null,null,null,null,null,null,null,null,null,null,null,null,null,null,null,0,0]
[null,null,null,null,null,null,null,null,null,null,null,null,null,null,null,null,null,null,null,null,null,null,null,null,null,null,null,null,0,0]
[null,null,null,null,null,null,null,null,null,null,null,null,null,null,null,null,null,null,null,null,null,null,null,null,null,null,null,null,0,0]
[null,null,null,null,null,null,null,null,null,null,null,null,null,null,null,null,null,null,null,null,null,null,null,null,null,null,null,null,0,0]
[null,null,null,null,null,null,null,null,null,null,null,null,null,null,null,null,null,null,null,null,null,null,null,null,null,null,null,null,0,0]
[null,null,null,null,null,null,null,null,null,null,null,null,null,null,null,null,null,null,null,null,null,null,null,null,null,null,null,null,0,0]
[null,null,null,null,null,null,null,null,null,null,null,null,null,null,null,null,null,null,null,null,null,null,null,null,null,null,null,null,0,0]
[null,null,null,null,null,null,null,null,null,null,null,null,null,null,null,null,null,null,null,null,null,null,null,null,null,null,null,null,0,0]
[null,null,null,null,null,null,null,null,null,null,null,null,null,null,null,null,null,null,null,null,null,null,null,null,null,null,null,null,0,0]
[null,null,null,null,null,null,null,null,null,null,null,null,null,null,null,null,null,null,null,null,null,null,null,null,null,null,null,null,0,0]
[null,null,null,null,null,null,null,null,null,null,null,null,null,null,null,null,null,null,null,null,null,null,null,null,null,null,null,null,0,0]
[null,null,null,null,null,null,null,null,null,null,null,null,null,null,null,null,null,null,null,null,null,null,null,null,null,null,null,null,{"$f":"IF(AA834=0,0,_xlfn.DAYS(AA834,TODAY()))","v":0},{"$f":"IF(AB834=0,0,_xlfn.DAYS(AB834,TODAY()))","v":0}]
[null,null,null,null,null,null,null,null,null,null,null,null,null,null,null,null,null,null,null,null,null,null,null,null,null,null,null,null,0,0]
[null,null,null,null,null,null,null,null,null,null,null,null,null,null,null,null,null,null,null,null,null,null,null,null,null,null,null,null,0,0]
[null,null,null,null,null,null,null,null,null,null,null,null,null,null,null,null,null,null,null,null,null,null,null,null,null,null,null,null,0,0]
[null,null,null,null,null,null,null,null,null,null,null,null,null,null,null,null,null,null,null,null,null,null,null,null,null,null,null,null,0,0]
[null,null,null,null,null,null,null,null,null,null,null,null,null,null,null,null,null,null,null,null,null,null,null,null,null,null,null,null,0,0]
[null,null,null,null,null,null,null,null,null,null,null,null,null,null,null,null,null,null,null,null,null,null,null,null,null,null,null,null,0,0]
[null,null,null,null,null,null,null,null,null,null,null,null,null,null,null,null,null,null,null,null,null,null,null,null,null,null,null,null,0,0]
[null,null,null,null,null,null,null,null,null,null,null,null,null,null,null,null,null,null,null,null,null,null,null,null,null,null,null,null,0,0]
[null,null,null,null,null,null,null,null,null,null,null,null,null,null,null,null,null,null,null,null,null,null,null,null,null,null,null,null,0,0]
[null,null,null,null,null,null,null,null,null,null,null,null,null,null,null,null,null,null,null,null,null,null,null,null,null,null,null,null,0,0]
[null,null,null,null,null,null,null,null,null,null,null,null,null,null,null,null,null,null,null,null,null,null,null,null,null,null,null,null,0,0]
[null,null,null,null,null,null,null,null,null,null,null,null,null,null,null,null,null,null,null,null,null,null,null,null,null,null,null,null,0,0]
[null,null,null,null,null,null,null,null,null,null,null,null,null,null,null,null,null,null,null,null,null,null,null,null,null,null,null,null,0,0]
[null,null,null,null,null,null,null,null,null,null,null,null,null,null,null,null,null,null,null,null,null,null,null,null,null,null,null,null,0,0]
[null,null,null,null,null,null,null,null,null,null,null,null,null,null,null,null,null,null,null,null,null,null,null,null,null,null,null,null,0,0]
[null,null,null,null,null,null,null,null,null,null,null,null,null,null,null,null,null,null,null,null,null,null,null,null,null,null,null,null,0,0]
[null,null,null,null,null,null,null,null,null,null,null,null,null,null,null,null,null,null,null,null,null,null,null,null,null,null,null,null,0,0]
[null,null,null,null,null,null,null,null,null,null,null,null,null,null,null,null,null,null,null,null,null,null,null,null,null,null,null,null,0,0]
[null,null,null,null,null,null,null,null,null,null,null,null,null,null,null,null,null,null,null,null,null,null,null,null,null,null,null,null,0,0]
[null,null,null,null,null,null,null,null,null,null,null,null,null,null,null,null,null,null,null,null,null,null,null,null,null,null,null,null,0,0]
[null,null,null,null,null,null,null,null,null,null,null,null,null,null,null,null,null,null,null,null,null,null,null,null,null,null,null,null,0,0]
[null,null,null,null,null,null,null,null,null,null,null,null,null,null,null,null,null,null,null,null,null,null,null,null,null,null,null,null,0,0]
[null,null,null,null,null,null,null,null,null,null,null,null,null,null,null,null,null,null,null,null,null,null,null,null,null,null,null,null,0,0]
[null,null,null,null,null,null,null,null,null,null,null,null,null,null,null,null,null,null,null,null,null,null,null,null,null,null,null,null,0,0]
[null,null,null,null,null,null,null,null,null,null,null,null,null,null,null,null,null,null,null,null,null,null,null,null,null,null,null,null,0,0]
[null,null,null,null,null,null,null,null,null,null,null,null,null,null,null,null,null,null,null,null,null,null,null,null,null,null,null,null,0,0]
[null,null,null,null,null,null,null,null,null,null,null,null,null,null,null,null,null,null,null,null,null,null,null,null,null,null,null,null,0,0]
[null,null,null,null,null,null,null,null,null,null,null,null,null,null,null,null,null,null,null,null,null,null,null,null,null,null,null,null,0,0]
[null,null,null,null,null,null,null,null,null,null,null,null,null,null,null,null,null,null,null,null,null,null,null,null,null,null,null,null,0,0]
[null,null,null,null,null,null,null,null,null,null,null,null,null,null,null,null,null,null,null,null,null,null,null,null,null,null,null,null,0,0]
[null,null,null,null,null,null,null,null,null,null,null,null,null,null,null,null,null,null,null,null,null,null,null,null,null,null,null,null,0,0]
[null,null,null,null,null,null,null,null,null,null,null,null,null,null,null,null,null,null,null,null,null,null,null,null,null,null,null,null,0,0]
[null,null,null,null,null,null,null,null,null,null,null,null,null,null,null,null,null,null,null,null,null,null,null,null,null,null,null,null,0,0]
[null,null,null,null,null,null,null,null,null,null,null,null,null,null,null,null,null,null,null,null,null,null,null,null,null,null,null,null,0,0]
[null,null,null,null,null,null,null,null,null,null,null,null,null,null,null,null,null,null,null,null,null,null,null,null,null,null,null,null,0,0]
[null,null,null,null,null,null,null,null,null,null,null,null,null,null,null,null,null,null,null,null,null,null,null,null,null,null,null,null,0,0]
[null,null,null,null,null,null,null,null,null,null,null,null,null,null,null,null,null,null,null,null,null,null,null,null,null,null,null,null,0,0]
[null,null,null,null,null,null,null,null,null,null,null,null,null,null,null,null,null,null,null,null,null,null,null,null,null,null,null,null,0,0]
[null,null,null,null,null,null,null,null,null,null,null,null,null,null,null,null,null,null,null,null,null,null,null,null,null,null,null,null,0,0]
[null,null,null,null,null,null,null,null,null,null,null,null,null,null,null,null,null,null,null,null,null,null,null,null,null,null,null,null,0,0]
[null,null,null,null,null,null,null,null,null,null,null,null,null,null,null,null,null,null,null,null,null,null,null,null,null,null,null,null,0,0]
[null,null,null,null,null,null,null,null,null,null,null,null,null,null,null,null,null,null,null,null,null,null,null,null,null,null,null,null,0,0]
[null,null,null,null,null,null,null,null,null,null,null,null,null,null,null,null,null,null,null,null,null,null,null,null,null,null,null,null,0,0]
[null,null,null,null,null,null,null,null,null,null,null,null,null,null,null,null,null,null,null,null,null,null,null,null,null,null,null,null,0,0]
[null,null,null,null,null,null,null,null,null,null,null,null,null,null,null,null,null,null,null,null,null,null,null,null,null,null,null,null,0,0]
[null,null,null,null,null,null,null,null,null,null,null,null,null,null,null,null,null,null,null,null,null,null,null,null,null,null,null,null,0,0]
[null,null,null,null,null,null,null,null,null,null,null,null,null,null,null,null,null,null,null,null,null,null,null,null,null,null,null,null,0,0]
[null,null,null,null,null,null,null,null,null,null,null,null,null,null,null,null,null,null,null,null,null,null,null,null,null,null,null,null,0,0]
[null,null,null,null,null,null,null,null,null,null,null,null,null,null,null,null,null,null,null,null,null,null,null,null,null,null,null,null,0,0]
[null,null,null,null,null,null,null,null,null,null,null,null,null,null,null,null,null,null,null,null,null,null,null,null,null,null,null,null,0,0]
[null,null,null,null,null,null,null,null,null,null,null,null,null,null,null,null,null,null,null,null,null,null,null,null,null,null,null,null,0,0]
[null,null,null,null,null,null,null,null,null,null,null,null,null,null,null,null,null,null,null,null,null,null,null,null,null,null,null,null,0,0]
[null,null,null,null,null,null,null,null,null,null,null,null,null,null,null,null,null,null,null,null,null,null,null,null,null,null,null,null,0,0]
[null,null,null,null,null,null,null,null,null,null,null,null,null,null,null,null,null,null,null,null,null,null,null,null,null,null,null,null,0,0]
[null,null,null,null,null,null,null,null,null,null,null,null,null,null,null,null,null,null,null,null,null,null,null,null,null,null,null,null,0,0]
[null,null,null,null,null,null,null,null,null,null,null,null,null,null,null,null,null,null,null,null,null,null,null,null,null,null,null,null,0,0]
[null,null,null,null,null,null,null,null,null,null,null,null,null,null,null,null,null,null,null,null,null,null,null,null,null,null,null,null,0,0]
[null,null,null,null,null,null,null,null,null,null,null,null,null,null,null,null,null,null,null,null,null,null,null,null,null,null,null,null,0,0]
[null,null,null,null,null,null,null,null,null,null,null,null,null,null,null,null,null,null,null,null,null,null,null,null,null,null,null,null,0,0]
[null,null,null,null,null,null,null,null,null,null,null,null,null,null,null,null,null,null,null,null,null,null,null,null,null,null,null,null,0,0]
[null,null,null,null,null,null,null,null,null,null,null,null,null,null,null,null,null,null,null,null,null,null,null,null,null,null,null,null,0,0]
[null,null,null,null,null,null,null,null,null,null,null,null,null,null,null,null,null,null,null,null,null,null,null,null,null,null,null,null,0,0]
[null,null,null,null,null,null,null,null,null,null,null,null,null,null,null,null,null,null,null,null,null,null,null,null,null,null,null,null,0,0]
[null,null,null,null,null,null,null,null,null,null,null,null,null,null,null,null,null,null,null,null,null,null,null,null,null,null,null,null,{"$f":"IF(AA898=0,0,_xlfn.DAYS(AA898,TODAY()))","v":0},{"$f":"IF(AB898=0,0,_xlfn.DAYS(AB898,TODAY()))","v":0}]
[null,null,null,null,null,null,null,null,null,null,null,null,null,null,null,null,null,null,null,null,null,null,null,null,null,null,null,null,0,0]
[null,null,null,null,null,null,null,null,null,null,null,null,null,null,null,null,null,null,null,null,null,null,null,null,null,null,null,null,0,0]
[null,null,null,null,null,null,null,null,null,null,null,null,null,null,null,null,null,null,null,null,null,null,null,null,null,null,null,null,0,0]
[null,null,null,null,null,null,null,null,null,null,null,null,null,null,null,null,null,null,null,null,null,null,null,null,null,null,null,null,0,0]
[null,null,null,null,null,null,null,null,null,null,null,null,null,null,null,null,null,null,null,null,null,null,null,null,null,null,null,null,0,0]
[null,null,null,null,null,null,null,null,null,null,null,null,null,null,null,null,null,null,null,null,null,null,null,null,null,null,null,null,0,0]
[null,null,null,null,null,null,null,null,null,null,null,null,null,null,null,null,null,null,null,null,null,null,null,null,null,null,null,null,0,0]
[null,null,null,null,null,null,null,null,null,null,null,null,null,null,null,null,null,null,null,null,null,null,null,null,null,null,null,null,0,0]
[null,null,null,null,null,null,null,null,null,null,null,null,null,null,null,null,null,null,null,null,null,null,null,null,null,null,null,null,0,0]
[null,null,null,null,null,null,null,null,null,null,null,null,null,null,null,null,null,null,null,null,null,null,null,null,null,null,null,null,0,0]
[null,null,null,null,null,null,null,null,null,null,null,null,null,null,null,null,null,null,null,null,null,null,null,null,null,null,null,null,0,0]
[null,null,null,null,null,null,null,null,null,null,null,null,null,null,null,null,null,null,null,null,null,null,null,null,null,null,null,null,0,0]
[null,null,null,null,null,null,null,null,null,null,null,null,null,null,null,null,null,null,null,null,null,null,null,null,null,null,null,null,0,0]
[null,null,null,null,null,null,null,null,null,null,null,null,null,null,null,null,null,null,null,null,null,null,null,null,null,null,null,null,0,0]
[null,null,null,null,null,null,null,null,null,null,null,null,null,null,null,null,null,null,null,null,null,null,null,null,null,null,null,null,0,0]
[null,null,null,null,null,null,null,null,null,null,null,null,null,null,null,null,null,null,null,null,null,null,null,null,null,null,null,null,0,0]
[null,null,null,null,null,null,null,null,null,null,null,null,null,null,null,null,null,null,null,null,null,null,null,null,null,null,null,null,0,0]
[null,null,null,null,null,null,null,null,null,null,null,null,null,null,null,null,null,null,null,null,null,null,null,null,null,null,null,null,0,0]
[null,null,null,null,null,null,null,null,null,null,null,null,null,null,null,null,null,null,null,null,null,null,null,null,null,null,null,null,0,0]
[null,null,null,null,null,null,null,null,null,null,null,null,null,null,null,null,null,null,null,null,null,null,null,null,null,null,null,null,0,0]
[null,null,null,null,null,null,null,null,null,null,null,null,null,null,null,null,null,null,null,null,null,null,null,null,null,null,null,null,0,0]
[null,null,null,null,null,null,null,null,null,null,null,null,null,null,null,null,null,null,null,null,null,null,null,null,null,null,null,null,0,0]
[null,null,null,null,null,null,null,null,null,null,null,null,null,null,null,null,null,null,null,null,null,null,null,null,null,null,null,null,0,0]
[null,null,null,null,null,null,null,null,null,null,null,null,null,null,null,null,null,null,null,null,null,null,null,null,null,null,null,null,0,0]
[null,null,null,null,null,null,null,null,null,null,null,null,null,null,null,null,null,null,null,null,null,null,null,null,null,null,null,null,0,0]
[null,null,null,null,null,null,null,null,null,null,null,null,null,null,null,null,null,null,null,null,null,null,null,null,null,null,null,null,0,0]
[null,null,null,null,null,null,null,null,null,null,null,null,null,null,null,null,null,null,null,null,null,null,null,null,null,null,null,null,0,0]
[null,null,null,null,null,null,null,null,null,null,null,null,null,null,null,null,null,null,null,null,null,null,null,null,null,null,null,null,0,0]
[null,null,null,null,null,null,null,null,null,null,null,null,null,null,null,null,null,null,null,null,null,null,null,null,null,null,null,null,0,0]
[null,null,null,null,null,null,null,null,null,null,null,null,null,null,null,null,null,null,null,null,null,null,null,null,null,null,null,null,0,0]
[null,null,null,null,null,null,null,null,null,null,null,null,null,null,null,null,null,null,null,null,null,null,null,null,null,null,null,null,0,0]
[null,null,null,null,null,null,null,null,null,null,null,null,null,null,null,null,null,null,null,null,null,null,null,null,null,null,null,null,0,0]
[null,null,null,null,null,null,null,null,null,null,null,null,null,null,null,null,null,null,null,null,null,null,null,null,null,null,null,null,0,0]
[null,null,null,null,null,null,null,null,null,null,null,null,null,null,null,null,null,null,null,null,null,null,null,null,null,null,null,null,0,0]
[null,null,null,null,null,null,null,null,null,null,null,null,null,null,null,null,null,null,null,null,null,null,null,null,null,null,null,null,0,0]
[null,null,null,null,null,null,null,null,null,null,null,null,null,null,null,null,null,null,null,null,null,null,null,null,null,null,null,null,0,0]
[null,null,null,null,null,null,null,null,null,null,null,null,null,null,null,null,null,null,null,null,null,null,null,null,null,null,null,null,0,0]
[null,null,null,null,null,null,null,null,null,null,null,null,null,null,null,null,null,null,null,null,null,null,null,null,null,null,null,null,0,0]
[null,null,null,null,null,null,null,null,null,null,null,null,null,null,null,null,null,null,null,null,null,null,null,null,null,null,null,null,0,0]
[null,null,null,null,null,null,null,null,null,null,null,null,null,null,null,null,null,null,null,null,null,null,null,null,null,null,null,null,0,0]
[null,null,null,null,null,null,null,null,null,null,null,null,null,null,null,null,null,null,null,null,null,null,null,null,null,null,null,null,0,0]
[null,null,null,null,null,null,null,null,null,null,null,null,null,null,null,null,null,null,null,null,null,null,null,null,null,null,null,null,0,0]
[null,null,null,null,null,null,null,null,null,null,null,null,null,null,null,null,null,null,null,null,null,null,null,null,null,null,null,null,0,0]
[null,null,null,null,null,null,null,null,null,null,null,null,null,null,null,null,null,null,null,null,null,null,null,null,null,null,null,null,0,0]
[null,null,null,null,null,null,null,null,null,null,null,null,null,null,null,null,null,null,null,null,null,null,null,null,null,null,null,null,0,0]
[null,null,null,null,null,null,null,null,null,null,null,null,null,null,null,null,null,null,null,null,null,null,null,null,null,null,null,null,0,0]
[null,null,null,null,null,null,null,null,null,null,null,null,null,null,null,null,null,null,null,null,null,null,null,null,null,null,null,null,0,0]
[null,null,null,null,null,null,null,null,null,null,null,null,null,null,null,null,null,null,null,null,null,null,null,null,null,null,null,null,0,0]
[null,null,null,null,null,null,null,null,null,null,null,null,null,null,null,null,null,null,null,null,null,null,null,null,null,null,null,null,0,0]
[null,null,null,null,null,null,null,null,null,null,null,null,null,null,null,null,null,null,null,null,null,null,null,null,null,null,null,null,0,0]
[null,null,null,null,null,null,null,null,null,null,null,null,null,null,null,null,null,null,null,null,null,null,null,null,null,null,null,null,0,0]
[null,null,null,null,null,null,null,null,null,null,null,null,null,null,null,null,null,null,null,null,null,null,null,null,null,null,null,null,0,0]
[null,null,null,null,null,null,null,null,null,null,null,null,null,null,null,null,null,null,null,null,null,null,null,null,null,null,null,null,0,0]
[null,null,null,null,null,null,null,null,null,null,null,null,null,null,null,null,null,null,null,null,null,null,null,null,null,null,null,null,0,0]
[null,null,null,null,null,null,null,null,null,null,null,null,null,null,null,null,null,null,null,null,null,null,null,null,null,null,null,null,0,0]
[null,null,null,null,null,null,null,null,null,null,null,null,null,null,null,null,null,null,null,null,null,null,null,null,null,null,null,null,0,0]
[null,null,null,null,null,null,null,null,null,null,null,null,null,null,null,null,null,null,null,null,null,null,null,null,null,null,null,null,0,0]
[null,null,null,null,null,null,null,null,null,null,null,null,null,null,null,null,null,null,null,null,null,null,null,null,null,null,null,null,0,0]
[null,null,null,null,null,null,null,null,null,null,null,null,null,null,null,null,null,null,null,null,null,null,null,null,null,null,null,null,0,0]
[null,null,null,null,null,null,null,null,null,null,null,null,null,null,null,null,null,null,null,null,null,null,null,null,null,null,null,null,0,0]
[null,null,null,null,null,null,null,null,null,null,null,null,null,null,null,null,null,null,null,null,null,null,null,null,null,null,null,null,0,0]
[null,null,null,null,null,null,null,null,null,null,null,null,null,null,null,null,null,null,null,null,null,null,null,null,null,null,null,null,0,0]
[null,null,null,null,null,null,null,null,null,null,null,null,null,null,null,null,null,null,null,null,null,null,null,null,null,null,null,null,0,0]
[null,null,null,null,null,null,null,null,null,null,null,null,null,null,null,null,null,null,null,null,null,null,null,null,null,null,null,null,{"$f":"IF(AA962=0,0,_xlfn.DAYS(AA962,TODAY()))","v":0},{"$f":"IF(AB962=0,0,_xlfn.DAYS(AB962,TODAY()))","v":0}]
[null,null,null,null,null,null,null,null,null,null,null,null,null,null,null,null,null,null,null,null,null,null,null,null,null,null,null,null,0,0]
[null,null,null,null,null,null,null,null,null,null,null,null,null,null,null,null,null,null,null,null,null,null,null,null,null,null,null,null,0,0]
[null,null,null,null,null,null,null,null,null,null,null,null,null,null,null,null,null,null,null,null,null,null,null,null,null,null,null,null,0,0]
[null,null,null,null,null,null,null,null,null,null,null,null,null,null,null,null,null,null,null,null,null,null,null,null,null,null,null,null,0,0]
[null,null,null,null,null,null,null,null,null,null,null,null,null,null,null,null,null,null,null,null,null,null,null,null,null,null,null,null,0,0]
[null,null,null,null,null,null,null,null,null,null,null,null,null,null,null,null,null,null,null,null,null,null,null,null,null,null,null,null,0,0]
[null,null,null,null,null,null,null,null,null,null,null,null,null,null,null,null,null,null,null,null,null,null,null,null,null,null,null,null,0,0]
[null,null,null,null,null,null,null,null,null,null,null,null,null,null,null,null,null,null,null,null,null,null,null,null,null,null,null,null,0,0]
[null,null,null,null,null,null,null,null,null,null,null,null,null,null,null,null,null,null,null,null,null,null,null,null,null,null,null,null,0,0]
[null,null,null,null,null,null,null,null,null,null,null,null,null,null,null,null,null,null,null,null,null,null,null,null,null,null,null,null,0,0]
[null,null,null,null,null,null,null,null,null,null,null,null,null,null,null,null,null,null,null,null,null,null,null,null,null,null,null,null,0,0]
[null,null,null,null,null,null,null,null,null,null,null,null,null,null,null,null,null,null,null,null,null,null,null,null,null,null,null,null,0,0]
[null,null,null,null,null,null,null,null,null,null,null,null,null,null,null,null,null,null,null,null,null,null,null,null,null,null,null,null,0,0]
[null,null,null,null,null,null,null,null,null,null,null,null,null,null,null,null,null,null,null,null,null,null,null,null,null,null,null,null,0,0]
[null,null,null,null,null,null,null,null,null,null,null,null,null,null,null,null,null,null,null,null,null,null,null,null,null,null,null,null,0,0]
[null,null,null,null,null,null,null,null,null,null,null,null,null,null,null,null,null,null,null,null,null,null,null,null,null,null,null,null,0,0]
[null,null,null,null,null,null,null,null,null,null,null,null,null,null,null,null,null,null,null,null,null,null,null,null,null,null,null,null,0,0]
[null,null,null,null,null,null,null,null,null,null,null,null,null,null,null,null,null,null,null,null,null,null,null,null,null,null,null,null,0,0]
[null,null,null,null,null,null,null,null,null,null,null,null,null,null,null,null,null,null,null,null,null,null,null,null,null,null,null,null,0,0]
[null,null,null,null,null,null,null,null,null,null,null,null,null,null,null,null,null,null,null,null,null,null,null,null,null,null,null,null,0,0]
[null,null,null,null,null,null,null,null,null,null,null,null,null,null,null,null,null,null,null,null,null,null,null,null,null,null,null,null,0,0]
[null,null,null,null,null,null,null,null,null,null,null,null,null,null,null,null,null,null,null,null,null,null,null,null,null,null,null,null,0,0]
[null,null,null,null,null,null,null,null,null,null,null,null,null,null,null,null,null,null,null,null,null,null,null,null,null,null,null,null,0,0]
[null,null,null,null,null,null,null,null,null,null,null,null,null,null,null,null,null,null,null,null,null,null,null,null,null,null,null,null,0,0]
[null,null,null,null,null,null,null,null,null,null,null,null,null,null,null,null,null,null,null,null,null,null,null,null,null,null,null,null,0,0]
[null,null,null,null,null,null,null,null,null,null,null,null,null,null,null,null,null,null,null,null,null,null,null,null,null,null,null,null,0,0]
[null,null,null,null,null,null,null,null,null,null,null,null,null,null,null,null,null,null,null,null,null,null,null,null,null,null,null,null,0,0]
[null,null,null,null,null,null,null,null,null,null,null,null,null,null,null,null,null,null,null,null,null,null,null,null,null,null,null,null,0,0]
[null,null,null,null,null,null,null,null,null,null,null,null,null,null,null,null,null,null,null,null,null,null,null,null,null,null,null,null,0,0]
[null,null,null,null,null,null,null,null,null,null,null,null,null,null,null,null,null,null,null,null,null,null,null,null,null,null,null,null,0,0]
[null,null,null,null,null,null,null,null,null,null,null,null,null,null,null,null,null,null,null,null,null,null,null,null,null,null,null,null,0,0]
[null,null,null,null,null,null,null,null,null,null,null,null,null,null,null,null,null,null,null,null,null,null,null,null,null,null,null,null,0,0]
[null,null,null,null,null,null,null,null,null,null,null,null,null,null,null,null,null,null,null,null,null,null,null,null,null,null,null,null,0,0]
[null,null,null,null,null,null,null,null,null,null,null,null,null,null,null,null,null,null,null,null,null,null,null,null,null,null,null,null,0,0]
[null,null,null,null,null,null,null,null,null,null,null,null,null,null,null,null,null,null,null,null,null,null,null,null,null,null,null,null,0,0]
[null,null,null,null,null,null,null,null,null,null,null,null,null,null,null,null,null,null,null,null,null,null,null,null,null,null,null,null,0,0]
[null,null,null,null,null,null,null,null,null,null,null,null,null,null,null,null,null,null,null,null,null,null,null,null,null,null,null,null,0,0]
[null,null,null,null,null,null,null,null,null,null,null,null,null,null,null,null,null,null,null,null,null,null,null,null,null,null,null,null,0,0]
[null,null,null,null,null,null,null,null,null,null,null,null,null,null,null,null,null,null,null,null,null,null,null,null,null,null,null,null,0,0]
[null,null,null,null,null,null,null,null,null,null,null,null,null,null,null,null,null,null,null,null,null,null,null,null,null,null,null,null,0,0]
[null,null,null,null,null,null,null,null,null,null,null,null,null,null,null,null,null,null,null,null,null,null,null,null,null,null,null,null,0,0]
[null,null,null,null,null,null,null,null,null,null,null,null,null,null,null,null,null,null,null,null,null,null,null,null,null,null,null,null,0,0]
[null,null,null,null,null,null,null,null,null,null,null,null,null,null,null,null,null,null,null,null,null,null,null,null,null,null,null,null,0,0]
[null,null,null,null,null,null,null,null,null,null,null,null,null,null,null,null,null,null,null,null,null,null,null,null,null,null,null,null,0,0]
[null,null,null,null,null,null,null,null,null,null,null,null,null,null,null,null,null,null,null,null,null,null,null,null,null,null,null,null,0,0]
[null,null,null,null,null,null,null,null,null,null,null,null,null,null,null,null,null,null,null,null,null,null,null,null,null,null,null,null,0,0]
[null,null,null,null,null,null,null,null,null,null,null,null,null,null,null,null,null,null,null,null,null,null,null,null,null,null,null,null,0,0]
[null,null,null,null,null,null,null,null,null,null,null,null,null,null,null,null,null,null,null,null,null,null,null,null,null,null,null,null,0,0]
[null,null,null,null,null,null,null,null,null,null,null,null,null,null,null,null,null,null,null,null,null,null,null,null,null,null,null,null,0,0]
[null,null,null,null,null,null,null,null,null,null,null,null,null,null,null,null,null,null,null,null,null,null,null,null,null,null,null,null,0,0]
[null,null,null,null,null,null,null,null,null,null,null,null,null,null,null,null,null,null,null,null,null,null,null,null,null,null,null,null,0,0]
[null,null,null,null,null,null,null,null,null,null,null,null,null,null,null,null,null,null,null,null,null,null,null,null,null,null,null,null,0,0]
[null,null,null,null,null,null,null,null,null,null,null,null,null,null,null,null,null,null,null,null,null,null,null,null,null,null,null,null,0,0]
[null,null,null,null,null,null,null,null,null,null,null,null,null,null,null,null,null,null,null,null,null,null,null,null,null,null,null,null,0,0]
[null,null,null,null,null,null,null,null,null,null,null,null,null,null,null,null,null,null,null,null,null,null,null,null,null,null,null,null,0,0]
[null,null,null,null,null,null,null,null,null,null,null,null,null,null,null,null,null,null,null,null,null,null,null,null,null,null,null,null,0,0]
[null,null,null,null,null,null,null,null,null,null,null,null,null,null,null,null,null,null,null,null,null,null,null,null,null,null,null,null,0,0]
[null,null,null,null,null,null,null,null,null,null,null,null,null,null,null,null,null,null,null,null,null,null,null,null,null,null,null,null,0,0]
[null,null,null,null,null,null,null,null,null,null,null,null,null,null,null,null,null,null,null,null,null,null,null,null,null,null,null,null,0,0]
[null,null,null,null,null,null,null,null,null,null,null,null,null,null,null,null,null,null,null,null,null,null,null,null,null,null,null,null,0,0]
[null,null,null,null,null,null,null,null,null,null,null,null,null,null,null,null,null,null,null,null,null,null,null,null,null,null,null,null,0,0]
[null,null,null,null,null,null,null,null,null,null,null,null,null,null,null,null,null,null,null,null,null,null,null,null,null,null,null,null,0,0]
[null,null,null,null,null,null,null,null,null,null,null,null,null,null,null,null,null,null,null,null,null,null,null,null,null,null,null,null,0,0]
[null,null,null,null,null,null,null,null,null,null,null,null,null,null,null,null,null,null,null,null,null,null,null,null,null,null,null,null,{"$f":"IF(AA1026=0,0,_xlfn.DAYS(AA1026,TODAY()))","v":0},{"$f":"IF(AB1026=0,0,_xlfn.DAYS(AB1026,TODAY()))","v":0}]
[null,null,null,null,null,null,null,null,null,null,null,null,null,null,null,null,null,null,null,null,null,null,null,null,null,null,null,null,0,0]
[null,null,null,null,null,null,null,null,null,null,null,null,null,null,null,null,null,null,null,null,null,null,null,null,null,null,null,null,0,0]
[null,null,null,null,null,null,null,null,null,null,null,null,null,null,null,null,null,null,null,null,null,null,null,null,null,null,null,null,0,0]
[null,null,null,null,null,null,null,null,null,null,null,null,null,null,null,null,null,null,null,null,null,null,null,null,null,null,null,null,0,0]
[null,null,null,null,null,null,null,null,null,null,null,null,null,null,null,null,null,null,null,null,null,null,null,null,null,null,null,null,0,0]
[null,null,null,null,null,null,null,null,null,null,null,null,null,null,null,null,null,null,null,null,null,null,null,null,null,null,null,null,0,0]
[null,null,null,null,null,null,null,null,null,null,null,null,null,null,null,null,null,null,null,null,null,null,null,null,null,null,null,null,0,0]
[null,null,null,null,null,null,null,null,null,null,null,null,null,null,null,null,null,null,null,null,null,null,null,null,null,null,null,null,0,0]
[null,null,null,null,null,null,null,null,null,null,null,null,null,null,null,null,null,null,null,null,null,null,null,null,null,null,null,null,0,0]
[null,null,null,null,null,null,null,null,null,null,null,null,null,null,null,null,null,null,null,null,null,null,null,null,null,null,null,null,0,0]
[null,null,null,null,null,null,null,null,null,null,null,null,null,null,null,null,null,null,null,null,null,null,null,null,null,null,null,null,0,0]
[null,null,null,null,null,null,null,null,null,null,null,null,null,null,null,null,null,null,null,null,null,null,null,null,null,null,null,null,0,0]
[null,null,null,null,null,null,null,null,null,null,null,null,null,null,null,null,null,null,null,null,null,null,null,null,null,null,null,null,0,0]
[null,null,null,null,null,null,null,null,null,null,null,null,null,null,null,null,null,null,null,null,null,null,null,null,null,null,null,null,0,0]
[null,null,null,null,null,null,null,null,null,null,null,null,null,null,null,null,null,null,null,null,null,null,null,null,null,null,null,null,0,0]
[null,null,null,null,null,null,null,null,null,null,null,null,null,null,null,null,null,null,null,null,null,null,null,null,null,null,null,null,0,0]
[null,null,null,null,null,null,null,null,null,null,null,null,null,null,null,null,null,null,null,null,null,null,null,null,null,null,null,null,0,0]
[null,null,null,null,null,null,null,null,null,null,null,null,null,null,null,null,null,null,null,null,null,null,null,null,null,null,null,null,0,0]
[null,null,null,null,null,null,null,null,null,null,null,null,null,null,null,null,null,null,null,null,null,null,null,null,null,null,null,null,0,0]
[null,null,null,null,null,null,null,null,null,null,null,null,null,null,null,null,null,null,null,null,null,null,null,null,null,null,null,null,0,0]
[null,null,null,null,null,null,null,null,null,null,null,null,null,null,null,null,null,null,null,null,null,null,null,null,null,null,null,null,0,0]
[null,null,null,null,null,null,null,null,null,null,null,null,null,null,null,null,null,null,null,null,null,null,null,null,null,null,null,null,0,0]
[null,null,null,null,null,null,null,null,null,null,null,null,null,null,null,null,null,null,null,null,null,null,null,null,null,null,null,null,0,0]
[null,null,null,null,null,null,null,null,null,null,null,null,null,null,null,null,null,null,null,null,null,null,null,null,null,null,null,null,0,0]
[null,null,null,null,null,null,null,null,null,null,null,null,null,null,null,null,null,null,null,null,null,null,null,null,null,null,null,null,0,0]
[null,null,null,null,null,null,null,null,null,null,null,null,null,null,null,null,null,null,null,null,null,null,null,null,null,null,null,null,0,0]
[null,null,null,null,null,null,null,null,null,null,null,null,null,null,null,null,null,null,null,null,null,null,null,null,null,null,null,null,0,0]
[null,null,null,null,null,null,null,null,null,null,null,null,null,null,null,null,null,null,null,null,null,null,null,null,null,null,null,null,0,0]
[null,null,null,null,null,null,null,null,null,null,null,null,null,null,null,null,null,null,null,null,null,null,null,null,null,null,null,null,0,0]
[null,null,null,null,null,null,null,null,null,null,null,null,null,null,null,null,null,null,null,null,null,null,null,null,null,null,null,null,0,0]
[null,null,null,null,null,null,null,null,null,null,null,null,null,null,null,null,null,null,null,null,null,null,null,null,null,null,null,null,0,0]
[null,null,null,null,null,null,null,null,null,null,null,null,null,null,null,null,null,null,null,null,null,null,null,null,null,null,null,null,0,0]
[null,null,null,null,null,null,null,null,null,null,null,null,null,null,null,null,null,null,null,null,null,null,null,null,null,null,null,null,0,0]
[null,null,null,null,null,null,null,null,null,null,null,null,null,null,null,null,null,null,null,null,null,null,null,null,null,null,null,null,0,0]
[null,null,null,null,null,null,null,null,null,null,null,null,null,null,null,null,null,null,null,null,null,null,null,null,null,null,null,null,0,0]
[null,null,null,null,null,null,null,null,null,null,null,null,null,null,null,null,null,null,null,null,null,null,null,null,null,null,null,null,0,0]
[null,null,null,null,null,null,null,null,null,null,null,null,null,null,null,null,null,null,null,null,null,null,null,null,null,null,null,null,0,0]
[null,null,null,null,null,null,null,null,null,null,null,null,null,null,null,null,null,null,null,null,null,null,null,null,null,null,null,null,0,0]
[null,null,null,null,null,null,null,null,null,null,null,null,null,null,null,null,null,null,null,null,null,null,null,null,null,null,null,null,0,0]
[null,null,null,null,null,null,null,null,null,null,null,null,null,null,null,null,null,null,null,null,null,null,null,null,null,null,null,null,0,0]
[null,null,null,null,null,null,null,null,null,null,null,null,null,null,null,null,null,null,null,null,null,null,null,null,null,null,null,null,0,0]
[null,null,null,null,null,null,null,null,null,null,null,null,null,null,null,null,null,null,null,null,null,null,null,null,null,null,null,null,0,0]
[null,null,null,null,null,null,null,null,null,null,null,null,null,null,null,null,null,null,null,null,null,null,null,null,null,null,null,null,0,0]
[null,null,null,null,null,null,null,null,null,null,null,null,null,null,null,null,null,null,null,null,null,null,null,null,null,null,null,null,0,0]
[null,null,null,null,null,null,null,null,null,null,null,null,null,null,null,null,null,null,null,null,null,null,null,null,null,null,null,null,0,0]
[null,null,null,null,null,null,null,null,null,null,null,null,null,null,null,null,null,null,null,null,null,null,null,null,null,null,null,null,0,0]
[null,null,null,null,null,null,null,null,null,null,null,null,null,null,null,null,null,null,null,null,null,null,null,null,null,null,null,null,0,0]
[null,null,null,null,null,null,null,null,null,null,null,null,null,null,null,null,null,null,null,null,null,null,null,null,null,null,null,null,0,0]
[null,null,null,null,null,null,null,null,null,null,null,null,null,null,null,null,null,null,null,null,null,null,null,null,null,null,null,null,0,0]
[null,null,null,null,null,null,null,null,null,null,null,null,null,null,null,null,null,null,null,null,null,null,null,null,null,null,null,null,0,0]
[null,null,null,null,null,null,null,null,null,null,null,null,null,null,null,null,null,null,null,null,null,null,null,null,null,null,null,null,0,0]
[null,null,null,null,null,null,null,null,null,null,null,null,null,null,null,null,null,null,null,null,null,null,null,null,null,null,null,null,0,0]
[null,null,null,null,null,null,null,null,null,null,null,null,null,null,null,null,null,null,null,null,null,null,null,null,null,null,null,null,0,0]
[null,null,null,null,null,null,null,null,null,null,null,null,null,null,null,null,null,null,null,null,null,null,null,null,null,null,null,null,0,0]
[null,null,null,null,null,null,null,null,null,null,null,null,null,null,null,null,null,null,null,null,null,null,null,null,null,null,null,null,0,0]
[null,null,null,null,null,null,null,null,null,null,null,null,null,null,null,null,null,null,null,null,null,null,null,null,null,null,null,null,0,0]
[null,null,null,null,null,null,null,null,null,null,null,null,null,null,null,null,null,null,null,null,null,null,null,null,null,null,null,null,0,0]
[null,null,null,null,null,null,null,null,null,null,null,null,null,null,null,null,null,null,null,null,null,null,null,null,null,null,null,null,0,0]
[null,null,null,null,null,null,null,null,null,null,null,null,null,null,null,null,null,null,null,null,null,null,null,null,null,null,null,null,0,0]
[null,null,null,null,null,null,null,null,null,null,null,null,null,null,null,null,null,null,null,null,null,null,null,null,null,null,null,null,0,0]
[null,null,null,null,null,null,null,null,null,null,null,null,null,null,null,null,null,null,null,null,null,null,null,null,null,null,null,null,0,0]
[null,null,null,null,null,null,null,null,null,null,null,null,null,null,null,null,null,null,null,null,null,null,null,null,null,null,null,null,0,0]
[null,null,null,null,null,null,null,null,null,null,null,null,null,null,null,null,null,null,null,null,null,null,null,null,null,null,null,null,0,0]
[null,null,null,null,null,null,null,null,null,null,null,null,null,null,null,null,null,null,null,null,null,null,null,null,null,null,null,null,{"$f":"IF(AA1090=0,0,_xlfn.DAYS(AA1090,TODAY()))","v":0},{"$f":"IF(AB1090=0,0,_xlfn.DAYS(AB1090,TODAY()))","v":0}]
[null,null,null,null,null,null,null,null,null,null,null,null,null,null,null,null,null,null,null,null,null,null,null,null,null,null,null,null,0,0]
[null,null,null,null,null,null,null,null,null,null,null,null,null,null,null,null,null,null,null,null,null,null,null,null,null,null,null,null,0,0]
[null,null,null,null,null,null,null,null,null,null,null,null,null,null,null,null,null,null,null,null,null,null,null,null,null,null,null,null,0,0]
[null,null,null,null,null,null,null,null,null,null,null,null,null,null,null,null,null,null,null,null,null,null,null,null,null,null,null,null,0,0]
[null,null,null,null,null,null,null,null,null,null,null,null,null,null,null,null,null,null,null,null,null,null,null,null,null,null,null,null,0,0]
[null,null,null,null,null,null,null,null,null,null,null,null,null,null,null,null,null,null,null,null,null,null,null,null,null,null,null,null,0,0]
[null,null,null,null,null,null,null,null,null,null,null,null,null,null,null,null,null,null,null,null,null,null,null,null,null,null,null,null,0,0]
[null,null,null,null,null,null,null,null,null,null,null,null,null,null,null,null,null,null,null,null,null,null,null,null,null,null,null,null,0,0]
[null,null,null,null,null,null,null,null,null,null,null,null,null,null,null,null,null,null,null,null,null,null,null,null,null,null,null,null,0,0]
[null,null,null,null,null,null,null,null,null,null,null,null,null,null,null,null,null,null,null,null,null,null,null,null,null,null,null,null,0,0]
[null,null,null,null,null,null,null,null,null,null,null,null,null,null,null,null,null,null,null,null,null,null,null,null,null,null,null,null,0,0]
[null,null,null,null,null,null,null,null,null,null,null,null,null,null,null,null,null,null,null,null,null,null,null,null,null,null,null,null,0,0]
[null,null,null,null,null,null,null,null,null,null,null,null,null,null,null,null,null,null,null,null,null,null,null,null,null,null,null,null,0,0]
[null,null,null,null,null,null,null,null,null,null,null,null,null,null,null,null,null,null,null,null,null,null,null,null,null,null,null,null,0,0]
[null,null,null,null,null,null,null,null,null,null,null,null,null,null,null,null,null,null,null,null,null,null,null,null,null,null,null,null,0,0]
[null,null,null,null,null,null,null,null,null,null,null,null,null,null,null,null,null,null,null,null,null,null,null,null,null,null,null,null,0,0]
[null,null,null,null,null,null,null,null,null,null,null,null,null,null,null,null,null,null,null,null,null,null,null,null,null,null,null,null,0,0]
[null,null,null,null,null,null,null,null,null,null,null,null,null,null,null,null,null,null,null,null,null,null,null,null,null,null,null,null,0,0]
[null,null,null,null,null,null,null,null,null,null,null,null,null,null,null,null,null,null,null,null,null,null,null,null,null,null,null,null,0,0]
[null,null,null,null,null,null,null,null,null,null,null,null,null,null,null,null,null,null,null,null,null,null,null,null,null,null,null,null,0,0]
[null,null,null,null,null,null,null,null,null,null,null,null,null,null,null,null,null,null,null,null,null,null,null,null,null,null,null,null,0,0]
[null,null,null,null,null,null,null,null,null,null,null,null,null,null,null,null,null,null,null,null,null,null,null,null,null,null,null,null,0,0]
[null,null,null,null,null,null,null,null,null,null,null,null,null,null,null,null,null,null,null,null,null,null,null,null,null,null,null,null,0,0]
[null,null,null,null,null,null,null,null,null,null,null,null,null,null,null,null,null,null,null,null,null,null,null,null,null,null,null,null,0,0]
[null,null,null,null,null,null,null,null,null,null,null,null,null,null,null,null,null,null,null,null,null,null,null,null,null,null,null,null,0,0]
[null,null,null,null,null,null,null,null,null,null,null,null,null,null,null,null,null,null,null,null,null,null,null,null,null,null,null,null,0,0]
[null,null,null,null,null,null,null,null,null,null,null,null,null,null,null,null,null,null,null,null,null,null,null,null,null,null,null,null,0,0]
[null,null,null,null,null,null,null,null,null,null,null,null,null,null,null,null,null,null,null,null,null,null,null,null,null,null,null,null,0,0]
[null,null,null,null,null,null,null,null,null,null,null,null,null,null,null,null,null,null,null,null,null,null,null,null,null,null,null,null,0,0]
[null,null,null,null,null,null,null,null,null,null,null,null,null,null,null,null,null,null,null,null,null,null,null,null,null,null,null,null,0,0]
[null,null,null,null,null,null,null,null,null,null,null,null,null,null,null,null,null,null,null,null,null,null,null,null,null,null,null,null,0,0]
[null,null,null,null,null,null,null,null,null,null,null,null,null,null,null,null,null,null,null,null,null,null,null,null,null,null,null,null,0,0]
[null,null,null,null,null,null,null,null,null,null,null,null,null,null,null,null,null,null,null,null,null,null,null,null,null,null,null,null,0,0]
[null,null,null,null,null,null,null,null,null,null,null,null,null,null,null,null,null,null,null,null,null,null,null,null,null,null,null,null,0,0]
[null,null,null,null,null,null,null,null,null,null,null,null,null,null,null,null,null,null,null,null,null,null,null,null,null,null,null,null,0,0]
[null,null,null,null,null,null,null,null,null,null,null,null,null,null,null,null,null,null,null,null,null,null,null,null,null,null,null,null,0,0]
[null,null,null,null,null,null,null,null,null,null,null,null,null,null,null,null,null,null,null,null,null,null,null,null,null,null,null,null,0,0]
[null,null,null,null,null,null,null,null,null,null,null,null,null,null,null,null,null,null,null,null,null,null,null,null,null,null,null,null,0,0]
[null,null,null,null,null,null,null,null,null,null,null,null,null,null,null,null,null,null,null,null,null,null,null,null,null,null,null,null,0,0]
[null,null,null,null,null,null,null,null,null,null,null,null,null,null,null,null,null,null,null,null,null,null,null,null,null,null,null,null,0,0]
[null,null,null,null,null,null,null,null,null,null,null,null,null,null,null,null,null,null,null,null,null,null,null,null,null,null,null,null,0,0]
[null,null,null,null,null,null,null,null,null,null,null,null,null,null,null,null,null,null,null,null,null,null,null,null,null,null,null,null,0,0]
[null,null,null,null,null,null,null,null,null,null,null,null,null,null,null,null,null,null,null,null,null,null,null,null,null,null,null,null,0,0]
[null,null,null,null,null,null,null,null,null,null,null,null,null,null,null,null,null,null,null,null,null,null,null,null,null,null,null,null,0,0]
[null,null,null,null,null,null,null,null,null,null,null,null,null,null,null,null,null,null,null,null,null,null,null,null,null,null,null,null,0,0]
[null,null,null,null,null,null,null,null,null,null,null,null,null,null,null,null,null,null,null,null,null,null,null,null,null,null,null,null,0,0]
[null,null,null,null,null,null,null,null,null,null,null,null,null,null,null,null,null,null,null,null,null,null,null,null,null,null,null,null,0,0]
[null,null,null,null,null,null,null,null,null,null,null,null,null,null,null,null,null,null,null,null,null,null,null,null,null,null,null,null,0,0]
[null,null,null,null,null,null,null,null,null,null,null,null,null,null,null,null,null,null,null,null,null,null,null,null,null,null,null,null,0,0]
[null,null,null,null,null,null,null,null,null,null,null,null,null,null,null,null,null,null,null,null,null,null,null,null,null,null,null,null,0,0]
[null,null,null,null,null,null,null,null,null,null,null,null,null,null,null,null,null,null,null,null,null,null,null,null,null,null,null,null,0,0]
[null,null,null,null,null,null,null,null,null,null,null,null,null,null,null,null,null,null,null,null,null,null,null,null,null,null,null,null,0,0]
[null,null,null,null,null,null,null,null,null,null,null,null,null,null,null,null,null,null,null,null,null,null,null,null,null,null,null,null,0,0]
[null,null,null,null,null,null,null,null,null,null,null,null,null,null,null,null,null,null,null,null,null,null,null,null,null,null,null,null,0,0]
[null,null,null,null,null,null,null,null,null,null,null,null,null,null,null,null,null,null,null,null,null,null,null,null,null,null,null,null,0,0]
[null,null,null,null,null,null,null,null,null,null,null,null,null,null,null,null,null,null,null,null,null,null,null,null,null,null,null,null,0,0]
[null,null,null,null,null,null,null,null,null,null,null,null,null,null,null,null,null,null,null,null,null,null,null,null,null,null,null,null,0,0]
[null,null,null,null,null,null,null,null,null,null,null,null,null,null,null,null,null,null,null,null,null,null,null,null,null,null,null,null,0,0]
[null,null,null,null,null,null,null,null,null,null,null,null,null,null,null,null,null,null,null,null,null,null,null,null,null,null,null,null,0,0]
[null,null,null,null,null,null,null,null,null,null,null,null,null,null,null,null,null,null,null,null,null,null,null,null,null,null,null,null,0,0]
[null,null,null,null,null,null,null,null,null,null,null,null,null,null,null,null,null,null,null,null,null,null,null,null,null,null,null,null,0,0]
[null,null,null,null,null,null,null,null,null,null,null,null,null,null,null,null,null,null,null,null,null,null,null,null,null,null,null,null,0,0]
[null,null,null,null,null,null,null,null,null,null,null,null,null,null,null,null,null,null,null,null,null,null,null,null,null,null,null,null,0,0]
[null,null,null,null,null,null,null,null,null,null,null,null,null,null,null,null,null,null,null,null,null,null,null,null,null,null,null,null,{"$f":"IF(AA1154=0,0,_xlfn.DAYS(AA1154,TODAY()))","v":0},{"$f":"IF(AB1154=0,0,_xlfn.DAYS(AB1154,TODAY()))","v":0}]
[null,null,null,null,null,null,null,null,null,null,null,null,null,null,null,null,null,null,null,null,null,null,null,null,null,null,null,null,0,0]
[null,null,null,null,null,null,null,null,null,null,null,null,null,null,null,null,null,null,null,null,null,null,null,null,null,null,null,null,0,0]
[null,null,null,null,null,null,null,null,null,null,null,null,null,null,null,null,null,null,null,null,null,null,null,null,null,null,null,null,0,0]
[null,null,null,null,null,null,null,null,null,null,null,null,null,null,null,null,null,null,null,null,null,null,null,null,null,null,null,null,0,0]
[null,null,null,null,null,null,null,null,null,null,null,null,null,null,null,null,null,null,null,null,null,null,null,null,null,null,null,null,0,0]
[null,null,null,null,null,null,null,null,null,null,null,null,null,null,null,null,null,null,null,null,null,null,null,null,null,null,null,null,0,0]
[null,null,null,null,null,null,null,null,null,null,null,null,null,null,null,null,null,null,null,null,null,null,null,null,null,null,null,null,0,0]
[null,null,null,null,null,null,null,null,null,null,null,null,null,null,null,null,null,null,null,null,null,null,null,null,null,null,null,null,0,0]
[null,null,null,null,null,null,null,null,null,null,null,null,null,null,null,null,null,null,null,null,null,null,null,null,null,null,null,null,0,0]
[null,null,null,null,null,null,null,null,null,null,null,null,null,null,null,null,null,null,null,null,null,null,null,null,null,null,null,null,0,0]
[null,null,null,null,null,null,null,null,null,null,null,null,null,null,null,null,null,null,null,null,null,null,null,null,null,null,null,null,0,0]
[null,null,null,null,null,null,null,null,null,null,null,null,null,null,null,null,null,null,null,null,null,null,null,null,null,null,null,null,0,0]
[null,null,null,null,null,null,null,null,null,null,null,null,null,null,null,null,null,null,null,null,null,null,null,null,null,null,null,null,0,0]
[null,null,null,null,null,null,null,null,null,null,null,null,null,null,null,null,null,null,null,null,null,null,null,null,null,null,null,null,0,0]
[null,null,null,null,null,null,null,null,null,null,null,null,null,null,null,null,null,null,null,null,null,null,null,null,null,null,null,null,0,0]
[null,null,null,null,null,null,null,null,null,null,null,null,null,null,null,null,null,null,null,null,null,null,null,null,null,null,null,null,0,0]
[null,null,null,null,null,null,null,null,null,null,null,null,null,null,null,null,null,null,null,null,null,null,null,null,null,null,null,null,0,0]
[null,null,null,null,null,null,null,null,null,null,null,null,null,null,null,null,null,null,null,null,null,null,null,null,null,null,null,null,0,0]
[null,null,null,null,null,null,null,null,null,null,null,null,null,null,null,null,null,null,null,null,null,null,null,null,null,null,null,null,0,0]
[null,null,null,null,null,null,null,null,null,null,null,null,null,null,null,null,null,null,null,null,null,null,null,null,null,null,null,null,0,0]
[null,null,null,null,null,null,null,null,null,null,null,null,null,null,null,null,null,null,null,null,null,null,null,null,null,null,null,null,0,0]
[null,null,null,null,null,null,null,null,null,null,null,null,null,null,null,null,null,null,null,null,null,null,null,null,null,null,null,null,0,0]
[null,null,null,null,null,null,null,null,null,null,null,null,null,null,null,null,null,null,null,null,null,null,null,null,null,null,null,null,0,0]
[null,null,null,null,null,null,null,null,null,null,null,null,null,null,null,null,null,null,null,null,null,null,null,null,null,null,null,null,0,0]
[null,null,null,null,null,null,null,null,null,null,null,null,null,null,null,null,null,null,null,null,null,null,null,null,null,null,null,null,0,0]
[null,null,null,null,null,null,null,null,null,null,null,null,null,null,null,null,null,null,null,null,null,null,null,null,null,null,null,null,0,0]
[null,null,null,null,null,null,null,null,null,null,null,null,null,null,null,null,null,null,null,null,null,null,null,null,null,null,null,null,0,0]
[null,null,null,null,null,null,null,null,null,null,null,null,null,null,null,null,null,null,null,null,null,null,null,null,null,null,null,null,0,0]
[null,null,null,null,null,null,null,null,null,null,null,null,null,null,null,null,null,null,null,null,null,null,null,null,null,null,null,null,0,0]
[null,null,null,null,null,null,null,null,null,null,null,null,null,null,null,null,null,null,null,null,null,null,null,null,null,null,null,null,0,0]
[null,null,null,null,null,null,null,null,null,null,null,null,null,null,null,null,null,null,null,null,null,null,null,null,null,null,null,null,0,0]
[null,null,null,null,null,null,null,null,null,null,null,null,null,null,null,null,null,null,null,null,null,null,null,null,null,null,null,null,0,0]
[null,null,null,null,null,null,null,null,null,null,null,null,null,null,null,null,null,null,null,null,null,null,null,null,null,null,null,null,0,0]
[null,null,null,null,null,null,null,null,null,null,null,null,null,null,null,null,null,null,null,null,null,null,null,null,null,null,null,null,0,0]
[null,null,null,null,null,null,null,null,null,null,null,null,null,null,null,null,null,null,null,null,null,null,null,null,null,null,null,null,0,0]
[null,null,null,null,null,null,null,null,null,null,null,null,null,null,null,null,null,null,null,null,null,null,null,null,null,null,null,null,0,0]
[null,null,null,null,null,null,null,null,null,null,null,null,null,null,null,null,null,null,null,null,null,null,null,null,null,null,null,null,0,0]
[null,null,null,null,null,null,null,null,null,null,null,null,null,null,null,null,null,null,null,null,null,null,null,null,null,null,null,null,0,0]
[null,null,null,null,null,null,null,null,null,null,null,null,null,null,null,null,null,null,null,null,null,null,null,null,null,null,null,null,0,0]
[null,null,null,null,null,null,null,null,null,null,null,null,null,null,null,null,null,null,null,null,null,null,null,null,null,null,null,null,0,0]
[null,null,null,null,null,null,null,null,null,null,null,null,null,null,null,null,null,null,null,null,null,null,null,null,null,null,null,null,0,0]
[null,null,null,null,null,null,null,null,null,null,null,null,null,null,null,null,null,null,null,null,null,null,null,null,null,null,null,null,0,0]
[null,null,null,null,null,null,null,null,null,null,null,null,null,null,null,null,null,null,null,null,null,null,null,null,null,null,null,null,0,0]
[null,null,null,null,null,null,null,null,null,null,null,null,null,null,null,null,null,null,null,null,null,null,null,null,null,null,null,null,0,0]
[null,null,null,null,null,null,null,null,null,null,null,null,null,null,null,null,null,null,null,null,null,null,null,null,null,null,null,null,0,0]
[null,null,null,null,null,null,null,null,null,null,null,null,null,null,null,null,null,null,null,null,null,null,null,null,null,null,null,null,0,0]
[null,null,null,null,null,null,null,null,null,null,null,null,null,null,null,null,null,null,null,null,null,null,null,null,null,null,null,null,0,0]
[null,null,null,null,null,null,null,null,null,null,null,null,null,null,null,null,null,null,null,null,null,null,null,null,null,null,null,null,0,0]
[null,null,null,null,null,null,null,null,null,null,null,null,null,null,null,null,null,null,null,null,null,null,null,null,null,null,null,null,0,0]
[null,null,null,null,null,null,null,null,null,null,null,null,null,null,null,null,null,null,null,null,null,null,null,null,null,null,null,null,0,0]
[null,null,null,null,null,null,null,null,null,null,null,null,null,null,null,null,null,null,null,null,null,null,null,null,null,null,null,null,0,0]
[null,null,null,null,null,null,null,null,null,null,null,null,null,null,null,null,null,null,null,null,null,null,null,null,null,null,null,null,0,0]
[null,null,null,null,null,null,null,null,null,null,null,null,null,null,null,null,null,null,null,null,null,null,null,null,null,null,null,null,0,0]
[null,null,null,null,null,null,null,null,null,null,null,null,null,null,null,null,null,null,null,null,null,null,null,null,null,null,null,null,0,0]
[null,null,null,null,null,null,null,null,null,null,null,null,null,null,null,null,null,null,null,null,null,null,null,null,null,null,null,null,0,0]
[null,null,null,null,null,null,null,null,null,null,null,null,null,null,null,null,null,null,null,null,null,null,null,null,null,null,null,null,0,0]
[null,null,null,null,null,null,null,null,null,null,null,null,null,null,null,null,null,null,null,null,null,null,null,null,null,null,null,null,0,0]
[null,null,null,null,null,null,null,null,null,null,null,null,null,null,null,null,null,null,null,null,null,null,null,null,null,null,null,null,0,0]
[null,null,null,null,null,null,null,null,null,null,null,null,null,null,null,null,null,null,null,null,null,null,null,null,null,null,null,null,0,0]
[null,null,null,null,null,null,null,null,null,null,null,null,null,null,null,null,null,null,null,null,null,null,null,null,null,null,null,null,0,0]
[null,null,null,null,null,null,null,null,null,null,null,null,null,null,null,null,null,null,null,null,null,null,null,null,null,null,null,null,0,0]
[null,null,null,null,null,null,null,null,null,null,null,null,null,null,null,null,null,null,null,null,null,null,null,null,null,null,null,null,0,0]
[null,null,null,null,null,null,null,null,null,null,null,null,null,null,null,null,null,null,null,null,null,null,null,null,null,null,null,null,0,0]
[null,null,null,null,null,null,null,null,null,null,null,null,null,null,null,null,null,null,null,null,null,null,null,null,null,null,null,null,{"$f":"IF(AA1218=0,0,_xlfn.DAYS(AA1218,TODAY()))","v":0},{"$f":"IF(AB1218=0,0,_xlfn.DAYS(AB1218,TODAY()))","v":0}]
[null,null,null,null,null,null,null,null,null,null,null,null,null,null,null,null,null,null,null,null,null,null,null,null,null,null,null,null,0,0]
[null,null,null,null,null,null,null,null,null,null,null,null,null,null,null,null,null,null,null,null,null,null,null,null,null,null,null,null,0,0]
[null,null,null,null,null,null,null,null,null,null,null,null,null,null,null,null,null,null,null,null,null,null,null,null,null,null,null,null,0,0]
[null,null,null,null,null,null,null,null,null,null,null,null,null,null,null,null,null,null,null,null,null,null,null,null,null,null,null,null,0,0]
[null,null,null,null,null,null,null,null,null,null,null,null,null,null,null,null,null,null,null,null,null,null,null,null,null,null,null,null,0,0]
[null,null,null,null,null,null,null,null,null,null,null,null,null,null,null,null,null,null,null,null,null,null,null,null,null,null,null,null,0,0]
[null,null,null,null,null,null,null,null,null,null,null,null,null,null,null,null,null,null,null,null,null,null,null,null,null,null,null,null,0,0]
[null,null,null,null,null,null,null,null,null,null,null,null,null,null,null,null,null,null,null,null,null,null,null,null,null,null,null,null,0,0]
[null,null,null,null,null,null,null,null,null,null,null,null,null,null,null,null,null,null,null,null,null,null,null,null,null,null,null,null,0,0]
[null,null,null,null,null,null,null,null,null,null,null,null,null,null,null,null,null,null,null,null,null,null,null,null,null,null,null,null,0,0]
[null,null,null,null,null,null,null,null,null,null,null,null,null,null,null,null,null,null,null,null,null,null,null,null,null,null,null,null,0,0]
[null,null,null,null,null,null,null,null,null,null,null,null,null,null,null,null,null,null,null,null,null,null,null,null,null,null,null,null,0,0]
[null,null,null,null,null,null,null,null,null,null,null,null,null,null,null,null,null,null,null,null,null,null,null,null,null,null,null,null,0,0]
[null,null,null,null,null,null,null,null,null,null,null,null,null,null,null,null,null,null,null,null,null,null,null,null,null,null,null,null,0,0]
[null,null,null,null,null,null,null,null,null,null,null,null,null,null,null,null,null,null,null,null,null,null,null,null,null,null,null,null,0,0]
[null,null,null,null,null,null,null,null,null,null,null,null,null,null,null,null,null,null,null,null,null,null,null,null,null,null,null,null,0,0]
[null,null,null,null,null,null,null,null,null,null,null,null,null,null,null,null,null,null,null,null,null,null,null,null,null,null,null,null,0,0]
[null,null,null,null,null,null,null,null,null,null,null,null,null,null,null,null,null,null,null,null,null,null,null,null,null,null,null,null,0,0]
[null,null,null,null,null,null,null,null,null,null,null,null,null,null,null,null,null,null,null,null,null,null,null,null,null,null,null,null,0,0]
[null,null,null,null,null,null,null,null,null,null,null,null,null,null,null,null,null,null,null,null,null,null,null,null,null,null,null,null,0,0]
[null,null,null,null,null,null,null,null,null,null,null,null,null,null,null,null,null,null,null,null,null,null,null,null,null,null,null,null,0,0]
[null,null,null,null,null,null,null,null,null,null,null,null,null,null,null,null,null,null,null,null,null,null,null,null,null,null,null,null,0,0]
[null,null,null,null,null,null,null,null,null,null,null,null,null,null,null,null,null,null,null,null,null,null,null,null,null,null,null,null,0,0]
[null,null,null,null,null,null,null,null,null,null,null,null,null,null,null,null,null,null,null,null,null,null,null,null,null,null,null,null,0,0]
[null,null,null,null,null,null,null,null,null,null,null,null,null,null,null,null,null,null,null,null,null,null,null,null,null,null,null,null,0,0]
[null,null,null,null,null,null,null,null,null,null,null,null,null,null,null,null,null,null,null,null,null,null,null,null,null,null,null,null,0,0]
[null,null,null,null,null,null,null,null,null,null,null,null,null,null,null,null,null,null,null,null,null,null,null,null,null,null,null,null,0,0]
[null,null,null,null,null,null,null,null,null,null,null,null,null,null,null,null,null,null,null,null,null,null,null,null,null,null,null,null,0,0]
[null,null,null,null,null,null,null,null,null,null,null,null,null,null,null,null,null,null,null,null,null,null,null,null,null,null,null,null,0,0]
[null,null,null,null,null,null,null,null,null,null,null,null,null,null,null,null,null,null,null,null,null,null,null,null,null,null,null,null,0,0]
[null,null,null,null,null,null,null,null,null,null,null,null,null,null,null,null,null,null,null,null,null,null,null,null,null,null,null,null,0,0]
[null,null,null,null,null,null,null,null,null,null,null,null,null,null,null,null,null,null,null,null,null,null,null,null,null,null,null,null,0,0]
[null,null,null,null,null,null,null,null,null,null,null,null,null,null,null,null,null,null,null,null,null,null,null,null,null,null,null,null,0,0]
[null,null,null,null,null,null,null,null,null,null,null,null,null,null,null,null,null,null,null,null,null,null,null,null,null,null,null,null,0,0]
[null,null,null,null,null,null,null,null,null,null,null,null,null,null,null,null,null,null,null,null,null,null,null,null,null,null,null,null,0,0]
[null,null,null,null,null,null,null,null,null,null,null,null,null,null,null,null,null,null,null,null,null,null,null,null,null,null,null,null,0,0]
[null,null,null,null,null,null,null,null,null,null,null,null,null,null,null,null,null,null,null,null,null,null,null,null,null,null,null,null,0,0]
[null,null,null,null,null,null,null,null,null,null,null,null,null,null,null,null,null,null,null,null,null,null,null,null,null,null,null,null,0,0]
[null,null,null,null,null,null,null,null,null,null,null,null,null,null,null,null,null,null,null,null,null,null,null,null,null,null,null,null,0,0]
[null,null,null,null,null,null,null,null,null,null,null,null,null,null,null,null,null,null,null,null,null,null,null,null,null,null,null,null,0,0]
[null,null,null,null,null,null,null,null,null,null,null,null,null,null,null,null,null,null,null,null,null,null,null,null,null,null,null,null,0,0]
[null,null,null,null,null,null,null,null,null,null,null,null,null,null,null,null,null,null,null,null,null,null,null,null,null,null,null,null,0,0]
[null,null,null,null,null,null,null,null,null,null,null,null,null,null,null,null,null,null,null,null,null,null,null,null,null,null,null,null,0,0]
[null,null,null,null,null,null,null,null,null,null,null,null,null,null,null,null,null,null,null,null,null,null,null,null,null,null,null,null,0,0]
[null,null,null,null,null,null,null,null,null,null,null,null,null,null,null,null,null,null,null,null,null,null,null,null,null,null,null,null,0,0]
[null,null,null,null,null,null,null,null,null,null,null,null,null,null,null,null,null,null,null,null,null,null,null,null,null,null,null,null,0,0]
[null,null,null,null,null,null,null,null,null,null,null,null,null,null,null,null,null,null,null,null,null,null,null,null,null,null,null,null,0,0]
[null,null,null,null,null,null,null,null,null,null,null,null,null,null,null,null,null,null,null,null,null,null,null,null,null,null,null,null,0,0]
[null,null,null,null,null,null,null,null,null,null,null,null,null,null,null,null,null,null,null,null,null,null,null,null,null,null,null,null,0,0]
[null,null,null,null,null,null,null,null,null,null,null,null,null,null,null,null,null,null,null,null,null,null,null,null,null,null,null,null,0,0]
[null,null,null,null,null,null,null,null,null,null,null,null,null,null,null,null,null,null,null,null,null,null,null,null,null,null,null,null,0,0]
[null,null,null,null,null,null,null,null,null,null,null,null,null,null,null,null,null,null,null,null,null,null,null,null,null,null,null,null,0,0]
[null,null,null,null,null,null,null,null,null,null,null,null,null,null,null,null,null,null,null,null,null,null,null,null,null,null,null,null,0,0]
[null,null,null,null,null,null,null,null,null,null,null,null,null,null,null,null,null,null,null,null,null,null,null,null,null,null,null,null,0,0]
[null,null,null,null,null,null,null,null,null,null,null,null,null,null,null,null,null,null,null,null,null,null,null,null,null,null,null,null,0,0]
[null,null,null,null,null,null,null,null,null,null,null,null,null,null,null,null,null,null,null,null,null,null,null,null,null,null,null,null,0,0]
[null,null,null,null,null,null,null,null,null,null,null,null,null,null,null,null,null,null,null,null,null,null,null,null,null,null,null,null,0,0]
[null,null,null,null,null,null,null,null,null,null,null,null,null,null,null,null,null,null,null,null,null,null,null,null,null,null,null,null,0,0]
[null,null,null,null,null,null,null,null,null,null,null,null,null,null,null,null,null,null,null,null,null,null,null,null,null,null,null,null,0,0]
[null,null,null,null,null,null,null,null,null,null,null,null,null,null,null,null,null,null,null,null,null,null,null,null,null,null,null,null,0,0]
[null,null,null,null,null,null,null,null,null,null,null,null,null,null,null,null,null,null,null,null,null,null,null,null,null,null,null,null,0,0]
[null,null,null,null,null,null,null,null,null,null,null,null,null,null,null,null,null,null,null,null,null,null,null,null,null,null,null,null,0,0]
[null,null,null,null,null,null,null,null,null,null,null,null,null,null,null,null,null,null,null,null,null,null,null,null,null,null,null,null,0,0]
[null,null,null,null,null,null,null,null,null,null,null,null,null,null,null,null,null,null,null,null,null,null,null,null,null,null,null,null,{"$f":"IF(AA1282=0,0,_xlfn.DAYS(AA1282,TODAY()))","v":0},{"$f":"IF(AB1282=0,0,_xlfn.DAYS(AB1282,TODAY()))","v":0}]
[null,null,null,null,null,null,null,null,null,null,null,null,null,null,null,null,null,null,null,null,null,null,null,null,null,null,null,null,0,0]
[null,null,null,null,null,null,null,null,null,null,null,null,null,null,null,null,null,null,null,null,null,null,null,null,null,null,null,null,0,0]
[null,null,null,null,null,null,null,null,null,null,null,null,null,null,null,null,null,null,null,null,null,null,null,null,null,null,null,null,0,0]
[null,null,null,null,null,null,null,null,null,null,null,null,null,null,null,null,null,null,null,null,null,null,null,null,null,null,null,null,0,0]
[null,null,null,null,null,null,null,null,null,null,null,null,null,null,null,null,null,null,null,null,null,null,null,null,null,null,null,null,0,0]
[null,null,null,null,null,null,null,null,null,null,null,null,null,null,null,null,null,null,null,null,null,null,null,null,null,null,null,null,0,0]
[null,null,null,null,null,null,null,null,null,null,null,null,null,null,null,null,null,null,null,null,null,null,null,null,null,null,null,null,0,0]
[null,null,null,null,null,null,null,null,null,null,null,null,null,null,null,null,null,null,null,null,null,null,null,null,null,null,null,null,0,0]
[null,null,null,null,null,null,null,null,null,null,null,null,null,null,null,null,null,null,null,null,null,null,null,null,null,null,null,null,0,0]
[null,null,null,null,null,null,null,null,null,null,null,null,null,null,null,null,null,null,null,null,null,null,null,null,null,null,null,null,0,0]
[null,null,null,null,null,null,null,null,null,null,null,null,null,null,null,null,null,null,null,null,null,null,null,null,null,null,null,null,0,0]
[null,null,null,null,null,null,null,null,null,null,null,null,null,null,null,null,null,null,null,null,null,null,null,null,null,null,null,null,0,0]
[null,null,null,null,null,null,null,null,null,null,null,null,null,null,null,null,null,null,null,null,null,null,null,null,null,null,null,null,0,0]
[null,null,null,null,null,null,null,null,null,null,null,null,null,null,null,null,null,null,null,null,null,null,null,null,null,null,null,null,0,0]
[null,null,null,null,null,null,null,null,null,null,null,null,null,null,null,null,null,null,null,null,null,null,null,null,null,null,null,null,0,0]
[null,null,null,null,null,null,null,null,null,null,null,null,null,null,null,null,null,null,null,null,null,null,null,null,null,null,null,null,0,0]
[null,null,null,null,null,null,null,null,null,null,null,null,null,null,null,null,null,null,null,null,null,null,null,null,null,null,null,null,0,0]
[null,null,null,null,null,null,null,null,null,null,null,null,null,null,null,null,null,null,null,null,null,null,null,null,null,null,null,null,0,0]
[null,null,null,null,null,null,null,null,null,null,null,null,null,null,null,null,null,null,null,null,null,null,null,null,null,null,null,null,0,0]
[null,null,null,null,null,null,null,null,null,null,null,null,null,null,null,null,null,null,null,null,null,null,null,null,null,null,null,null,0,0]
[null,null,null,null,null,null,null,null,null,null,null,null,null,null,null,null,null,null,null,null,null,null,null,null,null,null,null,null,0,0]
[null,null,null,null,null,null,null,null,null,null,null,null,null,null,null,null,null,null,null,null,null,null,null,null,null,null,null,null,0,0]
[null,null,null,null,null,null,null,null,null,null,null,null,null,null,null,null,null,null,null,null,null,null,null,null,null,null,null,null,0,0]
[null,null,null,null,null,null,null,null,null,null,null,null,null,null,null,null,null,null,null,null,null,null,null,null,null,null,null,null,0,0]
[null,null,null,null,null,null,null,null,null,null,null,null,null,null,null,null,null,null,null,null,null,null,null,null,null,null,null,null,0,0]
[null,null,null,null,null,null,null,null,null,null,null,null,null,null,null,null,null,null,null,null,null,null,null,null,null,null,null,null,0,0]
[null,null,null,null,null,null,null,null,null,null,null,null,null,null,null,null,null,null,null,null,null,null,null,null,null,null,null,null,0,0]
[null,null,null,null,null,null,null,null,null,null,null,null,null,null,null,null,null,null,null,null,null,null,null,null,null,null,null,null,0,0]
[null,null,null,null,null,null,null,null,null,null,null,null,null,null,null,null,null,null,null,null,null,null,null,null,null,null,null,null,0,0]
[null,null,null,null,null,null,null,null,null,null,null,null,null,null,null,null,null,null,null,null,null,null,null,null,null,null,null,null,0,0]
[null,null,null,null,null,null,null,null,null,null,null,null,null,null,null,null,null,null,null,null,null,null,null,null,null,null,null,null,0,0]
[null,null,null,null,null,null,null,null,null,null,null,null,null,null,null,null,null,null,null,null,null,null,null,null,null,null,null,null,0,0]
[null,null,null,null,null,null,null,null,null,null,null,null,null,null,null,null,null,null,null,null,null,null,null,null,null,null,null,null,0,0]
[null,null,null,null,null,null,null,null,null,null,null,null,null,null,null,null,null,null,null,null,null,null,null,null,null,null,null,null,0,0]
[null,null,null,null,null,null,null,null,null,null,null,null,null,null,null,null,null,null,null,null,null,null,null,null,null,null,null,null,0,0]
[null,null,null,null,null,null,null,null,null,null,null,null,null,null,null,null,null,null,null,null,null,null,null,null,null,null,null,null,0,0]
[null,null,null,null,null,null,null,null,null,null,null,null,null,null,null,null,null,null,null,null,null,null,null,null,null,null,null,null,0,0]
[null,null,null,null,null,null,null,null,null,null,null,null,null,null,null,null,null,null,null,null,null,null,null,null,null,null,null,null,0,0]
[null,null,null,null,null,null,null,null,null,null,null,null,null,null,null,null,null,null,null,null,null,null,null,null,null,null,null,null,0,0]
[null,null,null,null,null,null,null,null,null,null,null,null,null,null,null,null,null,null,null,null,null,null,null,null,null,null,null,null,0,0]
[null,null,null,null,null,null,null,null,null,null,null,null,null,null,null,null,null,null,null,null,null,null,null,null,null,null,null,null,0,0]
[null,null,null,null,null,null,null,null,null,null,null,null,null,null,null,null,null,null,null,null,null,null,null,null,null,null,null,null,0,0]
[null,null,null,null,null,null,null,null,null,null,null,null,null,null,null,null,null,null,null,null,null,null,null,null,null,null,null,null,0,0]
[null,null,null,null,null,null,null,null,null,null,null,null,null,null,null,null,null,null,null,null,null,null,null,null,null,null,null,null,0,0]
[null,null,null,null,null,null,null,null,null,null,null,null,null,null,null,null,null,null,null,null,null,null,null,null,null,null,null,null,0,0]
[null,null,null,null,null,null,null,null,null,null,null,null,null,null,null,null,null,null,null,null,null,null,null,null,null,null,null,null,0,0]
[null,null,null,null,null,null,null,null,null,null,null,null,null,null,null,null,null,null,null,null,null,null,null,null,null,null,null,null,0,0]
[null,null,null,null,null,null,null,null,null,null,null,null,null,null,null,null,null,null,null,null,null,null,null,null,null,null,null,null,0,0]
[null,null,null,null,null,null,null,null,null,null,null,null,null,null,null,null,null,null,null,null,null,null,null,null,null,null,null,null,0,0]
[null,null,null,null,null,null,null,null,null,null,null,null,null,null,null,null,null,null,null,null,null,null,null,null,null,null,null,null,0,0]
[null,null,null,null,null,null,null,null,null,null,null,null,null,null,null,null,null,null,null,null,null,null,null,null,null,null,null,null,0,0]
[null,null,null,null,null,null,null,null,null,null,null,null,null,null,null,null,null,null,null,null,null,null,null,null,null,null,null,null,0,0]
[null,null,null,null,null,null,null,null,null,null,null,null,null,null,null,null,null,null,null,null,null,null,null,null,null,null,null,null,0,0]
[null,null,null,null,null,null,null,null,null,null,null,null,null,null,null,null,null,null,null,null,null,null,null,null,null,null,null,null,0,0]
[null,null,null,null,null,null,null,null,null,null,null,null,null,null,null,null,null,null,null,null,null,null,null,null,null,null,null,null,0,0]
[null,null,null,null,null,null,null,null,null,null,null,null,null,null,null,null,null,null,null,null,null,null,null,null,null,null,null,null,0,0]
[null,null,null,null,null,null,null,null,null,null,null,null,null,null,null,null,null,null,null,null,null,null,null,null,null,null,null,null,0,0]
[null,null,null,null,null,null,null,null,null,null,null,null,null,null,null,null,null,null,null,null,null,null,null,null,null,null,null,null,0,0]
[null,null,null,null,null,null,null,null,null,null,null,null,null,null,null,null,null,null,null,null,null,null,null,null,null,null,null,null,0,0]
[null,null,null,null,null,null,null,null,null,null,null,null,null,null,null,null,null,null,null,null,null,null,null,null,null,null,null,null,0,0]
[null,null,null,null,null,null,null,null,null,null,null,null,null,null,null,null,null,null,null,null,null,null,null,null,null,null,null,null,0,0]
[null,null,null,null,null,null,null,null,null,null,null,null,null,null,null,null,null,null,null,null,null,null,null,null,null,null,null,null,0,0]
[null,null,null,null,null,null,null,null,null,null,null,null,null,null,null,null,null,null,null,null,null,null,null,null,null,null,null,null,0,0]
[null,null,null,null,null,null,null,null,null,null,null,null,null,null,null,null,null,null,null,null,null,null,null,null,null,null,null,null,{"$f":"IF(AA1346=0,0,_xlfn.DAYS(AA1346,TODAY()))","v":0},{"$f":"IF(AB1346=0,0,_xlfn.DAYS(AB1346,TODAY()))","v":0}]
[null,null,null,null,null,null,null,null,null,null,null,null,null,null,null,null,null,null,null,null,null,null,null,null,null,null,null,null,0,0]
[null,null,null,null,null,null,null,null,null,null,null,null,null,null,null,null,null,null,null,null,null,null,null,null,null,null,null,null,0,0]
[null,null,null,null,null,null,null,null,null,null,null,null,null,null,null,null,null,null,null,null,null,null,null,null,null,null,null,null,0,0]
[null,null,null,null,null,null,null,null,null,null,null,null,null,null,null,null,null,null,null,null,null,null,null,null,null,null,null,null,0,0]
[null,null,null,null,null,null,null,null,null,null,null,null,null,null,null,null,null,null,null,null,null,null,null,null,null,null,null,null,0,0]
[null,null,null,null,null,null,null,null,null,null,null,null,null,null,null,null,null,null,null,null,null,null,null,null,null,null,null,null,0,0]
[null,null,null,null,null,null,null,null,null,null,null,null,null,null,null,null,null,null,null,null,null,null,null,null,null,null,null,null,0,0]
[null,null,null,null,null,null,null,null,null,null,null,null,null,null,null,null,null,null,null,null,null,null,null,null,null,null,null,null,0,0]
[null,null,null,null,null,null,null,null,null,null,null,null,null,null,null,null,null,null,null,null,null,null,null,null,null,null,null,null,0,0]
[null,null,null,null,null,null,null,null,null,null,null,null,null,null,null,null,null,null,null,null,null,null,null,null,null,null,null,null,0,0]
[null,null,null,null,null,null,null,null,null,null,null,null,null,null,null,null,null,null,null,null,null,null,null,null,null,null,null,null,0,0]
[null,null,null,null,null,null,null,null,null,null,null,null,null,null,null,null,null,null,null,null,null,null,null,null,null,null,null,null,0,0]
[null,null,null,null,null,null,null,null,null,null,null,null,null,null,null,null,null,null,null,null,null,null,null,null,null,null,null,null,0,0]
[null,null,null,null,null,null,null,null,null,null,null,null,null,null,null,null,null,null,null,null,null,null,null,null,null,null,null,null,0,0]
[null,null,null,null,null,null,null,null,null,null,null,null,null,null,null,null,null,null,null,null,null,null,null,null,null,null,null,null,0,0]
[null,null,null,null,null,null,null,null,null,null,null,null,null,null,null,null,null,null,null,null,null,null,null,null,null,null,null,null,0,0]
[null,null,null,null,null,null,null,null,null,null,null,null,null,null,null,null,null,null,null,null,null,null,null,null,null,null,null,null,0,0]
[null,null,null,null,null,null,null,null,null,null,null,null,null,null,null,null,null,null,null,null,null,null,null,null,null,null,null,null,0,0]
[null,null,null,null,null,null,null,null,null,null,null,null,null,null,null,null,null,null,null,null,null,null,null,null,null,null,null,null,0,0]
[null,null,null,null,null,null,null,null,null,null,null,null,null,null,null,null,null,null,null,null,null,null,null,null,null,null,null,null,0,0]
[null,null,null,null,null,null,null,null,null,null,null,null,null,null,null,null,null,null,null,null,null,null,null,null,null,null,null,null,0,0]
[null,null,null,null,null,null,null,null,null,null,null,null,null,null,null,null,null,null,null,null,null,null,null,null,null,null,null,null,0,0]
[null,null,null,null,null,null,null,null,null,null,null,null,null,null,null,null,null,null,null,null,null,null,null,null,null,null,null,null,0,0]
[null,null,null,null,null,null,null,null,null,null,null,null,null,null,null,null,null,null,null,null,null,null,null,null,null,null,null,null,0,0]
[null,null,null,null,null,null,null,null,null,null,null,null,null,null,null,null,null,null,null,null,null,null,null,null,null,null,null,null,0,0]
[null,null,null,null,null,null,null,null,null,null,null,null,null,null,null,null,null,null,null,null,null,null,null,null,null,null,null,null,0,0]
[null,null,null,null,null,null,null,null,null,null,null,null,null,null,null,null,null,null,null,null,null,null,null,null,null,null,null,null,0,0]
[null,null,null,null,null,null,null,null,null,null,null,null,null,null,null,null,null,null,null,null,null,null,null,null,null,null,null,null,0,0]
[null,null,null,null,null,null,null,null,null,null,null,null,null,null,null,null,null,null,null,null,null,null,null,null,null,null,null,null,0,0]
[null,null,null,null,null,null,null,null,null,null,null,null,null,null,null,null,null,null,null,null,null,null,null,null,null,null,null,null,0,0]
[null,null,null,null,null,null,null,null,null,null,null,null,null,null,null,null,null,null,null,null,null,null,null,null,null,null,null,null,0,0]
[null,null,null,null,null,null,null,null,null,null,null,null,null,null,null,null,null,null,null,null,null,null,null,null,null,null,null,null,0,0]
[null,null,null,null,null,null,null,null,null,null,null,null,null,null,null,null,null,null,null,null,null,null,null,null,null,null,null,null,0,0]
[null,null,null,null,null,null,null,null,null,null,null,null,null,null,null,null,null,null,null,null,null,null,null,null,null,null,null,null,0,0]
[null,null,null,null,null,null,null,null,null,null,null,null,null,null,null,null,null,null,null,null,null,null,null,null,null,null,null,null,0,0]
[null,null,null,null,null,null,null,null,null,null,null,null,null,null,null,null,null,null,null,null,null,null,null,null,null,null,null,null,0,0]
[null,null,null,null,null,null,null,null,null,null,null,null,null,null,null,null,null,null,null,null,null,null,null,null,null,null,null,null,0,0]
[null,null,null,null,null,null,null,null,null,null,null,null,null,null,null,null,null,null,null,null,null,null,null,null,null,null,null,null,0,0]
[null,null,null,null,null,null,null,null,null,null,null,null,null,null,null,null,null,null,null,null,null,null,null,null,null,null,null,null,0,0]
[null,null,null,null,null,null,null,null,null,null,null,null,null,null,null,null,null,null,null,null,null,null,null,null,null,null,null,null,0,0]
[null,null,null,null,null,null,null,null,null,null,null,null,null,null,null,null,null,null,null,null,null,null,null,null,null,null,null,null,0,0]
[null,null,null,null,null,null,null,null,null,null,null,null,null,null,null,null,null,null,null,null,null,null,null,null,null,null,null,null,0,0]
[null,null,null,null,null,null,null,null,null,null,null,null,null,null,null,null,null,null,null,null,null,null,null,null,null,null,null,null,0,0]
[null,null,null,null,null,null,null,null,null,null,null,null,null,null,null,null,null,null,null,null,null,null,null,null,null,null,null,null,0,0]
[null,null,null,null,null,null,null,null,null,null,null,null,null,null,null,null,null,null,null,null,null,null,null,null,null,null,null,null,0,0]
[null,null,null,null,null,null,null,null,null,null,null,null,null,null,null,null,null,null,null,null,null,null,null,null,null,null,null,null,0,0]
[null,null,null,null,null,null,null,null,null,null,null,null,null,null,null,null,null,null,null,null,null,null,null,null,null,null,null,null,0,0]
[null,null,null,null,null,null,null,null,null,null,null,null,null,null,null,null,null,null,null,null,null,null,null,null,null,null,null,null,0,0]
[null,null,null,null,null,null,null,null,null,null,null,null,null,null,null,null,null,null,null,null,null,null,null,null,null,null,null,null,0,0]
[null,null,null,null,null,null,null,null,null,null,null,null,null,null,null,null,null,null,null,null,null,null,null,null,null,null,null,null,0,0]
[null,null,null,null,null,null,null,null,null,null,null,null,null,null,null,null,null,null,null,null,null,null,null,null,null,null,null,null,0,0]
[null,null,null,null,null,null,null,null,null,null,null,null,null,null,null,null,null,null,null,null,null,null,null,null,null,null,null,null,0,0]
[null,null,null,null,null,null,null,null,null,null,null,null,null,null,null,null,null,null,null,null,null,null,null,null,null,null,null,null,0,0]
[null,null,null,null,null,null,null,null,null,null,null,null,null,null,null,null,null,null,null,null,null,null,null,null,null,null,null,null,0,0]
[null,null,null,null,null,null,null,null,null,null,null,null,null,null,null,null,null,null,null,null,null,null,null,null,null,null,null,null,0,0]
[null,null,null,null,null,null,null,null,null,null,null,null,null,null,null,null,null,null,null,null,null,null,null,null,null,null,null,null,0,0]
[null,null,null,null,null,null,null,null,null,null,null,null,null,null,null,null,null,null,null,null,null,null,null,null,null,null,null,null,0,0]
[null,null,null,null,null,null,null,null,null,null,null,null,null,null,null,null,null,null,null,null,null,null,null,null,null,null,null,null,0,0]
[null,null,null,null,null,null,null,null,null,null,null,null,null,null,null,null,null,null,null,null,null,null,null,null,null,null,null,null,0,0]
[null,null,null,null,null,null,null,null,null,null,null,null,null,null,null,null,null,null,null,null,null,null,null,null,null,null,null,null,0,0]
[null,null,null,null,null,null,null,null,null,null,null,null,null,null,null,null,null,null,null,null,null,null,null,null,null,null,null,null,0,0]
[null,null,null,null,null,null,null,null,null,null,null,null,null,null,null,null,null,null,null,null,null,null,null,null,null,null,null,null,0,0]
[null,null,null,null,null,null,null,null,null,null,null,null,null,null,null,null,null,null,null,null,null,null,null,null,null,null,null,null,0,0]
[null,null,null,null,null,null,null,null,null,null,null,null,null,null,null,null,null,null,null,null,null,null,null,null,null,null,null,null,{"$f":"IF(AA1410=0,0,_xlfn.DAYS(AA1410,TODAY()))","v":0},{"$f":"IF(AB1410=0,0,_xlfn.DAYS(AB1410,TODAY()))","v":0}]
[null,null,null,null,null,null,null,null,null,null,null,null,null,null,null,null,null,null,null,null,null,null,null,null,null,null,null,null,0,0]
[null,null,null,null,null,null,null,null,null,null,null,null,null,null,null,null,null,null,null,null,null,null,null,null,null,null,null,null,0,0]
[null,null,null,null,null,null,null,null,null,null,null,null,null,null,null,null,null,null,null,null,null,null,null,null,null,null,null,null,0,0]
[null,null,null,null,null,null,null,null,null,null,null,null,null,null,null,null,null,null,null,null,null,null,null,null,null,null,null,null,0,0]
[null,null,null,null,null,null,null,null,null,null,null,null,null,null,null,null,null,null,null,null,null,null,null,null,null,null,null,null,0,0]
[null,null,null,null,null,null,null,null,null,null,null,null,null,null,null,null,null,null,null,null,null,null,null,null,null,null,null,null,0,0]
[null,null,null,null,null,null,null,null,null,null,null,null,null,null,null,null,null,null,null,null,null,null,null,null,null,null,null,null,0,0]
[null,null,null,null,null,null,null,null,null,null,null,null,null,null,null,null,null,null,null,null,null,null,null,null,null,null,null,null,0,0]
[null,null,null,null,null,null,null,null,null,null,null,null,null,null,null,null,null,null,null,null,null,null,null,null,null,null,null,null,0,0]
[null,null,null,null,null,null,null,null,null,null,null,null,null,null,null,null,null,null,null,null,null,null,null,null,null,null,null,null,0,0]
[null,null,null,null,null,null,null,null,null,null,null,null,null,null,null,null,null,null,null,null,null,null,null,null,null,null,null,null,0,0]
[null,null,null,null,null,null,null,null,null,null,null,null,null,null,null,null,null,null,null,null,null,null,null,null,null,null,null,null,0,0]
[null,null,null,null,null,null,null,null,null,null,null,null,null,null,null,null,null,null,null,null,null,null,null,null,null,null,null,null,0,0]
[null,null,null,null,null,null,null,null,null,null,null,null,null,null,null,null,null,null,null,null,null,null,null,null,null,null,null,null,0,0]
[null,null,null,null,null,null,null,null,null,null,null,null,null,null,null,null,null,null,null,null,null,null,null,null,null,null,null,null,0,0]
[null,null,null,null,null,null,null,null,null,null,null,null,null,null,null,null,null,null,null,null,null,null,null,null,null,null,null,null,0,0]
[null,null,null,null,null,null,null,null,null,null,null,null,null,null,null,null,null,null,null,null,null,null,null,null,null,null,null,null,0,0]
[null,null,null,null,null,null,null,null,null,null,null,null,null,null,null,null,null,null,null,null,null,null,null,null,null,null,null,null,0,0]
[null,null,null,null,null,null,null,null,null,null,null,null,null,null,null,null,null,null,null,null,null,null,null,null,null,null,null,null,0,0]
[null,null,null,null,null,null,null,null,null,null,null,null,null,null,null,null,null,null,null,null,null,null,null,null,null,null,null,null,0,0]
[null,null,null,null,null,null,null,null,null,null,null,null,null,null,null,null,null,null,null,null,null,null,null,null,null,null,null,null,0,0]
[null,null,null,null,null,null,null,null,null,null,null,null,null,null,null,null,null,null,null,null,null,null,null,null,null,null,null,null,0,0]
[null,null,null,null,null,null,null,null,null,null,null,null,null,null,null,null,null,null,null,null,null,null,null,null,null,null,null,null,0,0]
[null,null,null,null,null,null,null,null,null,null,null,null,null,null,null,null,null,null,null,null,null,null,null,null,null,null,null,null,0,0]
[null,null,null,null,null,null,null,null,null,null,null,null,null,null,null,null,null,null,null,null,null,null,null,null,null,null,null,null,0,0]
[null,null,null,null,null,null,null,null,null,null,null,null,null,null,null,null,null,null,null,null,null,null,null,null,null,null,null,null,0,0]
[null,null,null,null,null,null,null,null,null,null,null,null,null,null,null,null,null,null,null,null,null,null,null,null,null,null,null,null,0,0]
[null,null,null,null,null,null,null,null,null,null,null,null,null,null,null,null,null,null,null,null,null,null,null,null,null,null,null,null,0,0]
[null,null,null,null,null,null,null,null,null,null,null,null,null,null,null,null,null,null,null,null,null,null,null,null,null,null,null,null,0,0]
[null,null,null,null,null,null,null,null,null,null,null,null,null,null,null,null,null,null,null,null,null,null,null,null,null,null,null,null,0,0]
[null,null,null,null,null,null,null,null,null,null,null,null,null,null,null,null,null,null,null,null,null,null,null,null,null,null,null,null,0,0]
[null,null,null,null,null,null,null,null,null,null,null,null,null,null,null,null,null,null,null,null,null,null,null,null,null,null,null,null,0,0]
[null,null,null,null,null,null,null,null,null,null,null,null,null,null,null,null,null,null,null,null,null,null,null,null,null,null,null,null,0,0]
[null,null,null,null,null,null,null,null,null,null,null,null,null,null,null,null,null,null,null,null,null,null,null,null,null,null,null,null,0,0]
[null,null,null,null,null,null,null,null,null,null,null,null,null,null,null,null,null,null,null,null,null,null,null,null,null,null,null,null,0,0]
[null,null,null,null,null,null,null,null,null,null,null,null,null,null,null,null,null,null,null,null,null,null,null,null,null,null,null,null,0,0]
[null,null,null,null,null,null,null,null,null,null,null,null,null,null,null,null,null,null,null,null,null,null,null,null,null,null,null,null,0,0]
[null,null,null,null,null,null,null,null,null,null,null,null,null,null,null,null,null,null,null,null,null,null,null,null,null,null,null,null,0,0]
[null,null,null,null,null,null,null,null,null,null,null,null,null,null,null,null,null,null,null,null,null,null,null,null,null,null,null,null,0,0]
[null,null,null,null,null,null,null,null,null,null,null,null,null,null,null,null,null,null,null,null,null,null,null,null,null,null,null,null,0,0]
[null,null,null,null,null,null,null,null,null,null,null,null,null,null,null,null,null,null,null,null,null,null,null,null,null,null,null,null,0,0]
[null,null,null,null,null,null,null,null,null,null,null,null,null,null,null,null,null,null,null,null,null,null,null,null,null,null,null,null,0,0]
[null,null,null,null,null,null,null,null,null,null,null,null,null,null,null,null,null,null,null,null,null,null,null,null,null,null,null,null,0,0]
[null,null,null,null,null,null,null,null,null,null,null,null,null,null,null,null,null,null,null,null,null,null,null,null,null,null,null,null,0,0]
[null,null,null,null,null,null,null,null,null,null,null,null,null,null,null,null,null,null,null,null,null,null,null,null,null,null,null,null,0,0]
[null,null,null,null,null,null,null,null,null,null,null,null,null,null,null,null,null,null,null,null,null,null,null,null,null,null,null,null,0,0]
[null,null,null,null,null,null,null,null,null,null,null,null,null,null,null,null,null,null,null,null,null,null,null,null,null,null,null,null,0,0]
[null,null,null,null,null,null,null,null,null,null,null,null,null,null,null,null,null,null,null,null,null,null,null,null,null,null,null,null,0,0]
[null,null,null,null,null,null,null,null,null,null,null,null,null,null,null,null,null,null,null,null,null,null,null,null,null,null,null,null,0,0]
[null,null,null,null,null,null,null,null,null,null,null,null,null,null,null,null,null,null,null,null,null,null,null,null,null,null,null,null,0,0]
[null,null,null,null,null,null,null,null,null,null,null,null,null,null,null,null,null,null,null,null,null,null,null,null,null,null,null,null,0,0]
[null,null,null,null,null,null,null,null,null,null,null,null,null,null,null,null,null,null,null,null,null,null,null,null,null,null,null,null,0,0]
[null,null,null,null,null,null,null,null,null,null,null,null,null,null,null,null,null,null,null,null,null,null,null,null,null,null,null,null,0,0]
[null,null,null,null,null,null,null,null,null,null,null,null,null,null,null,null,null,null,null,null,null,null,null,null,null,null,null,null,0,0]
[null,null,null,null,null,null,null,null,null,null,null,null,null,null,null,null,null,null,null,null,null,null,null,null,null,null,null,null,0,0]
[null,null,null,null,null,null,null,null,null,null,null,null,null,null,null,null,null,null,null,null,null,null,null,null,null,null,null,null,0,0]
[null,null,null,null,null,null,null,null,null,null,null,null,null,null,null,null,null,null,null,null,null,null,null,null,null,null,null,null,0,0]
[null,null,null,null,null,null,null,null,null,null,null,null,null,null,null,null,null,null,null,null,null,null,null,null,null,null,null,null,0,0]
[null,null,null,null,null,null,null,null,null,null,null,null,null,null,null,null,null,null,null,null,null,null,null,null,null,null,null,null,0,0]
[null,null,null,null,null,null,null,null,null,null,null,null,null,null,null,null,null,null,null,null,null,null,null,null,null,null,null,null,0,0]
[null,null,null,null,null,null,null,null,null,null,null,null,null,null,null,null,null,null,null,null,null,null,null,null,null,null,null,null,0,0]
[null,null,null,null,null,null,null,null,null,null,null,null,null,null,null,null,null,null,null,null,null,null,null,null,null,null,null,null,0,0]
[null,null,null,null,null,null,null,null,null,null,null,null,null,null,null,null,null,null,null,null,null,null,null,null,null,null,null,null,0,0]
[null,null,null,null,null,null,null,null,null,null,null,null,null,null,null,null,null,null,null,null,null,null,null,null,null,null,null,null,{"$f":"IF(AA1474=0,0,_xlfn.DAYS(AA1474,TODAY()))","v":0},{"$f":"IF(AB1474=0,0,_xlfn.DAYS(AB1474,TODAY()))","v":0}]
[null,null,null,null,null,null,null,null,null,null,null,null,null,null,null,null,null,null,null,null,null,null,null,null,null,null,null,null,0,0]
[null,null,null,null,null,null,null,null,null,null,null,null,null,null,null,null,null,null,null,null,null,null,null,null,null,null,null,null,0,0]
[null,null,null,null,null,null,null,null,null,null,null,null,null,null,null,null,null,null,null,null,null,null,null,null,null,null,null,null,0,0]
[null,null,null,null,null,null,null,null,null,null,null,null,null,null,null,null,null,null,null,null,null,null,null,null,null,null,null,null,0,0]
[null,null,null,null,null,null,null,null,null,null,null,null,null,null,null,null,null,null,null,null,null,null,null,null,null,null,null,null,0,0]
[null,null,null,null,null,null,null,null,null,null,null,null,null,null,null,null,null,null,null,null,null,null,null,null,null,null,null,null,0,0]
[null,null,null,null,null,null,null,null,null,null,null,null,null,null,null,null,null,null,null,null,null,null,null,null,null,null,null,null,0,0]
[null,null,null,null,null,null,null,null,null,null,null,null,null,null,null,null,null,null,null,null,null,null,null,null,null,null,null,null,0,0]
[null,null,null,null,null,null,null,null,null,null,null,null,null,null,null,null,null,null,null,null,null,null,null,null,null,null,null,null,0,0]
[null,null,null,null,null,null,null,null,null,null,null,null,null,null,null,null,null,null,null,null,null,null,null,null,null,null,null,null,0,0]
[null,null,null,null,null,null,null,null,null,null,null,null,null,null,null,null,null,null,null,null,null,null,null,null,null,null,null,null,0,0]
[null,null,null,null,null,null,null,null,null,null,null,null,null,null,null,null,null,null,null,null,null,null,null,null,null,null,null,null,0,0]
[null,null,null,null,null,null,null,null,null,null,null,null,null,null,null,null,null,null,null,null,null,null,null,null,null,null,null,null,0,0]
[null,null,null,null,null,null,null,null,null,null,null,null,null,null,null,null,null,null,null,null,null,null,null,null,null,null,null,null,0,0]
[null,null,null,null,null,null,null,null,null,null,null,null,null,null,null,null,null,null,null,null,null,null,null,null,null,null,null,null,0,0]
[null,null,null,null,null,null,null,null,null,null,null,null,null,null,null,null,null,null,null,null,null,null,null,null,null,null,null,null,0,0]
[null,null,null,null,null,null,null,null,null,null,null,null,null,null,null,null,null,null,null,null,null,null,null,null,null,null,null,null,0,0]
[null,null,null,null,null,null,null,null,null,null,null,null,null,null,null,null,null,null,null,null,null,null,null,null,null,null,null,null,0,0]
[null,null,null,null,null,null,null,null,null,null,null,null,null,null,null,null,null,null,null,null,null,null,null,null,null,null,null,null,0,0]
[null,null,null,null,null,null,null,null,null,null,null,null,null,null,null,null,null,null,null,null,null,null,null,null,null,null,null,null,0,0]
[null,null,null,null,null,null,null,null,null,null,null,null,null,null,null,null,null,null,null,null,null,null,null,null,null,null,null,null,0,0]
[null,null,null,null,null,null,null,null,null,null,null,null,null,null,null,null,null,null,null,null,null,null,null,null,null,null,null,null,0,0]
[null,null,null,null,null,null,null,null,null,null,null,null,null,null,null,null,null,null,null,null,null,null,null,null,null,null,null,null,0,0]
[null,null,null,null,null,null,null,null,null,null,null,null,null,null,null,null,null,null,null,null,null,null,null,null,null,null,null,null,0,0]
[null,null,null,null,null,null,null,null,null,null,null,null,null,null,null,null,null,null,null,null,null,null,null,null,null,null,null,null,0,0]
[null,null,null,null,null,null,null,null,null,null,null,null,null,null,null,null,null,null,null,null,null,null,null,null,null,null,null,null,0,0]
[null,null,null,null,null,null,null,null,null,null,null,null,null,null,null,null,null,null,null,null,null,null,null,null,null,null,null,null,0,0]
[null,null,null,null,null,null,null,null,null,null,null,null,null,null,null,null,null,null,null,null,null,null,null,null,null,null,null,null,0,0]
[null,null,null,null,null,null,null,null,null,null,null,null,null,null,null,null,null,null,null,null,null,null,null,null,null,null,null,null,0,0]
[null,null,null,null,null,null,null,null,null,null,null,null,null,null,null,null,null,null,null,null,null,null,null,null,null,null,null,null,0,0]
[null,null,null,null,null,null,null,null,null,null,null,null,null,null,null,null,null,null,null,null,null,null,null,null,null,null,null,null,0,0]
[null,null,null,null,null,null,null,null,null,null,null,null,null,null,null,null,null,null,null,null,null,null,null,null,null,null,null,null,0,0]
[null,null,null,null,null,null,null,null,null,null,null,null,null,null,null,null,null,null,null,null,null,null,null,null,null,null,null,null,0,0]
[null,null,null,null,null,null,null,null,null,null,null,null,null,null,null,null,null,null,null,null,null,null,null,null,null,null,null,null,0,0]
[null,null,null,null,null,null,null,null,null,null,null,null,null,null,null,null,null,null,null,null,null,null,null,null,null,null,null,null,0,0]
[null,null,null,null,null,null,null,null,null,null,null,null,null,null,null,null,null,null,null,null,null,null,null,null,null,null,null,null,0,0]
[null,null,null,null,null,null,null,null,null,null,null,null,null,null,null,null,null,null,null,null,null,null,null,null,null,null,null,null,0,0]
[null,null,null,null,null,null,null,null,null,null,null,null,null,null,null,null,null,null,null,null,null,null,null,null,null,null,null,null,0,0]
[null,null,null,null,null,null,null,null,null,null,null,null,null,null,null,null,null,null,null,null,null,null,null,null,null,null,null,null,0,0]
[null,null,null,null,null,null,null,null,null,null,null,null,null,null,null,null,null,null,null,null,null,null,null,null,null,null,null,null,0,0]
[null,null,null,null,null,null,null,null,null,null,null,null,null,null,null,null,null,null,null,null,null,null,null,null,null,null,null,null,0,0]
[null,null,null,null,null,null,null,null,null,null,null,null,null,null,null,null,null,null,null,null,null,null,null,null,null,null,null,null,0,0]
[null,null,null,null,null,null,null,null,null,null,null,null,null,null,null,null,null,null,null,null,null,null,null,null,null,null,null,null,0,0]
[null,null,null,null,null,null,null,null,null,null,null,null,null,null,null,null,null,null,null,null,null,null,null,null,null,null,null,null,0,0]
[null,null,null,null,null,null,null,null,null,null,null,null,null,null,null,null,null,null,null,null,null,null,null,null,null,null,null,null,0,0]
[null,null,null,null,null,null,null,null,null,null,null,null,null,null,null,null,null,null,null,null,null,null,null,null,null,null,null,null,0,0]
[null,null,null,null,null,null,null,null,null,null,null,null,null,null,null,null,null,null,null,null,null,null,null,null,null,null,null,null,0,0]
[null,null,null,null,null,null,null,null,null,null,null,null,null,null,null,null,null,null,null,null,null,null,null,null,null,null,null,null,0,0]
[null,null,null,null,null,null,null,null,null,null,null,null,null,null,null,null,null,null,null,null,null,null,null,null,null,null,null,null,0,0]
[null,null,null,null,null,null,null,null,null,null,null,null,null,null,null,null,null,null,null,null,null,null,null,null,null,null,null,null,0,0]
[null,null,null,null,null,null,null,null,null,null,null,null,null,null,null,null,null,null,null,null,null,null,null,null,null,null,null,null,0,0]
[null,null,null,null,null,null,null,null,null,null,null,null,null,null,null,null,null,null,null,null,null,null,null,null,null,null,null,null,0,0]
[null,null,null,null,null,null,null,null,null,null,null,null,null,null,null,null,null,null,null,null,null,null,null,null,null,null,null,null,0,0]
[null,null,null,null,null,null,null,null,null,null,null,null,null,null,null,null,null,null,null,null,null,null,null,null,null,null,null,null,0,0]
[null,null,null,null,null,null,null,null,null,null,null,null,null,null,null,null,null,null,null,null,null,null,null,null,null,null,null,null,0,0]
[null,null,null,null,null,null,null,null,null,null,null,null,null,null,null,null,null,null,null,null,null,null,null,null,null,null,null,null,0,0]
[null,null,null,null,null,null,null,null,null,null,null,null,null,null,null,null,null,null,null,null,null,null,null,null,null,null,null,null,0,0]
[null,null,null,null,null,null,null,null,null,null,null,null,null,null,null,null,null,null,null,null,null,null,null,null,null,null,null,null,0,0]
[null,null,null,null,null,null,null,null,null,null,null,null,null,null,null,null,null,null,null,null,null,null,null,null,null,null,null,null,0,0]
[null,null,null,null,null,null,null,null,null,null,null,null,null,null,null,null,null,null,null,null,null,null,null,null,null,null,null,null,0,0]
[null,null,null,null,null,null,null,null,null,null,null,null,null,null,null,null,null,null,null,null,null,null,null,null,null,null,null,null,0,0]
[null,null,null,null,null,null,null,null,null,null,null,null,null,null,null,null,null,null,null,null,null,null,null,null,null,null,null,null,0,0]
[null,null,null,null,null,null,null,null,null,null,null,null,null,null,null,null,null,null,null,null,null,null,null,null,null,null,null,null,0,0]
[null,null,null,null,null,null,null,null,null,null,null,null,null,null,null,null,null,null,null,null,null,null,null,null,null,null,null,null,{"$f":"IF(AA1538=0,0,_xlfn.DAYS(AA1538,TODAY()))","v":0},{"$f":"IF(AB1538=0,0,_xlfn.DAYS(AB1538,TODAY()))","v":0}]
[null,null,null,null,null,null,null,null,null,null,null,null,null,null,null,null,null,null,null,null,null,null,null,null,null,null,null,null,0,0]
[null,null,null,null,null,null,null,null,null,null,null,null,null,null,null,null,null,null,null,null,null,null,null,null,null,null,null,null,0,0]
[null,null,null,null,null,null,null,null,null,null,null,null,null,null,null,null,null,null,null,null,null,null,null,null,null,null,null,null,0,0]
[null,null,null,null,null,null,null,null,null,null,null,null,null,null,null,null,null,null,null,null,null,null,null,null,null,null,null,null,0,0]
[null,null,null,null,null,null,null,null,null,null,null,null,null,null,null,null,null,null,null,null,null,null,null,null,null,null,null,null,0,0]
[null,null,null,null,null,null,null,null,null,null,null,null,null,null,null,null,null,null,null,null,null,null,null,null,null,null,null,null,0,0]
[null,null,null,null,null,null,null,null,null,null,null,null,null,null,null,null,null,null,null,null,null,null,null,null,null,null,null,null,0,0]
[null,null,null,null,null,null,null,null,null,null,null,null,null,null,null,null,null,null,null,null,null,null,null,null,null,null,null,null,0,0]
[null,null,null,null,null,null,null,null,null,null,null,null,null,null,null,null,null,null,null,null,null,null,null,null,null,null,null,null,0,0]
[null,null,null,null,null,null,null,null,null,null,null,null,null,null,null,null,null,null,null,null,null,null,null,null,null,null,null,null,0,0]
[null,null,null,null,null,null,null,null,null,null,null,null,null,null,null,null,null,null,null,null,null,null,null,null,null,null,null,null,0,0]
[null,null,null,null,null,null,null,null,null,null,null,null,null,null,null,null,null,null,null,null,null,null,null,null,null,null,null,null,0,0]
[null,null,null,null,null,null,null,null,null,null,null,null,null,null,null,null,null,null,null,null,null,null,null,null,null,null,null,null,0,0]
[null,null,null,null,null,null,null,null,null,null,null,null,null,null,null,null,null,null,null,null,null,null,null,null,null,null,null,null,0,0]
[null,null,null,null,null,null,null,null,null,null,null,null,null,null,null,null,null,null,null,null,null,null,null,null,null,null,null,null,0,0]
[null,null,null,null,null,null,null,null,null,null,null,null,null,null,null,null,null,null,null,null,null,null,null,null,null,null,null,null,0,0]
[null,null,null,null,null,null,null,null,null,null,null,null,null,null,null,null,null,null,null,null,null,null,null,null,null,null,null,null,0,0]
[null,null,null,null,null,null,null,null,null,null,null,null,null,null,null,null,null,null,null,null,null,null,null,null,null,null,null,null,0,0]
[null,null,null,null,null,null,null,null,null,null,null,null,null,null,null,null,null,null,null,null,null,null,null,null,null,null,null,null,0,0]
[null,null,null,null,null,null,null,null,null,null,null,null,null,null,null,null,null,null,null,null,null,null,null,null,null,null,null,null,0,0]
[null,null,null,null,null,null,null,null,null,null,null,null,null,null,null,null,null,null,null,null,null,null,null,null,null,null,null,null,0,0]
[null,null,null,null,null,null,null,null,null,null,null,null,null,null,null,null,null,null,null,null,null,null,null,null,null,null,null,null,0,0]
[null,null,null,null,null,null,null,null,null,null,null,null,null,null,null,null,null,null,null,null,null,null,null,null,null,null,null,null,0,0]
[null,null,null,null,null,null,null,null,null,null,null,null,null,null,null,null,null,null,null,null,null,null,null,null,null,null,null,null,0,0]
[null,null,null,null,null,null,null,null,null,null,null,null,null,null,null,null,null,null,null,null,null,null,null,null,null,null,null,null,0,0]
[null,null,null,null,null,null,null,null,null,null,null,null,null,null,null,null,null,null,null,null,null,null,null,null,null,null,null,null,0,0]
[null,null,null,null,null,null,null,null,null,null,null,null,null,null,null,null,null,null,null,null,null,null,null,null,null,null,null,null,0,0]
[null,null,null,null,null,null,null,null,null,null,null,null,null,null,null,null,null,null,null,null,null,null,null,null,null,null,null,null,0,0]
[null,null,null,null,null,null,null,null,null,null,null,null,null,null,null,null,null,null,null,null,null,null,null,null,null,null,null,null,0,0]
[null,null,null,null,null,null,null,null,null,null,null,null,null,null,null,null,null,null,null,null,null,null,null,null,null,null,null,null,0,0]
[null,null,null,null,null,null,null,null,null,null,null,null,null,null,null,null,null,null,null,null,null,null,null,null,null,null,null,null,0,0]
[null,null,null,null,null,null,null,null,null,null,null,null,null,null,null,null,null,null,null,null,null,null,null,null,null,null,null,null,0,0]
[null,null,null,null,null,null,null,null,null,null,null,null,null,null,null,null,null,null,null,null,null,null,null,null,null,null,null,null,0,0]
[null,null,null,null,null,null,null,null,null,null,null,null,null,null,null,null,null,null,null,null,null,null,null,null,null,null,null,null,0,0]
[null,null,null,null,null,null,null,null,null,null,null,null,null,null,null,null,null,null,null,null,null,null,null,null,null,null,null,null,0,0]
[null,null,null,null,null,null,null,null,null,null,null,null,null,null,null,null,null,null,null,null,null,null,null,null,null,null,null,null,0,0]
[null,null,null,null,null,null,null,null,null,null,null,null,null,null,null,null,null,null,null,null,null,null,null,null,null,null,null,null,0,0]
[null,null,null,null,null,null,null,null,null,null,null,null,null,null,null,null,null,null,null,null,null,null,null,null,null,null,null,null,0,0]
[null,null,null,null,null,null,null,null,null,null,null,null,null,null,null,null,null,null,null,null,null,null,null,null,null,null,null,null,0,0]
[null,null,null,null,null,null,null,null,null,null,null,null,null,null,null,null,null,null,null,null,null,null,null,null,null,null,null,null,0,0]
[null,null,null,null,null,null,null,null,null,null,null,null,null,null,null,null,null,null,null,null,null,null,null,null,null,null,null,null,0,0]
[null,null,null,null,null,null,null,null,null,null,null,null,null,null,null,null,null,null,null,null,null,null,null,null,null,null,null,null,0,0]
[null,null,null,null,null,null,null,null,null,null,null,null,null,null,null,null,null,null,null,null,null,null,null,null,null,null,null,null,0,0]
[null,null,null,null,null,null,null,null,null,null,null,null,null,null,null,null,null,null,null,null,null,null,null,null,null,null,null,null,0,0]
[null,null,null,null,null,null,null,null,null,null,null,null,null,null,null,null,null,null,null,null,null,null,null,null,null,null,null,null,0,0]
[null,null,null,null,null,null,null,null,null,null,null,null,null,null,null,null,null,null,null,null,null,null,null,null,null,null,null,null,0,0]
[null,null,null,null,null,null,null,null,null,null,null,null,null,null,null,null,null,null,null,null,null,null,null,null,null,null,null,null,0,0]
[null,null,null,null,null,null,null,null,null,null,null,null,null,null,null,null,null,null,null,null,null,null,null,null,null,null,null,null,0,0]
[null,null,null,null,null,null,null,null,null,null,null,null,null,null,null,null,null,null,null,null,null,null,null,null,null,null,null,null,0,0]
[null,null,null,null,null,null,null,null,null,null,null,null,null,null,null,null,null,null,null,null,null,null,null,null,null,null,null,null,0,0]
[null,null,null,null,null,null,null,null,null,null,null,null,null,null,null,null,null,null,null,null,null,null,null,null,null,null,null,null,0,0]
[null,null,null,null,null,null,null,null,null,null,null,null,null,null,null,null,null,null,null,null,null,null,null,null,null,null,null,null,0,0]
[null,null,null,null,null,null,null,null,null,null,null,null,null,null,null,null,null,null,null,null,null,null,null,null,null,null,null,null,0,0]
[null,null,null,null,null,null,null,null,null,null,null,null,null,null,null,null,null,null,null,null,null,null,null,null,null,null,null,null,0,0]
[null,null,null,null,null,null,null,null,null,null,null,null,null,null,null,null,null,null,null,null,null,null,null,null,null,null,null,null,0,0]
[null,null,null,null,null,null,null,null,null,null,null,null,null,null,null,null,null,null,null,null,null,null,null,null,null,null,null,null,0,0]
[null,null,null,null,null,null,null,null,null,null,null,null,null,null,null,null,null,null,null,null,null,null,null,null,null,null,null,null,0,0]
[null,null,null,null,null,null,null,null,null,null,null,null,null,null,null,null,null,null,null,null,null,null,null,null,null,null,null,null,0,0]
[null,null,null,null,null,null,null,null,null,null,null,null,null,null,null,null,null,null,null,null,null,null,null,null,null,null,null,null,0,0]
[null,null,null,null,null,null,null,null,null,null,null,null,null,null,null,null,null,null,null,null,null,null,null,null,null,null,null,null,0,0]
[null,null,null,null,null,null,null,null,null,null,null,null,null,null,null,null,null,null,null,null,null,null,null,null,null,null,null,null,0,0]
[null,null,null,null,null,null,null,null,null,null,null,null,null,null,null,null,null,null,null,null,null,null,null,null,null,null,null,null,0,0]
[null,null,null,null,null,null,null,null,null,null,null,null,null,null,null,null,null,null,null,null,null,null,null,null,null,null,null,null,0,0]
[null,null,null,null,null,null,null,null,null,null,null,null,null,null,null,null,null,null,null,null,null,null,null,null,null,null,null,null,{"$f":"IF(AA1602=0,0,_xlfn.DAYS(AA1602,TODAY()))","v":0},{"$f":"IF(AB1602=0,0,_xlfn.DAYS(AB1602,TODAY()))","v":0}]
[null,null,null,null,null,null,null,null,null,null,null,null,null,null,null,null,null,null,null,null,null,null,null,null,null,null,null,null,0,0]
[null,null,null,null,null,null,null,null,null,null,null,null,null,null,null,null,null,null,null,null,null,null,null,null,null,null,null,null,0,0]
[null,null,null,null,null,null,null,null,null,null,null,null,null,null,null,null,null,null,null,null,null,null,null,null,null,null,null,null,0,0]
[null,null,null,null,null,null,null,null,null,null,null,null,null,null,null,null,null,null,null,null,null,null,null,null,null,null,null,null,0,0]
[null,null,null,null,null,null,null,null,null,null,null,null,null,null,null,null,null,null,null,null,null,null,null,null,null,null,null,null,0,0]
[null,null,null,null,null,null,null,null,null,null,null,null,null,null,null,null,null,null,null,null,null,null,null,null,null,null,null,null,0,0]
[null,null,null,null,null,null,null,null,null,null,null,null,null,null,null,null,null,null,null,null,null,null,null,null,null,null,null,null,0,0]
[null,null,null,null,null,null,null,null,null,null,null,null,null,null,null,null,null,null,null,null,null,null,null,null,null,null,null,null,0,0]
[null,null,null,null,null,null,null,null,null,null,null,null,null,null,null,null,null,null,null,null,null,null,null,null,null,null,null,null,0,0]
[null,null,null,null,null,null,null,null,null,null,null,null,null,null,null,null,null,null,null,null,null,null,null,null,null,null,null,null,0,0]
[null,null,null,null,null,null,null,null,null,null,null,null,null,null,null,null,null,null,null,null,null,null,null,null,null,null,null,null,0,0]
[null,null,null,null,null,null,null,null,null,null,null,null,null,null,null,null,null,null,null,null,null,null,null,null,null,null,null,null,0,0]
[null,null,null,null,null,null,null,null,null,null,null,null,null,null,null,null,null,null,null,null,null,null,null,null,null,null,null,null,0,0]
[null,null,null,null,null,null,null,null,null,null,null,null,null,null,null,null,null,null,null,null,null,null,null,null,null,null,null,null,0,0]
[null,null,null,null,null,null,null,null,null,null,null,null,null,null,null,null,null,null,null,null,null,null,null,null,null,null,null,null,0,0]
[null,null,null,null,null,null,null,null,null,null,null,null,null,null,null,null,null,null,null,null,null,null,null,null,null,null,null,null,0,0]
[null,null,null,null,null,null,null,null,null,null,null,null,null,null,null,null,null,null,null,null,null,null,null,null,null,null,null,null,0,0]
[null,null,null,null,null,null,null,null,null,null,null,null,null,null,null,null,null,null,null,null,null,null,null,null,null,null,null,null,0,0]
[null,null,null,null,null,null,null,null,null,null,null,null,null,null,null,null,null,null,null,null,null,null,null,null,null,null,null,null,0,0]
[null,null,null,null,null,null,null,null,null,null,null,null,null,null,null,null,null,null,null,null,null,null,null,null,null,null,null,null,0,0]
[null,null,null,null,null,null,null,null,null,null,null,null,null,null,null,null,null,null,null,null,null,null,null,null,null,null,null,null,0,0]
[null,null,null,null,null,null,null,null,null,null,null,null,null,null,null,null,null,null,null,null,null,null,null,null,null,null,null,null,0,0]
[null,null,null,null,null,null,null,null,null,null,null,null,null,null,null,null,null,null,null,null,null,null,null,null,null,null,null,null,0,0]
[null,null,null,null,null,null,null,null,null,null,null,null,null,null,null,null,null,null,null,null,null,null,null,null,null,null,null,null,0,0]
[null,null,null,null,null,null,null,null,null,null,null,null,null,null,null,null,null,null,null,null,null,null,null,null,null,null,null,null,0,0]
[null,null,null,null,null,null,null,null,null,null,null,null,null,null,null,null,null,null,null,null,null,null,null,null,null,null,null,null,0,0]
[null,null,null,null,null,null,null,null,null,null,null,null,null,null,null,null,null,null,null,null,null,null,null,null,null,null,null,null,0,0]
[null,null,null,null,null,null,null,null,null,null,null,null,null,null,null,null,null,null,null,null,null,null,null,null,null,null,null,null,0,0]
[null,null,null,null,null,null,null,null,null,null,null,null,null,null,null,null,null,null,null,null,null,null,null,null,null,null,null,null,0,0]
[null,null,null,null,null,null,null,null,null,null,null,null,null,null,null,null,null,null,null,null,null,null,null,null,null,null,null,null,0,0]
[null,null,null,null,null,null,null,null,null,null,null,null,null,null,null,null,null,null,null,null,null,null,null,null,null,null,null,null,0,0]
[null,null,null,null,null,null,null,null,null,null,null,null,null,null,null,null,null,null,null,null,null,null,null,null,null,null,null,null,0,0]
[null,null,null,null,null,null,null,null,null,null,null,null,null,null,null,null,null,null,null,null,null,null,null,null,null,null,null,null,0,0]
[null,null,null,null,null,null,null,null,null,null,null,null,null,null,null,null,null,null,null,null,null,null,null,null,null,null,null,null,0,0]
[null,null,null,null,null,null,null,null,null,null,null,null,null,null,null,null,null,null,null,null,null,null,null,null,null,null,null,null,0,0]
[null,null,null,null,null,null,null,null,null,null,null,null,null,null,null,null,null,null,null,null,null,null,null,null,null,null,null,null,0,0]
[null,null,null,null,null,null,null,null,null,null,null,null,null,null,null,null,null,null,null,null,null,null,null,null,null,null,null,null,0,0]
[null,null,null,null,null,null,null,null,null,null,null,null,null,null,null,null,null,null,null,null,null,null,null,null,null,null,null,null,0,0]
[null,null,null,null,null,null,null,null,null,null,null,null,null,null,null,null,null,null,null,null,null,null,null,null,null,null,null,null,0,0]
[null,null,null,null,null,null,null,null,null,null,null,null,null,null,null,null,null,null,null,null,null,null,null,null,null,null,null,null,0,0]
[null,null,null,null,null,null,null,null,null,null,null,null,null,null,null,null,null,null,null,null,null,null,null,null,null,null,null,null,0,0]
[null,null,null,null,null,null,null,null,null,null,null,null,null,null,null,null,null,null,null,null,null,null,null,null,null,null,null,null,0,0]
[null,null,null,null,null,null,null,null,null,null,null,null,null,null,null,null,null,null,null,null,null,null,null,null,null,null,null,null,0,0]
[null,null,null,null,null,null,null,null,null,null,null,null,null,null,null,null,null,null,null,null,null,null,null,null,null,null,null,null,0,0]
[null,null,null,null,null,null,null,null,null,null,null,null,null,null,null,null,null,null,null,null,null,null,null,null,null,null,null,null,0,0]
[null,null,null,null,null,null,null,null,null,null,null,null,null,null,null,null,null,null,null,null,null,null,null,null,null,null,null,null,0,0]
[null,null,null,null,null,null,null,null,null,null,null,null,null,null,null,null,null,null,null,null,null,null,null,null,null,null,null,null,0,0]
[null,null,null,null,null,null,null,null,null,null,null,null,null,null,null,null,null,null,null,null,null,null,null,null,null,null,null,null,0,0]
[null,null,null,null,null,null,null,null,null,null,null,null,null,null,null,null,null,null,null,null,null,null,null,null,null,null,null,null,0,0]